{"text_format":"1","workbook":"xlsx","n_sheets":27,"sheets":["Read_Me","Version History","Rules Clarifications","Cover Sheet","Accumulator Pics","EV5.5.1&2 EV4.4 ACPS TSPS sidex","EV5.5.1&2 EV4.4 ACPS TSPS rearx","EV5.5.5 Alt. Matls Summary","EV5.5.5 Alt. Matl - 3pt Bending","EV5.5.5 Alt. Matl - Shear","Datasheets Fiber","Datasheets Other Matl","Datasheets Glue","Materials Overview","EV5.5.10-12 Cell Fixation","EV5.5.9 Segment","EV5.5.9 TSAC","EV5.5.9 TSAC attachments","EV5.5.13 Fasteners","EV5.5.14-17 Openings&Separation","Additional Info","T3.5.9 Guidance Notes","EV5.5.3 Guidance Notes","EV5.5.9 Guidance Notes","EV5.5.10-11 Guidance Notes","EV5.5.12 Guidance Notes","EV5.5 TSAC Attachment Guidance"],"not_rendered":{"charts":0,"images":5,"macros":1,"external_links":0,"defined_names":66,"comments":3,"pivot_tables":0},"unopened":[],"bounds":{"document_bytes":16777216,"sheet_cells":100000,"rows_first":2000,"rows_last":500,"rows_between":2000,"halvings":0,"cell_chars":16384,"cell_head_chars":4096},"cells_cut":0,"cells_raw":0,"read":"whole","date_system":"1900"}

{"sheet":"Read_Me","index":0,"n_rows":39,"n_cols":3,"rows_kept":39,"cut":false,"hidden":false,"merged":[[19,0,20,7],[23,0,25,7],[27,1,28,6],[2,0,3,7],[5,0,6,7],[10,0,11,7],[15,0,16,7],[17,0,18,7],[13,0,14,7]]}
[2026,"V1.0","FS Accumulator Structural Equivalency Spreadsheet Guide"]
[]
["The ASES template has been created to simplify the process of proving structural equivalency of the Tractive System Accumulator (TSAC)."]
[]
[]
["Please enter your values in the yellow cells and paste all the images in the specific tabs which shows your entered values."]
[]
[]
["All dimensions and units must follow the European SI System!"]
[]
["The final decision about all designs will be made at technical inspection. Approval of an ASES does not guarantee passing Tech. Inspection nor a fully rules compliant accumulator!"]
[]
[]
["As downloaded, the spreadsheet assumes a baseline steel/aluminium TSAC design. The majority of the cells in the spreadsheet are locked, you can only edit the cells shaded yellow. "]
[]
["Cells shaded grey are dependant on the data entered in yellow cells, the formulae in these grey cells have been left visible so you can see how the results are calculated."]
[]
["The vast majority of the tabs can be accessed using the hyperlinks on the cover sheet. If you enable macros when opening the document \"Ctrl+e\" will return you to the cover sheet."]
[]
["The ASES has been extensively tested, but if you think you have found a mistake in the document or have any questions on how to use the template please submit a question in the usual manner."]
[]
["Please read the guidance notes located at the end of the workbook."]
[]
["If you find a new problem with the ASES template or require a clarification 72 hours or less before the ASES submission deadline please include your own proof of equivalency in the \"Additional Info\" tab and additionally submit a rules question."]
[]
[]
[]
[null,"Teams are not permitted to rename the name of the TAB or to delete any TAB."]
[]
[]
["Revisions:"]
["V1.0","First release for 2026 rules"]
[null,"- TAB EV5.5.10-12 Cell Fixation: Updated name and sheet due to new rules."]
[null,"- TAB EV5.5.14-18 Openings&Separation: Allowed N/A for some cases and removed"]
[null,"redundant check."]
[null,"- TAB Datasheets Other Matl: Added cells for properties at 60 °C"]
[null,"- TAB Materials Overview: Fixed formula error"]
[null,"- TAB Materials Overview: Added cells for properties at 60 °C for Other Materials"]
[null,"- TAB Accumulator Pics: Removed name before \"Material\" for correction."]

{"sheet":"Version History","index":1,"n_rows":4,"n_cols":2,"rows_kept":4,"cut":false,"hidden":false,"merged":[[3,1,3,14],[0,0,1,14]]}
["If you have to resubmit your ASES then please update the table below, indicating what changes you have made from the previous submission."]
[]
[]
["Submission Version","Revision Comments"]

{"sheet":"Rules Clarifications","index":2,"n_rows":3,"n_cols":2,"rows_kept":3,"cut":false,"hidden":false,"merged":[[2,1,2,14],[0,0,1,14]]}
["Details of any rules clarifications must be referenced and appended in this tab. \nRules clarifications not listed here will be ignored during the review!"]
[]
["Clarification ID","Details of Clarification Question and Answer"]

{"sheet":"Cover Sheet","index":3,"n_rows":44,"n_cols":20,"rows_kept":44,"cut":false,"hidden":false,"merged":[[32,1,32,6],[36,19,36,20],[37,19,37,20],[29,19,29,20],[35,1,35,6],[36,1,36,6],[37,1,37,6],[30,1,30,6],[31,1,31,6],[36,15,36,16],[37,15,37,16],[32,7,32,11],[30,7,30,11],[31,7,31,11],[34,7,34,11],[35,7,35,11],[43,1,44,20],[37,12,37,14],[25,7,25,11],[18,1,18,20],[19,1,19,20],[33,1,33,6],[34,1,34,6],[21,7,23,11],[32,15,32,16],[21,1,23,6],[24,1,24,6],[25,1,25,6],[26,1,26,6],[27,1,27,6],[28,1,28,6],[29,1,29,6],[16,3,16,9],[2,0,5,21],[27,19,27,20],[28,19,28,20],[21,15,23,16],[21,17,23,18],[21,19,23,20],[24,19,24,20],[25,19,25,20],[26,19,26,20],[34,15,34,16],[35,15,35,16],[34,19,34,20],[35,19,35,20],[0,0,0,18],[14,3,14,9],[11,0,12,18],[21,12,22,14],[24,15,24,16],[14,14,14,21],[15,13,15,21],[24,17,24,18],[24,7,24,11],[8,0,8,1],[9,0,9,1],[15,3,15,9],[31,15,31,16],[32,17,32,18],[33,17,33,18],[31,17,31,18],[30,19,30,20],[31,19,31,20],[32,19,32,20],[33,19,33,20],[33,15,33,16],[29,15,29,16],[30,15,30,16],[25,17,25,18],[26,17,26,18],[27,17,27,18],[28,17,28,18],[29,17,29,18],[30,17,30,18],[25,15,25,16],[26,15,26,16],[27,15,27,16],[28,15,28,16],[31,12,31,14],[26,7,26,11],[27,7,27,11],[28,7,28,11],[29,7,29,11],[40,1,40,20],[24,12,24,14],[36,7,36,11],[37,7,37,11],[16,13,16,21],[34,17,34,18],[35,17,35,18],[36,17,36,18],[37,17,37,18],[33,7,33,11],[25,12,25,14],[26,12,26,14],[27,12,27,14],[28,12,28,14],[29,12,29,14],[30,12,30,14]]}
[{"$f":"CONCATENATE(Read_Me!A1,\" FS ASES \",Read_Me!B1,\" - COVER SHEET\")","v":"2026 FS ASES V1.0 - COVER SHEET"}]
[]
["This form must be completed and submitted by all teams no later than the date specified in the action deadlines in the Event Handbook. The technical committee will review all submissions which deviate from the FS rules and reply with a decision about the requested deviation. All requests will have a confirmation of receipt sent to the team. The ASES must be submitted electronically in Microsoft Excel Format (*.xlsx). Please submit as described in the action deadlines for each event."]
[]
[]
[]
[]
["Proof requirement explanation"]
["Mandatory",null,"The proof is mandatory to show compliance to the rules/equivalency in any case, regardless of the accumulator concept."]
["Optional",null,"The proof may be required, depending on the accumulator concept, to show equivalency. If so, it must be included."]
[]
["In the event that the FS technical committee requests additional information or calculations, teams must submit the requested information within the deadline specified by the respective competition."]
[]
[]
["University Name",null,null,null,null,null,null,null,null,null,"Car No.(s) & Event(s)"]
["Team Contact",null,null,null,null,null,null,null,null,null,"Email Address"]
["Faculty Advisor",null,null,null,null,null,null,null,null,null,"Email Address"]
[]
[null,"Is proof of equivalency for your design required for any of the rules?"]
[null,{"$f":"IF(OR('Accumulator Pics'!E12=\"Other\",'Accumulator Pics'!E36=\"Other\",'Accumulator Pics'!E60=\"Other\",'Accumulator Pics'!E84=\"Other\"),\"Yes, TSAC deviates from baseline requirements\",\"No. TSAC does not deviate from baseline requirements\")","v":"No. TSAC does not deviate from baseline requirements"}]
[]
[null,"Tab",null,null,null,null,null,"Rule No.",null,null,null,null,"Compliance shown?",null,null,"CAD proof required?",null,"Datasheet proof required?",null,"Manual calculation required?"]
[]
[null,null,null,null,null,null,null,null,null,null,null,null,"X","Y","Z"]
[null,"Accumulator Pics",null,null,null,null,null,"EV5.5.4/5",null,null,null,null,"No",null,null,"Mandatory",null,"Optional",null,"Optional"]
[null,"Alt. Matls Summary",null,null,null,null,null,"EV5.5.3-7"]
[null,"Alt. Matl - 3pt Bending",null,null,null,null,null,"EV5.5.3-7",null,null,null,null,"No",null,null,"Optional",null,"Optional",null,"Optional"]
[null,"Alt. Matl - Shear",null,null,null,null,null,"EV5.5.3-7",null,null,null,null,"No",null,null,"Optional",null,"Optional",null,"Optional"]
[null,"Materials Overview",null,null,null,null,null,"EV5.5.3/4"]
[null,"Datasheets Fiber",null,null,null,null,null,"EV5.5.3/4",null,null,null,null,"No",null,null,"Optional",null,"Optional",null,"Optional"]
[null,"Datasheets Other Matl",null,null,null,null,null,"EV5.5.3/4",null,null,null,null,"No",null,null,"Optional",null,"Optional",null,"Optional"]
[null,"Datasheets Glue",null,null,null,null,null,"EV5.5.3/4",null,null,null,null,"No",null,null,"Optional",null,"Optional",null,"Optional"]
[null,"EV5.5.9 Segment",null,null,null,null,null,"EV5.5.6/8",null,null,null,null,"No","No","No","Mandatory",null,"Optional",null,"Mandatory"]
[null,"EV5.5.9 TSAC",null,null,null,null,null,"EV5.5.6/8",null,null,null,null,"No","No","No","Mandatory",null,"Optional",null,"Mandatory"]
[null,"EV5.5.9 TSAC attachment",null,null,null,null,null,"EV5.5.6/8",null,null,null,null,"No","No","No","Mandatory",null,"Optional",null,"Mandatory"]
[null,"EV5.5.10-12 Cell Fixation",null,null,null,null,null,"EV5.5.10-12, EV4.5.12",null,null,null,null,"No","No","No","Mandatory",null,"Optional",null,"Mandatory"]
[null,"EV5.5.13 Fasteners",null,null,null,null,null,"EV5.5.13, T10",null,null,null,null,"No","No","No","Mandatory",null,"Optional",null,"Optional"]
[null,"EV5.5.14-17 Openings&Separation",null,null,null,null,null,"EV5.5.7/14-18, EV5.4.6",null,null,null,null,"No",null,null,"Mandatory",null,"Mandatory",null,"Optional"]
[]
[]
[null,"COMPLETE APPROPRIATE TABS TO PROVE EQUIVALENCY"]
[null,"Please see ",null,"\"Accumulator Structural Equivalency Spreadsheet Guide\"",null,null,null,null,null,null,null,null,"in the Read_Me tab of the ASES Workbook."]
[]
[null,"NOTE: THIS FORM AND THE APPROVED COPY OF THE SUBMISSION MUST BE PRESENTED\nAT TECHNICAL INSPECTION AT EVERY FORMULA STUDENT EVENT ENTERED"]

{"sheet":"Accumulator Pics","index":4,"n_rows":90,"n_cols":26,"rows_kept":90,"cut":false,"hidden":false,"merged":[[2,25,6,25],[2,19,6,19],[2,20,6,20],[2,21,6,21],[2,22,6,22],[2,23,6,23],[2,24,6,24],[0,0,0,15],[2,3,2,7],[2,12,2,15],[86,0,86,3],[83,0,83,3],[84,0,84,3],[85,0,85,3],[33,0,34,15],[57,0,58,15],[81,0,82,15],[38,0,38,3],[14,0,14,3],[62,0,62,3],[59,0,59,3],[60,0,60,3],[61,0,61,3],[4,0,6,15],[41,16,42,25],[20,16,20,20],[21,16,21,20],[22,16,22,20],[18,16,19,25],[35,0,35,3],[36,0,36,3],[37,0,37,3],[11,0,11,3],[12,0,12,3],[13,0,13,3],[9,0,10,15],[2,17,6,17],[2,18,6,18],[12,17,12,25]]}
[{"$f":"CONCATENATE(Read_Me!A1,\" FS ASES \",Read_Me!B1,\" - ACCUMULATOR PICS\")","v":"2026 FS ASES V1.0 - ACCUMULATOR PICS"}]
[null,null,null,null,null,null,null,null,null,null,null,null,null,null,null,null,null,"This chart below is for laminated structures of the Accumulator!"]
["University Name",null,null,{"$f":"IF('Cover Sheet'!D15:J15>0,'Cover Sheet'!D15:J15,\"\")","v":""},null,null,null,null,"Car No.(s) & Event(s)",null,null,null,{"$f":"IF('Cover Sheet'!O15>0,'Cover Sheet'!O15,\"\")","v":""},null,null,null,null,"Structure","Overall Thickness [mm]","Thickness outer skin [mm]","Outer skin layup","Core material","Core thickness [mm]","inner skin layup","Thickness inner skin [mm]","Proof of T3.4.3"]
[]
["Please attach pictures of your accumulator in the table below for review during the ASES process. \nAll walls/panels/lay-ups must be colour coded to show different walls. Three view drawings and isometric views of the structure (CAD, FEA models, etc) are acceptable."]
[]
[]
[null,null,null,null,null,null,null,null,null,null,null,null,null,null,null,null,null,"Floor",{"$f":"T8+W8+Y8","v":2},{"$f":"'EV5.5.5 Alt. Matl - 3pt Bending'!C57","v":1},null,null,{"$f":"'EV5.5.5 Alt. Matl - 3pt Bending'!C55","v":0},null,{"$f":"'EV5.5.5 Alt. Matl - 3pt Bending'!C56","v":1}]
[null,null,null,null,null,null,null,null,null,null,null,"BACK to COVER SHEET",null,null,null,null,null,"Ext. Walls",{"$f":"T9+W9+Y9","v":2},{"$f":"'EV5.5.5 Alt. Matl - 3pt Bending'!V57","v":1},null,null,{"$f":"'EV5.5.5 Alt. Matl - 3pt Bending'!V55","v":0},null,{"$f":"'EV5.5.5 Alt. Matl - 3pt Bending'!V56","v":1}]
["Accumulator Floor",null,null,null,null,null,null,null,null,null,null,null,null,null,null,null,null,"Int. Walls",2,{"$f":"'EV5.5.5 Alt. Matl - 3pt Bending'!AO57","v":1},null,null,{"$f":"'EV5.5.5 Alt. Matl - 3pt Bending'!AO55","v":0},null,{"$f":"'EV5.5.5 Alt. Matl - 3pt Bending'!AO56","v":1}]
[null,null,null,null,null,null,null,null,null,null,null,null,null,null,null,null,null,"Cover",2,{"$f":"'EV5.5.5 Alt. Matl - 3pt Bending'!BH57","v":1},null,null,{"$f":"'EV5.5.5 Alt. Matl - 3pt Bending'!BH55","v":0},null,{"$f":"'EV5.5.5 Alt. Matl - 3pt Bending'!BH56","v":1}]
["Material",null,null,null,"Steel"]
["Floor Thickness [mm]",null,null,null,{"$f":"IF(E12=\"Other\",S8,S14)","v":4},null,null,null,null,null,null,null,null,null,null,null,null,"This chart below is for metalic structures of the Accumulator!"]
["Width [mm]",null,null,null,300,null,null,null,null,null,null,null,null,null,null,null,null,"Floor",4]
["Fail / Pass",null,null,null,{"$f":"IF(E12=\"Other\",'EV5.5.5 Alt. Matls Summary'!D25,IF(E12=\"Steel\",IF(E13<1.25,\"FAIL\",\"PASS\"),IF(E12=\"Aluminium\",IF(E13<3.2,\"FAIL\",\"PASS\"))))","v":"PASS"},null,null,null,null,null,null,null,null,null,null,null,null,"Ext. Walls",4]
[null,null,null,null,null,null,null,null,null,null,null,null,null,null,null,null,null,"Int. Walls",4]
[null,"Paste Image of width of the accumulator floor.",null,null,null,null,null,null,null,null,null,null,null,null,null,null,null,"Cover"]
[null,"Paste Image of Floor Thickness."]
[null,null,null,null,null,null,null,null,null,null,null,null,null,null,null,null,"Accumulator Position in the Chassis"]
[]
[null,null,null,null,null,null,null,null,null,null,null,null,null,null,null,null,null,null,null,null,null,"Image provided"]
[null,null,null,null,null,null,null,null,null,null,null,null,null,null,null,null,"Isometric View of Accumulator in chassis",null,null,null,null,"No"]
[null,null,null,null,null,null,null,null,null,null,null,null,null,null,null,null,"Sideview of Acc. in chassis",null,null,null,null,"No"]
[]
[null,null,null,null,null,null,null,null,null,null,null,null,null,null,null,null,null,"Paste Image of Accumulator in chassis"]
[]
[null,null,null,null,null,null,null,null,null,null,null,null,null,null,null,null,null,"Paste image of sideview of accumulator in chassis, with the height clearly marked "]
[null,null,null,null,null,null,null,null,null,null,null,null,null,null,null,null,null,"of the accumulator protection"]
[]
[]
[]
[]
[]
["External Wall"]
[]
["Material",null,null,null,"Steel"]
["Wall Thickness [mm]",null,null,null,{"$f":"IF(E36=\"Other\",S9,S15)","v":4}]
["Height [mm]"]
["Fail / Pass",null,null,null,{"$f":"IF(E36=\"Other\",'EV5.5.5 Alt. Matls Summary'!F25,IF(E36=\"Steel\",IF(E37<0.9,\"FAIL\",\"PASS\"),IF(E36=\"Aluminium\",IF(E37<2.3,\"FAIL\",\"PASS\"))))","v":"PASS"}]
[]
[null,"Paste Image of height of the external wall."]
[null,"Paste Image of wall thickness.",null,null,null,null,null,null,null,null,null,null,null,null,null,null,"Additional Pictures"]
[]
[]
[null,null,null,null,null,null,null,null,null,null,null,null,null,null,null,null,null,"Any pictures (e.g. full view, sections) that might be in interest of the reviewer/scrutineer."]
[]
[]
[]
[]
[]
[]
[]
[]
[]
[]
[]
[]
[{"$f":"IF(E38=E62,\"Internal Wall\",\"Internal Wall - Must have the same height as external wall!\")","v":"Internal Wall"}]
[]
["Material",null,null,null,"Steel"]
["Wall Thickness [mm]",null,null,null,{"$f":"IF(E60=\"Other\",S10,S16)","v":4}]
["Height [mm]"]
["Fail / Pass",null,null,null,{"$f":"IF(E60=\"Other\",'EV5.5.5 Alt. Matls Summary'!H25,IF(E60=\"Steel\",IF(E61<0.9,\"FAIL\",\"PASS\"),IF(E60=\"Aluminium\",IF(E61<2.3,\"FAIL\",\"PASS\"))))","v":"PASS"}]
[]
[null,"Paste Image of height of the internal wall."]
[null,"Paste Image of wall thickness."]
[]
[]
[]
[]
[]
[]
[]
[]
[]
[]
[]
[]
[]
[]
[]
["Cover"]
[]
["Material",null,null,null,"Steel"]
["Cover Thickness / mm",null,null,null,{"$f":"IF(E84=\"Other\",S11,S17)","v":0}]
["Width [mm]"]
["Fail / Pass",null,null,null,{"$f":"IF(E84=\"Other\",'EV5.5.5 Alt. Matls Summary'!H25,IF(E84=\"Steel\",IF(E85<0.9,\"FAIL\",\"PASS\"),IF(E84=\"Aluminium\",IF(E85<2.3,\"FAIL\",\"PASS\"))))","v":"FAIL"}]
[]
[null,"Paste Image of width of the internal wall."]
[null,"Paste Image of cover thickness."]

{"sheet":"EV5.5.1&2 EV4.4 ACPS TSPS sidex","index":5,"n_rows":40,"n_cols":15,"rows_kept":40,"cut":false,"hidden":true,"merged":[[1,2,1,4],[1,5,1,6],[18,4,21,6]]}
[null,"Accumulator Protection"]
[null,null,"Enter construction type",null,null,"Tubing only",null,null,null,null,null,"BACK to COVER SHEET"]
[]
[null,"Material Property","Baseline",null,"Your Tube type 1","Your Tube type 2","Your Tube type 3","Your Tubes Total","Your Composite","Your Total",null,null,"Outer","Inner"]
[null,"Material type","Steel",null,"Steel","Steel","Steel",null,"Composite 1",null,null,"b (m)",{"$f":"I22/1000","v":0.32},{"$f":"M5","v":0.32}]
[null,"Tubing Type","Round",null,"Round","Round","Round",null,"NA",null,null,"h (m)",{"$f":"I21/1000","v":1E-3},{"$f":"I20/1000","v":1E-3}]
[null,"Material name /grade",{"$f":"HLOOKUP(C5,#REF!,2,FALSE)","v":{"$error":"#REF!"}},null,{"$f":"HLOOKUP(E5,#REF!,2,FALSE)","v":{"$error":"#REF!"}},{"$f":"HLOOKUP(F5,#REF!,2,FALSE)","v":{"$error":"#REF!"}},{"$f":"HLOOKUP(G5,#REF!,2,FALSE)","v":{"$error":"#REF!"}},null,{"$f":"HLOOKUP(I5,#REF!,2,FALSE)","v":{"$error":"#REF!"}}]
[null,"Youngs Modulus, E",{"$f":"INDEX(Innertable,MATCH($B8,#REF!,0),MATCH(C$7,#REF!,0))","v":{"$error":"#REF!"}},null,{"$f":"INDEX(Innertable,MATCH($B8,#REF!,0),MATCH(E$7,#REF!,0))","v":{"$error":"#REF!"}},{"$f":"INDEX(Innertable,MATCH($B8,#REF!,0),MATCH(F$7,#REF!,0))","v":{"$error":"#REF!"}},{"$f":"INDEX(Innertable,MATCH($B8,#REF!,0),MATCH(G$7,#REF!,0))","v":{"$error":"#REF!"}},null,{"$f":"INDEX(Innertable,MATCH($B8,#REF!,0),MATCH(I$7,#REF!,0))","v":{"$error":"#REF!"}},null,null,"A1 (m^2)",{"$f":"M5*M6","v":3.2000000000000003E-4},"I1 (m^4)",{"$f":"(M5*M6^3)/12","v":2.6666666666666668E-11}]
[null,"Yield strength, Pa",{"$f":"INDEX(Innertable,MATCH($B9,#REF!,0),MATCH(C$7,#REF!,0))","v":{"$error":"#REF!"}},null,{"$f":"INDEX(Innertable,MATCH($B9,#REF!,0),MATCH(E$7,#REF!,0))","v":{"$error":"#REF!"}},{"$f":"INDEX(Innertable,MATCH($B9,#REF!,0),MATCH(F$7,#REF!,0))","v":{"$error":"#REF!"}},{"$f":"INDEX(Innertable,MATCH($B9,#REF!,0),MATCH(G$7,#REF!,0))","v":{"$error":"#REF!"}},null,{"$f":"INDEX(Innertable,MATCH($B9,#REF!,0),MATCH(I$7,#REF!,0))","v":{"$error":"#REF!"}},null,null,"A2 (m^2)",{"$f":"N5*N6","v":3.2000000000000003E-4},"I2 (m^4)",{"$f":"(N5*N6^3)/12","v":2.6666666666666668E-11}]
[null,"UTS, Pa",{"$f":"INDEX(Innertable,MATCH($B10,#REF!,0),MATCH(C$7,#REF!,0))","v":{"$error":"#REF!"}},null,{"$f":"INDEX(Innertable,MATCH($B10,#REF!,0),MATCH(E$7,#REF!,0))","v":{"$error":"#REF!"}},{"$f":"INDEX(Innertable,MATCH($B10,#REF!,0),MATCH(F$7,#REF!,0))","v":{"$error":"#REF!"}},{"$f":"INDEX(Innertable,MATCH($B10,#REF!,0),MATCH(G$7,#REF!,0))","v":{"$error":"#REF!"}},null,{"$f":"INDEX(Innertable,MATCH($B10,#REF!,0),MATCH(I$7,#REF!,0))","v":{"$error":"#REF!"}},null,null,"y1 (m)",{"$f":"M6/2","v":5.0000000000000001E-4},"Ic1 (m^4)",{"$f":"O8+(M8*($M$12-M10)^2)","v":2.8906666666666669E-8}]
[null,"Yield strength, welded, Pa",{"$f":"INDEX(Innertable,MATCH($B11,#REF!,0),MATCH(C$7,#REF!,0))","v":{"$error":"#REF!"}},null,{"$f":"INDEX(Innertable,MATCH($B11,#REF!,0),MATCH(E$7,#REF!,0))","v":{"$error":"#REF!"}},{"$f":"INDEX(Innertable,MATCH($B11,#REF!,0),MATCH(F$7,#REF!,0))","v":{"$error":"#REF!"}},{"$f":"INDEX(Innertable,MATCH($B11,#REF!,0),MATCH(G$7,#REF!,0))","v":{"$error":"#REF!"}},null,{"$f":"INDEX(Innertable,MATCH($B11,#REF!,0),MATCH(I$7,#REF!,0))","v":{"$error":"#REF!"}},null,null,"y2 (m)",{"$f":"(I18-0.5*I20)*0.001","v":1.95E-2},"Ic2 (m^4)",{"$f":"O9+(M9*($M$12-M11)^2)","v":2.8906666666666669E-8}]
[null,"UTS welded, Pa",{"$f":"INDEX(Innertable,MATCH($B12,#REF!,0),MATCH(C$7,#REF!,0))","v":{"$error":"#REF!"}},null,{"$f":"INDEX(Innertable,MATCH($B12,#REF!,0),MATCH(E$7,#REF!,0))","v":{"$error":"#REF!"}},{"$f":"INDEX(Innertable,MATCH($B12,#REF!,0),MATCH(F$7,#REF!,0))","v":{"$error":"#REF!"}},{"$f":"INDEX(Innertable,MATCH($B12,#REF!,0),MATCH(G$7,#REF!,0))","v":{"$error":"#REF!"}},null,{"$f":"INDEX(Innertable,MATCH($B12,#REF!,0),MATCH(I$7,#REF!,0))","v":{"$error":"#REF!"}},null,null,"Centroid (m)",{"$f":"(M8*M10+M9*M11)/(M8+M9)","v":0.01},"Ic12 (m^4)",{"$f":"SUM(O10:O11)","v":5.7813333333333339E-8}]
[]
[null,"Number of tubes",3,null,3,0,0]
[null,"Tube OD, mm",25.4,null,25.4,25.4,25.4]
[null,"Wall, mm",1.6,null,1.6,1.6,1.6]
[null,null,null,null,null,"Baseline design?",{"$f":"IF(AND(K27>=100,F2=\"tubing only\",NOT(OR(E18=\"NO\",F18=\"NO\",G18=\"NO\"))),\"YES\",\"NO\")","v":{"$error":"#REF!"}}]
[null,"Thickness of panel, mm",null,null,{"$f":"IF(E14=0,\"N/A\",IF(AND(E5=$C$5,E15>=25.4,E16>=1.6),\"YES\",\"NO\"))","v":"YES"},{"$f":"IF(F14=0,\"N/A\",IF(AND(F5=$C$5,F15>=25.4,F16>=1.6),\"YES\",\"NO\"))","v":"N/A"},{"$f":"IF(G14=0,\"N/A\",IF(AND(G5=$C$5,G15>=25.4,G16>=1.6),\"YES\",\"NO\"))","v":"N/A"},null,{"$f":"I19+I20+I21","v":20}]
[null,"Thickness of core, mm",null,null,null,null,null,null,18]
[null,"Thickness of inner skin, mm",null,null,null,null,null,null,1]
[null,"Thickness of outer skin, mm",null,null,null,null,null,null,1]
[null,"Panel height,mm",null,null,null,null,null,null,320]
[]
[null,"OD, m",{"$f":"C15/1000","v":2.5399999999999999E-2},null,{"$f":"IF($F$2=\"composite only\",\"No tubes\",IF(E14=0,\"No tubes\",E15/1000))","v":2.5399999999999999E-2},{"$f":"IF($F$2=\"composite only\",\"No tubes\",IF(F14=0,\"No tubes\",F15/1000))","v":"No tubes"},{"$f":"IF($F$2=\"composite only\",\"No tubes\",IF(G14=0,\"No tubes\",G15/1000))","v":"No tubes"}]
[null,"Wall, m",{"$f":"C16/1000","v":1.6000000000000001E-3},null,{"$f":"IF(E24=\"no tubes\",\"\",IF(E14=0,\"\",E16/1000))","v":1.6000000000000001E-3},{"$f":"IF(F24=\"no tubes\",\"\",IF(F14=0,\"\",F16/1000))","v":""},{"$f":"IF(G24=\"no tubes\",\"\",IF(G14=0,\"\",G16/1000))","v":""}]
[null,"I, m^4",{"$f":"IF(C6=\"Round\",((C24)^4-((C24-2*C25))^4)*3.142/64,((C24)^4-((C24-2*C25))^4)/12)","v":8.5099184800000022E-9},null,{"$f":"IF(E24=\"no tubes\",\"\",IF(E14=0,\"\",IF(E6=\"Round\",(((E24)^4-((E24-2*E25))^4)*3.142/64),IF(E6=\"Square\",(((E24)^4-((E24-2*E25))^4)/12),\"\"))))","v":8.5099184800000022E-9},{"$f":"IF(F24=\"no tubes\",\"\",IF(F14=0,\"\",IF(F6=\"Round\",(((F24)^4-((F24-2*F25))^4)*3.142/64),IF(F6=\"Square\",(((F24)^4-((F24-2*F25))^4)/12),\"\"))))","v":""},{"$f":"IF(G24=\"no tubes\",\"\",IF(G14=0,\"\",IF(G6=\"Round\",(((G24)^4-((G24-2*G25))^4)*3.142/64),IF(G6=\"Square\",(((G24)^4-((G24-2*G25))^4)/12),\"\"))))","v":""},{"$f":"IF(SUM(E26:G26)>0,SUM(E26:G26),\"\")","v":8.5099184800000022E-9},{"$f":"IF($F$2=\"Tubing only\",\"Tubing Only\",O12)","v":"Tubing Only"},{"$f":"IF($F$2=\"Tubing only\",H26,IF($F$2=\"Composite only\",I26,IF($F$2=\"Tubes + Composite\",H26+I26,\"No Type Selected\")))","v":8.5099184800000022E-9}]
[null,"EI",{"$f":"C8*C26*C14","v":{"$error":"#REF!"}},null,{"$f":"IF(E24=\"no tubes\",\"\",IF(E14=0,\"\",E8*E26*E14))","v":{"$error":"#REF!"}},{"$f":"IF(F24=\"no tubes\",\"\",IF(F14=0,\"\",F8*F26*F14))","v":""},{"$f":"IF(G24=\"no tubes\",\"\",IF(G14=0,\"\",G8*G26*G14))","v":""},{"$f":"IF(SUM(E27:G27)>0,SUM(E27:G27),\"\")","v":{"$error":"#REF!"}},{"$f":"IF(I26=\"Tubing Only\",\"\",I26*I8)","v":""},{"$error":"#REF!"},{"$f":"IF(AND(NOT($F$2=\"tubes + composite\"),OR(AND($G$14>0,G27<(C27/3)),AND($F$14>0,F27<(C27/3)),AND($E$14>0,E27<(C27/3)))),0,100*J27/C27)","v":{"$error":"#REF!"}},{"$f":"IF((99.9>K27)*AND(K27>33.3),\"For Composites Only, Additional Proof Required\",\"\")","v":{"$error":"#REF!"}}]
[null,"Area, mm^2",{"$f":"IF(C24=\"no tubes\",\"\",IF(C14=0,\"\",IF(C6=\"Round\",C14*((C15^2-(C15-2*C16)^2)*PI()/4),IF(C6=\"Square\",C14*(C15^2-(C15-2*C16)^2),\"\"))))","v":358.89554474609793},null,{"$f":"IF(E24=\"no tubes\",\"\",IF(E14=0,\"\",IF(E6=\"Round\",E14*((E15^2-(E15-2*E16)^2)*PI()/4),IF(E6=\"Square\",E14*(E15^2-(E15-2*E16)^2),\"\"))))","v":358.89554474609793},{"$f":"IF(F24=\"no tubes\",\"\",IF(F14=0,\"\",IF(F6=\"Round\",F14*((F15^2-(F15-2*F16)^2)*PI()/4),IF(F6=\"Square\",F14*(F15^2-(F15-2*F16)^2),\"\"))))","v":""},{"$f":"IF(G24=\"no tubes\",\"\",IF(G14=0,\"\",IF(G6=\"Round\",G14*((G15^2-(G15-2*G16)^2)*PI()/4),IF(G6=\"Square\",G14*(G15^2-(G15-2*G16)^2),\"\"))))","v":""},358.89554474609793,{"$f":"IF(I26=\"Tubing Only\",\"\",(I18-I19)*I22)","v":""},358.89554474609793,{"$f":"IF(AND($F$2=\"tubing only\",AND(E5=\"steel\",F5=\"steel\",G5=\"steel\")),100*J28/C28,\"NA\")","v":100},{"$f":"IF(AND(95<K28,K28<100),\"For tubes only, provided your actual tube measures >= your nominal OD and wall this is OK\",\"\")","v":""}]
[null,"Yield tensile strength, N",{"$f":"C$28*C9/1000000","v":{"$error":"#REF!"}},null,{"$f":"IF(E24=\"no tubes\",\"\",IF(E14=0,\"\",E$28*E9/1000000))","v":{"$error":"#REF!"}},{"$f":"IF(F24=\"no tubes\",\"\",IF(F14=0,\"\",F$28*F9/1000000))","v":""},{"$f":"IF(G24=\"no tubes\",\"\",IF(G14=0,\"\",G$28*G9/1000000))","v":""},{"$error":"#REF!"},{"$f":"IF(I26=\"Tubing Only\",\"\",I28*I9/1000000)","v":""},{"$error":"#REF!"},{"$f":"IF(AND($F$2=\"tubing only\",OR($E29<0.95*($E$14/$C$14)*$C29,$F29<0.95*($F$14/$C$14)*$C29,$G29<0.95*($G$14/$C$14)*$C29)),0,100*J29/C29)","v":{"$error":"#REF!"}},{"$f":"IF(AND(95<K29,K29<100),\"For tubes only, provided your actual tube measures >= your nominal OD and wall this is OK\",\"\")","v":{"$error":"#REF!"}}]
[null,"UTS, N",{"$f":"C$28*C10/1000000","v":{"$error":"#REF!"}},null,{"$f":"IF(E24=\"no tubes\",\"\",IF(E14=0,\"\",E$28*E10/1000000))","v":{"$error":"#REF!"}},{"$f":"IF(F24=\"no tubes\",\"\",IF(F14=0,\"\",F$28*F10/1000000))","v":""},{"$f":"IF(G24=\"no tubes\",\"\",IF(G14=0,\"\",G$28*G10/1000000))","v":""},{"$error":"#REF!"},{"$f":"IF(I26=\"Tubing Only\",\"\",I28*I10/1000000)","v":""},{"$error":"#REF!"},{"$f":"IF(AND($F$2=\"tubing only\",OR($E30<0.95*($E$14/$C$14)*$C30,$F30<0.95*($F$14/$C$14)*$C30,$G30<0.95*($G$14/$C$14)*$C30)),0,100*J30/C30)","v":{"$error":"#REF!"}},{"$f":"IF(AND(95<K30,K30<100),\"For tubes only, provided your actual tube measures >= your nominal OD and wall this is OK\",\"\")","v":{"$error":"#REF!"}}]
[null,"Yield tensile strength, N as welded",{"$f":"C$28*C11/1000000","v":{"$error":"#REF!"}},null,{"$f":"IF(E24=\"no tubes\",\"\",IF(E14=0,\"\",E$28*E11/1000000))","v":{"$error":"#REF!"}},{"$f":"IF(F24=\"no tubes\",\"\",IF(F14=0,\"\",F$28*F11/1000000))","v":""},{"$f":"IF(G24=\"no tubes\",\"\",IF(G14=0,\"\",G$28*G11/1000000))","v":""},{"$error":"#REF!"},{"$f":"IF(I26=\"Tubing Only\",\"\",I28*I9/1000000)","v":""},{"$error":"#REF!"},{"$f":"IF(AND($F$2=\"tubing only\",OR($E31<0.95*($E$14/$C$14)*$C31,$F31<0.95*($F$14/$C$14)*$C31,$G31<0.95*($G$14/$C$14)*$C31)),0,100*J31/C31)","v":{"$error":"#REF!"}},{"$f":"IF(AND(95<K31,K31<100),\"For tubes only, provided your actual tube measures >= your nominal OD and wall this is OK\",\"\")","v":{"$error":"#REF!"}}]
[null,"UTS, N as welded",{"$f":"IF(C14=0,\"\",C$28*C12/1000000)","v":{"$error":"#REF!"}},null,{"$f":"IF(E24=\"no tubes\",\"\",IF(E14=0,\"\",E$28*E12/1000000))","v":{"$error":"#REF!"}},{"$f":"IF(F24=\"no tubes\",\"\",IF(F14=0,\"\",F$28*F12/1000000))","v":""},{"$f":"IF(G24=\"no tubes\",\"\",IF(G14=0,\"\",G$28*G12/1000000))","v":""},{"$error":"#REF!"},{"$f":"IF(I26=\"tubing only\",\"\",I28*I10/1000000)","v":""},{"$error":"#REF!"},{"$f":"IF(AND($F$2=\"tubing only\",OR($E32<0.95*($E$14/$C$14)*$C32,$F32<0.95*($F$14/$C$14)*$C32,$G32<0.95*($G$14/$C$14)*$C32)),0,100*J32/C32)","v":{"$error":"#REF!"}},{"$f":"IF(AND(95<K32,K32<100),\"For tubes only, provided your actual tube measures >= your nominal OD and wall this is OK\",\"\")","v":{"$error":"#REF!"}}]
[null,"Max load at mid span to give UTS for 1m long tube, N",{"$f":"C14*4*C10*C26/(0.5*C24*1)","v":{"$error":"#REF!"}},null,{"$f":"IF(E24=\"no tubes\",\"\",IF(E14=0,\"\",E14*4*E10*E26/(0.5*E24*1)))","v":{"$error":"#REF!"}},{"$f":"IF(F24=\"no tubes\",\"\",IF(F14=0,\"\",F14*4*F10*F26/(0.5*F24*1)))","v":""},{"$f":"IF(G24=\"no tubes\",\"\",IF(G14=0,\"\",G14*4*G10*G26/(0.5*G24*1)))","v":""},{"$error":"#REF!"},{"$f":"IF(I26=\"tubing only\",\"\",4*I10*(I26*2/(I18/1000))/1)","v":""},{"$error":"#REF!"},{"$f":"IF(AND($F$2=\"tubing only\",OR($E33<0.95*($E$14/$C$14)*$C33,$F33<0.95*($F$14/$C$14)*$C33,$G33<0.95*($G$14/$C$14)*$C33)),0,100*J33/C33)","v":{"$error":"#REF!"}},{"$f":"IF((99.9>K33)*AND(K33>33.3),\"For Composites Only, Additional Proof Required\",\"\")","v":{"$error":"#REF!"}}]
[null,"Max deflection at baseline load for 1m long tube, m",{"$f":"IF(C14=0,\"\",C33*1^3/(48*C27))","v":{"$error":"#REF!"}},null,{"$f":"IF(E24=\"no tubes\",\"\",IF(E14=0,\"\",($C$33*1^3/(48*E27))))","v":{"$error":"#REF!"}},{"$f":"IF(F24=\"no tubes\",\"\",IF(F14=0,\"\",($C$33*1^3/(48*F27))))","v":""},{"$f":"IF(G24=\"no tubes\",\"\",IF(G14=0,\"\",($C$33*1^3/(48*G27))))","v":""},{"$f":"IF(F2=\"composite only\",\"\",$C$33*1^3/(48*H27))","v":{"$error":"#REF!"}},{"$f":"IF(NOT($F$2=\"tubing only\"),$C$33*1^3/(48*I27),\"\")","v":""},{"$f":"IF($F$2=\"Tubing only\",H34,IF($F$2=\"Composite only\",I34,IF($F$2=\"Tubes + Composite\",$C$33*1^3/(48*J27),\"No Type Selected\")))","v":{"$error":"#REF!"}},{"$f":"IF(AND($F$2=\"tubing only\",J34>1.05*C34),101,100*J34/C34)","v":{"$error":"#REF!"}},{"$f":"IF((100.1<K34)*AND(K34<300.1),\"For Composites Only, Additional Proof Required\",\"\")","v":{"$error":"#REF!"}}]
[null,"Energy absorbed up to UTS, J",{"$f":"0.5*C33*(C33*1^3/(48*C27))","v":{"$error":"#REF!"}},null,{"$f":"IF(E24=\"no tubes\",\"\",0.5*E33*(E33*1^3/(48*E27)))","v":{"$error":"#REF!"}},{"$f":"IF(F24=\"no tubes\",\"\",0.5*F33*(F33*1^3/(48*F27)))","v":""},{"$f":"IF(G24=\"no tubes\",\"\",0.5*G33*(G33*1^3/(48*G27)))","v":""},{"$error":"#REF!"},{"$f":"IF(I26=\"tubing only\",\"\",0.5*I33*(I33*1^3/(48*I27)))","v":""},{"$f":"IF($F$2=\"Tubing only\",H35,IF($F$2=\"Composite only\",I35,IF($F$2=\"Tubes + Composite\",H35+I35,\"No Type Selected\")))","v":{"$error":"#REF!"}},{"$f":"IF(AND($F$2=\"tubing only\",OR($E$36<$C$36,$F$36<$C$36,$G$36<$C$36)),0,100*J35/C35)","v":{"$error":"#REF!"}},{"$f":"IF((99.9>K35)*AND(K35>33.3),\"For Composites Only, Additional Proof Required\",\"\")","v":{"$error":"#REF!"}}]
[null,null,{"$f":"0.99*C27/C14","v":{"$error":"#REF!"}},null,{"$f":"IF(AND($F$2=\"tubing only\",E14>0),E27/E14,9E+99)","v":{"$error":"#REF!"}},{"$f":"IF(AND($F$2=\"tubing only\",F14>0),F27/F14,9E+99)","v":8.9999999999999999E+99},{"$f":"IF(AND($F$2=\"tubing only\",G14>0),G27/G14,9E+99)","v":8.9999999999999999E+99}]
[null,"CAD Screenshots / Images proving all panel dimensions and any additional proof must be appended below"]
[]
[null,"Alternative designs as per side/rear and floor division similarly to TAB T3.15 T3.5 SIS are allowed. Copy the 'T3.15 T3.5 SIS' TAB and rename accordingly. "]
[null,"Include and clearly mark your design in the space below:"]

{"sheet":"EV5.5.1&2 EV4.4 ACPS TSPS rearx","index":6,"n_rows":40,"n_cols":15,"rows_kept":40,"cut":false,"hidden":true,"merged":[[1,2,1,4],[1,5,1,6],[18,4,21,6]]}
[null,"Accumulator Protection"]
[null,null,"Enter construction type",null,null,"Tubing only",null,null,null,null,null,"BACK to COVER SHEET"]
[]
[null,"Material Property","Baseline",null,"Your Tube type 1","Your Tube type 2","Your Tube type 3","Your Tubes Total","Your Composite","Your Total",null,null,"Outer","Inner"]
[null,"Material type","Steel",null,"Steel","Steel","Steel",null,"Composite 1",null,null,"b (m)",{"$f":"I22/1000","v":0.32},{"$f":"M5","v":0.32}]
[null,"Tubing Type","Round",null,"Round","Round","Round",null,"NA",null,null,"h (m)",{"$f":"I21/1000","v":1E-3},{"$f":"I20/1000","v":1E-3}]
[null,"Material name /grade",{"$f":"HLOOKUP(C5,#REF!,2,FALSE)","v":{"$error":"#REF!"}},null,{"$f":"HLOOKUP(E5,#REF!,2,FALSE)","v":{"$error":"#REF!"}},{"$f":"HLOOKUP(F5,#REF!,2,FALSE)","v":{"$error":"#REF!"}},{"$f":"HLOOKUP(G5,#REF!,2,FALSE)","v":{"$error":"#REF!"}},null,{"$f":"HLOOKUP(I5,#REF!,2,FALSE)","v":{"$error":"#REF!"}}]
[null,"Youngs Modulus, E",{"$f":"INDEX(Innertable,MATCH($B8,#REF!,0),MATCH(C$7,#REF!,0))","v":{"$error":"#REF!"}},null,{"$f":"INDEX(Innertable,MATCH($B8,#REF!,0),MATCH(E$7,#REF!,0))","v":{"$error":"#REF!"}},{"$f":"INDEX(Innertable,MATCH($B8,#REF!,0),MATCH(F$7,#REF!,0))","v":{"$error":"#REF!"}},{"$f":"INDEX(Innertable,MATCH($B8,#REF!,0),MATCH(G$7,#REF!,0))","v":{"$error":"#REF!"}},null,{"$f":"INDEX(Innertable,MATCH($B8,#REF!,0),MATCH(I$7,#REF!,0))","v":{"$error":"#REF!"}},null,null,"A1 (m^2)",{"$f":"M5*M6","v":3.2000000000000003E-4},"I1 (m^4)",{"$f":"(M5*M6^3)/12","v":2.6666666666666668E-11}]
[null,"Yield strength, Pa",{"$f":"INDEX(Innertable,MATCH($B9,#REF!,0),MATCH(C$7,#REF!,0))","v":{"$error":"#REF!"}},null,{"$f":"INDEX(Innertable,MATCH($B9,#REF!,0),MATCH(E$7,#REF!,0))","v":{"$error":"#REF!"}},{"$f":"INDEX(Innertable,MATCH($B9,#REF!,0),MATCH(F$7,#REF!,0))","v":{"$error":"#REF!"}},{"$f":"INDEX(Innertable,MATCH($B9,#REF!,0),MATCH(G$7,#REF!,0))","v":{"$error":"#REF!"}},null,{"$f":"INDEX(Innertable,MATCH($B9,#REF!,0),MATCH(I$7,#REF!,0))","v":{"$error":"#REF!"}},null,null,"A2 (m^2)",{"$f":"N5*N6","v":3.2000000000000003E-4},"I2 (m^4)",{"$f":"(N5*N6^3)/12","v":2.6666666666666668E-11}]
[null,"UTS, Pa",{"$f":"INDEX(Innertable,MATCH($B10,#REF!,0),MATCH(C$7,#REF!,0))","v":{"$error":"#REF!"}},null,{"$f":"INDEX(Innertable,MATCH($B10,#REF!,0),MATCH(E$7,#REF!,0))","v":{"$error":"#REF!"}},{"$f":"INDEX(Innertable,MATCH($B10,#REF!,0),MATCH(F$7,#REF!,0))","v":{"$error":"#REF!"}},{"$f":"INDEX(Innertable,MATCH($B10,#REF!,0),MATCH(G$7,#REF!,0))","v":{"$error":"#REF!"}},null,{"$f":"INDEX(Innertable,MATCH($B10,#REF!,0),MATCH(I$7,#REF!,0))","v":{"$error":"#REF!"}},null,null,"y1 (m)",{"$f":"M6/2","v":5.0000000000000001E-4},"Ic1 (m^4)",{"$f":"O8+(M8*($M$12-M10)^2)","v":2.8906666666666669E-8}]
[null,"Yield strength, welded, Pa",{"$f":"INDEX(Innertable,MATCH($B11,#REF!,0),MATCH(C$7,#REF!,0))","v":{"$error":"#REF!"}},null,{"$f":"INDEX(Innertable,MATCH($B11,#REF!,0),MATCH(E$7,#REF!,0))","v":{"$error":"#REF!"}},{"$f":"INDEX(Innertable,MATCH($B11,#REF!,0),MATCH(F$7,#REF!,0))","v":{"$error":"#REF!"}},{"$f":"INDEX(Innertable,MATCH($B11,#REF!,0),MATCH(G$7,#REF!,0))","v":{"$error":"#REF!"}},null,{"$f":"INDEX(Innertable,MATCH($B11,#REF!,0),MATCH(I$7,#REF!,0))","v":{"$error":"#REF!"}},null,null,"y2 (m)",{"$f":"(I18-0.5*I20)*0.001","v":1.95E-2},"Ic2 (m^4)",{"$f":"O9+(M9*($M$12-M11)^2)","v":2.8906666666666669E-8}]
[null,"UTS welded, Pa",{"$f":"INDEX(Innertable,MATCH($B12,#REF!,0),MATCH(C$7,#REF!,0))","v":{"$error":"#REF!"}},null,{"$f":"INDEX(Innertable,MATCH($B12,#REF!,0),MATCH(E$7,#REF!,0))","v":{"$error":"#REF!"}},{"$f":"INDEX(Innertable,MATCH($B12,#REF!,0),MATCH(F$7,#REF!,0))","v":{"$error":"#REF!"}},{"$f":"INDEX(Innertable,MATCH($B12,#REF!,0),MATCH(G$7,#REF!,0))","v":{"$error":"#REF!"}},null,{"$f":"INDEX(Innertable,MATCH($B12,#REF!,0),MATCH(I$7,#REF!,0))","v":{"$error":"#REF!"}},null,null,"Centroid (m)",{"$f":"(M8*M10+M9*M11)/(M8+M9)","v":0.01},"Ic12 (m^4)",{"$f":"SUM(O10:O11)","v":5.7813333333333339E-8}]
[]
[null,"Number of tubes",3,null,3,0,0]
[null,"Tube OD, mm",25.4,null,25.4,25.4,25.4]
[null,"Wall, mm",1.6,null,1.6,1.6,1.6]
[null,null,null,null,null,"Baseline design?",{"$f":"IF(AND(K27>=100,F2=\"tubing only\",NOT(OR(E18=\"NO\",F18=\"NO\",G18=\"NO\"))),\"YES\",\"NO\")","v":{"$error":"#REF!"}}]
[null,"Thickness of panel, mm",null,null,{"$f":"IF(E14=0,\"N/A\",IF(AND(E5=$C$5,E15>=25.4,E16>=1.6),\"YES\",\"NO\"))","v":"YES"},{"$f":"IF(F14=0,\"N/A\",IF(AND(F5=$C$5,F15>=25.4,F16>=1.6),\"YES\",\"NO\"))","v":"N/A"},{"$f":"IF(G14=0,\"N/A\",IF(AND(G5=$C$5,G15>=25.4,G16>=1.6),\"YES\",\"NO\"))","v":"N/A"},null,{"$f":"I19+I20+I21","v":20}]
[null,"Thickness of core, mm",null,null,null,null,null,null,18]
[null,"Thickness of inner skin, mm",null,null,null,null,null,null,1]
[null,"Thickness of outer skin, mm",null,null,null,null,null,null,1]
[null,"Panel height,mm",null,null,null,null,null,null,320]
[]
[null,"OD, m",{"$f":"C15/1000","v":2.5399999999999999E-2},null,{"$f":"IF($F$2=\"composite only\",\"No tubes\",IF(E14=0,\"No tubes\",E15/1000))","v":2.5399999999999999E-2},{"$f":"IF($F$2=\"composite only\",\"No tubes\",IF(F14=0,\"No tubes\",F15/1000))","v":"No tubes"},{"$f":"IF($F$2=\"composite only\",\"No tubes\",IF(G14=0,\"No tubes\",G15/1000))","v":"No tubes"}]
[null,"Wall, m",{"$f":"C16/1000","v":1.6000000000000001E-3},null,{"$f":"IF(E24=\"no tubes\",\"\",IF(E14=0,\"\",E16/1000))","v":1.6000000000000001E-3},{"$f":"IF(F24=\"no tubes\",\"\",IF(F14=0,\"\",F16/1000))","v":""},{"$f":"IF(G24=\"no tubes\",\"\",IF(G14=0,\"\",G16/1000))","v":""}]
[null,"I, m^4",{"$f":"IF(C6=\"Round\",((C24)^4-((C24-2*C25))^4)*3.142/64,((C24)^4-((C24-2*C25))^4)/12)","v":8.5099184800000022E-9},null,{"$f":"IF(E24=\"no tubes\",\"\",IF(E14=0,\"\",IF(E6=\"Round\",(((E24)^4-((E24-2*E25))^4)*3.142/64),IF(E6=\"Square\",(((E24)^4-((E24-2*E25))^4)/12),\"\"))))","v":8.5099184800000022E-9},{"$f":"IF(F24=\"no tubes\",\"\",IF(F14=0,\"\",IF(F6=\"Round\",(((F24)^4-((F24-2*F25))^4)*3.142/64),IF(F6=\"Square\",(((F24)^4-((F24-2*F25))^4)/12),\"\"))))","v":""},{"$f":"IF(G24=\"no tubes\",\"\",IF(G14=0,\"\",IF(G6=\"Round\",(((G24)^4-((G24-2*G25))^4)*3.142/64),IF(G6=\"Square\",(((G24)^4-((G24-2*G25))^4)/12),\"\"))))","v":""},{"$f":"IF(SUM(E26:G26)>0,SUM(E26:G26),\"\")","v":8.5099184800000022E-9},{"$f":"IF($F$2=\"Tubing only\",\"Tubing Only\",O12)","v":"Tubing Only"},{"$f":"IF($F$2=\"Tubing only\",H26,IF($F$2=\"Composite only\",I26,IF($F$2=\"Tubes + Composite\",H26+I26,\"No Type Selected\")))","v":8.5099184800000022E-9}]
[null,"EI",{"$f":"C8*C26*C14","v":{"$error":"#REF!"}},null,{"$f":"IF(E24=\"no tubes\",\"\",IF(E14=0,\"\",E8*E26*E14))","v":{"$error":"#REF!"}},{"$f":"IF(F24=\"no tubes\",\"\",IF(F14=0,\"\",F8*F26*F14))","v":""},{"$f":"IF(G24=\"no tubes\",\"\",IF(G14=0,\"\",G8*G26*G14))","v":""},{"$f":"IF(SUM(E27:G27)>0,SUM(E27:G27),\"\")","v":{"$error":"#REF!"}},{"$f":"IF(I26=\"Tubing Only\",\"\",I26*I8)","v":""},{"$error":"#REF!"},{"$f":"IF(AND(NOT($F$2=\"tubes + composite\"),OR(AND($G$14>0,G27<(C27/3)),AND($F$14>0,F27<(C27/3)),AND($E$14>0,E27<(C27/3)))),0,100*J27/C27)","v":{"$error":"#REF!"}},{"$f":"IF((99.9>K27)*AND(K27>33.3),\"For Composites Only, Additional Proof Required\",\"\")","v":{"$error":"#REF!"}}]
[null,"Area, mm^2",{"$f":"IF(C24=\"no tubes\",\"\",IF(C14=0,\"\",IF(C6=\"Round\",C14*((C15^2-(C15-2*C16)^2)*PI()/4),IF(C6=\"Square\",C14*(C15^2-(C15-2*C16)^2),\"\"))))","v":358.89554474609793},null,{"$f":"IF(E24=\"no tubes\",\"\",IF(E14=0,\"\",IF(E6=\"Round\",E14*((E15^2-(E15-2*E16)^2)*PI()/4),IF(E6=\"Square\",E14*(E15^2-(E15-2*E16)^2),\"\"))))","v":358.89554474609793},{"$f":"IF(F24=\"no tubes\",\"\",IF(F14=0,\"\",IF(F6=\"Round\",F14*((F15^2-(F15-2*F16)^2)*PI()/4),IF(F6=\"Square\",F14*(F15^2-(F15-2*F16)^2),\"\"))))","v":""},{"$f":"IF(G24=\"no tubes\",\"\",IF(G14=0,\"\",IF(G6=\"Round\",G14*((G15^2-(G15-2*G16)^2)*PI()/4),IF(G6=\"Square\",G14*(G15^2-(G15-2*G16)^2),\"\"))))","v":""},358.89554474609793,{"$f":"IF(I26=\"Tubing Only\",\"\",(I18-I19)*I22)","v":""},358.89554474609793,{"$f":"IF(AND($F$2=\"tubing only\",AND(E5=\"steel\",F5=\"steel\",G5=\"steel\")),100*J28/C28,\"NA\")","v":100},{"$f":"IF(AND(95<K28,K28<100),\"For tubes only, provided your actual tube measures >= your nominal OD and wall this is OK\",\"\")","v":""}]
[null,"Yield tensile strength, N",{"$f":"C$28*C9/1000000","v":{"$error":"#REF!"}},null,{"$f":"IF(E24=\"no tubes\",\"\",IF(E14=0,\"\",E$28*E9/1000000))","v":{"$error":"#REF!"}},{"$f":"IF(F24=\"no tubes\",\"\",IF(F14=0,\"\",F$28*F9/1000000))","v":""},{"$f":"IF(G24=\"no tubes\",\"\",IF(G14=0,\"\",G$28*G9/1000000))","v":""},{"$error":"#REF!"},{"$f":"IF(I26=\"Tubing Only\",\"\",I28*I9/1000000)","v":""},{"$error":"#REF!"},{"$f":"IF(AND($F$2=\"tubing only\",OR($E29<0.95*($E$14/$C$14)*$C29,$F29<0.95*($F$14/$C$14)*$C29,$G29<0.95*($G$14/$C$14)*$C29)),0,100*J29/C29)","v":{"$error":"#REF!"}},{"$f":"IF(AND(95<K29,K29<100),\"For tubes only, provided your actual tube measures >= your nominal OD and wall this is OK\",\"\")","v":{"$error":"#REF!"}}]
[null,"UTS, N",{"$f":"C$28*C10/1000000","v":{"$error":"#REF!"}},null,{"$f":"IF(E24=\"no tubes\",\"\",IF(E14=0,\"\",E$28*E10/1000000))","v":{"$error":"#REF!"}},{"$f":"IF(F24=\"no tubes\",\"\",IF(F14=0,\"\",F$28*F10/1000000))","v":""},{"$f":"IF(G24=\"no tubes\",\"\",IF(G14=0,\"\",G$28*G10/1000000))","v":""},{"$error":"#REF!"},{"$f":"IF(I26=\"Tubing Only\",\"\",I28*I10/1000000)","v":""},{"$error":"#REF!"},{"$f":"IF(AND($F$2=\"tubing only\",OR($E30<0.95*($E$14/$C$14)*$C30,$F30<0.95*($F$14/$C$14)*$C30,$G30<0.95*($G$14/$C$14)*$C30)),0,100*J30/C30)","v":{"$error":"#REF!"}},{"$f":"IF(AND(95<K30,K30<100),\"For tubes only, provided your actual tube measures >= your nominal OD and wall this is OK\",\"\")","v":{"$error":"#REF!"}}]
[null,"Yield tensile strength, N as welded",{"$f":"C$28*C11/1000000","v":{"$error":"#REF!"}},null,{"$f":"IF(E24=\"no tubes\",\"\",IF(E14=0,\"\",E$28*E11/1000000))","v":{"$error":"#REF!"}},{"$f":"IF(F24=\"no tubes\",\"\",IF(F14=0,\"\",F$28*F11/1000000))","v":""},{"$f":"IF(G24=\"no tubes\",\"\",IF(G14=0,\"\",G$28*G11/1000000))","v":""},{"$error":"#REF!"},{"$f":"IF(I26=\"Tubing Only\",\"\",I28*I9/1000000)","v":""},{"$error":"#REF!"},{"$f":"IF(AND($F$2=\"tubing only\",OR($E31<0.95*($E$14/$C$14)*$C31,$F31<0.95*($F$14/$C$14)*$C31,$G31<0.95*($G$14/$C$14)*$C31)),0,100*J31/C31)","v":{"$error":"#REF!"}},{"$f":"IF(AND(95<K31,K31<100),\"For tubes only, provided your actual tube measures >= your nominal OD and wall this is OK\",\"\")","v":{"$error":"#REF!"}}]
[null,"UTS, N as welded",{"$f":"IF(C14=0,\"\",C$28*C12/1000000)","v":{"$error":"#REF!"}},null,{"$f":"IF(E24=\"no tubes\",\"\",IF(E14=0,\"\",E$28*E12/1000000))","v":{"$error":"#REF!"}},{"$f":"IF(F24=\"no tubes\",\"\",IF(F14=0,\"\",F$28*F12/1000000))","v":""},{"$f":"IF(G24=\"no tubes\",\"\",IF(G14=0,\"\",G$28*G12/1000000))","v":""},{"$error":"#REF!"},{"$f":"IF(I26=\"tubing only\",\"\",I28*I10/1000000)","v":""},{"$error":"#REF!"},{"$f":"IF(AND($F$2=\"tubing only\",OR($E32<0.95*($E$14/$C$14)*$C32,$F32<0.95*($F$14/$C$14)*$C32,$G32<0.95*($G$14/$C$14)*$C32)),0,100*J32/C32)","v":{"$error":"#REF!"}},{"$f":"IF(AND(95<K32,K32<100),\"For tubes only, provided your actual tube measures >= your nominal OD and wall this is OK\",\"\")","v":{"$error":"#REF!"}}]
[null,"Max load at mid span to give UTS for 1m long tube, N",{"$f":"C14*4*C10*C26/(0.5*C24*1)","v":{"$error":"#REF!"}},null,{"$f":"IF(E24=\"no tubes\",\"\",IF(E14=0,\"\",E14*4*E10*E26/(0.5*E24*1)))","v":{"$error":"#REF!"}},{"$f":"IF(F24=\"no tubes\",\"\",IF(F14=0,\"\",F14*4*F10*F26/(0.5*F24*1)))","v":""},{"$f":"IF(G24=\"no tubes\",\"\",IF(G14=0,\"\",G14*4*G10*G26/(0.5*G24*1)))","v":""},{"$error":"#REF!"},{"$f":"IF(I26=\"tubing only\",\"\",4*I10*(I26*2/(I18/1000))/1)","v":""},{"$error":"#REF!"},{"$f":"IF(AND($F$2=\"tubing only\",OR($E33<0.95*($E$14/$C$14)*$C33,$F33<0.95*($F$14/$C$14)*$C33,$G33<0.95*($G$14/$C$14)*$C33)),0,100*J33/C33)","v":{"$error":"#REF!"}},{"$f":"IF((99.9>K33)*AND(K33>33.3),\"For Composites Only, Additional Proof Required\",\"\")","v":{"$error":"#REF!"}}]
[null,"Max deflection at baseline load for 1m long tube, m",{"$f":"IF(C14=0,\"\",C33*1^3/(48*C27))","v":{"$error":"#REF!"}},null,{"$f":"IF(E24=\"no tubes\",\"\",IF(E14=0,\"\",($C$33*1^3/(48*E27))))","v":{"$error":"#REF!"}},{"$f":"IF(F24=\"no tubes\",\"\",IF(F14=0,\"\",($C$33*1^3/(48*F27))))","v":""},{"$f":"IF(G24=\"no tubes\",\"\",IF(G14=0,\"\",($C$33*1^3/(48*G27))))","v":""},{"$f":"IF(F2=\"composite only\",\"\",$C$33*1^3/(48*H27))","v":{"$error":"#REF!"}},{"$f":"IF(NOT($F$2=\"tubing only\"),$C$33*1^3/(48*I27),\"\")","v":""},{"$f":"IF($F$2=\"Tubing only\",H34,IF($F$2=\"Composite only\",I34,IF($F$2=\"Tubes + Composite\",$C$33*1^3/(48*J27),\"No Type Selected\")))","v":{"$error":"#REF!"}},{"$f":"IF(AND($F$2=\"tubing only\",J34>1.05*C34),101,100*J34/C34)","v":{"$error":"#REF!"}},{"$f":"IF((100.1<K34)*AND(K34<300.1),\"For Composites Only, Additional Proof Required\",\"\")","v":{"$error":"#REF!"}}]
[null,"Energy absorbed up to UTS, J",{"$f":"0.5*C33*(C33*1^3/(48*C27))","v":{"$error":"#REF!"}},null,{"$f":"IF(E24=\"no tubes\",\"\",0.5*E33*(E33*1^3/(48*E27)))","v":{"$error":"#REF!"}},{"$f":"IF(F24=\"no tubes\",\"\",0.5*F33*(F33*1^3/(48*F27)))","v":""},{"$f":"IF(G24=\"no tubes\",\"\",0.5*G33*(G33*1^3/(48*G27)))","v":""},{"$error":"#REF!"},{"$f":"IF(I26=\"tubing only\",\"\",0.5*I33*(I33*1^3/(48*I27)))","v":""},{"$f":"IF($F$2=\"Tubing only\",H35,IF($F$2=\"Composite only\",I35,IF($F$2=\"Tubes + Composite\",H35+I35,\"No Type Selected\")))","v":{"$error":"#REF!"}},{"$f":"IF(AND($F$2=\"tubing only\",OR($E$36<$C$36,$F$36<$C$36,$G$36<$C$36)),0,100*J35/C35)","v":{"$error":"#REF!"}},{"$f":"IF((99.9>K35)*AND(K35>33.3),\"For Composites Only, Additional Proof Required\",\"\")","v":{"$error":"#REF!"}}]
[null,null,{"$f":"0.99*C27/C14","v":{"$error":"#REF!"}},null,{"$f":"IF(AND($F$2=\"tubing only\",E14>0),E27/E14,9E+99)","v":{"$error":"#REF!"}},{"$f":"IF(AND($F$2=\"tubing only\",F14>0),F27/F14,9E+99)","v":8.9999999999999999E+99},{"$f":"IF(AND($F$2=\"tubing only\",G14>0),G27/G14,9E+99)","v":8.9999999999999999E+99}]
[null,"CAD Screenshots / Images proving all panel dimensions and any additional proof must be appended below"]
[]
[null,"Alternative designs as per side/rear and floor division similarly to TAB T3.15 T3.5 SIS are allowed. Copy the 'T3.15 T3.5 SIS' TAB and rename accordingly. "]
[null,"Include and clearly mark your design in the space below:"]

{"sheet":"EV5.5.5 Alt. Matls Summary","index":7,"n_rows":25,"n_cols":10,"rows_kept":25,"cut":false,"hidden":false,"merged":[]}
[null,"Alternative Material Proof of Equivalency",null,null,null,null,null,null,"BACK to COVER SHEET"]
[]
[null,"Material Property","Baseline Floor","Your Floor","Baseline Ext. Wall","Your Ext. Wall","Baseline Int. Wall","Your Int. Walls","Baseline Cover","Your Cover"]
[null,"Material type","Steel","Composite","Steel","Composite","Steel","Composite","Steel","Composite"]
[null,"Material name /grade","Steel","Your Floor",{"$f":"C5","v":"Steel"},"Your Ext. Walls",{"$f":"C5","v":"Steel"},"Your Int. Walls",{"$f":"C5","v":"Steel"},"Your Cover"]
[null,"Youngs Modulus, E",200000000000,{"$f":"'EV5.5.5 Alt. Matl - 3pt Bending'!C59*1000000000","v":0},{"$f":"C6","v":200000000000},{"$f":"'EV5.5.5 Alt. Matl - 3pt Bending'!V59*1000000000","v":0},{"$f":"C6","v":200000000000},{"$f":"'EV5.5.5 Alt. Matl - 3pt Bending'!AO59*1000000000","v":0},{"$f":"C6","v":200000000000},{"$f":"'EV5.5.5 Alt. Matl - 3pt Bending'!BH59*1000000000","v":0}]
[null,"Yield strength, Pa",305000000,{"$f":"'EV5.5.5 Alt. Matl - 3pt Bending'!C60*1000000","v":0},305000000,{"$f":"'EV5.5.5 Alt. Matl - 3pt Bending'!V60*1000000","v":0},305000000,{"$f":"'EV5.5.5 Alt. Matl - 3pt Bending'!AO60*1000000","v":0},305000000,{"$f":"'EV5.5.5 Alt. Matl - 3pt Bending'!BH60*1000000","v":0}]
[null,"UTS, Pa",365000000,{"$f":"D7","v":0},365000000,{"$f":"F7","v":0},365000000,{"$f":"H7","v":0},365000000,{"$f":"J7","v":0}]
[null,"Yield strength, welded, Pa",180000000,"N/A",180000000,"N/A",180000000,"N/A",180000000,"N/A"]
[null,"UTS welded, Pa",300000000,"N/A",300000000,"N/A",300000000,"N/A",300000000,"N/A"]
[null,"UTS shear, Pa",219000000,{"$f":"'EV5.5.5 Alt. Matl - Shear'!D54*1000000","v":0},219000000,{"$f":"'EV5.5.5 Alt. Matl - Shear'!W54*1000000","v":0},219000000,{"$f":"'EV5.5.5 Alt. Matl - Shear'!AP54*1000000","v":0},219000000,{"$f":"'EV5.5.5 Alt. Matl - Shear'!BI54*1000000","v":0}]
[null,"Thickness of panel, mm",1.25,{"$f":"SUM('EV5.5.5 Alt. Matl - 3pt Bending'!C55:C57)","v":2},0.9,{"$f":"SUM('EV5.5.5 Alt. Matl - 3pt Bending'!V55:V57)","v":2},0.9,{"$f":"SUM('EV5.5.5 Alt. Matl - 3pt Bending'!AO55:AO57)","v":2},0.9,{"$f":"SUM('EV5.5.5 Alt. Matl - 3pt Bending'!BH55:BH57)","v":2}]
[null,"Thickness of inner skin, mm","N/A",{"$f":"'EV5.5.5 Alt. Matl - 3pt Bending'!C56","v":1},"N/A",{"$f":"'EV5.5.5 Alt. Matl - 3pt Bending'!V56","v":1},"N/A",{"$f":"'EV5.5.5 Alt. Matl - 3pt Bending'!AO56","v":1},"N/A",{"$f":"'EV5.5.5 Alt. Matl - 3pt Bending'!BH56","v":1}]
[null,"Thickness of outer skin, mm","N/A",{"$f":"'EV5.5.5 Alt. Matl - 3pt Bending'!C57","v":1},"N/A",{"$f":"'EV5.5.5 Alt. Matl - 3pt Bending'!V57","v":1},"N/A",{"$f":"'EV5.5.5 Alt. Matl - 3pt Bending'!AO57","v":1},"N/A",{"$f":"'EV5.5.5 Alt. Matl - 3pt Bending'!BH57","v":1}]
[null,"Panel height/width,mm",{"$f":"D15","v":300},{"$f":"'Accumulator Pics'!E14","v":300},{"$f":"F15","v":0},{"$f":"'Accumulator Pics'!E38","v":0},{"$f":"H15","v":0},{"$f":"'Accumulator Pics'!E62","v":0},{"$f":"J15","v":0},{"$f":"'Accumulator Pics'!E86","v":0}]
[null,"I, m^4",{"$f":"0.001*C15*(0.001*C12)^3/12","v":4.8828125000000004E-11},{"$f":"(D15/'EV5.5.5 Alt. Matl - 3pt Bending'!C54)*'EV5.5.5 Alt. Matl - 3pt Bending'!C58*0.000000000001","v":2.0000000000000001E-10},{"$f":"E15*E12^3/12000000000000","v":0},{"$f":"(F15/'EV5.5.5 Alt. Matl - 3pt Bending'!V54)*'EV5.5.5 Alt. Matl - 3pt Bending'!V58*0.000000000001","v":0},{"$f":"G15*G12^3/12000000000000","v":0},{"$f":"(H15/'EV5.5.5 Alt. Matl - 3pt Bending'!AO54)*'EV5.5.5 Alt. Matl - 3pt Bending'!AO58*0.000000000001","v":0},{"$f":"I15*I12^3/12000000000000","v":0},{"$f":"(J15/'EV5.5.5 Alt. Matl - 3pt Bending'!BH54)*'EV5.5.5 Alt. Matl - 3pt Bending'!BH58*0.000000000001","v":0}]
[null,"EI",{"$f":"C16*C6","v":9.765625},0,0,0,0,0,0,0]
[null,"Area, mm^2",{"$f":"C15*C12","v":375},{"$f":"('EV5.5.5 Alt. Matl - 3pt Bending'!C56+'EV5.5.5 Alt. Matl - 3pt Bending'!C57)*'EV5.5.5 Alt. Matls Summary'!D15","v":600},{"$f":"E15*E12","v":0},{"$f":"('EV5.5.5 Alt. Matl - 3pt Bending'!V56+'EV5.5.5 Alt. Matl - 3pt Bending'!V57)*'EV5.5.5 Alt. Matls Summary'!F15","v":0},{"$f":"G15*G12","v":0},{"$f":"('EV5.5.5 Alt. Matl - 3pt Bending'!AO56+'EV5.5.5 Alt. Matl - 3pt Bending'!AO57)*'EV5.5.5 Alt. Matls Summary'!H15","v":0},{"$f":"I15*I12","v":0},{"$f":"('EV5.5.5 Alt. Matl - 3pt Bending'!BH56+'EV5.5.5 Alt. Matl - 3pt Bending'!BH57)*'EV5.5.5 Alt. Matls Summary'!J15","v":0}]
[null,"UTS, N",{"$f":"C18*C8*0.000001","v":136875},0,0,0,0,0,0,0]
[]
[null,"Safety Factors"]
[null,"Bending Strength",null,{"$f":"IF(C19=0,0,D19/C19)","v":0},null,{"$f":"IF(E19=0,0,F19/E19)","v":0},null,{"$f":"IF(G19=0,0,H19/G19)","v":0},null,{"$f":"IF(I19=0,0,J19/I19)","v":0}]
[null,"Flexural Rigidity",null,{"$f":"IF(C17=0,0,D17/C17)","v":0},null,{"$f":"IF(E17=0,0,F17/E17)","v":0},null,{"$f":"IF(G17=0,0,H17/G17)","v":0},null,{"$f":"IF(I17=0,0,J17/I17)","v":0}]
[null,"Shear",null,{"$f":"((D13+D14)*D11)/(C11*C12)","v":0},null,{"$f":"((F13+F14)*F11)/(E11*E12)","v":0},null,{"$f":"((H13+H14)*H11)/(G11*G12)","v":0},null,{"$f":"((J13+J14)*J11)/(I11*I12)","v":0}]
[null,null,null,{"$f":"IF(OR(D22<1,D23<1,D24<1,),\"FAIL\",\"PASS\")","v":"FAIL"},null,{"$f":"IF(OR(F22<1,F23<1,F24<1,),\"FAIL\",\"PASS\")","v":"FAIL"},null,{"$f":"IF(OR(H22<1,H23<1,H24<1,),\"FAIL\",\"PASS\")","v":"FAIL"},null,{"$f":"IF(OR(J22<1,J23<1,J24<1,),\"FAIL\",\"PASS\")","v":"FAIL"}]

{"sheet":"EV5.5.5 Alt. Matl - 3pt Bending","index":8,"n_rows":367,"n_cols":92,"rows_kept":367,"cut":false,"hidden":false,"merged":[[61,2,61,3],[60,0,60,1],[60,21,60,22],[60,40,60,41],[60,2,60,3],[60,38,60,39],[49,19,49,20],[46,80,46,81],[4,0,4,18],[45,0,45,1],[45,2,45,3],[45,4,45,5],[45,6,45,7],[45,13,45,14],[45,15,45,17],[49,0,49,1],[46,0,46,1],[46,2,46,3],[46,4,46,5],[46,6,46,7],[46,76,46,77],[45,76,45,77],[45,78,45,79],[46,78,46,79],[0,0,0,18],[0,76,0,94],[2,3,2,9],[2,14,2,18],[2,79,2,85],[2,90,2,94],[0,19,0,37],[2,22,2,28],[2,33,2,37],[2,41,2,47],[0,38,0,56],[2,52,2,56],[0,57,0,75],[2,60,2,66],[2,71,2,75],[45,80,45,81],[46,19,46,20],[46,21,46,22],[46,23,46,24],[46,25,46,26],[45,19,45,20],[45,51,45,52],[45,44,45,45],[45,42,45,43],[45,63,45,64],[45,70,45,71],[45,72,45,74],[45,57,45,58],[45,61,45,62],[53,0,53,1],[53,2,53,3],[50,40,50,41],[52,59,52,60],[49,2,49,3],[49,78,49,79],[49,38,49,39],[51,78,51,79],[56,0,56,1],[55,0,55,1],[55,2,55,3],[54,0,54,1],[56,38,56,39],[56,40,56,41],[53,21,53,22],[50,59,50,60],[45,89,45,90],[52,78,52,79],[54,2,54,3],[52,40,52,41],[53,38,53,39],[54,21,54,22],[53,40,53,41],[52,2,52,3],[52,21,52,22],[54,19,54,20],[53,19,53,20],[50,21,50,22],[53,59,53,60],[53,57,53,58],[54,40,54,41],[45,82,45,83],[46,82,46,83],[49,89,49,90],[50,78,50,79],[50,89,50,90],[49,57,49,58],[49,59,49,60],[50,2,50,3],[54,38,54,39],[51,89,51,90],[56,2,56,3],[57,2,57,3],[58,2,58,3],[59,2,59,3],[57,40,57,41],[60,57,60,58],[60,19,60,20],[56,19,56,20],[56,21,56,22],[57,21,57,22],[55,40,55,41],[60,59,60,60],[57,59,57,60],[58,59,58,60],[55,19,55,20],[55,21,55,22],[58,40,58,41],[59,40,59,41],[58,21,58,22],[55,38,55,39],[60,23,60,37],[66,5,66,17],[4,57,4,75],[46,57,46,58],[46,59,46,60],[46,61,46,62],[46,63,46,64],[4,38,4,56],[45,53,45,55],[46,42,46,43],[46,44,46,45],[45,59,45,60],[4,19,4,37],[45,21,45,22],[45,23,45,24],[45,25,45,26],[45,32,45,33],[45,34,45,36],[49,40,49,41],[45,38,45,39],[45,40,45,41],[46,38,46,39],[46,40,46,41],[49,21,49,22],[59,21,59,22],[61,59,61,60],[61,40,61,41],[61,21,61,22],[66,24,66,36],[66,43,66,55],[66,62,66,74],[66,81,66,93],[59,59,59,60],[54,57,54,58],[54,59,54,60],[55,57,55,58],[55,59,55,60],[56,57,56,58],[56,59,56,60]]}
[" ASES - EV5.5.5 LAMINATE TEST RESULTS - FLOOR",null,null,null,null,null,null,null,null,null,null,null,null,null,null,null,null,null,null," ASES - EV5.5.5 LAMINATE TEST RESULTS - EXT. WALLS",null,null,null,null,null,null,null,null,null,null,null,null,null,null,null,null,null,null," ASES - EV5.5.5 LAMINATE TEST RESULTS - INT. WALLS",null,null,null,null,null,null,null,null,null,null,null,null,null,null,null,null,null,null," ASES - EV5.5.5 LAMINATE TEST RESULTS - COVER",null,null,null,null,null,null,null,null,null,null,null,null,null,null,null,null,null,null,"ASES - DIFFERENT LAYUP RIG COMPLIANCE TEST RESULTS (OPTIONAL)"]
[]
["University Name",null,null,{"$f":"IF('Cover Sheet'!$D$15>0,'Cover Sheet'!$D$15,\"\")","v":""},null,null,null,null,null,null,"Car No.(s) & Event(s)",null,null,null,{"$f":"IF('Cover Sheet'!$O$15>0,'Cover Sheet'!$O$15,\"\")","v":""},null,null,null,null,"University Name",null,null,{"$f":"IF('Cover Sheet'!$D$15>0,'Cover Sheet'!$D$15,\"\")","v":""},null,null,null,null,null,null,"Car No.(s) & Event(s)",null,null,null,{"$f":"IF('Cover Sheet'!$O$15>0,'Cover Sheet'!$O$15,\"\")","v":""},null,null,null,null,"University Name",null,null,{"$f":"IF('Cover Sheet'!$D$15>0,'Cover Sheet'!$D$15,\"\")","v":""},null,null,null,null,null,null,"Car No.(s) & Event(s)",null,null,null,{"$f":"IF('Cover Sheet'!$O$15>0,'Cover Sheet'!$O$15,\"\")","v":""},null,null,null,null,"University Name",null,null,{"$f":"IF('Cover Sheet'!$D$15>0,'Cover Sheet'!$D$15,\"\")","v":""},null,null,null,null,null,null,"Car No.(s) & Event(s)",null,null,null,{"$f":"IF('Cover Sheet'!$O$15>0,'Cover Sheet'!$O$15,\"\")","v":""},null,null,null,null,"University Name",null,null,{"$f":"IF('Cover Sheet'!$D$15>0,'Cover Sheet'!$D$15,\"\")","v":""},null,null,null,null,null,null,"Car No.(s) & Event(s)",null,null,null,{"$f":"IF('Cover Sheet'!$O$15>0,'Cover Sheet'!$O$15,\"\")","v":""}]
[]
[]
[]
[null,"Paste images of test setup here",null,null,null,null,null,null,null,null,null,null,null,null,null,null,null,null,null,null,"Paste images of test setup here",null,null,null,null,null,null,null,null,null,null,null,null,null,null,null,null,null,null,"Paste images of test setup here",null,null,null,null,null,null,null,null,null,null,null,null,null,null,null,null,null,null,"Paste images of test setup here",null,null,null,null,null,null,null,null,null,null,null,null,null,null,null,null,null,null,"Paste images of test setup here"]
[]
[null,"All test specimens must be presented at Tech. Inspection",null,null,null,null,null,null,null,null,null,null,null,null,null,null,null,null,null,null,"All test specimens must be presented at Tech. Inspection",null,null,null,null,null,null,null,null,null,null,null,null,null,null,null,null,null,null,"All test specimens must be presented at Tech. Inspection",null,null,null,null,null,null,null,null,null,null,null,null,null,null,null,null,null,null,"All test specimens must be presented at Tech. Inspection",null,null,null,null,null,null,null,null,null,null,null,null,null,null,null,null,null,null,"All test specimens must be presented at Tech. Inspection"]
[]
[null,"Please note the changed rules: T3.5.1 & T3.5.4 wrt. identifiable pictures!",null,null,null,null,null,null,null,null,null,null,null,null,null,null,null,null,null,null,"Please note the changed rules: T3.5.1 & T3.5.4 wrt. identifiable pictures!",null,null,null,null,null,null,null,null,null,null,null,null,null,null,null,null,null,null,"Please note the changed rules: T3.5.1 & T3.5.4 wrt. identifiable pictures!",null,null,null,null,null,null,null,null,null,null,null,null,null,null,null,null,null,null,"Please note the changed rules: T3.5.1 & T3.5.4 wrt. identifiable pictures!",null,null,null,null,null,null,null,null,null,null,null,null,null,null,null,null,null,null,"Please note the changed rules: T3.5.1 & T3.5.4 wrt. identifiable pictures!"]
[]
[]
[]
[]
[]
[]
[]
["Figure 1: Test setup - Laminate Panel [Your Structure]",null,null,null,null,null,null,null,null,null,null,null,null,null,null,null,null,null,null,"Figure 1: Test setup - Laminate Panel [Your Structure]",null,null,null,null,null,null,null,null,null,null,null,null,null,null,null,null,null,null,"Figure 1: Test setup - Laminate Panel [Your Structure]",null,null,null,null,null,null,null,null,null,null,null,null,null,null,null,null,null,null,"Figure 1: Test setup - Laminate Panel [Your Structure]",null,null,null,null,null,null,null,null,null,null,null,null,null,null,null,null,null,null,"Figure 3: Test setup - Steel tube(s)"]
[]
[]
[]
[null,"Paste load deflection curve here",null,null,null,null,null,null,null,null,null,null,null,null,null,null,null,null,null,null,"Paste load deflection curve here",null,null,null,null,null,null,null,null,null,null,null,null,null,null,null,null,null,null,"Paste load deflection curve here",null,null,null,null,null,null,null,null,null,null,null,null,null,null,null,null,null,null,"Paste load deflection curve here",null,null,null,null,null,null,null,null,null,null,null,null,null,null,null,null,null,null,"Paste load deflection curve here"]
[]
[null,"Logged data must be appended in the section below",null,null,null,null,null,null,null,null,null,null,null,null,null,null,null,null,null,null,"Logged data must be appended in the section below",null,null,null,null,null,null,null,null,null,null,null,null,null,null,null,null,null,null,"Logged data must be appended in the section below",null,null,null,null,null,null,null,null,null,null,null,null,null,null,null,null,null,null,"Logged data must be appended in the section below",null,null,null,null,null,null,null,null,null,null,null,null,null,null,null,null,null,null,"Logged data must be appended in the section below"]
[]
[null,"Please note the change rule T3.5.3 wrt. a.o. only thicker cores may be tested!",null,null,null,null,null,null,null,null,null,null,null,null,null,null,null,null,null,null,"Please note the change rule T3.5.3 wrt. a.o. only thicker cores may be tested!",null,null,null,null,null,null,null,null,null,null,null,null,null,null,null,null,null,null,"Please note the change rule T3.5.3 wrt. a.o. only thicker cores may be tested!",null,null,null,null,null,null,null,null,null,null,null,null,null,null,null,null,null,null,"Please note the change rule T3.5.3 wrt. a.o. only thicker cores may be tested!",null,null,null,null,null,null,null,null,null,null,null,null,null,null,null,null,null,null,"Please note the change rule T3.5.3 wrt. a.o. only thicker cores may be tested!"]
[]
[null,"Add your stiffness gradient to your load deflection curve, and include markers",null,null,null,null,null,null,null,null,null,null,null,null,null,null,null,null,null,null,"Add your stiffness gradient to your load deflection curve, and include markers",null,null,null,null,null,null,null,null,null,null,null,null,null,null,null,null,null,null,"Add your stiffness gradient to your load deflection curve, and include markers",null,null,null,null,null,null,null,null,null,null,null,null,null,null,null,null,null,null,"Add your stiffness gradient to your load deflection curve, and include markers",null,null,null,null,null,null,null,null,null,null,null,null,null,null,null,null,null,null,"Add your stiffness gradient to your load deflection curve, and include markers"]
[null,"for the two data points taken!",null,null,null,null,null,null,null,null,null,null,null,null,null,null,null,null,null,null,"for the two data points taken!",null,null,null,null,null,null,null,null,null,null,null,null,null,null,null,null,null,null,"for the two data points taken!",null,null,null,null,null,null,null,null,null,null,null,null,null,null,null,null,null,null,"for the two data points taken!",null,null,null,null,null,null,null,null,null,null,null,null,null,null,null,null,null,null,"for the two data points taken!"]
[]
[]
[]
[]
[]
[]
[]
[]
[]
[]
[]
[]
["Figure 2: Load Deflection Curve",null,null,null,null,null,null,null,null,null,null,null,null,null,null,null,null,null,null,"Figure 2: Load Deflection Curve",null,null,null,null,null,null,null,null,null,null,null,null,null,null,null,null,null,null,"Figure 2: Load Deflection Curve",null,null,null,null,null,null,null,null,null,null,null,null,null,null,null,null,null,null,"Figure 2: Load Deflection Curve",null,null,null,null,null,null,null,null,null,null,null,null,null,null,null,null,null,null,"Figure 4: Load Deflection Curve - Steel Tube(s)"]
[]
["Enter values for minimum and maximum load/deflection in linear-elastic region",null,null,null,null,null,null,null,null,null,null,null,null,null,null,null,null,null,null,"Enter values for minimum and maximum load/deflection in linear-elastic region",null,null,null,null,null,null,null,null,null,null,null,null,null,null,null,null,null,null,"Enter values for minimum and maximum load/deflection in linear-elastic region",null,null,null,null,null,null,null,null,null,null,null,null,null,null,null,null,null,null,"Enter values for minimum and maximum load/deflection in linear-elastic region",null,null,null,null,null,null,null,null,null,null,null,null,null,null,null,null,null,null,"Enter values for minimum and maximum load/deflection in linear-elastic region"]
["x1 (mm)",null,0,null,"y1 (N)",null,0,null,null,null,null,null,"Gradient (N/mm)",{"$f":"IF(C47>0,(((G47-G46)/(C47-C46))^-1-IF(CL52>0,CL52^-1,0))^-1,0)","v":0},null,null,null,null,null,"x1 (mm)",null,0,null,"y1 (N)",null,0,null,null,null,null,null,"Gradient (N/mm)",{"$f":"IF(V47>0,(((Z47-Z46)/(V47-V46))^-1-IF(CL52>0,CL52^-1,0))^-1,0)","v":0},null,null,null,null,null,"x1 (mm)",null,0,null,"y1 (N)",null,0,null,null,null,null,null,"Gradient (N/mm)",{"$f":"IF(AO47>0,(((AS47-AS46)/(AO47-AO46))^-1-IF(CL52>0,CL52^-1,0))^-1,0)","v":0},null,null,null,null,null,"x1 (mm)",null,0,null,"y1 (N)",null,0,null,null,null,null,null,"Gradient (N/mm)",{"$f":"IF(BH47>0,(((BL47-BL46)/(BH47-BH46))^-1-IF(CL52>0,CL52^-1,0))^-1,0)","v":0},null,null,null,null,null,"x1 (mm)",null,0,null,"y1 (N)",null,0,null,null,null,null,null,"Gradient (N/mm)",{"$f":"IF((CA47-CA46)>0,(CE47-CE46)/(CA47-CA46),0)","v":0}]
["x2 (mm)",null,0,null,"y2 (N)",null,0,null,null,null,null,null,null,null,null,null,null,null,null,"x2 (mm)",null,0,null,"y2 (N)",null,0,null,null,null,null,null,null,null,null,null,null,null,null,"x2 (mm)",null,0,null,"y2 (N)",null,0,null,null,null,null,null,null,null,null,null,null,null,null,"x2 (mm)",null,0,null,"y2 (N)",null,0,null,null,null,null,null,null,null,null,null,null,null,null,"x2 (mm)",null,0,null,"y2 (N)",null,0]
[null,null,{"$f":"IF(ABS(C47-C46)<1,\"Supporting points shall be at least 1 mm apart!\",\"\")","v":"Supporting points shall be at least 1 mm apart!"},null,null,null,null,null,null,null,null,null,null,null,null,null,null,null,null,null,null,{"$f":"IF(ABS(V47-V46)<1,\"Supporting points shall be at least 1 mm apart!\",\"\")","v":"Supporting points shall be at least 1 mm apart!"},null,null,null,null,null,null,null,null,null,null,null,null,null,null,null,null,null,null,{"$f":"IF(ABS(AO47-AO46)<1,\"Supporting points shall be at least 1 mm apart!\",\"\")","v":"Supporting points shall be at least 1 mm apart!"},null,null,null,null,null,null,null,null,null,null,null,null,null,null,null,null,null,null,{"$f":"IF(ABS(BH47-BH46)<1,\"Supporting points shall be at least 1 mm apart!\",\"\")","v":"Supporting points shall be at least 1 mm apart!"},null,null,null,null,null,null,null,null,null,null,null,null,null,null,null,null,null,null,{"$f":"IF(ABS(CA47-CA46)<1,\"Supporting points shall be at least 1 mm apart!\",\"\")","v":"Supporting points shall be at least 1 mm apart!"}]
["Enter value for force at panel failure or maximum tested force",null,null,null,null,null,null,null,null,null,null,null,null,null,null,null,null,null,null,"Enter value for force at panel failure or maximum tested force",null,null,null,null,null,null,null,null,null,null,null,null,null,null,null,null,null,null,"Enter value for force at panel failure or maximum tested force",null,null,null,null,null,null,null,null,null,null,null,null,null,null,null,null,null,null,"Enter value for force at panel failure or maximum tested force",null,null,null,null,null,null,null,null,null,null,null,null,null,null,null,null,null,null,"Enter details of tube(s) tested"]
["ymax (N)",null,0,null,null,null,null,null,null,null,null,null,null,null,null,null,null,null,null,"ymax (N)",null,0,null,null,null,null,null,null,null,null,null,null,null,null,null,null,null,null,"ymax (N)",null,0,null,null,null,null,null,null,null,null,null,null,null,null,null,null,null,null,"ymax (N)",null,0,null,null,null,null,null,null,null,null,null,null,null,null,null,null,null,null,null,"l (mm)",{"$f":"C53","v":200},null,"Tube Support Span",null,null,null,null,null,null,null,"Theoretical EI (N.mm2)",{"$f":"CA51*(1/64)*PI()*(CA52^4-CA53^4)*200000","v":1744439000.4490404},null,{"$f":"CL50*48/CA50^3","v":10466.634002694242}]
[null,null,null,null,null,null,null,null,null,null,null,null,null,null,null,null,null,null,null,null,null,null,null,null,null,null,null,null,null,null,null,null,null,null,null,null,null,null,null,null,null,null,null,null,null,null,null,null,null,null,null,null,null,null,null,null,null,null,null,null,null,null,null,null,null,null,null,null,null,null,null,null,null,null,null,null,null,"n",1,null,"Number of Tubes",null,null,null,null,null,null,null,"Tested EI (N.mm2)",{"$f":"IF(CL46>0,(CL46*CA50^3)/48,CL50)","v":1744439000.4490404},null,{"$f":"CL51*48/CA50^3","v":10466.634002694242}]
["Enter details of test setup, panel core and skin thicknesses below",null,null,null,null,null,null,null,null,null,null,null,null,null,null,null,null,null,null,"Enter details of test setup, panel core and skin thicknesses below",null,null,null,null,null,null,null,null,null,null,null,null,null,null,null,null,null,null,"Enter details of test setup, panel core and skin thicknesses below",null,null,null,null,null,null,null,null,null,null,null,null,null,null,null,null,null,null,"Enter details of test setup, panel core and skin thicknesses below",null,null,null,null,null,null,null,null,null,null,null,null,null,null,null,null,null,null,null,"Do (mm)",25.4,null,"Tube Outer Diameter",null,null,null,null,null,null,null,"Rig Compliance (N/mm)",{"$f":"IF(CL51>=CL50,0,(CN51^-1-CN50^-1)^-1)","v":0}]
[null,"l (mm)",200,null,"Panel Support Span",null,null,null,null,null,null,null,null,null,null,null,null,null,null,null,"l (mm)",200,null,"Panel Support Span",null,null,null,null,null,null,null,null,null,null,null,null,null,null,null,"l (mm)",200,null,"Panel Support Span",null,null,null,null,null,null,null,null,null,null,null,null,null,null,null,"l (mm)",200,null,"Panel Support Span",null,null,null,null,null,null,null,null,null,null,null,null,null,null,null,"Di (mm)",22.1,null,"Tube Inner Diameter"]
["h (mm)",null,150,null,"Panel Height",null,null,null,null,null,null,null,null,null,null,null,null,null,null,"h (mm)",null,150,null,"Panel Height",null,null,null,null,null,null,null,null,null,null,null,null,null,null,"h (mm)",null,150,null,"Panel Height",null,null,null,null,null,null,null,null,null,null,null,null,null,null,"h (mm)",null,150,null,"Panel Height"]
["b (mm)",null,0,null,"Core Thickness",null,null,null,null,null,null,null,null,null,null,null,null,null,null,"b (mm)",null,0,null,"Core Thickness",null,null,null,null,null,null,null,null,null,null,null,null,null,null,"b (mm)",null,0,null,"Core Thickness",null,null,null,null,null,null,null,null,null,null,null,null,null,null,"b (mm)",null,0,null,"Core Thickness"]
["t1 (mm)",null,1,null,"Inner Skin Thickness",null,null,null,null,{"$f":"IF(C56<0.4*C57,\"Asymmetrical lay-up: skin too thin in comparison, see T3.4.4.\",\"\")","v":""},null,null,null,null,null,null,null,null,null,"t1 (mm)",null,1,null,"Inner Skin Thickness",null,null,null,null,{"$f":"IF(V56<0.4*V57,\"Asymmetrical lay-up: skin too thin in comparison, see T3.4.4.\",\"\")","v":""},null,null,null,null,null,null,null,null,null,"t1 (mm)",null,1,null,"Inner Skin Thickness",null,null,null,null,{"$f":"IF(AO56<0.4*AO57,\"Asymmetrical lay-up: skin too thin in comparison, see T3.4.4.\",\"\")","v":""},null,null,null,null,null,null,null,null,null,"t1 (mm)",null,1,null,"Inner Skin Thickness",null,null,null,null,{"$f":"IF(BH56<0.4*BH57,\"Asymmetrical lay-up: skin too thin in comparison, see T3.4.4.\",\"\")","v":""}]
["t2 (mm)",null,1,null,"Outer Skin Thickness",null,null,null,null,{"$f":"IF(C57<0.4*C56,\"Asymmetrical lay-up: skin too thin in comparison, see T3.4.4.\",\"\")","v":""},null,null,null,null,null,null,null,null,null,"t2 (mm)",null,1,null,"Outer Skin Thickness",null,null,null,null,{"$f":"IF(V57<0.4*V56,\"Asymmetrical lay-up: skin too thin in comparison, see T3.4.4.\",\"\")","v":""},null,null,null,null,null,null,null,null,null,"t2 (mm)",null,1,null,"Outer Skin Thickness",null,null,null,null,{"$f":"IF(AO57<0.4*AO56,\"Asymmetrical lay-up: skin too thin in comparison, see T3.4.4.\",\"\")","v":""},null,null,null,null,null,null,null,null,null,"t2 (mm)",null,1,null,"Outer Skin Thickness",null,null,null,null,{"$f":"IF(BH57<0.4*BH56,\"Asymmetrical lay-up: skin too thin in comparison, see T3.4.4.\",\"\")","v":""}]
[null,"I (mm4)",{"$f":"(C54*(((C55+C56+C57)^3)-(C55^3)))/12","v":100},null,"Second moment of area",null,null,null,null,null,null,null,null,null,null,null,null,null,null,null,"I (mm4)",{"$f":"(V54*(((V55+V56+V57)^3)-(V55^3)))/12","v":100},null,"Second moment of area",null,null,null,null,null,null,null,null,null,null,null,null,null,null,null,"I (mm4)",{"$f":"(AO54*(((AO55+AO56+AO57)^3)-(AO55^3)))/12","v":100},null,"Second moment of area",null,null,null,null,null,null,null,null,null,null,null,null,null,null,null,"I (mm4)",{"$f":"(BH54*(((BH55+BH56+BH57)^3)-(BH55^3)))/12","v":100},null,"Second moment of area"]
[null,"E (GPa)",{"$f":"IF(C47>0,0.001*((N46*(C47-C46)*C53^3)/(48*C58*(C47-C46))),0)","v":0},null,"Skin modulus of elasticity",null,null,null,null,null,null,null,null,null,null,null,null,null,null,null,"E (GPa)",{"$f":"IF(V47>0,0.001*((AG46*(V47-V46)*V53^3)/(48*V58*(V47-V46))),0)","v":0},null,"Skin modulus of elasticity",null,null,null,null,null,null,null,null,null,null,null,null,null,null,null,"E (GPa)",{"$f":"IF(AO47>0,0.001*((AZ46*(AO47-AO46)*AO53^3)/(48*AO58*(AO47-AO46))),0)","v":0},null,"Skin modulus of elasticity",null,null,null,null,null,null,null,null,null,null,null,null,null,null,null,"E (GPa)",{"$f":"IF(BH47>0,0.001*((BS46*(BH47-BH46)*BH53^3)/(48*BH58*(BH47-BH46))),0)","v":0},null,"Skin modulus of elasticity"]
[null,"σUTS(MPa)",{"$f":"C50*C53*0.5*SUM(C55:D57)/(4*C58)","v":0},null,"UTS of skins",null,null,null,null,null,null,null,null,null,null,null,null,null,null,null,"σUTS(MPa)",{"$f":"V50*V53*0.5*SUM(V55:W57)/(4*V58)","v":0},null,"UTS of skins",null,null,null,null,null,null,null,null,null,null,null,null,null,null,null,"σUTS(MPa)",{"$f":"AO50*AO53*0.5*SUM(AO55:AP57)/(4*AO58)","v":0},null,"UTS of skins",null,null,null,null,null,null,null,null,null,null,null,null,null,null,null,"σUTS(MPa)",{"$f":"BH50*BH53*0.5*SUM(BH55:BI57)/(4*BH58)","v":0},null,"UTS of skins"]
["tx (mm)",null,null,null,"Thickness for fire resistance rating in data sheet (FAR: Use laminate thickness)",null,null,null,null,null,null,null,null,null,null,null,null,null,null,"tx (mm)",null,null,null,"Thickness for fire resistance rating in data sheet (FAR: Use laminate thickness)",null,null,null,null,null,null,null,null,null,null,null,null,null,null,"tx (mm)",null,null,null,"Thickness for fire resistance rating in data sheet (FAR: Use laminate thickness)",null,null,null,null,null,null,null,null,null,null,null,null,null,null,"tx (mm)",null,null,null,"Thickness for fire resistance rating in data sheet (FAR: Use laminate thickness)"]
[null,null,{"$f":"_xlfn.IFS(AND(NOT(C55=0),C56>=C61,C57>=C61,NOT(ISBLANK(C61)),NOT(C61=0)),\"PASS\",AND(C55=0,(C56+C57)>=C61,NOT(ISBLANK(C61)),NOT(C61=0)),\"PASS\", AND(NOT(C55=0),OR(C56<C61,C57<C61,ISBLANK(C61),C61=0)),\"FAIL\",AND(C55=0,OR((C56+C57)<C61,ISBLANK(C61),C61=0)),\"FAIL\")","v":"FAIL"},null,null,null,null,null,null,null,null,null,null,null,null,null,null,null,null,null,null,{"$f":"_xlfn.IFS(AND(NOT(V55=0),V56>=V61,V57>=V61,NOT(ISBLANK(V61)),NOT(V61=0)),\"PASS\",AND(V55=0,(V56+V57)>=V61,NOT(ISBLANK(V61)),NOT(V61=0)),\"PASS\", AND(NOT(V55=0),OR(V56<V61,V57<V61,ISBLANK(V61),V61=0)),\"FAIL\",AND(V55=0,OR((V56+V57)<V61,ISBLANK(V61),V61=0)),\"FAIL\")","v":"FAIL"},null,null,null,null,null,null,null,null,null,null,null,null,null,null,null,null,null,null,{"$f":"_xlfn.IFS(AND(NOT(AO55=0),AO56>=AO61,AO57>=AO61,NOT(ISBLANK(AO61)),NOT(AO61=0)),\"PASS\",AND(AO55=0,(AO56+AO57)>=AO61,NOT(ISBLANK(AO61)),NOT(AO61=0)),\"PASS\", AND(NOT(AO55=0),OR(AO56<AO61,AO57<AO61,ISBLANK(AO61),AO61=0)),\"FAIL\",AND(AO55=0,OR((AO56+AO57)<AO61,ISBLANK(AO61),AO61=0)),\"FAIL\")","v":"FAIL"},null,null,null,null,null,null,null,null,null,null,null,null,null,null,null,null,null,null,{"$f":"_xlfn.IFS(AND(NOT(BH55=0),BH56>=BH61,BH57>=BH61,NOT(ISBLANK(BH61)),NOT(BH61=0)),\"PASS\",AND(BH55=0,(BH56+BH57)>=BH61,NOT(ISBLANK(BH61)),NOT(BH61=0)),\"PASS\", AND(NOT(BH55=0),OR(BH56<BH61,BH57<BH61,ISBLANK(BH61),BH61=0)),\"FAIL\",AND(BH55=0,OR((BH56+BH57)<BH61,ISBLANK(BH61),BH61=0)),\"FAIL\")","v":"FAIL"}]
["Paste in logged data from test below (no pictures of data):",null,null,null,null,null,null,null,null,null,null,null,null,null,null,null,null,null,null,"Paste in logged data from test below (no pictures of data):",null,null,null,null,null,null,null,null,null,null,null,null,null,null,null,null,null,null,"Paste in logged data from test below (no pictures of data):",null,null,null,null,null,null,null,null,null,null,null,null,null,null,null,null,null,null,"Paste in logged data from test below (no pictures of data):",null,null,null,null,null,null,null,null,null,null,null,null,null,null,null,null,null,null,"Paste in logged data from test below (no pictures of data):"]
["The given units are mandatory. Paste as values with correct decimal separator.",null,null,null,null,null,null,null,null,null,null,null,null,null,null,null,null,null,null,"The given units are mandatory. Paste as values with correct decimal separator.",null,null,null,null,null,null,null,null,null,null,null,null,null,null,null,null,null,null,"The given units are mandatory. Paste as values with correct decimal separator.",null,null,null,null,null,null,null,null,null,null,null,null,null,null,null,null,null,null,"The given units are mandatory. Paste as values with correct decimal separator.",null,null,null,null,null,null,null,null,null,null,null,null,null,null,null,null,null,null,"The given units are mandatory. Paste as values with correct decimal separator."]
["If there are more than 300 datapoints, you must resample the data at a lower frequency.",null,null,null,null,null,null,null,null,null,null,null,null,null,null,null,null,null,null,"If there are more than 300 datapoints, you must resample the data at a lower frequency.",null,null,null,null,null,null,null,null,null,null,null,null,null,null,null,null,null,null,"If there are more than 300 datapoints, you must resample the data at a lower frequency.",null,null,null,null,null,null,null,null,null,null,null,null,null,null,null,null,null,null,"If there are more than 300 datapoints, you must resample the data at a lower frequency.",null,null,null,null,null,null,null,null,null,null,null,null,null,null,null,null,null,null,"If there are more than 300 datapoints, you must resample the data at a lower frequency."]
[]
[null,null,"F \n(kN)","s (mm)",null,"Picture of measured testpiece thickness",null,null,null,null,null,null,null,null,null,null,null,null,null,null,null,"F \n(kN)","s (mm)",null,"Picture of measured testpiece thickness",null,null,null,null,null,null,null,null,null,null,null,null,null,null,null,"F \n(kN)","s (mm)",null,"Picture of measured testpiece thickness",null,null,null,null,null,null,null,null,null,null,null,null,null,null,null,"F \n(kN)","s (mm)",null,"Picture of measured testpiece thickness",null,null,null,null,null,null,null,null,null,null,null,null,null,null,null,"F \n(kN)","s (mm)",null,"Picture of measured testpiece thickness"]
[null,1,null,null,null,null,null,null,null,null,null,null,null,null,null,null,null,null,null,null,1,null,null,null,null,null,null,null,null,null,null,null,null,null,null,null,null,null,null,1,null,null,null,null,null,null,null,null,null,null,null,null,null,null,null,null,null,null,1,null,null,null,null,null,null,null,null,null,null,null,null,null,null,null,null,null,null,1]
[null,2,null,null,null,null,null,null,null,null,null,null,null,null,null,null,null,null,null,null,2,null,null,null,null,null,null,null,null,null,null,null,null,null,null,null,null,null,null,2,null,null,null,null,null,null,null,null,null,null,null,null,null,null,null,null,null,null,2,null,null,null,null,null,null,null,null,null,null,null,null,null,null,null,null,null,null,2]
[null,3,null,null,null,"Paste image of measured testpieve between an accurate measuring device,",null,null,null,null,null,null,null,null,null,null,null,null,null,null,3,null,null,null,"Paste image of measured testpieve between an accurate measuring device,",null,null,null,null,null,null,null,null,null,null,null,null,null,null,3,null,null,null,"Paste image of measured testpieve between an accurate measuring device,",null,null,null,null,null,null,null,null,null,null,null,null,null,null,3,null,null,null,"Paste image of measured testpieve between an accurate measuring device,",null,null,null,null,null,null,null,null,null,null,null,null,null,null,3,null,null,null,"Paste image of measured testpieve between an accurate measuring device,"]
[null,4,null,null,null,"with clearly redable measurment",null,null,null,null,null,null,null,null,null,null,null,null,null,null,4,null,null,null,"with clearly redable measurment",null,null,null,null,null,null,null,null,null,null,null,null,null,null,4,null,null,null,"with clearly redable measurment",null,null,null,null,null,null,null,null,null,null,null,null,null,null,4,null,null,null,"with clearly redable measurment",null,null,null,null,null,null,null,null,null,null,null,null,null,null,4,null,null,null,"with clearly redable measurment"]
[null,5,null,null,null,null,null,null,null,null,null,null,null,null,null,null,null,null,null,null,5,null,null,null,null,null,null,null,null,null,null,null,null,null,null,null,null,null,null,5,null,null,null,null,null,null,null,null,null,null,null,null,null,null,null,null,null,null,5,null,null,null,null,null,null,null,null,null,null,null,null,null,null,null,null,null,null,5]
[null,6,null,null,null,null,null,null,null,null,null,null,null,null,null,null,null,null,null,null,6,null,null,null,null,null,null,null,null,null,null,null,null,null,null,null,null,null,null,6,null,null,null,null,null,null,null,null,null,null,null,null,null,null,null,null,null,null,6,null,null,null,null,null,null,null,null,null,null,null,null,null,null,null,null,null,null,6]
[null,7,null,null,null,null,null,null,null,null,null,null,null,null,null,null,null,null,null,null,7,null,null,null,null,null,null,null,null,null,null,null,null,null,null,null,null,null,null,7,null,null,null,null,null,null,null,null,null,null,null,null,null,null,null,null,null,null,7,null,null,null,null,null,null,null,null,null,null,null,null,null,null,null,null,null,null,7]
[null,8,null,null,null,null,null,null,null,null,null,null,null,null,null,null,null,null,null,null,8,null,null,null,null,null,null,null,null,null,null,null,null,null,null,null,null,null,null,8,null,null,null,null,null,null,null,null,null,null,null,null,null,null,null,null,null,null,8,null,null,null,null,null,null,null,null,null,null,null,null,null,null,null,null,null,null,8]
[null,9,null,null,null,null,null,null,null,null,null,null,null,null,null,null,null,null,null,null,9,null,null,null,null,null,null,null,null,null,null,null,null,null,null,null,null,null,null,9,null,null,null,null,null,null,null,null,null,null,null,null,null,null,null,null,null,null,9,null,null,null,null,null,null,null,null,null,null,null,null,null,null,null,null,null,null,9]
[null,10,null,null,null,null,null,null,null,null,null,null,null,null,null,null,null,null,null,null,10,null,null,null,null,null,null,null,null,null,null,null,null,null,null,null,null,null,null,10,null,null,null,null,null,null,null,null,null,null,null,null,null,null,null,null,null,null,10,null,null,null,null,null,null,null,null,null,null,null,null,null,null,null,null,null,null,10]
[null,11,null,null,null,null,null,null,null,null,null,null,null,null,null,null,null,null,null,null,11,null,null,null,null,null,null,null,null,null,null,null,null,null,null,null,null,null,null,11,null,null,null,null,null,null,null,null,null,null,null,null,null,null,null,null,null,null,11,null,null,null,null,null,null,null,null,null,null,null,null,null,null,null,null,null,null,11]
[null,12,null,null,null,null,null,null,null,null,null,null,null,null,null,null,null,null,null,null,12,null,null,null,null,null,null,null,null,null,null,null,null,null,null,null,null,null,null,12,null,null,null,null,null,null,null,null,null,null,null,null,null,null,null,null,null,null,12,null,null,null,null,null,null,null,null,null,null,null,null,null,null,null,null,null,null,12]
[null,13,null,null,null,null,null,null,null,null,null,null,null,null,null,null,null,null,null,null,13,null,null,null,null,null,null,null,null,null,null,null,null,null,null,null,null,null,null,13,null,null,null,null,null,null,null,null,null,null,null,null,null,null,null,null,null,null,13,null,null,null,null,null,null,null,null,null,null,null,null,null,null,null,null,null,null,13]
[null,14,null,null,null,null,null,null,null,null,null,null,null,null,null,null,null,null,null,null,14,null,null,null,null,null,null,null,null,null,null,null,null,null,null,null,null,null,null,14,null,null,null,null,null,null,null,null,null,null,null,null,null,null,null,null,null,null,14,null,null,null,null,null,null,null,null,null,null,null,null,null,null,null,null,null,null,14]
[null,15,null,null,null,null,null,null,null,null,null,null,null,null,null,null,null,null,null,null,15,null,null,null,null,null,null,null,null,null,null,null,null,null,null,null,null,null,null,15,null,null,null,null,null,null,null,null,null,null,null,null,null,null,null,null,null,null,15,null,null,null,null,null,null,null,null,null,null,null,null,null,null,null,null,null,null,15]
[null,16,null,null,null,null,null,null,null,null,null,null,null,null,null,null,null,null,null,null,16,null,null,null,null,null,null,null,null,null,null,null,null,null,null,null,null,null,null,16,null,null,null,null,null,null,null,null,null,null,null,null,null,null,null,null,null,null,16,null,null,null,null,null,null,null,null,null,null,null,null,null,null,null,null,null,null,16]
[null,17,null,null,null,null,null,null,null,null,null,null,null,null,null,null,null,null,null,null,17,null,null,null,null,null,null,null,null,null,null,null,null,null,null,null,null,null,null,17,null,null,null,null,null,null,null,null,null,null,null,null,null,null,null,null,null,null,17,null,null,null,null,null,null,null,null,null,null,null,null,null,null,null,null,null,null,17]
[null,18,null,null,null,null,null,null,null,null,null,null,null,null,null,null,null,null,null,null,18,null,null,null,null,null,null,null,null,null,null,null,null,null,null,null,null,null,null,18,null,null,null,null,null,null,null,null,null,null,null,null,null,null,null,null,null,null,18,null,null,null,null,null,null,null,null,null,null,null,null,null,null,null,null,null,null,18]
[null,19,null,null,null,null,null,null,null,null,null,null,null,null,null,null,null,null,null,null,19,null,null,null,null,null,null,null,null,null,null,null,null,null,null,null,null,null,null,19,null,null,null,null,null,null,null,null,null,null,null,null,null,null,null,null,null,null,19,null,null,null,null,null,null,null,null,null,null,null,null,null,null,null,null,null,null,19]
[null,20,null,null,null,null,null,null,null,null,null,null,null,null,null,null,null,null,null,null,20,null,null,null,null,null,null,null,null,null,null,null,null,null,null,null,null,null,null,20,null,null,null,null,null,null,null,null,null,null,null,null,null,null,null,null,null,null,20,null,null,null,null,null,null,null,null,null,null,null,null,null,null,null,null,null,null,20]
[null,21,null,null,null,null,null,null,null,null,null,null,null,null,null,null,null,null,null,null,21,null,null,null,null,null,null,null,null,null,null,null,null,null,null,null,null,null,null,21,null,null,null,null,null,null,null,null,null,null,null,null,null,null,null,null,null,null,21,null,null,null,null,null,null,null,null,null,null,null,null,null,null,null,null,null,null,21]
[null,22,null,null,null,null,null,null,null,null,null,null,null,null,null,null,null,null,null,null,22,null,null,null,null,null,null,null,null,null,null,null,null,null,null,null,null,null,null,22,null,null,null,null,null,null,null,null,null,null,null,null,null,null,null,null,null,null,22,null,null,null,null,null,null,null,null,null,null,null,null,null,null,null,null,null,null,22]
[null,23,null,null,null,null,null,null,null,null,null,null,null,null,null,null,null,null,null,null,23,null,null,null,null,null,null,null,null,null,null,null,null,null,null,null,null,null,null,23,null,null,null,null,null,null,null,null,null,null,null,null,null,null,null,null,null,null,23,null,null,null,null,null,null,null,null,null,null,null,null,null,null,null,null,null,null,23]
[null,24,null,null,null,null,null,null,null,null,null,null,null,null,null,null,null,null,null,null,24,null,null,null,null,null,null,null,null,null,null,null,null,null,null,null,null,null,null,24,null,null,null,null,null,null,null,null,null,null,null,null,null,null,null,null,null,null,24,null,null,null,null,null,null,null,null,null,null,null,null,null,null,null,null,null,null,24]
[null,25,null,null,null,null,null,null,null,null,null,null,null,null,null,null,null,null,null,null,25,null,null,null,null,null,null,null,null,null,null,null,null,null,null,null,null,null,null,25,null,null,null,null,null,null,null,null,null,null,null,null,null,null,null,null,null,null,25,null,null,null,null,null,null,null,null,null,null,null,null,null,null,null,null,null,null,25]
[null,26,null,null,null,null,null,null,null,null,null,null,null,null,null,null,null,null,null,null,26,null,null,null,null,null,null,null,null,null,null,null,null,null,null,null,null,null,null,26,null,null,null,null,null,null,null,null,null,null,null,null,null,null,null,null,null,null,26,null,null,null,null,null,null,null,null,null,null,null,null,null,null,null,null,null,null,26]
[null,27,null,null,null,null,null,null,null,null,null,null,null,null,null,null,null,null,null,null,27,null,null,null,null,null,null,null,null,null,null,null,null,null,null,null,null,null,null,27,null,null,null,null,null,null,null,null,null,null,null,null,null,null,null,null,null,null,27,null,null,null,null,null,null,null,null,null,null,null,null,null,null,null,null,null,null,27]
[null,28,null,null,null,null,null,null,null,null,null,null,null,null,null,null,null,null,null,null,28,null,null,null,null,null,null,null,null,null,null,null,null,null,null,null,null,null,null,28,null,null,null,null,null,null,null,null,null,null,null,null,null,null,null,null,null,null,28,null,null,null,null,null,null,null,null,null,null,null,null,null,null,null,null,null,null,28]
[null,29,null,null,null,null,null,null,null,null,null,null,null,null,null,null,null,null,null,null,29,null,null,null,null,null,null,null,null,null,null,null,null,null,null,null,null,null,null,29,null,null,null,null,null,null,null,null,null,null,null,null,null,null,null,null,null,null,29,null,null,null,null,null,null,null,null,null,null,null,null,null,null,null,null,null,null,29]
[null,30,null,null,null,null,null,null,null,null,null,null,null,null,null,null,null,null,null,null,30,null,null,null,null,null,null,null,null,null,null,null,null,null,null,null,null,null,null,30,null,null,null,null,null,null,null,null,null,null,null,null,null,null,null,null,null,null,30,null,null,null,null,null,null,null,null,null,null,null,null,null,null,null,null,null,null,30]
[null,31,null,null,null,null,null,null,null,null,null,null,null,null,null,null,null,null,null,null,31,null,null,null,null,null,null,null,null,null,null,null,null,null,null,null,null,null,null,31,null,null,null,null,null,null,null,null,null,null,null,null,null,null,null,null,null,null,31,null,null,null,null,null,null,null,null,null,null,null,null,null,null,null,null,null,null,31]
[null,32,null,null,null,null,null,null,null,null,null,null,null,null,null,null,null,null,null,null,32,null,null,null,null,null,null,null,null,null,null,null,null,null,null,null,null,null,null,32,null,null,null,null,null,null,null,null,null,null,null,null,null,null,null,null,null,null,32,null,null,null,null,null,null,null,null,null,null,null,null,null,null,null,null,null,null,32]
[null,33,null,null,null,null,null,null,null,null,null,null,null,null,null,null,null,null,null,null,33,null,null,null,null,null,null,null,null,null,null,null,null,null,null,null,null,null,null,33,null,null,null,null,null,null,null,null,null,null,null,null,null,null,null,null,null,null,33,null,null,null,null,null,null,null,null,null,null,null,null,null,null,null,null,null,null,33]
[null,34,null,null,null,null,null,null,null,null,null,null,null,null,null,null,null,null,null,null,34,null,null,null,null,null,null,null,null,null,null,null,null,null,null,null,null,null,null,34,null,null,null,null,null,null,null,null,null,null,null,null,null,null,null,null,null,null,34,null,null,null,null,null,null,null,null,null,null,null,null,null,null,null,null,null,null,34]
[null,35,null,null,null,null,null,null,null,null,null,null,null,null,null,null,null,null,null,null,35,null,null,null,null,null,null,null,null,null,null,null,null,null,null,null,null,null,null,35,null,null,null,null,null,null,null,null,null,null,null,null,null,null,null,null,null,null,35,null,null,null,null,null,null,null,null,null,null,null,null,null,null,null,null,null,null,35]
[null,36,null,null,null,null,null,null,null,null,null,null,null,null,null,null,null,null,null,null,36,null,null,null,null,null,null,null,null,null,null,null,null,null,null,null,null,null,null,36,null,null,null,null,null,null,null,null,null,null,null,null,null,null,null,null,null,null,36,null,null,null,null,null,null,null,null,null,null,null,null,null,null,null,null,null,null,36]
[null,37,null,null,null,null,null,null,null,null,null,null,null,null,null,null,null,null,null,null,37,null,null,null,null,null,null,null,null,null,null,null,null,null,null,null,null,null,null,37,null,null,null,null,null,null,null,null,null,null,null,null,null,null,null,null,null,null,37,null,null,null,null,null,null,null,null,null,null,null,null,null,null,null,null,null,null,37]
[null,38,null,null,null,null,null,null,null,null,null,null,null,null,null,null,null,null,null,null,38,null,null,null,null,null,null,null,null,null,null,null,null,null,null,null,null,null,null,38,null,null,null,null,null,null,null,null,null,null,null,null,null,null,null,null,null,null,38,null,null,null,null,null,null,null,null,null,null,null,null,null,null,null,null,null,null,38]
[null,39,null,null,null,null,null,null,null,null,null,null,null,null,null,null,null,null,null,null,39,null,null,null,null,null,null,null,null,null,null,null,null,null,null,null,null,null,null,39,null,null,null,null,null,null,null,null,null,null,null,null,null,null,null,null,null,null,39,null,null,null,null,null,null,null,null,null,null,null,null,null,null,null,null,null,null,39]
[null,40,null,null,null,null,null,null,null,null,null,null,null,null,null,null,null,null,null,null,40,null,null,null,null,null,null,null,null,null,null,null,null,null,null,null,null,null,null,40,null,null,null,null,null,null,null,null,null,null,null,null,null,null,null,null,null,null,40,null,null,null,null,null,null,null,null,null,null,null,null,null,null,null,null,null,null,40]
[null,41,null,null,null,null,null,null,null,null,null,null,null,null,null,null,null,null,null,null,41,null,null,null,null,null,null,null,null,null,null,null,null,null,null,null,null,null,null,41,null,null,null,null,null,null,null,null,null,null,null,null,null,null,null,null,null,null,41,null,null,null,null,null,null,null,null,null,null,null,null,null,null,null,null,null,null,41]
[null,42,null,null,null,null,null,null,null,null,null,null,null,null,null,null,null,null,null,null,42,null,null,null,null,null,null,null,null,null,null,null,null,null,null,null,null,null,null,42,null,null,null,null,null,null,null,null,null,null,null,null,null,null,null,null,null,null,42,null,null,null,null,null,null,null,null,null,null,null,null,null,null,null,null,null,null,42]
[null,43,null,null,null,null,null,null,null,null,null,null,null,null,null,null,null,null,null,null,43,null,null,null,null,null,null,null,null,null,null,null,null,null,null,null,null,null,null,43,null,null,null,null,null,null,null,null,null,null,null,null,null,null,null,null,null,null,43,null,null,null,null,null,null,null,null,null,null,null,null,null,null,null,null,null,null,43]
[null,44,null,null,null,null,null,null,null,null,null,null,null,null,null,null,null,null,null,null,44,null,null,null,null,null,null,null,null,null,null,null,null,null,null,null,null,null,null,44,null,null,null,null,null,null,null,null,null,null,null,null,null,null,null,null,null,null,44,null,null,null,null,null,null,null,null,null,null,null,null,null,null,null,null,null,null,44]
[null,45,null,null,null,null,null,null,null,null,null,null,null,null,null,null,null,null,null,null,45,null,null,null,null,null,null,null,null,null,null,null,null,null,null,null,null,null,null,45,null,null,null,null,null,null,null,null,null,null,null,null,null,null,null,null,null,null,45,null,null,null,null,null,null,null,null,null,null,null,null,null,null,null,null,null,null,45]
[null,46,null,null,null,null,null,null,null,null,null,null,null,null,null,null,null,null,null,null,46,null,null,null,null,null,null,null,null,null,null,null,null,null,null,null,null,null,null,46,null,null,null,null,null,null,null,null,null,null,null,null,null,null,null,null,null,null,46,null,null,null,null,null,null,null,null,null,null,null,null,null,null,null,null,null,null,46]
[null,47,null,null,null,null,null,null,null,null,null,null,null,null,null,null,null,null,null,null,47,null,null,null,null,null,null,null,null,null,null,null,null,null,null,null,null,null,null,47,null,null,null,null,null,null,null,null,null,null,null,null,null,null,null,null,null,null,47,null,null,null,null,null,null,null,null,null,null,null,null,null,null,null,null,null,null,47]
[null,48,null,null,null,null,null,null,null,null,null,null,null,null,null,null,null,null,null,null,48,null,null,null,null,null,null,null,null,null,null,null,null,null,null,null,null,null,null,48,null,null,null,null,null,null,null,null,null,null,null,null,null,null,null,null,null,null,48,null,null,null,null,null,null,null,null,null,null,null,null,null,null,null,null,null,null,48]
[null,49,null,null,null,null,null,null,null,null,null,null,null,null,null,null,null,null,null,null,49,null,null,null,null,null,null,null,null,null,null,null,null,null,null,null,null,null,null,49,null,null,null,null,null,null,null,null,null,null,null,null,null,null,null,null,null,null,49,null,null,null,null,null,null,null,null,null,null,null,null,null,null,null,null,null,null,49]
[null,50,null,null,null,null,null,null,null,null,null,null,null,null,null,null,null,null,null,null,50,null,null,null,null,null,null,null,null,null,null,null,null,null,null,null,null,null,null,50,null,null,null,null,null,null,null,null,null,null,null,null,null,null,null,null,null,null,50,null,null,null,null,null,null,null,null,null,null,null,null,null,null,null,null,null,null,50]
[null,51,null,null,null,null,null,null,null,null,null,null,null,null,null,null,null,null,null,null,51,null,null,null,null,null,null,null,null,null,null,null,null,null,null,null,null,null,null,51,null,null,null,null,null,null,null,null,null,null,null,null,null,null,null,null,null,null,51,null,null,null,null,null,null,null,null,null,null,null,null,null,null,null,null,null,null,51]
[null,52,null,null,null,null,null,null,null,null,null,null,null,null,null,null,null,null,null,null,52,null,null,null,null,null,null,null,null,null,null,null,null,null,null,null,null,null,null,52,null,null,null,null,null,null,null,null,null,null,null,null,null,null,null,null,null,null,52,null,null,null,null,null,null,null,null,null,null,null,null,null,null,null,null,null,null,52]
[null,53,null,null,null,null,null,null,null,null,null,null,null,null,null,null,null,null,null,null,53,null,null,null,null,null,null,null,null,null,null,null,null,null,null,null,null,null,null,53,null,null,null,null,null,null,null,null,null,null,null,null,null,null,null,null,null,null,53,null,null,null,null,null,null,null,null,null,null,null,null,null,null,null,null,null,null,53]
[null,54,null,null,null,null,null,null,null,null,null,null,null,null,null,null,null,null,null,null,54,null,null,null,null,null,null,null,null,null,null,null,null,null,null,null,null,null,null,54,null,null,null,null,null,null,null,null,null,null,null,null,null,null,null,null,null,null,54,null,null,null,null,null,null,null,null,null,null,null,null,null,null,null,null,null,null,54]
[null,55,null,null,null,null,null,null,null,null,null,null,null,null,null,null,null,null,null,null,55,null,null,null,null,null,null,null,null,null,null,null,null,null,null,null,null,null,null,55,null,null,null,null,null,null,null,null,null,null,null,null,null,null,null,null,null,null,55,null,null,null,null,null,null,null,null,null,null,null,null,null,null,null,null,null,null,55]
[null,56,null,null,null,null,null,null,null,null,null,null,null,null,null,null,null,null,null,null,56,null,null,null,null,null,null,null,null,null,null,null,null,null,null,null,null,null,null,56,null,null,null,null,null,null,null,null,null,null,null,null,null,null,null,null,null,null,56,null,null,null,null,null,null,null,null,null,null,null,null,null,null,null,null,null,null,56]
[null,57,null,null,null,null,null,null,null,null,null,null,null,null,null,null,null,null,null,null,57,null,null,null,null,null,null,null,null,null,null,null,null,null,null,null,null,null,null,57,null,null,null,null,null,null,null,null,null,null,null,null,null,null,null,null,null,null,57,null,null,null,null,null,null,null,null,null,null,null,null,null,null,null,null,null,null,57]
[null,58,null,null,null,null,null,null,null,null,null,null,null,null,null,null,null,null,null,null,58,null,null,null,null,null,null,null,null,null,null,null,null,null,null,null,null,null,null,58,null,null,null,null,null,null,null,null,null,null,null,null,null,null,null,null,null,null,58,null,null,null,null,null,null,null,null,null,null,null,null,null,null,null,null,null,null,58]
[null,59,null,null,null,null,null,null,null,null,null,null,null,null,null,null,null,null,null,null,59,null,null,null,null,null,null,null,null,null,null,null,null,null,null,null,null,null,null,59,null,null,null,null,null,null,null,null,null,null,null,null,null,null,null,null,null,null,59,null,null,null,null,null,null,null,null,null,null,null,null,null,null,null,null,null,null,59]
[null,60,null,null,null,null,null,null,null,null,null,null,null,null,null,null,null,null,null,null,60,null,null,null,null,null,null,null,null,null,null,null,null,null,null,null,null,null,null,60,null,null,null,null,null,null,null,null,null,null,null,null,null,null,null,null,null,null,60,null,null,null,null,null,null,null,null,null,null,null,null,null,null,null,null,null,null,60]
[null,61,null,null,null,null,null,null,null,null,null,null,null,null,null,null,null,null,null,null,61,null,null,null,null,null,null,null,null,null,null,null,null,null,null,null,null,null,null,61,null,null,null,null,null,null,null,null,null,null,null,null,null,null,null,null,null,null,61,null,null,null,null,null,null,null,null,null,null,null,null,null,null,null,null,null,null,61]
[null,62,null,null,null,null,null,null,null,null,null,null,null,null,null,null,null,null,null,null,62,null,null,null,null,null,null,null,null,null,null,null,null,null,null,null,null,null,null,62,null,null,null,null,null,null,null,null,null,null,null,null,null,null,null,null,null,null,62,null,null,null,null,null,null,null,null,null,null,null,null,null,null,null,null,null,null,62]
[null,63,null,null,null,null,null,null,null,null,null,null,null,null,null,null,null,null,null,null,63,null,null,null,null,null,null,null,null,null,null,null,null,null,null,null,null,null,null,63,null,null,null,null,null,null,null,null,null,null,null,null,null,null,null,null,null,null,63,null,null,null,null,null,null,null,null,null,null,null,null,null,null,null,null,null,null,63]
[null,64,null,null,null,null,null,null,null,null,null,null,null,null,null,null,null,null,null,null,64,null,null,null,null,null,null,null,null,null,null,null,null,null,null,null,null,null,null,64,null,null,null,null,null,null,null,null,null,null,null,null,null,null,null,null,null,null,64,null,null,null,null,null,null,null,null,null,null,null,null,null,null,null,null,null,null,64]
[null,65,null,null,null,null,null,null,null,null,null,null,null,null,null,null,null,null,null,null,65,null,null,null,null,null,null,null,null,null,null,null,null,null,null,null,null,null,null,65,null,null,null,null,null,null,null,null,null,null,null,null,null,null,null,null,null,null,65,null,null,null,null,null,null,null,null,null,null,null,null,null,null,null,null,null,null,65]
[null,66,null,null,null,null,null,null,null,null,null,null,null,null,null,null,null,null,null,null,66,null,null,null,null,null,null,null,null,null,null,null,null,null,null,null,null,null,null,66,null,null,null,null,null,null,null,null,null,null,null,null,null,null,null,null,null,null,66,null,null,null,null,null,null,null,null,null,null,null,null,null,null,null,null,null,null,66]
[null,67,null,null,null,null,null,null,null,null,null,null,null,null,null,null,null,null,null,null,67,null,null,null,null,null,null,null,null,null,null,null,null,null,null,null,null,null,null,67,null,null,null,null,null,null,null,null,null,null,null,null,null,null,null,null,null,null,67,null,null,null,null,null,null,null,null,null,null,null,null,null,null,null,null,null,null,67]
[null,68,null,null,null,null,null,null,null,null,null,null,null,null,null,null,null,null,null,null,68,null,null,null,null,null,null,null,null,null,null,null,null,null,null,null,null,null,null,68,null,null,null,null,null,null,null,null,null,null,null,null,null,null,null,null,null,null,68,null,null,null,null,null,null,null,null,null,null,null,null,null,null,null,null,null,null,68]
[null,69,null,null,null,null,null,null,null,null,null,null,null,null,null,null,null,null,null,null,69,null,null,null,null,null,null,null,null,null,null,null,null,null,null,null,null,null,null,69,null,null,null,null,null,null,null,null,null,null,null,null,null,null,null,null,null,null,69,null,null,null,null,null,null,null,null,null,null,null,null,null,null,null,null,null,null,69]
[null,70,null,null,null,null,null,null,null,null,null,null,null,null,null,null,null,null,null,null,70,null,null,null,null,null,null,null,null,null,null,null,null,null,null,null,null,null,null,70,null,null,null,null,null,null,null,null,null,null,null,null,null,null,null,null,null,null,70,null,null,null,null,null,null,null,null,null,null,null,null,null,null,null,null,null,null,70]
[null,71,null,null,null,null,null,null,null,null,null,null,null,null,null,null,null,null,null,null,71,null,null,null,null,null,null,null,null,null,null,null,null,null,null,null,null,null,null,71,null,null,null,null,null,null,null,null,null,null,null,null,null,null,null,null,null,null,71,null,null,null,null,null,null,null,null,null,null,null,null,null,null,null,null,null,null,71]
[null,72,null,null,null,null,null,null,null,null,null,null,null,null,null,null,null,null,null,null,72,null,null,null,null,null,null,null,null,null,null,null,null,null,null,null,null,null,null,72,null,null,null,null,null,null,null,null,null,null,null,null,null,null,null,null,null,null,72,null,null,null,null,null,null,null,null,null,null,null,null,null,null,null,null,null,null,72]
[null,73,null,null,null,null,null,null,null,null,null,null,null,null,null,null,null,null,null,null,73,null,null,null,null,null,null,null,null,null,null,null,null,null,null,null,null,null,null,73,null,null,null,null,null,null,null,null,null,null,null,null,null,null,null,null,null,null,73,null,null,null,null,null,null,null,null,null,null,null,null,null,null,null,null,null,null,73]
[null,74,null,null,null,null,null,null,null,null,null,null,null,null,null,null,null,null,null,null,74,null,null,null,null,null,null,null,null,null,null,null,null,null,null,null,null,null,null,74,null,null,null,null,null,null,null,null,null,null,null,null,null,null,null,null,null,null,74,null,null,null,null,null,null,null,null,null,null,null,null,null,null,null,null,null,null,74]
[null,75,null,null,null,null,null,null,null,null,null,null,null,null,null,null,null,null,null,null,75,null,null,null,null,null,null,null,null,null,null,null,null,null,null,null,null,null,null,75,null,null,null,null,null,null,null,null,null,null,null,null,null,null,null,null,null,null,75,null,null,null,null,null,null,null,null,null,null,null,null,null,null,null,null,null,null,75]
[null,76,null,null,null,null,null,null,null,null,null,null,null,null,null,null,null,null,null,null,76,null,null,null,null,null,null,null,null,null,null,null,null,null,null,null,null,null,null,76,null,null,null,null,null,null,null,null,null,null,null,null,null,null,null,null,null,null,76,null,null,null,null,null,null,null,null,null,null,null,null,null,null,null,null,null,null,76]
[null,77,null,null,null,null,null,null,null,null,null,null,null,null,null,null,null,null,null,null,77,null,null,null,null,null,null,null,null,null,null,null,null,null,null,null,null,null,null,77,null,null,null,null,null,null,null,null,null,null,null,null,null,null,null,null,null,null,77,null,null,null,null,null,null,null,null,null,null,null,null,null,null,null,null,null,null,77]
[null,78,null,null,null,null,null,null,null,null,null,null,null,null,null,null,null,null,null,null,78,null,null,null,null,null,null,null,null,null,null,null,null,null,null,null,null,null,null,78,null,null,null,null,null,null,null,null,null,null,null,null,null,null,null,null,null,null,78,null,null,null,null,null,null,null,null,null,null,null,null,null,null,null,null,null,null,78]
[null,79,null,null,null,null,null,null,null,null,null,null,null,null,null,null,null,null,null,null,79,null,null,null,null,null,null,null,null,null,null,null,null,null,null,null,null,null,null,79,null,null,null,null,null,null,null,null,null,null,null,null,null,null,null,null,null,null,79,null,null,null,null,null,null,null,null,null,null,null,null,null,null,null,null,null,null,79]
[null,80,null,null,null,null,null,null,null,null,null,null,null,null,null,null,null,null,null,null,80,null,null,null,null,null,null,null,null,null,null,null,null,null,null,null,null,null,null,80,null,null,null,null,null,null,null,null,null,null,null,null,null,null,null,null,null,null,80,null,null,null,null,null,null,null,null,null,null,null,null,null,null,null,null,null,null,80]
[null,81,null,null,null,null,null,null,null,null,null,null,null,null,null,null,null,null,null,null,81,null,null,null,null,null,null,null,null,null,null,null,null,null,null,null,null,null,null,81,null,null,null,null,null,null,null,null,null,null,null,null,null,null,null,null,null,null,81,null,null,null,null,null,null,null,null,null,null,null,null,null,null,null,null,null,null,81]
[null,82,null,null,null,null,null,null,null,null,null,null,null,null,null,null,null,null,null,null,82,null,null,null,null,null,null,null,null,null,null,null,null,null,null,null,null,null,null,82,null,null,null,null,null,null,null,null,null,null,null,null,null,null,null,null,null,null,82,null,null,null,null,null,null,null,null,null,null,null,null,null,null,null,null,null,null,82]
[null,83,null,null,null,null,null,null,null,null,null,null,null,null,null,null,null,null,null,null,83,null,null,null,null,null,null,null,null,null,null,null,null,null,null,null,null,null,null,83,null,null,null,null,null,null,null,null,null,null,null,null,null,null,null,null,null,null,83,null,null,null,null,null,null,null,null,null,null,null,null,null,null,null,null,null,null,83]
[null,84,null,null,null,null,null,null,null,null,null,null,null,null,null,null,null,null,null,null,84,null,null,null,null,null,null,null,null,null,null,null,null,null,null,null,null,null,null,84,null,null,null,null,null,null,null,null,null,null,null,null,null,null,null,null,null,null,84,null,null,null,null,null,null,null,null,null,null,null,null,null,null,null,null,null,null,84]
[null,85,null,null,null,null,null,null,null,null,null,null,null,null,null,null,null,null,null,null,85,null,null,null,null,null,null,null,null,null,null,null,null,null,null,null,null,null,null,85,null,null,null,null,null,null,null,null,null,null,null,null,null,null,null,null,null,null,85,null,null,null,null,null,null,null,null,null,null,null,null,null,null,null,null,null,null,85]
[null,86,null,null,null,null,null,null,null,null,null,null,null,null,null,null,null,null,null,null,86,null,null,null,null,null,null,null,null,null,null,null,null,null,null,null,null,null,null,86,null,null,null,null,null,null,null,null,null,null,null,null,null,null,null,null,null,null,86,null,null,null,null,null,null,null,null,null,null,null,null,null,null,null,null,null,null,86]
[null,87,null,null,null,null,null,null,null,null,null,null,null,null,null,null,null,null,null,null,87,null,null,null,null,null,null,null,null,null,null,null,null,null,null,null,null,null,null,87,null,null,null,null,null,null,null,null,null,null,null,null,null,null,null,null,null,null,87,null,null,null,null,null,null,null,null,null,null,null,null,null,null,null,null,null,null,87]
[null,88,null,null,null,null,null,null,null,null,null,null,null,null,null,null,null,null,null,null,88,null,null,null,null,null,null,null,null,null,null,null,null,null,null,null,null,null,null,88,null,null,null,null,null,null,null,null,null,null,null,null,null,null,null,null,null,null,88,null,null,null,null,null,null,null,null,null,null,null,null,null,null,null,null,null,null,88]
[null,89,null,null,null,null,null,null,null,null,null,null,null,null,null,null,null,null,null,null,89,null,null,null,null,null,null,null,null,null,null,null,null,null,null,null,null,null,null,89,null,null,null,null,null,null,null,null,null,null,null,null,null,null,null,null,null,null,89,null,null,null,null,null,null,null,null,null,null,null,null,null,null,null,null,null,null,89]
[null,90,null,null,null,null,null,null,null,null,null,null,null,null,null,null,null,null,null,null,90,null,null,null,null,null,null,null,null,null,null,null,null,null,null,null,null,null,null,90,null,null,null,null,null,null,null,null,null,null,null,null,null,null,null,null,null,null,90,null,null,null,null,null,null,null,null,null,null,null,null,null,null,null,null,null,null,90]
[null,91,null,null,null,null,null,null,null,null,null,null,null,null,null,null,null,null,null,null,91,null,null,null,null,null,null,null,null,null,null,null,null,null,null,null,null,null,null,91,null,null,null,null,null,null,null,null,null,null,null,null,null,null,null,null,null,null,91,null,null,null,null,null,null,null,null,null,null,null,null,null,null,null,null,null,null,91]
[null,92,null,null,null,null,null,null,null,null,null,null,null,null,null,null,null,null,null,null,92,null,null,null,null,null,null,null,null,null,null,null,null,null,null,null,null,null,null,92,null,null,null,null,null,null,null,null,null,null,null,null,null,null,null,null,null,null,92,null,null,null,null,null,null,null,null,null,null,null,null,null,null,null,null,null,null,92]
[null,93,null,null,null,null,null,null,null,null,null,null,null,null,null,null,null,null,null,null,93,null,null,null,null,null,null,null,null,null,null,null,null,null,null,null,null,null,null,93,null,null,null,null,null,null,null,null,null,null,null,null,null,null,null,null,null,null,93,null,null,null,null,null,null,null,null,null,null,null,null,null,null,null,null,null,null,93]
[null,94,null,null,null,null,null,null,null,null,null,null,null,null,null,null,null,null,null,null,94,null,null,null,null,null,null,null,null,null,null,null,null,null,null,null,null,null,null,94,null,null,null,null,null,null,null,null,null,null,null,null,null,null,null,null,null,null,94,null,null,null,null,null,null,null,null,null,null,null,null,null,null,null,null,null,null,94]
[null,95,null,null,null,null,null,null,null,null,null,null,null,null,null,null,null,null,null,null,95,null,null,null,null,null,null,null,null,null,null,null,null,null,null,null,null,null,null,95,null,null,null,null,null,null,null,null,null,null,null,null,null,null,null,null,null,null,95,null,null,null,null,null,null,null,null,null,null,null,null,null,null,null,null,null,null,95]
[null,96,null,null,null,null,null,null,null,null,null,null,null,null,null,null,null,null,null,null,96,null,null,null,null,null,null,null,null,null,null,null,null,null,null,null,null,null,null,96,null,null,null,null,null,null,null,null,null,null,null,null,null,null,null,null,null,null,96,null,null,null,null,null,null,null,null,null,null,null,null,null,null,null,null,null,null,96]
[null,97,null,null,null,null,null,null,null,null,null,null,null,null,null,null,null,null,null,null,97,null,null,null,null,null,null,null,null,null,null,null,null,null,null,null,null,null,null,97,null,null,null,null,null,null,null,null,null,null,null,null,null,null,null,null,null,null,97,null,null,null,null,null,null,null,null,null,null,null,null,null,null,null,null,null,null,97]
[null,98,null,null,null,null,null,null,null,null,null,null,null,null,null,null,null,null,null,null,98,null,null,null,null,null,null,null,null,null,null,null,null,null,null,null,null,null,null,98,null,null,null,null,null,null,null,null,null,null,null,null,null,null,null,null,null,null,98,null,null,null,null,null,null,null,null,null,null,null,null,null,null,null,null,null,null,98]
[null,99,null,null,null,null,null,null,null,null,null,null,null,null,null,null,null,null,null,null,99,null,null,null,null,null,null,null,null,null,null,null,null,null,null,null,null,null,null,99,null,null,null,null,null,null,null,null,null,null,null,null,null,null,null,null,null,null,99,null,null,null,null,null,null,null,null,null,null,null,null,null,null,null,null,null,null,99]
[null,100,null,null,null,null,null,null,null,null,null,null,null,null,null,null,null,null,null,null,100,null,null,null,null,null,null,null,null,null,null,null,null,null,null,null,null,null,null,100,null,null,null,null,null,null,null,null,null,null,null,null,null,null,null,null,null,null,100,null,null,null,null,null,null,null,null,null,null,null,null,null,null,null,null,null,null,100]
[null,101,null,null,null,null,null,null,null,null,null,null,null,null,null,null,null,null,null,null,101,null,null,null,null,null,null,null,null,null,null,null,null,null,null,null,null,null,null,101,null,null,null,null,null,null,null,null,null,null,null,null,null,null,null,null,null,null,101,null,null,null,null,null,null,null,null,null,null,null,null,null,null,null,null,null,null,101]
[null,102,null,null,null,null,null,null,null,null,null,null,null,null,null,null,null,null,null,null,102,null,null,null,null,null,null,null,null,null,null,null,null,null,null,null,null,null,null,102,null,null,null,null,null,null,null,null,null,null,null,null,null,null,null,null,null,null,102,null,null,null,null,null,null,null,null,null,null,null,null,null,null,null,null,null,null,102]
[null,103,null,null,null,null,null,null,null,null,null,null,null,null,null,null,null,null,null,null,103,null,null,null,null,null,null,null,null,null,null,null,null,null,null,null,null,null,null,103,null,null,null,null,null,null,null,null,null,null,null,null,null,null,null,null,null,null,103,null,null,null,null,null,null,null,null,null,null,null,null,null,null,null,null,null,null,103]
[null,104,null,null,null,null,null,null,null,null,null,null,null,null,null,null,null,null,null,null,104,null,null,null,null,null,null,null,null,null,null,null,null,null,null,null,null,null,null,104,null,null,null,null,null,null,null,null,null,null,null,null,null,null,null,null,null,null,104,null,null,null,null,null,null,null,null,null,null,null,null,null,null,null,null,null,null,104]
[null,105,null,null,null,null,null,null,null,null,null,null,null,null,null,null,null,null,null,null,105,null,null,null,null,null,null,null,null,null,null,null,null,null,null,null,null,null,null,105,null,null,null,null,null,null,null,null,null,null,null,null,null,null,null,null,null,null,105,null,null,null,null,null,null,null,null,null,null,null,null,null,null,null,null,null,null,105]
[null,106,null,null,null,null,null,null,null,null,null,null,null,null,null,null,null,null,null,null,106,null,null,null,null,null,null,null,null,null,null,null,null,null,null,null,null,null,null,106,null,null,null,null,null,null,null,null,null,null,null,null,null,null,null,null,null,null,106,null,null,null,null,null,null,null,null,null,null,null,null,null,null,null,null,null,null,106]
[null,107,null,null,null,null,null,null,null,null,null,null,null,null,null,null,null,null,null,null,107,null,null,null,null,null,null,null,null,null,null,null,null,null,null,null,null,null,null,107,null,null,null,null,null,null,null,null,null,null,null,null,null,null,null,null,null,null,107,null,null,null,null,null,null,null,null,null,null,null,null,null,null,null,null,null,null,107]
[null,108,null,null,null,null,null,null,null,null,null,null,null,null,null,null,null,null,null,null,108,null,null,null,null,null,null,null,null,null,null,null,null,null,null,null,null,null,null,108,null,null,null,null,null,null,null,null,null,null,null,null,null,null,null,null,null,null,108,null,null,null,null,null,null,null,null,null,null,null,null,null,null,null,null,null,null,108]
[null,109,null,null,null,null,null,null,null,null,null,null,null,null,null,null,null,null,null,null,109,null,null,null,null,null,null,null,null,null,null,null,null,null,null,null,null,null,null,109,null,null,null,null,null,null,null,null,null,null,null,null,null,null,null,null,null,null,109,null,null,null,null,null,null,null,null,null,null,null,null,null,null,null,null,null,null,109]
[null,110,null,null,null,null,null,null,null,null,null,null,null,null,null,null,null,null,null,null,110,null,null,null,null,null,null,null,null,null,null,null,null,null,null,null,null,null,null,110,null,null,null,null,null,null,null,null,null,null,null,null,null,null,null,null,null,null,110,null,null,null,null,null,null,null,null,null,null,null,null,null,null,null,null,null,null,110]
[null,111,null,null,null,null,null,null,null,null,null,null,null,null,null,null,null,null,null,null,111,null,null,null,null,null,null,null,null,null,null,null,null,null,null,null,null,null,null,111,null,null,null,null,null,null,null,null,null,null,null,null,null,null,null,null,null,null,111,null,null,null,null,null,null,null,null,null,null,null,null,null,null,null,null,null,null,111]
[null,112,null,null,null,null,null,null,null,null,null,null,null,null,null,null,null,null,null,null,112,null,null,null,null,null,null,null,null,null,null,null,null,null,null,null,null,null,null,112,null,null,null,null,null,null,null,null,null,null,null,null,null,null,null,null,null,null,112,null,null,null,null,null,null,null,null,null,null,null,null,null,null,null,null,null,null,112]
[null,113,null,null,null,null,null,null,null,null,null,null,null,null,null,null,null,null,null,null,113,null,null,null,null,null,null,null,null,null,null,null,null,null,null,null,null,null,null,113,null,null,null,null,null,null,null,null,null,null,null,null,null,null,null,null,null,null,113,null,null,null,null,null,null,null,null,null,null,null,null,null,null,null,null,null,null,113]
[null,114,null,null,null,null,null,null,null,null,null,null,null,null,null,null,null,null,null,null,114,null,null,null,null,null,null,null,null,null,null,null,null,null,null,null,null,null,null,114,null,null,null,null,null,null,null,null,null,null,null,null,null,null,null,null,null,null,114,null,null,null,null,null,null,null,null,null,null,null,null,null,null,null,null,null,null,114]
[null,115,null,null,null,null,null,null,null,null,null,null,null,null,null,null,null,null,null,null,115,null,null,null,null,null,null,null,null,null,null,null,null,null,null,null,null,null,null,115,null,null,null,null,null,null,null,null,null,null,null,null,null,null,null,null,null,null,115,null,null,null,null,null,null,null,null,null,null,null,null,null,null,null,null,null,null,115]
[null,116,null,null,null,null,null,null,null,null,null,null,null,null,null,null,null,null,null,null,116,null,null,null,null,null,null,null,null,null,null,null,null,null,null,null,null,null,null,116,null,null,null,null,null,null,null,null,null,null,null,null,null,null,null,null,null,null,116,null,null,null,null,null,null,null,null,null,null,null,null,null,null,null,null,null,null,116]
[null,117,null,null,null,null,null,null,null,null,null,null,null,null,null,null,null,null,null,null,117,null,null,null,null,null,null,null,null,null,null,null,null,null,null,null,null,null,null,117,null,null,null,null,null,null,null,null,null,null,null,null,null,null,null,null,null,null,117,null,null,null,null,null,null,null,null,null,null,null,null,null,null,null,null,null,null,117]
[null,118,null,null,null,null,null,null,null,null,null,null,null,null,null,null,null,null,null,null,118,null,null,null,null,null,null,null,null,null,null,null,null,null,null,null,null,null,null,118,null,null,null,null,null,null,null,null,null,null,null,null,null,null,null,null,null,null,118,null,null,null,null,null,null,null,null,null,null,null,null,null,null,null,null,null,null,118]
[null,119,null,null,null,null,null,null,null,null,null,null,null,null,null,null,null,null,null,null,119,null,null,null,null,null,null,null,null,null,null,null,null,null,null,null,null,null,null,119,null,null,null,null,null,null,null,null,null,null,null,null,null,null,null,null,null,null,119,null,null,null,null,null,null,null,null,null,null,null,null,null,null,null,null,null,null,119]
[null,120,null,null,null,null,null,null,null,null,null,null,null,null,null,null,null,null,null,null,120,null,null,null,null,null,null,null,null,null,null,null,null,null,null,null,null,null,null,120,null,null,null,null,null,null,null,null,null,null,null,null,null,null,null,null,null,null,120,null,null,null,null,null,null,null,null,null,null,null,null,null,null,null,null,null,null,120]
[null,121,null,null,null,null,null,null,null,null,null,null,null,null,null,null,null,null,null,null,121,null,null,null,null,null,null,null,null,null,null,null,null,null,null,null,null,null,null,121,null,null,null,null,null,null,null,null,null,null,null,null,null,null,null,null,null,null,121,null,null,null,null,null,null,null,null,null,null,null,null,null,null,null,null,null,null,121]
[null,122,null,null,null,null,null,null,null,null,null,null,null,null,null,null,null,null,null,null,122,null,null,null,null,null,null,null,null,null,null,null,null,null,null,null,null,null,null,122,null,null,null,null,null,null,null,null,null,null,null,null,null,null,null,null,null,null,122,null,null,null,null,null,null,null,null,null,null,null,null,null,null,null,null,null,null,122]
[null,123,null,null,null,null,null,null,null,null,null,null,null,null,null,null,null,null,null,null,123,null,null,null,null,null,null,null,null,null,null,null,null,null,null,null,null,null,null,123,null,null,null,null,null,null,null,null,null,null,null,null,null,null,null,null,null,null,123,null,null,null,null,null,null,null,null,null,null,null,null,null,null,null,null,null,null,123]
[null,124,null,null,null,null,null,null,null,null,null,null,null,null,null,null,null,null,null,null,124,null,null,null,null,null,null,null,null,null,null,null,null,null,null,null,null,null,null,124,null,null,null,null,null,null,null,null,null,null,null,null,null,null,null,null,null,null,124,null,null,null,null,null,null,null,null,null,null,null,null,null,null,null,null,null,null,124]
[null,125,null,null,null,null,null,null,null,null,null,null,null,null,null,null,null,null,null,null,125,null,null,null,null,null,null,null,null,null,null,null,null,null,null,null,null,null,null,125,null,null,null,null,null,null,null,null,null,null,null,null,null,null,null,null,null,null,125,null,null,null,null,null,null,null,null,null,null,null,null,null,null,null,null,null,null,125]
[null,126,null,null,null,null,null,null,null,null,null,null,null,null,null,null,null,null,null,null,126,null,null,null,null,null,null,null,null,null,null,null,null,null,null,null,null,null,null,126,null,null,null,null,null,null,null,null,null,null,null,null,null,null,null,null,null,null,126,null,null,null,null,null,null,null,null,null,null,null,null,null,null,null,null,null,null,126]
[null,127,null,null,null,null,null,null,null,null,null,null,null,null,null,null,null,null,null,null,127,null,null,null,null,null,null,null,null,null,null,null,null,null,null,null,null,null,null,127,null,null,null,null,null,null,null,null,null,null,null,null,null,null,null,null,null,null,127,null,null,null,null,null,null,null,null,null,null,null,null,null,null,null,null,null,null,127]
[null,128,null,null,null,null,null,null,null,null,null,null,null,null,null,null,null,null,null,null,128,null,null,null,null,null,null,null,null,null,null,null,null,null,null,null,null,null,null,128,null,null,null,null,null,null,null,null,null,null,null,null,null,null,null,null,null,null,128,null,null,null,null,null,null,null,null,null,null,null,null,null,null,null,null,null,null,128]
[null,129,null,null,null,null,null,null,null,null,null,null,null,null,null,null,null,null,null,null,129,null,null,null,null,null,null,null,null,null,null,null,null,null,null,null,null,null,null,129,null,null,null,null,null,null,null,null,null,null,null,null,null,null,null,null,null,null,129,null,null,null,null,null,null,null,null,null,null,null,null,null,null,null,null,null,null,129]
[null,130,null,null,null,null,null,null,null,null,null,null,null,null,null,null,null,null,null,null,130,null,null,null,null,null,null,null,null,null,null,null,null,null,null,null,null,null,null,130,null,null,null,null,null,null,null,null,null,null,null,null,null,null,null,null,null,null,130,null,null,null,null,null,null,null,null,null,null,null,null,null,null,null,null,null,null,130]
[null,131,null,null,null,null,null,null,null,null,null,null,null,null,null,null,null,null,null,null,131,null,null,null,null,null,null,null,null,null,null,null,null,null,null,null,null,null,null,131,null,null,null,null,null,null,null,null,null,null,null,null,null,null,null,null,null,null,131,null,null,null,null,null,null,null,null,null,null,null,null,null,null,null,null,null,null,131]
[null,132,null,null,null,null,null,null,null,null,null,null,null,null,null,null,null,null,null,null,132,null,null,null,null,null,null,null,null,null,null,null,null,null,null,null,null,null,null,132,null,null,null,null,null,null,null,null,null,null,null,null,null,null,null,null,null,null,132,null,null,null,null,null,null,null,null,null,null,null,null,null,null,null,null,null,null,132]
[null,133,null,null,null,null,null,null,null,null,null,null,null,null,null,null,null,null,null,null,133,null,null,null,null,null,null,null,null,null,null,null,null,null,null,null,null,null,null,133,null,null,null,null,null,null,null,null,null,null,null,null,null,null,null,null,null,null,133,null,null,null,null,null,null,null,null,null,null,null,null,null,null,null,null,null,null,133]
[null,134,null,null,null,null,null,null,null,null,null,null,null,null,null,null,null,null,null,null,134,null,null,null,null,null,null,null,null,null,null,null,null,null,null,null,null,null,null,134,null,null,null,null,null,null,null,null,null,null,null,null,null,null,null,null,null,null,134,null,null,null,null,null,null,null,null,null,null,null,null,null,null,null,null,null,null,134]
[null,135,null,null,null,null,null,null,null,null,null,null,null,null,null,null,null,null,null,null,135,null,null,null,null,null,null,null,null,null,null,null,null,null,null,null,null,null,null,135,null,null,null,null,null,null,null,null,null,null,null,null,null,null,null,null,null,null,135,null,null,null,null,null,null,null,null,null,null,null,null,null,null,null,null,null,null,135]
[null,136,null,null,null,null,null,null,null,null,null,null,null,null,null,null,null,null,null,null,136,null,null,null,null,null,null,null,null,null,null,null,null,null,null,null,null,null,null,136,null,null,null,null,null,null,null,null,null,null,null,null,null,null,null,null,null,null,136,null,null,null,null,null,null,null,null,null,null,null,null,null,null,null,null,null,null,136]
[null,137,null,null,null,null,null,null,null,null,null,null,null,null,null,null,null,null,null,null,137,null,null,null,null,null,null,null,null,null,null,null,null,null,null,null,null,null,null,137,null,null,null,null,null,null,null,null,null,null,null,null,null,null,null,null,null,null,137,null,null,null,null,null,null,null,null,null,null,null,null,null,null,null,null,null,null,137]
[null,138,null,null,null,null,null,null,null,null,null,null,null,null,null,null,null,null,null,null,138,null,null,null,null,null,null,null,null,null,null,null,null,null,null,null,null,null,null,138,null,null,null,null,null,null,null,null,null,null,null,null,null,null,null,null,null,null,138,null,null,null,null,null,null,null,null,null,null,null,null,null,null,null,null,null,null,138]
[null,139,null,null,null,null,null,null,null,null,null,null,null,null,null,null,null,null,null,null,139,null,null,null,null,null,null,null,null,null,null,null,null,null,null,null,null,null,null,139,null,null,null,null,null,null,null,null,null,null,null,null,null,null,null,null,null,null,139,null,null,null,null,null,null,null,null,null,null,null,null,null,null,null,null,null,null,139]
[null,140,null,null,null,null,null,null,null,null,null,null,null,null,null,null,null,null,null,null,140,null,null,null,null,null,null,null,null,null,null,null,null,null,null,null,null,null,null,140,null,null,null,null,null,null,null,null,null,null,null,null,null,null,null,null,null,null,140,null,null,null,null,null,null,null,null,null,null,null,null,null,null,null,null,null,null,140]
[null,141,null,null,null,null,null,null,null,null,null,null,null,null,null,null,null,null,null,null,141,null,null,null,null,null,null,null,null,null,null,null,null,null,null,null,null,null,null,141,null,null,null,null,null,null,null,null,null,null,null,null,null,null,null,null,null,null,141,null,null,null,null,null,null,null,null,null,null,null,null,null,null,null,null,null,null,141]
[null,142,null,null,null,null,null,null,null,null,null,null,null,null,null,null,null,null,null,null,142,null,null,null,null,null,null,null,null,null,null,null,null,null,null,null,null,null,null,142,null,null,null,null,null,null,null,null,null,null,null,null,null,null,null,null,null,null,142,null,null,null,null,null,null,null,null,null,null,null,null,null,null,null,null,null,null,142]
[null,143,null,null,null,null,null,null,null,null,null,null,null,null,null,null,null,null,null,null,143,null,null,null,null,null,null,null,null,null,null,null,null,null,null,null,null,null,null,143,null,null,null,null,null,null,null,null,null,null,null,null,null,null,null,null,null,null,143,null,null,null,null,null,null,null,null,null,null,null,null,null,null,null,null,null,null,143]
[null,144,null,null,null,null,null,null,null,null,null,null,null,null,null,null,null,null,null,null,144,null,null,null,null,null,null,null,null,null,null,null,null,null,null,null,null,null,null,144,null,null,null,null,null,null,null,null,null,null,null,null,null,null,null,null,null,null,144,null,null,null,null,null,null,null,null,null,null,null,null,null,null,null,null,null,null,144]
[null,145,null,null,null,null,null,null,null,null,null,null,null,null,null,null,null,null,null,null,145,null,null,null,null,null,null,null,null,null,null,null,null,null,null,null,null,null,null,145,null,null,null,null,null,null,null,null,null,null,null,null,null,null,null,null,null,null,145,null,null,null,null,null,null,null,null,null,null,null,null,null,null,null,null,null,null,145]
[null,146,null,null,null,null,null,null,null,null,null,null,null,null,null,null,null,null,null,null,146,null,null,null,null,null,null,null,null,null,null,null,null,null,null,null,null,null,null,146,null,null,null,null,null,null,null,null,null,null,null,null,null,null,null,null,null,null,146,null,null,null,null,null,null,null,null,null,null,null,null,null,null,null,null,null,null,146]
[null,147,null,null,null,null,null,null,null,null,null,null,null,null,null,null,null,null,null,null,147,null,null,null,null,null,null,null,null,null,null,null,null,null,null,null,null,null,null,147,null,null,null,null,null,null,null,null,null,null,null,null,null,null,null,null,null,null,147,null,null,null,null,null,null,null,null,null,null,null,null,null,null,null,null,null,null,147]
[null,148,null,null,null,null,null,null,null,null,null,null,null,null,null,null,null,null,null,null,148,null,null,null,null,null,null,null,null,null,null,null,null,null,null,null,null,null,null,148,null,null,null,null,null,null,null,null,null,null,null,null,null,null,null,null,null,null,148,null,null,null,null,null,null,null,null,null,null,null,null,null,null,null,null,null,null,148]
[null,149,null,null,null,null,null,null,null,null,null,null,null,null,null,null,null,null,null,null,149,null,null,null,null,null,null,null,null,null,null,null,null,null,null,null,null,null,null,149,null,null,null,null,null,null,null,null,null,null,null,null,null,null,null,null,null,null,149,null,null,null,null,null,null,null,null,null,null,null,null,null,null,null,null,null,null,149]
[null,150,null,null,null,null,null,null,null,null,null,null,null,null,null,null,null,null,null,null,150,null,null,null,null,null,null,null,null,null,null,null,null,null,null,null,null,null,null,150,null,null,null,null,null,null,null,null,null,null,null,null,null,null,null,null,null,null,150,null,null,null,null,null,null,null,null,null,null,null,null,null,null,null,null,null,null,150]
[null,151,null,null,null,null,null,null,null,null,null,null,null,null,null,null,null,null,null,null,151,null,null,null,null,null,null,null,null,null,null,null,null,null,null,null,null,null,null,151,null,null,null,null,null,null,null,null,null,null,null,null,null,null,null,null,null,null,151,null,null,null,null,null,null,null,null,null,null,null,null,null,null,null,null,null,null,151]
[null,152,null,null,null,null,null,null,null,null,null,null,null,null,null,null,null,null,null,null,152,null,null,null,null,null,null,null,null,null,null,null,null,null,null,null,null,null,null,152,null,null,null,null,null,null,null,null,null,null,null,null,null,null,null,null,null,null,152,null,null,null,null,null,null,null,null,null,null,null,null,null,null,null,null,null,null,152]
[null,153,null,null,null,null,null,null,null,null,null,null,null,null,null,null,null,null,null,null,153,null,null,null,null,null,null,null,null,null,null,null,null,null,null,null,null,null,null,153,null,null,null,null,null,null,null,null,null,null,null,null,null,null,null,null,null,null,153,null,null,null,null,null,null,null,null,null,null,null,null,null,null,null,null,null,null,153]
[null,154,null,null,null,null,null,null,null,null,null,null,null,null,null,null,null,null,null,null,154,null,null,null,null,null,null,null,null,null,null,null,null,null,null,null,null,null,null,154,null,null,null,null,null,null,null,null,null,null,null,null,null,null,null,null,null,null,154,null,null,null,null,null,null,null,null,null,null,null,null,null,null,null,null,null,null,154]
[null,155,null,null,null,null,null,null,null,null,null,null,null,null,null,null,null,null,null,null,155,null,null,null,null,null,null,null,null,null,null,null,null,null,null,null,null,null,null,155,null,null,null,null,null,null,null,null,null,null,null,null,null,null,null,null,null,null,155,null,null,null,null,null,null,null,null,null,null,null,null,null,null,null,null,null,null,155]
[null,156,null,null,null,null,null,null,null,null,null,null,null,null,null,null,null,null,null,null,156,null,null,null,null,null,null,null,null,null,null,null,null,null,null,null,null,null,null,156,null,null,null,null,null,null,null,null,null,null,null,null,null,null,null,null,null,null,156,null,null,null,null,null,null,null,null,null,null,null,null,null,null,null,null,null,null,156]
[null,157,null,null,null,null,null,null,null,null,null,null,null,null,null,null,null,null,null,null,157,null,null,null,null,null,null,null,null,null,null,null,null,null,null,null,null,null,null,157,null,null,null,null,null,null,null,null,null,null,null,null,null,null,null,null,null,null,157,null,null,null,null,null,null,null,null,null,null,null,null,null,null,null,null,null,null,157]
[null,158,null,null,null,null,null,null,null,null,null,null,null,null,null,null,null,null,null,null,158,null,null,null,null,null,null,null,null,null,null,null,null,null,null,null,null,null,null,158,null,null,null,null,null,null,null,null,null,null,null,null,null,null,null,null,null,null,158,null,null,null,null,null,null,null,null,null,null,null,null,null,null,null,null,null,null,158]
[null,159,null,null,null,null,null,null,null,null,null,null,null,null,null,null,null,null,null,null,159,null,null,null,null,null,null,null,null,null,null,null,null,null,null,null,null,null,null,159,null,null,null,null,null,null,null,null,null,null,null,null,null,null,null,null,null,null,159,null,null,null,null,null,null,null,null,null,null,null,null,null,null,null,null,null,null,159]
[null,160,null,null,null,null,null,null,null,null,null,null,null,null,null,null,null,null,null,null,160,null,null,null,null,null,null,null,null,null,null,null,null,null,null,null,null,null,null,160,null,null,null,null,null,null,null,null,null,null,null,null,null,null,null,null,null,null,160,null,null,null,null,null,null,null,null,null,null,null,null,null,null,null,null,null,null,160]
[null,161,null,null,null,null,null,null,null,null,null,null,null,null,null,null,null,null,null,null,161,null,null,null,null,null,null,null,null,null,null,null,null,null,null,null,null,null,null,161,null,null,null,null,null,null,null,null,null,null,null,null,null,null,null,null,null,null,161,null,null,null,null,null,null,null,null,null,null,null,null,null,null,null,null,null,null,161]
[null,162,null,null,null,null,null,null,null,null,null,null,null,null,null,null,null,null,null,null,162,null,null,null,null,null,null,null,null,null,null,null,null,null,null,null,null,null,null,162,null,null,null,null,null,null,null,null,null,null,null,null,null,null,null,null,null,null,162,null,null,null,null,null,null,null,null,null,null,null,null,null,null,null,null,null,null,162]
[null,163,null,null,null,null,null,null,null,null,null,null,null,null,null,null,null,null,null,null,163,null,null,null,null,null,null,null,null,null,null,null,null,null,null,null,null,null,null,163,null,null,null,null,null,null,null,null,null,null,null,null,null,null,null,null,null,null,163,null,null,null,null,null,null,null,null,null,null,null,null,null,null,null,null,null,null,163]
[null,164,null,null,null,null,null,null,null,null,null,null,null,null,null,null,null,null,null,null,164,null,null,null,null,null,null,null,null,null,null,null,null,null,null,null,null,null,null,164,null,null,null,null,null,null,null,null,null,null,null,null,null,null,null,null,null,null,164,null,null,null,null,null,null,null,null,null,null,null,null,null,null,null,null,null,null,164]
[null,165,null,null,null,null,null,null,null,null,null,null,null,null,null,null,null,null,null,null,165,null,null,null,null,null,null,null,null,null,null,null,null,null,null,null,null,null,null,165,null,null,null,null,null,null,null,null,null,null,null,null,null,null,null,null,null,null,165,null,null,null,null,null,null,null,null,null,null,null,null,null,null,null,null,null,null,165]
[null,166,null,null,null,null,null,null,null,null,null,null,null,null,null,null,null,null,null,null,166,null,null,null,null,null,null,null,null,null,null,null,null,null,null,null,null,null,null,166,null,null,null,null,null,null,null,null,null,null,null,null,null,null,null,null,null,null,166,null,null,null,null,null,null,null,null,null,null,null,null,null,null,null,null,null,null,166]
[null,167,null,null,null,null,null,null,null,null,null,null,null,null,null,null,null,null,null,null,167,null,null,null,null,null,null,null,null,null,null,null,null,null,null,null,null,null,null,167,null,null,null,null,null,null,null,null,null,null,null,null,null,null,null,null,null,null,167,null,null,null,null,null,null,null,null,null,null,null,null,null,null,null,null,null,null,167]
[null,168,null,null,null,null,null,null,null,null,null,null,null,null,null,null,null,null,null,null,168,null,null,null,null,null,null,null,null,null,null,null,null,null,null,null,null,null,null,168,null,null,null,null,null,null,null,null,null,null,null,null,null,null,null,null,null,null,168,null,null,null,null,null,null,null,null,null,null,null,null,null,null,null,null,null,null,168]
[null,169,null,null,null,null,null,null,null,null,null,null,null,null,null,null,null,null,null,null,169,null,null,null,null,null,null,null,null,null,null,null,null,null,null,null,null,null,null,169,null,null,null,null,null,null,null,null,null,null,null,null,null,null,null,null,null,null,169,null,null,null,null,null,null,null,null,null,null,null,null,null,null,null,null,null,null,169]
[null,170,null,null,null,null,null,null,null,null,null,null,null,null,null,null,null,null,null,null,170,null,null,null,null,null,null,null,null,null,null,null,null,null,null,null,null,null,null,170,null,null,null,null,null,null,null,null,null,null,null,null,null,null,null,null,null,null,170,null,null,null,null,null,null,null,null,null,null,null,null,null,null,null,null,null,null,170]
[null,171,null,null,null,null,null,null,null,null,null,null,null,null,null,null,null,null,null,null,171,null,null,null,null,null,null,null,null,null,null,null,null,null,null,null,null,null,null,171,null,null,null,null,null,null,null,null,null,null,null,null,null,null,null,null,null,null,171,null,null,null,null,null,null,null,null,null,null,null,null,null,null,null,null,null,null,171]
[null,172,null,null,null,null,null,null,null,null,null,null,null,null,null,null,null,null,null,null,172,null,null,null,null,null,null,null,null,null,null,null,null,null,null,null,null,null,null,172,null,null,null,null,null,null,null,null,null,null,null,null,null,null,null,null,null,null,172,null,null,null,null,null,null,null,null,null,null,null,null,null,null,null,null,null,null,172]
[null,173,null,null,null,null,null,null,null,null,null,null,null,null,null,null,null,null,null,null,173,null,null,null,null,null,null,null,null,null,null,null,null,null,null,null,null,null,null,173,null,null,null,null,null,null,null,null,null,null,null,null,null,null,null,null,null,null,173,null,null,null,null,null,null,null,null,null,null,null,null,null,null,null,null,null,null,173]
[null,174,null,null,null,null,null,null,null,null,null,null,null,null,null,null,null,null,null,null,174,null,null,null,null,null,null,null,null,null,null,null,null,null,null,null,null,null,null,174,null,null,null,null,null,null,null,null,null,null,null,null,null,null,null,null,null,null,174,null,null,null,null,null,null,null,null,null,null,null,null,null,null,null,null,null,null,174]
[null,175,null,null,null,null,null,null,null,null,null,null,null,null,null,null,null,null,null,null,175,null,null,null,null,null,null,null,null,null,null,null,null,null,null,null,null,null,null,175,null,null,null,null,null,null,null,null,null,null,null,null,null,null,null,null,null,null,175,null,null,null,null,null,null,null,null,null,null,null,null,null,null,null,null,null,null,175]
[null,176,null,null,null,null,null,null,null,null,null,null,null,null,null,null,null,null,null,null,176,null,null,null,null,null,null,null,null,null,null,null,null,null,null,null,null,null,null,176,null,null,null,null,null,null,null,null,null,null,null,null,null,null,null,null,null,null,176,null,null,null,null,null,null,null,null,null,null,null,null,null,null,null,null,null,null,176]
[null,177,null,null,null,null,null,null,null,null,null,null,null,null,null,null,null,null,null,null,177,null,null,null,null,null,null,null,null,null,null,null,null,null,null,null,null,null,null,177,null,null,null,null,null,null,null,null,null,null,null,null,null,null,null,null,null,null,177,null,null,null,null,null,null,null,null,null,null,null,null,null,null,null,null,null,null,177]
[null,178,null,null,null,null,null,null,null,null,null,null,null,null,null,null,null,null,null,null,178,null,null,null,null,null,null,null,null,null,null,null,null,null,null,null,null,null,null,178,null,null,null,null,null,null,null,null,null,null,null,null,null,null,null,null,null,null,178,null,null,null,null,null,null,null,null,null,null,null,null,null,null,null,null,null,null,178]
[null,179,null,null,null,null,null,null,null,null,null,null,null,null,null,null,null,null,null,null,179,null,null,null,null,null,null,null,null,null,null,null,null,null,null,null,null,null,null,179,null,null,null,null,null,null,null,null,null,null,null,null,null,null,null,null,null,null,179,null,null,null,null,null,null,null,null,null,null,null,null,null,null,null,null,null,null,179]
[null,180,null,null,null,null,null,null,null,null,null,null,null,null,null,null,null,null,null,null,180,null,null,null,null,null,null,null,null,null,null,null,null,null,null,null,null,null,null,180,null,null,null,null,null,null,null,null,null,null,null,null,null,null,null,null,null,null,180,null,null,null,null,null,null,null,null,null,null,null,null,null,null,null,null,null,null,180]
[null,181,null,null,null,null,null,null,null,null,null,null,null,null,null,null,null,null,null,null,181,null,null,null,null,null,null,null,null,null,null,null,null,null,null,null,null,null,null,181,null,null,null,null,null,null,null,null,null,null,null,null,null,null,null,null,null,null,181,null,null,null,null,null,null,null,null,null,null,null,null,null,null,null,null,null,null,181]
[null,182,null,null,null,null,null,null,null,null,null,null,null,null,null,null,null,null,null,null,182,null,null,null,null,null,null,null,null,null,null,null,null,null,null,null,null,null,null,182,null,null,null,null,null,null,null,null,null,null,null,null,null,null,null,null,null,null,182,null,null,null,null,null,null,null,null,null,null,null,null,null,null,null,null,null,null,182]
[null,183,null,null,null,null,null,null,null,null,null,null,null,null,null,null,null,null,null,null,183,null,null,null,null,null,null,null,null,null,null,null,null,null,null,null,null,null,null,183,null,null,null,null,null,null,null,null,null,null,null,null,null,null,null,null,null,null,183,null,null,null,null,null,null,null,null,null,null,null,null,null,null,null,null,null,null,183]
[null,184,null,null,null,null,null,null,null,null,null,null,null,null,null,null,null,null,null,null,184,null,null,null,null,null,null,null,null,null,null,null,null,null,null,null,null,null,null,184,null,null,null,null,null,null,null,null,null,null,null,null,null,null,null,null,null,null,184,null,null,null,null,null,null,null,null,null,null,null,null,null,null,null,null,null,null,184]
[null,185,null,null,null,null,null,null,null,null,null,null,null,null,null,null,null,null,null,null,185,null,null,null,null,null,null,null,null,null,null,null,null,null,null,null,null,null,null,185,null,null,null,null,null,null,null,null,null,null,null,null,null,null,null,null,null,null,185,null,null,null,null,null,null,null,null,null,null,null,null,null,null,null,null,null,null,185]
[null,186,null,null,null,null,null,null,null,null,null,null,null,null,null,null,null,null,null,null,186,null,null,null,null,null,null,null,null,null,null,null,null,null,null,null,null,null,null,186,null,null,null,null,null,null,null,null,null,null,null,null,null,null,null,null,null,null,186,null,null,null,null,null,null,null,null,null,null,null,null,null,null,null,null,null,null,186]
[null,187,null,null,null,null,null,null,null,null,null,null,null,null,null,null,null,null,null,null,187,null,null,null,null,null,null,null,null,null,null,null,null,null,null,null,null,null,null,187,null,null,null,null,null,null,null,null,null,null,null,null,null,null,null,null,null,null,187,null,null,null,null,null,null,null,null,null,null,null,null,null,null,null,null,null,null,187]
[null,188,null,null,null,null,null,null,null,null,null,null,null,null,null,null,null,null,null,null,188,null,null,null,null,null,null,null,null,null,null,null,null,null,null,null,null,null,null,188,null,null,null,null,null,null,null,null,null,null,null,null,null,null,null,null,null,null,188,null,null,null,null,null,null,null,null,null,null,null,null,null,null,null,null,null,null,188]
[null,189,null,null,null,null,null,null,null,null,null,null,null,null,null,null,null,null,null,null,189,null,null,null,null,null,null,null,null,null,null,null,null,null,null,null,null,null,null,189,null,null,null,null,null,null,null,null,null,null,null,null,null,null,null,null,null,null,189,null,null,null,null,null,null,null,null,null,null,null,null,null,null,null,null,null,null,189]
[null,190,null,null,null,null,null,null,null,null,null,null,null,null,null,null,null,null,null,null,190,null,null,null,null,null,null,null,null,null,null,null,null,null,null,null,null,null,null,190,null,null,null,null,null,null,null,null,null,null,null,null,null,null,null,null,null,null,190,null,null,null,null,null,null,null,null,null,null,null,null,null,null,null,null,null,null,190]
[null,191,null,null,null,null,null,null,null,null,null,null,null,null,null,null,null,null,null,null,191,null,null,null,null,null,null,null,null,null,null,null,null,null,null,null,null,null,null,191,null,null,null,null,null,null,null,null,null,null,null,null,null,null,null,null,null,null,191,null,null,null,null,null,null,null,null,null,null,null,null,null,null,null,null,null,null,191]
[null,192,null,null,null,null,null,null,null,null,null,null,null,null,null,null,null,null,null,null,192,null,null,null,null,null,null,null,null,null,null,null,null,null,null,null,null,null,null,192,null,null,null,null,null,null,null,null,null,null,null,null,null,null,null,null,null,null,192,null,null,null,null,null,null,null,null,null,null,null,null,null,null,null,null,null,null,192]
[null,193,null,null,null,null,null,null,null,null,null,null,null,null,null,null,null,null,null,null,193,null,null,null,null,null,null,null,null,null,null,null,null,null,null,null,null,null,null,193,null,null,null,null,null,null,null,null,null,null,null,null,null,null,null,null,null,null,193,null,null,null,null,null,null,null,null,null,null,null,null,null,null,null,null,null,null,193]
[null,194,null,null,null,null,null,null,null,null,null,null,null,null,null,null,null,null,null,null,194,null,null,null,null,null,null,null,null,null,null,null,null,null,null,null,null,null,null,194,null,null,null,null,null,null,null,null,null,null,null,null,null,null,null,null,null,null,194,null,null,null,null,null,null,null,null,null,null,null,null,null,null,null,null,null,null,194]
[null,195,null,null,null,null,null,null,null,null,null,null,null,null,null,null,null,null,null,null,195,null,null,null,null,null,null,null,null,null,null,null,null,null,null,null,null,null,null,195,null,null,null,null,null,null,null,null,null,null,null,null,null,null,null,null,null,null,195,null,null,null,null,null,null,null,null,null,null,null,null,null,null,null,null,null,null,195]
[null,196,null,null,null,null,null,null,null,null,null,null,null,null,null,null,null,null,null,null,196,null,null,null,null,null,null,null,null,null,null,null,null,null,null,null,null,null,null,196,null,null,null,null,null,null,null,null,null,null,null,null,null,null,null,null,null,null,196,null,null,null,null,null,null,null,null,null,null,null,null,null,null,null,null,null,null,196]
[null,197,null,null,null,null,null,null,null,null,null,null,null,null,null,null,null,null,null,null,197,null,null,null,null,null,null,null,null,null,null,null,null,null,null,null,null,null,null,197,null,null,null,null,null,null,null,null,null,null,null,null,null,null,null,null,null,null,197,null,null,null,null,null,null,null,null,null,null,null,null,null,null,null,null,null,null,197]
[null,198,null,null,null,null,null,null,null,null,null,null,null,null,null,null,null,null,null,null,198,null,null,null,null,null,null,null,null,null,null,null,null,null,null,null,null,null,null,198,null,null,null,null,null,null,null,null,null,null,null,null,null,null,null,null,null,null,198,null,null,null,null,null,null,null,null,null,null,null,null,null,null,null,null,null,null,198]
[null,199,null,null,null,null,null,null,null,null,null,null,null,null,null,null,null,null,null,null,199,null,null,null,null,null,null,null,null,null,null,null,null,null,null,null,null,null,null,199,null,null,null,null,null,null,null,null,null,null,null,null,null,null,null,null,null,null,199,null,null,null,null,null,null,null,null,null,null,null,null,null,null,null,null,null,null,199]
[null,200,null,null,null,null,null,null,null,null,null,null,null,null,null,null,null,null,null,null,200,null,null,null,null,null,null,null,null,null,null,null,null,null,null,null,null,null,null,200,null,null,null,null,null,null,null,null,null,null,null,null,null,null,null,null,null,null,200,null,null,null,null,null,null,null,null,null,null,null,null,null,null,null,null,null,null,200]
[null,201,null,null,null,null,null,null,null,null,null,null,null,null,null,null,null,null,null,null,201,null,null,null,null,null,null,null,null,null,null,null,null,null,null,null,null,null,null,201,null,null,null,null,null,null,null,null,null,null,null,null,null,null,null,null,null,null,201,null,null,null,null,null,null,null,null,null,null,null,null,null,null,null,null,null,null,201]
[null,202,null,null,null,null,null,null,null,null,null,null,null,null,null,null,null,null,null,null,202,null,null,null,null,null,null,null,null,null,null,null,null,null,null,null,null,null,null,202,null,null,null,null,null,null,null,null,null,null,null,null,null,null,null,null,null,null,202,null,null,null,null,null,null,null,null,null,null,null,null,null,null,null,null,null,null,202]
[null,203,null,null,null,null,null,null,null,null,null,null,null,null,null,null,null,null,null,null,203,null,null,null,null,null,null,null,null,null,null,null,null,null,null,null,null,null,null,203,null,null,null,null,null,null,null,null,null,null,null,null,null,null,null,null,null,null,203,null,null,null,null,null,null,null,null,null,null,null,null,null,null,null,null,null,null,203]
[null,204,null,null,null,null,null,null,null,null,null,null,null,null,null,null,null,null,null,null,204,null,null,null,null,null,null,null,null,null,null,null,null,null,null,null,null,null,null,204,null,null,null,null,null,null,null,null,null,null,null,null,null,null,null,null,null,null,204,null,null,null,null,null,null,null,null,null,null,null,null,null,null,null,null,null,null,204]
[null,205,null,null,null,null,null,null,null,null,null,null,null,null,null,null,null,null,null,null,205,null,null,null,null,null,null,null,null,null,null,null,null,null,null,null,null,null,null,205,null,null,null,null,null,null,null,null,null,null,null,null,null,null,null,null,null,null,205,null,null,null,null,null,null,null,null,null,null,null,null,null,null,null,null,null,null,205]
[null,206,null,null,null,null,null,null,null,null,null,null,null,null,null,null,null,null,null,null,206,null,null,null,null,null,null,null,null,null,null,null,null,null,null,null,null,null,null,206,null,null,null,null,null,null,null,null,null,null,null,null,null,null,null,null,null,null,206,null,null,null,null,null,null,null,null,null,null,null,null,null,null,null,null,null,null,206]
[null,207,null,null,null,null,null,null,null,null,null,null,null,null,null,null,null,null,null,null,207,null,null,null,null,null,null,null,null,null,null,null,null,null,null,null,null,null,null,207,null,null,null,null,null,null,null,null,null,null,null,null,null,null,null,null,null,null,207,null,null,null,null,null,null,null,null,null,null,null,null,null,null,null,null,null,null,207]
[null,208,null,null,null,null,null,null,null,null,null,null,null,null,null,null,null,null,null,null,208,null,null,null,null,null,null,null,null,null,null,null,null,null,null,null,null,null,null,208,null,null,null,null,null,null,null,null,null,null,null,null,null,null,null,null,null,null,208,null,null,null,null,null,null,null,null,null,null,null,null,null,null,null,null,null,null,208]
[null,209,null,null,null,null,null,null,null,null,null,null,null,null,null,null,null,null,null,null,209,null,null,null,null,null,null,null,null,null,null,null,null,null,null,null,null,null,null,209,null,null,null,null,null,null,null,null,null,null,null,null,null,null,null,null,null,null,209,null,null,null,null,null,null,null,null,null,null,null,null,null,null,null,null,null,null,209]
[null,210,null,null,null,null,null,null,null,null,null,null,null,null,null,null,null,null,null,null,210,null,null,null,null,null,null,null,null,null,null,null,null,null,null,null,null,null,null,210,null,null,null,null,null,null,null,null,null,null,null,null,null,null,null,null,null,null,210,null,null,null,null,null,null,null,null,null,null,null,null,null,null,null,null,null,null,210]
[null,211,null,null,null,null,null,null,null,null,null,null,null,null,null,null,null,null,null,null,211,null,null,null,null,null,null,null,null,null,null,null,null,null,null,null,null,null,null,211,null,null,null,null,null,null,null,null,null,null,null,null,null,null,null,null,null,null,211,null,null,null,null,null,null,null,null,null,null,null,null,null,null,null,null,null,null,211]
[null,212,null,null,null,null,null,null,null,null,null,null,null,null,null,null,null,null,null,null,212,null,null,null,null,null,null,null,null,null,null,null,null,null,null,null,null,null,null,212,null,null,null,null,null,null,null,null,null,null,null,null,null,null,null,null,null,null,212,null,null,null,null,null,null,null,null,null,null,null,null,null,null,null,null,null,null,212]
[null,213,null,null,null,null,null,null,null,null,null,null,null,null,null,null,null,null,null,null,213,null,null,null,null,null,null,null,null,null,null,null,null,null,null,null,null,null,null,213,null,null,null,null,null,null,null,null,null,null,null,null,null,null,null,null,null,null,213,null,null,null,null,null,null,null,null,null,null,null,null,null,null,null,null,null,null,213]
[null,214,null,null,null,null,null,null,null,null,null,null,null,null,null,null,null,null,null,null,214,null,null,null,null,null,null,null,null,null,null,null,null,null,null,null,null,null,null,214,null,null,null,null,null,null,null,null,null,null,null,null,null,null,null,null,null,null,214,null,null,null,null,null,null,null,null,null,null,null,null,null,null,null,null,null,null,214]
[null,215,null,null,null,null,null,null,null,null,null,null,null,null,null,null,null,null,null,null,215,null,null,null,null,null,null,null,null,null,null,null,null,null,null,null,null,null,null,215,null,null,null,null,null,null,null,null,null,null,null,null,null,null,null,null,null,null,215,null,null,null,null,null,null,null,null,null,null,null,null,null,null,null,null,null,null,215]
[null,216,null,null,null,null,null,null,null,null,null,null,null,null,null,null,null,null,null,null,216,null,null,null,null,null,null,null,null,null,null,null,null,null,null,null,null,null,null,216,null,null,null,null,null,null,null,null,null,null,null,null,null,null,null,null,null,null,216,null,null,null,null,null,null,null,null,null,null,null,null,null,null,null,null,null,null,216]
[null,217,null,null,null,null,null,null,null,null,null,null,null,null,null,null,null,null,null,null,217,null,null,null,null,null,null,null,null,null,null,null,null,null,null,null,null,null,null,217,null,null,null,null,null,null,null,null,null,null,null,null,null,null,null,null,null,null,217,null,null,null,null,null,null,null,null,null,null,null,null,null,null,null,null,null,null,217]
[null,218,null,null,null,null,null,null,null,null,null,null,null,null,null,null,null,null,null,null,218,null,null,null,null,null,null,null,null,null,null,null,null,null,null,null,null,null,null,218,null,null,null,null,null,null,null,null,null,null,null,null,null,null,null,null,null,null,218,null,null,null,null,null,null,null,null,null,null,null,null,null,null,null,null,null,null,218]
[null,219,null,null,null,null,null,null,null,null,null,null,null,null,null,null,null,null,null,null,219,null,null,null,null,null,null,null,null,null,null,null,null,null,null,null,null,null,null,219,null,null,null,null,null,null,null,null,null,null,null,null,null,null,null,null,null,null,219,null,null,null,null,null,null,null,null,null,null,null,null,null,null,null,null,null,null,219]
[null,220,null,null,null,null,null,null,null,null,null,null,null,null,null,null,null,null,null,null,220,null,null,null,null,null,null,null,null,null,null,null,null,null,null,null,null,null,null,220,null,null,null,null,null,null,null,null,null,null,null,null,null,null,null,null,null,null,220,null,null,null,null,null,null,null,null,null,null,null,null,null,null,null,null,null,null,220]
[null,221,null,null,null,null,null,null,null,null,null,null,null,null,null,null,null,null,null,null,221,null,null,null,null,null,null,null,null,null,null,null,null,null,null,null,null,null,null,221,null,null,null,null,null,null,null,null,null,null,null,null,null,null,null,null,null,null,221,null,null,null,null,null,null,null,null,null,null,null,null,null,null,null,null,null,null,221]
[null,222,null,null,null,null,null,null,null,null,null,null,null,null,null,null,null,null,null,null,222,null,null,null,null,null,null,null,null,null,null,null,null,null,null,null,null,null,null,222,null,null,null,null,null,null,null,null,null,null,null,null,null,null,null,null,null,null,222,null,null,null,null,null,null,null,null,null,null,null,null,null,null,null,null,null,null,222]
[null,223,null,null,null,null,null,null,null,null,null,null,null,null,null,null,null,null,null,null,223,null,null,null,null,null,null,null,null,null,null,null,null,null,null,null,null,null,null,223,null,null,null,null,null,null,null,null,null,null,null,null,null,null,null,null,null,null,223,null,null,null,null,null,null,null,null,null,null,null,null,null,null,null,null,null,null,223]
[null,224,null,null,null,null,null,null,null,null,null,null,null,null,null,null,null,null,null,null,224,null,null,null,null,null,null,null,null,null,null,null,null,null,null,null,null,null,null,224,null,null,null,null,null,null,null,null,null,null,null,null,null,null,null,null,null,null,224,null,null,null,null,null,null,null,null,null,null,null,null,null,null,null,null,null,null,224]
[null,225,null,null,null,null,null,null,null,null,null,null,null,null,null,null,null,null,null,null,225,null,null,null,null,null,null,null,null,null,null,null,null,null,null,null,null,null,null,225,null,null,null,null,null,null,null,null,null,null,null,null,null,null,null,null,null,null,225,null,null,null,null,null,null,null,null,null,null,null,null,null,null,null,null,null,null,225]
[null,226,null,null,null,null,null,null,null,null,null,null,null,null,null,null,null,null,null,null,226,null,null,null,null,null,null,null,null,null,null,null,null,null,null,null,null,null,null,226,null,null,null,null,null,null,null,null,null,null,null,null,null,null,null,null,null,null,226,null,null,null,null,null,null,null,null,null,null,null,null,null,null,null,null,null,null,226]
[null,227,null,null,null,null,null,null,null,null,null,null,null,null,null,null,null,null,null,null,227,null,null,null,null,null,null,null,null,null,null,null,null,null,null,null,null,null,null,227,null,null,null,null,null,null,null,null,null,null,null,null,null,null,null,null,null,null,227,null,null,null,null,null,null,null,null,null,null,null,null,null,null,null,null,null,null,227]
[null,228,null,null,null,null,null,null,null,null,null,null,null,null,null,null,null,null,null,null,228,null,null,null,null,null,null,null,null,null,null,null,null,null,null,null,null,null,null,228,null,null,null,null,null,null,null,null,null,null,null,null,null,null,null,null,null,null,228,null,null,null,null,null,null,null,null,null,null,null,null,null,null,null,null,null,null,228]
[null,229,null,null,null,null,null,null,null,null,null,null,null,null,null,null,null,null,null,null,229,null,null,null,null,null,null,null,null,null,null,null,null,null,null,null,null,null,null,229,null,null,null,null,null,null,null,null,null,null,null,null,null,null,null,null,null,null,229,null,null,null,null,null,null,null,null,null,null,null,null,null,null,null,null,null,null,229]
[null,230,null,null,null,null,null,null,null,null,null,null,null,null,null,null,null,null,null,null,230,null,null,null,null,null,null,null,null,null,null,null,null,null,null,null,null,null,null,230,null,null,null,null,null,null,null,null,null,null,null,null,null,null,null,null,null,null,230,null,null,null,null,null,null,null,null,null,null,null,null,null,null,null,null,null,null,230]
[null,231,null,null,null,null,null,null,null,null,null,null,null,null,null,null,null,null,null,null,231,null,null,null,null,null,null,null,null,null,null,null,null,null,null,null,null,null,null,231,null,null,null,null,null,null,null,null,null,null,null,null,null,null,null,null,null,null,231,null,null,null,null,null,null,null,null,null,null,null,null,null,null,null,null,null,null,231]
[null,232,null,null,null,null,null,null,null,null,null,null,null,null,null,null,null,null,null,null,232,null,null,null,null,null,null,null,null,null,null,null,null,null,null,null,null,null,null,232,null,null,null,null,null,null,null,null,null,null,null,null,null,null,null,null,null,null,232,null,null,null,null,null,null,null,null,null,null,null,null,null,null,null,null,null,null,232]
[null,233,null,null,null,null,null,null,null,null,null,null,null,null,null,null,null,null,null,null,233,null,null,null,null,null,null,null,null,null,null,null,null,null,null,null,null,null,null,233,null,null,null,null,null,null,null,null,null,null,null,null,null,null,null,null,null,null,233,null,null,null,null,null,null,null,null,null,null,null,null,null,null,null,null,null,null,233]
[null,234,null,null,null,null,null,null,null,null,null,null,null,null,null,null,null,null,null,null,234,null,null,null,null,null,null,null,null,null,null,null,null,null,null,null,null,null,null,234,null,null,null,null,null,null,null,null,null,null,null,null,null,null,null,null,null,null,234,null,null,null,null,null,null,null,null,null,null,null,null,null,null,null,null,null,null,234]
[null,235,null,null,null,null,null,null,null,null,null,null,null,null,null,null,null,null,null,null,235,null,null,null,null,null,null,null,null,null,null,null,null,null,null,null,null,null,null,235,null,null,null,null,null,null,null,null,null,null,null,null,null,null,null,null,null,null,235,null,null,null,null,null,null,null,null,null,null,null,null,null,null,null,null,null,null,235]
[null,236,null,null,null,null,null,null,null,null,null,null,null,null,null,null,null,null,null,null,236,null,null,null,null,null,null,null,null,null,null,null,null,null,null,null,null,null,null,236,null,null,null,null,null,null,null,null,null,null,null,null,null,null,null,null,null,null,236,null,null,null,null,null,null,null,null,null,null,null,null,null,null,null,null,null,null,236]
[null,237,null,null,null,null,null,null,null,null,null,null,null,null,null,null,null,null,null,null,237,null,null,null,null,null,null,null,null,null,null,null,null,null,null,null,null,null,null,237,null,null,null,null,null,null,null,null,null,null,null,null,null,null,null,null,null,null,237,null,null,null,null,null,null,null,null,null,null,null,null,null,null,null,null,null,null,237]
[null,238,null,null,null,null,null,null,null,null,null,null,null,null,null,null,null,null,null,null,238,null,null,null,null,null,null,null,null,null,null,null,null,null,null,null,null,null,null,238,null,null,null,null,null,null,null,null,null,null,null,null,null,null,null,null,null,null,238,null,null,null,null,null,null,null,null,null,null,null,null,null,null,null,null,null,null,238]
[null,239,null,null,null,null,null,null,null,null,null,null,null,null,null,null,null,null,null,null,239,null,null,null,null,null,null,null,null,null,null,null,null,null,null,null,null,null,null,239,null,null,null,null,null,null,null,null,null,null,null,null,null,null,null,null,null,null,239,null,null,null,null,null,null,null,null,null,null,null,null,null,null,null,null,null,null,239]
[null,240,null,null,null,null,null,null,null,null,null,null,null,null,null,null,null,null,null,null,240,null,null,null,null,null,null,null,null,null,null,null,null,null,null,null,null,null,null,240,null,null,null,null,null,null,null,null,null,null,null,null,null,null,null,null,null,null,240,null,null,null,null,null,null,null,null,null,null,null,null,null,null,null,null,null,null,240]
[null,241,null,null,null,null,null,null,null,null,null,null,null,null,null,null,null,null,null,null,241,null,null,null,null,null,null,null,null,null,null,null,null,null,null,null,null,null,null,241,null,null,null,null,null,null,null,null,null,null,null,null,null,null,null,null,null,null,241,null,null,null,null,null,null,null,null,null,null,null,null,null,null,null,null,null,null,241]
[null,242,null,null,null,null,null,null,null,null,null,null,null,null,null,null,null,null,null,null,242,null,null,null,null,null,null,null,null,null,null,null,null,null,null,null,null,null,null,242,null,null,null,null,null,null,null,null,null,null,null,null,null,null,null,null,null,null,242,null,null,null,null,null,null,null,null,null,null,null,null,null,null,null,null,null,null,242]
[null,243,null,null,null,null,null,null,null,null,null,null,null,null,null,null,null,null,null,null,243,null,null,null,null,null,null,null,null,null,null,null,null,null,null,null,null,null,null,243,null,null,null,null,null,null,null,null,null,null,null,null,null,null,null,null,null,null,243,null,null,null,null,null,null,null,null,null,null,null,null,null,null,null,null,null,null,243]
[null,244,null,null,null,null,null,null,null,null,null,null,null,null,null,null,null,null,null,null,244,null,null,null,null,null,null,null,null,null,null,null,null,null,null,null,null,null,null,244,null,null,null,null,null,null,null,null,null,null,null,null,null,null,null,null,null,null,244,null,null,null,null,null,null,null,null,null,null,null,null,null,null,null,null,null,null,244]
[null,245,null,null,null,null,null,null,null,null,null,null,null,null,null,null,null,null,null,null,245,null,null,null,null,null,null,null,null,null,null,null,null,null,null,null,null,null,null,245,null,null,null,null,null,null,null,null,null,null,null,null,null,null,null,null,null,null,245,null,null,null,null,null,null,null,null,null,null,null,null,null,null,null,null,null,null,245]
[null,246,null,null,null,null,null,null,null,null,null,null,null,null,null,null,null,null,null,null,246,null,null,null,null,null,null,null,null,null,null,null,null,null,null,null,null,null,null,246,null,null,null,null,null,null,null,null,null,null,null,null,null,null,null,null,null,null,246,null,null,null,null,null,null,null,null,null,null,null,null,null,null,null,null,null,null,246]
[null,247,null,null,null,null,null,null,null,null,null,null,null,null,null,null,null,null,null,null,247,null,null,null,null,null,null,null,null,null,null,null,null,null,null,null,null,null,null,247,null,null,null,null,null,null,null,null,null,null,null,null,null,null,null,null,null,null,247,null,null,null,null,null,null,null,null,null,null,null,null,null,null,null,null,null,null,247]
[null,248,null,null,null,null,null,null,null,null,null,null,null,null,null,null,null,null,null,null,248,null,null,null,null,null,null,null,null,null,null,null,null,null,null,null,null,null,null,248,null,null,null,null,null,null,null,null,null,null,null,null,null,null,null,null,null,null,248,null,null,null,null,null,null,null,null,null,null,null,null,null,null,null,null,null,null,248]
[null,249,null,null,null,null,null,null,null,null,null,null,null,null,null,null,null,null,null,null,249,null,null,null,null,null,null,null,null,null,null,null,null,null,null,null,null,null,null,249,null,null,null,null,null,null,null,null,null,null,null,null,null,null,null,null,null,null,249,null,null,null,null,null,null,null,null,null,null,null,null,null,null,null,null,null,null,249]
[null,250,null,null,null,null,null,null,null,null,null,null,null,null,null,null,null,null,null,null,250,null,null,null,null,null,null,null,null,null,null,null,null,null,null,null,null,null,null,250,null,null,null,null,null,null,null,null,null,null,null,null,null,null,null,null,null,null,250,null,null,null,null,null,null,null,null,null,null,null,null,null,null,null,null,null,null,250]
[null,251,null,null,null,null,null,null,null,null,null,null,null,null,null,null,null,null,null,null,251,null,null,null,null,null,null,null,null,null,null,null,null,null,null,null,null,null,null,251,null,null,null,null,null,null,null,null,null,null,null,null,null,null,null,null,null,null,251,null,null,null,null,null,null,null,null,null,null,null,null,null,null,null,null,null,null,251]
[null,252,null,null,null,null,null,null,null,null,null,null,null,null,null,null,null,null,null,null,252,null,null,null,null,null,null,null,null,null,null,null,null,null,null,null,null,null,null,252,null,null,null,null,null,null,null,null,null,null,null,null,null,null,null,null,null,null,252,null,null,null,null,null,null,null,null,null,null,null,null,null,null,null,null,null,null,252]
[null,253,null,null,null,null,null,null,null,null,null,null,null,null,null,null,null,null,null,null,253,null,null,null,null,null,null,null,null,null,null,null,null,null,null,null,null,null,null,253,null,null,null,null,null,null,null,null,null,null,null,null,null,null,null,null,null,null,253,null,null,null,null,null,null,null,null,null,null,null,null,null,null,null,null,null,null,253]
[null,254,null,null,null,null,null,null,null,null,null,null,null,null,null,null,null,null,null,null,254,null,null,null,null,null,null,null,null,null,null,null,null,null,null,null,null,null,null,254,null,null,null,null,null,null,null,null,null,null,null,null,null,null,null,null,null,null,254,null,null,null,null,null,null,null,null,null,null,null,null,null,null,null,null,null,null,254]
[null,255,null,null,null,null,null,null,null,null,null,null,null,null,null,null,null,null,null,null,255,null,null,null,null,null,null,null,null,null,null,null,null,null,null,null,null,null,null,255,null,null,null,null,null,null,null,null,null,null,null,null,null,null,null,null,null,null,255,null,null,null,null,null,null,null,null,null,null,null,null,null,null,null,null,null,null,255]
[null,256,null,null,null,null,null,null,null,null,null,null,null,null,null,null,null,null,null,null,256,null,null,null,null,null,null,null,null,null,null,null,null,null,null,null,null,null,null,256,null,null,null,null,null,null,null,null,null,null,null,null,null,null,null,null,null,null,256,null,null,null,null,null,null,null,null,null,null,null,null,null,null,null,null,null,null,256]
[null,257,null,null,null,null,null,null,null,null,null,null,null,null,null,null,null,null,null,null,257,null,null,null,null,null,null,null,null,null,null,null,null,null,null,null,null,null,null,257,null,null,null,null,null,null,null,null,null,null,null,null,null,null,null,null,null,null,257,null,null,null,null,null,null,null,null,null,null,null,null,null,null,null,null,null,null,257]
[null,258,null,null,null,null,null,null,null,null,null,null,null,null,null,null,null,null,null,null,258,null,null,null,null,null,null,null,null,null,null,null,null,null,null,null,null,null,null,258,null,null,null,null,null,null,null,null,null,null,null,null,null,null,null,null,null,null,258,null,null,null,null,null,null,null,null,null,null,null,null,null,null,null,null,null,null,258]
[null,259,null,null,null,null,null,null,null,null,null,null,null,null,null,null,null,null,null,null,259,null,null,null,null,null,null,null,null,null,null,null,null,null,null,null,null,null,null,259,null,null,null,null,null,null,null,null,null,null,null,null,null,null,null,null,null,null,259,null,null,null,null,null,null,null,null,null,null,null,null,null,null,null,null,null,null,259]
[null,260,null,null,null,null,null,null,null,null,null,null,null,null,null,null,null,null,null,null,260,null,null,null,null,null,null,null,null,null,null,null,null,null,null,null,null,null,null,260,null,null,null,null,null,null,null,null,null,null,null,null,null,null,null,null,null,null,260,null,null,null,null,null,null,null,null,null,null,null,null,null,null,null,null,null,null,260]
[null,261,null,null,null,null,null,null,null,null,null,null,null,null,null,null,null,null,null,null,261,null,null,null,null,null,null,null,null,null,null,null,null,null,null,null,null,null,null,261,null,null,null,null,null,null,null,null,null,null,null,null,null,null,null,null,null,null,261,null,null,null,null,null,null,null,null,null,null,null,null,null,null,null,null,null,null,261]
[null,262,null,null,null,null,null,null,null,null,null,null,null,null,null,null,null,null,null,null,262,null,null,null,null,null,null,null,null,null,null,null,null,null,null,null,null,null,null,262,null,null,null,null,null,null,null,null,null,null,null,null,null,null,null,null,null,null,262,null,null,null,null,null,null,null,null,null,null,null,null,null,null,null,null,null,null,262]
[null,263,null,null,null,null,null,null,null,null,null,null,null,null,null,null,null,null,null,null,263,null,null,null,null,null,null,null,null,null,null,null,null,null,null,null,null,null,null,263,null,null,null,null,null,null,null,null,null,null,null,null,null,null,null,null,null,null,263,null,null,null,null,null,null,null,null,null,null,null,null,null,null,null,null,null,null,263]
[null,264,null,null,null,null,null,null,null,null,null,null,null,null,null,null,null,null,null,null,264,null,null,null,null,null,null,null,null,null,null,null,null,null,null,null,null,null,null,264,null,null,null,null,null,null,null,null,null,null,null,null,null,null,null,null,null,null,264,null,null,null,null,null,null,null,null,null,null,null,null,null,null,null,null,null,null,264]
[null,265,null,null,null,null,null,null,null,null,null,null,null,null,null,null,null,null,null,null,265,null,null,null,null,null,null,null,null,null,null,null,null,null,null,null,null,null,null,265,null,null,null,null,null,null,null,null,null,null,null,null,null,null,null,null,null,null,265,null,null,null,null,null,null,null,null,null,null,null,null,null,null,null,null,null,null,265]
[null,266,null,null,null,null,null,null,null,null,null,null,null,null,null,null,null,null,null,null,266,null,null,null,null,null,null,null,null,null,null,null,null,null,null,null,null,null,null,266,null,null,null,null,null,null,null,null,null,null,null,null,null,null,null,null,null,null,266,null,null,null,null,null,null,null,null,null,null,null,null,null,null,null,null,null,null,266]
[null,267,null,null,null,null,null,null,null,null,null,null,null,null,null,null,null,null,null,null,267,null,null,null,null,null,null,null,null,null,null,null,null,null,null,null,null,null,null,267,null,null,null,null,null,null,null,null,null,null,null,null,null,null,null,null,null,null,267,null,null,null,null,null,null,null,null,null,null,null,null,null,null,null,null,null,null,267]
[null,268,null,null,null,null,null,null,null,null,null,null,null,null,null,null,null,null,null,null,268,null,null,null,null,null,null,null,null,null,null,null,null,null,null,null,null,null,null,268,null,null,null,null,null,null,null,null,null,null,null,null,null,null,null,null,null,null,268,null,null,null,null,null,null,null,null,null,null,null,null,null,null,null,null,null,null,268]
[null,269,null,null,null,null,null,null,null,null,null,null,null,null,null,null,null,null,null,null,269,null,null,null,null,null,null,null,null,null,null,null,null,null,null,null,null,null,null,269,null,null,null,null,null,null,null,null,null,null,null,null,null,null,null,null,null,null,269,null,null,null,null,null,null,null,null,null,null,null,null,null,null,null,null,null,null,269]
[null,270,null,null,null,null,null,null,null,null,null,null,null,null,null,null,null,null,null,null,270,null,null,null,null,null,null,null,null,null,null,null,null,null,null,null,null,null,null,270,null,null,null,null,null,null,null,null,null,null,null,null,null,null,null,null,null,null,270,null,null,null,null,null,null,null,null,null,null,null,null,null,null,null,null,null,null,270]
[null,271,null,null,null,null,null,null,null,null,null,null,null,null,null,null,null,null,null,null,271,null,null,null,null,null,null,null,null,null,null,null,null,null,null,null,null,null,null,271,null,null,null,null,null,null,null,null,null,null,null,null,null,null,null,null,null,null,271,null,null,null,null,null,null,null,null,null,null,null,null,null,null,null,null,null,null,271]
[null,272,null,null,null,null,null,null,null,null,null,null,null,null,null,null,null,null,null,null,272,null,null,null,null,null,null,null,null,null,null,null,null,null,null,null,null,null,null,272,null,null,null,null,null,null,null,null,null,null,null,null,null,null,null,null,null,null,272,null,null,null,null,null,null,null,null,null,null,null,null,null,null,null,null,null,null,272]
[null,273,null,null,null,null,null,null,null,null,null,null,null,null,null,null,null,null,null,null,273,null,null,null,null,null,null,null,null,null,null,null,null,null,null,null,null,null,null,273,null,null,null,null,null,null,null,null,null,null,null,null,null,null,null,null,null,null,273,null,null,null,null,null,null,null,null,null,null,null,null,null,null,null,null,null,null,273]
[null,274,null,null,null,null,null,null,null,null,null,null,null,null,null,null,null,null,null,null,274,null,null,null,null,null,null,null,null,null,null,null,null,null,null,null,null,null,null,274,null,null,null,null,null,null,null,null,null,null,null,null,null,null,null,null,null,null,274,null,null,null,null,null,null,null,null,null,null,null,null,null,null,null,null,null,null,274]
[null,275,null,null,null,null,null,null,null,null,null,null,null,null,null,null,null,null,null,null,275,null,null,null,null,null,null,null,null,null,null,null,null,null,null,null,null,null,null,275,null,null,null,null,null,null,null,null,null,null,null,null,null,null,null,null,null,null,275,null,null,null,null,null,null,null,null,null,null,null,null,null,null,null,null,null,null,275]
[null,276,null,null,null,null,null,null,null,null,null,null,null,null,null,null,null,null,null,null,276,null,null,null,null,null,null,null,null,null,null,null,null,null,null,null,null,null,null,276,null,null,null,null,null,null,null,null,null,null,null,null,null,null,null,null,null,null,276,null,null,null,null,null,null,null,null,null,null,null,null,null,null,null,null,null,null,276]
[null,277,null,null,null,null,null,null,null,null,null,null,null,null,null,null,null,null,null,null,277,null,null,null,null,null,null,null,null,null,null,null,null,null,null,null,null,null,null,277,null,null,null,null,null,null,null,null,null,null,null,null,null,null,null,null,null,null,277,null,null,null,null,null,null,null,null,null,null,null,null,null,null,null,null,null,null,277]
[null,278,null,null,null,null,null,null,null,null,null,null,null,null,null,null,null,null,null,null,278,null,null,null,null,null,null,null,null,null,null,null,null,null,null,null,null,null,null,278,null,null,null,null,null,null,null,null,null,null,null,null,null,null,null,null,null,null,278,null,null,null,null,null,null,null,null,null,null,null,null,null,null,null,null,null,null,278]
[null,279,null,null,null,null,null,null,null,null,null,null,null,null,null,null,null,null,null,null,279,null,null,null,null,null,null,null,null,null,null,null,null,null,null,null,null,null,null,279,null,null,null,null,null,null,null,null,null,null,null,null,null,null,null,null,null,null,279,null,null,null,null,null,null,null,null,null,null,null,null,null,null,null,null,null,null,279]
[null,280,null,null,null,null,null,null,null,null,null,null,null,null,null,null,null,null,null,null,280,null,null,null,null,null,null,null,null,null,null,null,null,null,null,null,null,null,null,280,null,null,null,null,null,null,null,null,null,null,null,null,null,null,null,null,null,null,280,null,null,null,null,null,null,null,null,null,null,null,null,null,null,null,null,null,null,280]
[null,281,null,null,null,null,null,null,null,null,null,null,null,null,null,null,null,null,null,null,281,null,null,null,null,null,null,null,null,null,null,null,null,null,null,null,null,null,null,281,null,null,null,null,null,null,null,null,null,null,null,null,null,null,null,null,null,null,281,null,null,null,null,null,null,null,null,null,null,null,null,null,null,null,null,null,null,281]
[null,282,null,null,null,null,null,null,null,null,null,null,null,null,null,null,null,null,null,null,282,null,null,null,null,null,null,null,null,null,null,null,null,null,null,null,null,null,null,282,null,null,null,null,null,null,null,null,null,null,null,null,null,null,null,null,null,null,282,null,null,null,null,null,null,null,null,null,null,null,null,null,null,null,null,null,null,282]
[null,283,null,null,null,null,null,null,null,null,null,null,null,null,null,null,null,null,null,null,283,null,null,null,null,null,null,null,null,null,null,null,null,null,null,null,null,null,null,283,null,null,null,null,null,null,null,null,null,null,null,null,null,null,null,null,null,null,283,null,null,null,null,null,null,null,null,null,null,null,null,null,null,null,null,null,null,283]
[null,284,null,null,null,null,null,null,null,null,null,null,null,null,null,null,null,null,null,null,284,null,null,null,null,null,null,null,null,null,null,null,null,null,null,null,null,null,null,284,null,null,null,null,null,null,null,null,null,null,null,null,null,null,null,null,null,null,284,null,null,null,null,null,null,null,null,null,null,null,null,null,null,null,null,null,null,284]
[null,285,null,null,null,null,null,null,null,null,null,null,null,null,null,null,null,null,null,null,285,null,null,null,null,null,null,null,null,null,null,null,null,null,null,null,null,null,null,285,null,null,null,null,null,null,null,null,null,null,null,null,null,null,null,null,null,null,285,null,null,null,null,null,null,null,null,null,null,null,null,null,null,null,null,null,null,285]
[null,286,null,null,null,null,null,null,null,null,null,null,null,null,null,null,null,null,null,null,286,null,null,null,null,null,null,null,null,null,null,null,null,null,null,null,null,null,null,286,null,null,null,null,null,null,null,null,null,null,null,null,null,null,null,null,null,null,286,null,null,null,null,null,null,null,null,null,null,null,null,null,null,null,null,null,null,286]
[null,287,null,null,null,null,null,null,null,null,null,null,null,null,null,null,null,null,null,null,287,null,null,null,null,null,null,null,null,null,null,null,null,null,null,null,null,null,null,287,null,null,null,null,null,null,null,null,null,null,null,null,null,null,null,null,null,null,287,null,null,null,null,null,null,null,null,null,null,null,null,null,null,null,null,null,null,287]
[null,288,null,null,null,null,null,null,null,null,null,null,null,null,null,null,null,null,null,null,288,null,null,null,null,null,null,null,null,null,null,null,null,null,null,null,null,null,null,288,null,null,null,null,null,null,null,null,null,null,null,null,null,null,null,null,null,null,288,null,null,null,null,null,null,null,null,null,null,null,null,null,null,null,null,null,null,288]
[null,289,null,null,null,null,null,null,null,null,null,null,null,null,null,null,null,null,null,null,289,null,null,null,null,null,null,null,null,null,null,null,null,null,null,null,null,null,null,289,null,null,null,null,null,null,null,null,null,null,null,null,null,null,null,null,null,null,289,null,null,null,null,null,null,null,null,null,null,null,null,null,null,null,null,null,null,289]
[null,290,null,null,null,null,null,null,null,null,null,null,null,null,null,null,null,null,null,null,290,null,null,null,null,null,null,null,null,null,null,null,null,null,null,null,null,null,null,290,null,null,null,null,null,null,null,null,null,null,null,null,null,null,null,null,null,null,290,null,null,null,null,null,null,null,null,null,null,null,null,null,null,null,null,null,null,290]
[null,291,null,null,null,null,null,null,null,null,null,null,null,null,null,null,null,null,null,null,291,null,null,null,null,null,null,null,null,null,null,null,null,null,null,null,null,null,null,291,null,null,null,null,null,null,null,null,null,null,null,null,null,null,null,null,null,null,291,null,null,null,null,null,null,null,null,null,null,null,null,null,null,null,null,null,null,291]
[null,292,null,null,null,null,null,null,null,null,null,null,null,null,null,null,null,null,null,null,292,null,null,null,null,null,null,null,null,null,null,null,null,null,null,null,null,null,null,292,null,null,null,null,null,null,null,null,null,null,null,null,null,null,null,null,null,null,292,null,null,null,null,null,null,null,null,null,null,null,null,null,null,null,null,null,null,292]
[null,293,null,null,null,null,null,null,null,null,null,null,null,null,null,null,null,null,null,null,293,null,null,null,null,null,null,null,null,null,null,null,null,null,null,null,null,null,null,293,null,null,null,null,null,null,null,null,null,null,null,null,null,null,null,null,null,null,293,null,null,null,null,null,null,null,null,null,null,null,null,null,null,null,null,null,null,293]
[null,294,null,null,null,null,null,null,null,null,null,null,null,null,null,null,null,null,null,null,294,null,null,null,null,null,null,null,null,null,null,null,null,null,null,null,null,null,null,294,null,null,null,null,null,null,null,null,null,null,null,null,null,null,null,null,null,null,294,null,null,null,null,null,null,null,null,null,null,null,null,null,null,null,null,null,null,294]
[null,295,null,null,null,null,null,null,null,null,null,null,null,null,null,null,null,null,null,null,295,null,null,null,null,null,null,null,null,null,null,null,null,null,null,null,null,null,null,295,null,null,null,null,null,null,null,null,null,null,null,null,null,null,null,null,null,null,295,null,null,null,null,null,null,null,null,null,null,null,null,null,null,null,null,null,null,295]
[null,296,null,null,null,null,null,null,null,null,null,null,null,null,null,null,null,null,null,null,296,null,null,null,null,null,null,null,null,null,null,null,null,null,null,null,null,null,null,296,null,null,null,null,null,null,null,null,null,null,null,null,null,null,null,null,null,null,296,null,null,null,null,null,null,null,null,null,null,null,null,null,null,null,null,null,null,296]
[null,297,null,null,null,null,null,null,null,null,null,null,null,null,null,null,null,null,null,null,297,null,null,null,null,null,null,null,null,null,null,null,null,null,null,null,null,null,null,297,null,null,null,null,null,null,null,null,null,null,null,null,null,null,null,null,null,null,297,null,null,null,null,null,null,null,null,null,null,null,null,null,null,null,null,null,null,297]
[null,298,null,null,null,null,null,null,null,null,null,null,null,null,null,null,null,null,null,null,298,null,null,null,null,null,null,null,null,null,null,null,null,null,null,null,null,null,null,298,null,null,null,null,null,null,null,null,null,null,null,null,null,null,null,null,null,null,298,null,null,null,null,null,null,null,null,null,null,null,null,null,null,null,null,null,null,298]
[null,299,null,null,null,null,null,null,null,null,null,null,null,null,null,null,null,null,null,null,299,null,null,null,null,null,null,null,null,null,null,null,null,null,null,null,null,null,null,299,null,null,null,null,null,null,null,null,null,null,null,null,null,null,null,null,null,null,299,null,null,null,null,null,null,null,null,null,null,null,null,null,null,null,null,null,null,299]
[null,300,null,null,null,null,null,null,null,null,null,null,null,null,null,null,null,null,null,null,300,null,null,null,null,null,null,null,null,null,null,null,null,null,null,null,null,null,null,300,null,null,null,null,null,null,null,null,null,null,null,null,null,null,null,null,null,null,300,null,null,null,null,null,null,null,null,null,null,null,null,null,null,null,null,null,null,300]

{"sheet":"EV5.5.5 Alt. Matl - Shear","index":9,"n_rows":360,"n_cols":72,"rows_kept":360,"cut":false,"hidden":false,"merged":[[48,60,48,61],[48,38,48,40],[48,41,48,42],[48,57,48,59],[48,0,48,2],[48,3,48,4],[48,19,48,21],[48,22,48,23],[47,3,47,4],[4,0,4,18],[4,19,4,37],[47,22,47,23],[0,38,0,56],[2,41,2,47],[2,52,2,56],[47,38,47,40],[47,41,47,42],[4,38,4,56],[0,0,0,18],[2,3,2,9],[2,14,2,18],[47,0,47,2],[0,19,0,37],[51,1,51,2],[51,3,51,4],[51,22,51,23],[53,60,53,61],[51,39,51,40],[51,41,51,42],[53,38,53,40],[53,41,53,42],[53,19,53,21],[53,22,53,23],[53,0,53,2],[53,3,53,4],[51,20,51,21],[59,5,59,17],[59,24,59,36],[59,43,59,55],[59,62,59,74],[0,57,0,75],[2,60,2,66],[2,71,2,75],[47,57,47,59],[47,60,47,61],[4,57,4,75],[51,58,51,59],[51,60,51,61],[53,57,53,59],[2,22,2,28],[2,33,2,37],[47,19,47,21]]}
[" ASES - EV5.5.5 SHEAR TEST RESULTS - FLOOR",null,null,null,null,null,null,null,null,null,null,null,null,null,null,null,null,null,null," ASES - EV5.5.5 SHEAR TEST RESULTS - EXT WALLS",null,null,null,null,null,null,null,null,null,null,null,null,null,null,null,null,null,null," ASES - EV5.5.5 SHEAR TEST RESULTS - INT WALLS",null,null,null,null,null,null,null,null,null,null,null,null,null,null,null,null,null,null,"ASES - EV5.5.5 SHEAR TEST RESULTS - COVER"]
[]
["University Name",null,null,{"$f":"IF('Cover Sheet'!$D$15>0,'Cover Sheet'!$D$15,\"\")","v":""},null,null,null,null,null,null,"Car No.(s) & Event(s)",null,null,null,{"$f":"IF('Cover Sheet'!O15>0,'Cover Sheet'!O15,\"\")","v":""},null,null,null,null,"University Name",null,null,{"$f":"IF('Cover Sheet'!$D$15>0,'Cover Sheet'!$D$15,\"\")","v":""},null,null,null,null,null,null,"Car No.(s) & Event(s)",null,null,null,{"$f":"IF('Cover Sheet'!O15>0,'Cover Sheet'!O15,\"\")","v":""},null,null,null,null,"University Name",null,null,{"$f":"IF('Cover Sheet'!$D$15>0,'Cover Sheet'!$D$15,\"\")","v":""},null,null,null,null,null,null,"Car No.(s) & Event(s)",null,null,null,{"$f":"IF('Cover Sheet'!O15>0,'Cover Sheet'!O15,\"\")","v":""},null,null,null,null,"University Name",null,null,{"$f":"IF('Cover Sheet'!$D$15>0,'Cover Sheet'!$D$15,\"\")","v":""},null,null,null,null,null,null,"Car No.(s) & Event(s)",null,null,null,{"$f":"IF('Cover Sheet'!O15>0,'Cover Sheet'!O15,\"\")","v":""}]
[]
[]
[]
[null,"Paste images of test setup here",null,null,null,null,null,null,null,null,null,null,null,null,null,null,null,null,null,null,"Paste images of test setup here",null,null,null,null,null,null,null,null,null,null,null,null,null,null,null,null,null,null,"Paste images of test setup here",null,null,null,null,null,null,null,null,null,null,null,null,null,null,null,null,null,null,"Paste images of test setup here"]
[]
[null,"All test specimens must be presented at Tech. Inspection",null,null,null,null,null,null,null,null,null,null,null,null,null,null,null,null,null,null,"All test specimens must be presented at Tech. Inspection",null,null,null,null,null,null,null,null,null,null,null,null,null,null,null,null,null,null,"All test specimens must be presented at Tech. Inspection",null,null,null,null,null,null,null,null,null,null,null,null,null,null,null,null,null,null,"All test specimens must be presented at Tech. Inspection"]
[]
[null,"Please note the changed rules: T3.5.1 & T3.5.4 wrt. identifiable pictures!",null,null,null,null,null,null,null,null,null,null,null,null,null,null,null,null,null,null,"Please note the changed rules: T3.5.1 & T3.5.4 wrt. identifiable pictures!",null,null,null,null,null,null,null,null,null,null,null,null,null,null,null,null,null,null,"Please note the changed rules: T3.5.1 & T3.5.4 wrt. identifiable pictures!",null,null,null,null,null,null,null,null,null,null,null,null,null,null,null,null,null,null,"Please note the changed rules: T3.5.1 & T3.5.4 wrt. identifiable pictures!"]
[]
[]
[]
[]
[]
[]
[]
["Figure 1: Test setup - Laminate Panel [Floor]",null,null,null,null,null,null,null,null,null,null,null,null,null,null,null,null,null,null,"Figure 1: Test setup - Laminate Panel [External Walls]",null,null,null,null,null,null,null,null,null,null,null,null,null,null,null,null,null,null,"Figure 1: Test setup - Laminate Panel [Internal Walls]",null,null,null,null,null,null,null,null,null,null,null,null,null,null,null,null,null,null,"Figure 1: Test setup - Laminate Panel [Cover]"]
[]
[]
[]
[null,"Paste load deflection curve here",null,null,null,null,null,null,null,null,null,null,null,null,null,null,null,null,null,null,"Paste load deflection curve here",null,null,null,null,null,null,null,null,null,null,null,null,null,null,null,null,null,null,"Paste load deflection curve here",null,null,null,null,null,null,null,null,null,null,null,null,null,null,null,null,null,null,"Paste load deflection curve here"]
[]
[null,"Logged data must be appended in the section below",null,null,null,null,null,null,null,null,null,null,null,null,null,null,null,null,null,null,"Logged data must be appended in the section below",null,null,null,null,null,null,null,null,null,null,null,null,null,null,null,null,null,null,"Logged data must be appended in the section below",null,null,null,null,null,null,null,null,null,null,null,null,null,null,null,null,null,null,"Logged data must be appended in the section below"]
[]
[null,"Please note the change rule T3.5.3 wrt. a.o. only thicker cores may be tested!",null,null,null,null,null,null,null,null,null,null,null,null,null,null,null,null,null,null,"Please note the change rule T3.5.3 wrt. a.o. only thicker cores may be tested!",null,null,null,null,null,null,null,null,null,null,null,null,null,null,null,null,null,null,"Please note the change rule T3.5.3 wrt. a.o. only thicker cores may be tested!",null,null,null,null,null,null,null,null,null,null,null,null,null,null,null,null,null,null,"Please note the change rule T3.5.3 wrt. a.o. only thicker cores may be tested!"]
[]
[]
[]
[]
[]
[]
[]
[]
[]
[]
[]
[]
[]
[]
[]
[]
[]
["Figure 2: Load Deflection Curve",null,null,null,null,null,null,null,null,null,null,null,null,null,null,null,null,null,null,"Figure 2: Load Deflection Curve",null,null,null,null,null,null,null,null,null,null,null,null,null,null,null,null,null,null,"Figure 2: Load Deflection Curve",null,null,null,null,null,null,null,null,null,null,null,null,null,null,null,null,null,null,"Figure 2: Load Deflection Curve"]
[]
["Enter values for force at first and second peak (see guidance notes)",null,null,null,null,null,null,null,null,null,null,null,null,null,null,null,null,null,null,"Enter values for force at first and second peak (see guidance notes)",null,null,null,null,null,null,null,null,null,null,null,null,null,null,null,null,null,null,"Enter values for force at first and second peak (see guidance notes)",null,null,null,null,null,null,null,null,null,null,null,null,null,null,null,null,null,null,"Enter values for force at first and second peak (see guidance notes)"]
["(N)",null,null,0,null,"(Determines Shear Strength)",null,null,null,null,null,null,null,null,null,null,null,null,null,"(N)",null,null,0,null,"(Determines Shear Strength)",null,null,null,null,null,null,null,null,null,null,null,null,null,"(N)",null,null,0,null,"(Determines Shear Strength)",null,null,null,null,null,null,null,null,null,null,null,null,null,"(N)",null,null,0,null,"(Determines Shear Strength)"]
["Higher Peak (N)",null,null,0,null,null,null,null,null,null,null,null,null,null,null,null,null,null,null,"Higher Peak (N)",null,null,0,null,null,null,null,null,null,null,null,null,null,null,null,null,null,null,"Higher Peak (N)",null,null,0,null,null,null,null,null,null,null,null,null,null,null,null,null,null,null,"Higher Peak (N)",null,null,0]
[]
["Enter details of skin thickness",null,null,null,null,null,null,null,null,null,null,null,null,null,null,null,null,null,null,"Enter details of skin thickness",null,null,null,null,null,null,null,null,null,null,null,null,null,null,null,null,null,null,"Enter details of skin thickness",null,null,null,null,null,null,null,null,null,null,null,null,null,null,null,null,null,null,"Enter details of skin thickness"]
[null,"t (mm)",null,{"$f":"'EV5.5.5 Alt. Matl - 3pt Bending'!C56+'EV5.5.5 Alt. Matl - 3pt Bending'!C57","v":2},null,{"$f":"IF(_xlfn.ISFORMULA(D52),\"\",\"Please add explanation, for deviation from sum of skin thicknesses.\")","v":""},null,null,null,null,null,null,null,null,null,null,null,null,null,null,"t (mm)",null,{"$f":"'EV5.5.5 Alt. Matl - 3pt Bending'!V56+'EV5.5.5 Alt. Matl - 3pt Bending'!V57","v":2},null,{"$f":"IF(_xlfn.ISFORMULA(W52),\"\",\"Please add explanation, for deviation from sum of skin thicknesses.\")","v":""},null,null,null,null,null,null,null,null,null,null,null,null,null,null,"t (mm)",null,{"$f":"'EV5.5.5 Alt. Matl - 3pt Bending'!AO56+'EV5.5.5 Alt. Matl - 3pt Bending'!AO57","v":2},null,{"$f":"IF(_xlfn.ISFORMULA(AP52),\"\",\"Please add explanation, for deviation from sum of skin thicknesses.\")","v":""},null,null,null,null,null,null,null,null,null,null,null,null,null,null,"t (mm)",null,{"$f":"'EV5.5.5 Alt. Matl - 3pt Bending'!BH56+'EV5.5.5 Alt. Matl - 3pt Bending'!BH57","v":2},null,{"$f":"IF(_xlfn.ISFORMULA(BI52),\"\",\"Please add explanation, for deviation from sum of skin thicknesses.\")","v":""}]
[]
["σshear (Mpa)",null,null,{"$f":"IF(D52>0,D48/(PI()*25*D52),0)","v":0},null,null,null,null,null,null,null,null,"Link to GUIDANCE NOTES",null,null,null,null,null,null,"σshear (Mpa)",null,null,{"$f":"IF(W52>0,W48/(PI()*25*W52),0)","v":0},null,null,null,null,null,null,null,null,null,null,null,null,null,null,null,"σshear (Mpa)",null,null,{"$f":"IF(AP52>0,AP48/(PI()*25*AP52),0)","v":0},null,null,null,null,null,null,null,null,null,null,null,null,null,null,null,"σshear (Mpa)",null,null,{"$f":"IF(BI52>0,BI48/(PI()*25*BI52),0)","v":0}]
[]
["Paste in logged data from test below (no pictures of data):",null,null,null,null,null,null,null,null,null,null,null,null,null,null,null,null,null,null,"Paste in logged data from test below (no pictures of data):",null,null,null,null,null,null,null,null,null,null,null,null,null,null,null,null,null,null,"Paste in logged data from test below (no pictures of data):",null,null,null,null,null,null,null,null,null,null,null,null,null,null,null,null,null,null,"Paste in logged data from test below (no pictures of data):"]
["The given units are mandatory. Paste as values with correct decimal separator.",null,null,null,null,null,null,null,null,null,null,null,null,null,null,null,null,null,null,"The given units are mandatory. Paste as values with correct decimal separator.",null,null,null,null,null,null,null,null,null,null,null,null,null,null,null,null,null,null,"The given units are mandatory. Paste as values with correct decimal separator.",null,null,null,null,null,null,null,null,null,null,null,null,null,null,null,null,null,null,"The given units are mandatory. Paste as values with correct decimal separator."]
["If there are more than 300 datapoints, you must resample the data at a lower frequency.",null,null,null,null,null,null,null,null,null,null,null,null,null,null,null,null,null,null,"If there are more than 300 datapoints, you must resample the data at a lower frequency.",null,null,null,null,null,null,null,null,null,null,null,null,null,null,null,null,null,null,"If there are more than 300 datapoints, you must resample the data at a lower frequency.",null,null,null,null,null,null,null,null,null,null,null,null,null,null,null,null,null,null,"If there are more than 300 datapoints, you must resample the data at a lower frequency."]
[]
[null,null,"F \n(kN)","s (mm)",null,"Picture of measured testpiece thickness",null,null,null,null,null,null,null,null,null,null,null,null,null,null,null,"F \n(kN)","s (mm)",null,"Picture of measured testpiece thickness",null,null,null,null,null,null,null,null,null,null,null,null,null,null,null,"F \n(kN)","s (mm)",null,"Picture of measured testpiece thickness",null,null,null,null,null,null,null,null,null,null,null,null,null,null,null,"F \n(kN)","s (mm)",null,"Picture of measured testpiece thickness"]
[null,1,null,null,null,null,null,null,null,null,null,null,null,null,null,null,null,null,null,null,1,null,null,null,null,null,null,null,null,null,null,null,null,null,null,null,null,null,null,1,null,null,null,null,null,null,null,null,null,null,null,null,null,null,null,null,null,null,1]
[null,2,null,null,null,null,null,null,null,null,null,null,null,null,null,null,null,null,null,null,2,null,null,null,null,null,null,null,null,null,null,null,null,null,null,null,null,null,null,2,null,null,null,null,null,null,null,null,null,null,null,null,null,null,null,null,null,null,2]
[null,3,null,null,null,"Paste image of measured testpieve between an accurate measuring device,",null,null,null,null,null,null,null,null,null,null,null,null,null,null,3,null,null,null,"Paste image of measured testpieve between an accurate measuring device,",null,null,null,null,null,null,null,null,null,null,null,null,null,null,3,null,null,null,"Paste image of measured testpieve between an accurate measuring device,",null,null,null,null,null,null,null,null,null,null,null,null,null,null,3,null,null,null,"Paste image of measured testpieve between an accurate measuring device,"]
[null,4,null,null,null,"with clearly redable measurment",null,null,null,null,null,null,null,null,null,null,null,null,null,null,4,null,null,null,"with clearly redable measurment",null,null,null,null,null,null,null,null,null,null,null,null,null,null,4,null,null,null,"with clearly redable measurment",null,null,null,null,null,null,null,null,null,null,null,null,null,null,4,null,null,null,"with clearly redable measurment"]
[null,5,null,null,null,null,null,null,null,null,null,null,null,null,null,null,null,null,null,null,5,null,null,null,null,null,null,null,null,null,null,null,null,null,null,null,null,null,null,5,null,null,null,null,null,null,null,null,null,null,null,null,null,null,null,null,null,null,5]
[null,6,null,null,null,null,null,null,null,null,null,null,null,null,null,null,null,null,null,null,6,null,null,null,null,null,null,null,null,null,null,null,null,null,null,null,null,null,null,6,null,null,null,null,null,null,null,null,null,null,null,null,null,null,null,null,null,null,6]
[null,7,null,null,null,null,null,null,null,null,null,null,null,null,null,null,null,null,null,null,7,null,null,null,null,null,null,null,null,null,null,null,null,null,null,null,null,null,null,7,null,null,null,null,null,null,null,null,null,null,null,null,null,null,null,null,null,null,7]
[null,8,null,null,null,null,null,null,null,null,null,null,null,null,null,null,null,null,null,null,8,null,null,null,null,null,null,null,null,null,null,null,null,null,null,null,null,null,null,8,null,null,null,null,null,null,null,null,null,null,null,null,null,null,null,null,null,null,8]
[null,9,null,null,null,null,null,null,null,null,null,null,null,null,null,null,null,null,null,null,9,null,null,null,null,null,null,null,null,null,null,null,null,null,null,null,null,null,null,9,null,null,null,null,null,null,null,null,null,null,null,null,null,null,null,null,null,null,9]
[null,10,null,null,null,null,null,null,null,null,null,null,null,null,null,null,null,null,null,null,10,null,null,null,null,null,null,null,null,null,null,null,null,null,null,null,null,null,null,10,null,null,null,null,null,null,null,null,null,null,null,null,null,null,null,null,null,null,10]
[null,11,null,null,null,null,null,null,null,null,null,null,null,null,null,null,null,null,null,null,11,null,null,null,null,null,null,null,null,null,null,null,null,null,null,null,null,null,null,11,null,null,null,null,null,null,null,null,null,null,null,null,null,null,null,null,null,null,11]
[null,12,null,null,null,null,null,null,null,null,null,null,null,null,null,null,null,null,null,null,12,null,null,null,null,null,null,null,null,null,null,null,null,null,null,null,null,null,null,12,null,null,null,null,null,null,null,null,null,null,null,null,null,null,null,null,null,null,12]
[null,13,null,null,null,null,null,null,null,null,null,null,null,null,null,null,null,null,null,null,13,null,null,null,null,null,null,null,null,null,null,null,null,null,null,null,null,null,null,13,null,null,null,null,null,null,null,null,null,null,null,null,null,null,null,null,null,null,13]
[null,14,null,null,null,null,null,null,null,null,null,null,null,null,null,null,null,null,null,null,14,null,null,null,null,null,null,null,null,null,null,null,null,null,null,null,null,null,null,14,null,null,null,null,null,null,null,null,null,null,null,null,null,null,null,null,null,null,14]
[null,15,null,null,null,null,null,null,null,null,null,null,null,null,null,null,null,null,null,null,15,null,null,null,null,null,null,null,null,null,null,null,null,null,null,null,null,null,null,15,null,null,null,null,null,null,null,null,null,null,null,null,null,null,null,null,null,null,15]
[null,16,null,null,null,null,null,null,null,null,null,null,null,null,null,null,null,null,null,null,16,null,null,null,null,null,null,null,null,null,null,null,null,null,null,null,null,null,null,16,null,null,null,null,null,null,null,null,null,null,null,null,null,null,null,null,null,null,16]
[null,17,null,null,null,null,null,null,null,null,null,null,null,null,null,null,null,null,null,null,17,null,null,null,null,null,null,null,null,null,null,null,null,null,null,null,null,null,null,17,null,null,null,null,null,null,null,null,null,null,null,null,null,null,null,null,null,null,17]
[null,18,null,null,null,null,null,null,null,null,null,null,null,null,null,null,null,null,null,null,18,null,null,null,null,null,null,null,null,null,null,null,null,null,null,null,null,null,null,18,null,null,null,null,null,null,null,null,null,null,null,null,null,null,null,null,null,null,18]
[null,19,null,null,null,null,null,null,null,null,null,null,null,null,null,null,null,null,null,null,19,null,null,null,null,null,null,null,null,null,null,null,null,null,null,null,null,null,null,19,null,null,null,null,null,null,null,null,null,null,null,null,null,null,null,null,null,null,19]
[null,20,null,null,null,null,null,null,null,null,null,null,null,null,null,null,null,null,null,null,20,null,null,null,null,null,null,null,null,null,null,null,null,null,null,null,null,null,null,20,null,null,null,null,null,null,null,null,null,null,null,null,null,null,null,null,null,null,20]
[null,21,null,null,null,null,null,null,null,null,null,null,null,null,null,null,null,null,null,null,21,null,null,null,null,null,null,null,null,null,null,null,null,null,null,null,null,null,null,21,null,null,null,null,null,null,null,null,null,null,null,null,null,null,null,null,null,null,21]
[null,22,null,null,null,null,null,null,null,null,null,null,null,null,null,null,null,null,null,null,22,null,null,null,null,null,null,null,null,null,null,null,null,null,null,null,null,null,null,22,null,null,null,null,null,null,null,null,null,null,null,null,null,null,null,null,null,null,22]
[null,23,null,null,null,null,null,null,null,null,null,null,null,null,null,null,null,null,null,null,23,null,null,null,null,null,null,null,null,null,null,null,null,null,null,null,null,null,null,23,null,null,null,null,null,null,null,null,null,null,null,null,null,null,null,null,null,null,23]
[null,24,null,null,null,null,null,null,null,null,null,null,null,null,null,null,null,null,null,null,24,null,null,null,null,null,null,null,null,null,null,null,null,null,null,null,null,null,null,24,null,null,null,null,null,null,null,null,null,null,null,null,null,null,null,null,null,null,24]
[null,25,null,null,null,null,null,null,null,null,null,null,null,null,null,null,null,null,null,null,25,null,null,null,null,null,null,null,null,null,null,null,null,null,null,null,null,null,null,25,null,null,null,null,null,null,null,null,null,null,null,null,null,null,null,null,null,null,25]
[null,26,null,null,null,null,null,null,null,null,null,null,null,null,null,null,null,null,null,null,26,null,null,null,null,null,null,null,null,null,null,null,null,null,null,null,null,null,null,26,null,null,null,null,null,null,null,null,null,null,null,null,null,null,null,null,null,null,26]
[null,27,null,null,null,null,null,null,null,null,null,null,null,null,null,null,null,null,null,null,27,null,null,null,null,null,null,null,null,null,null,null,null,null,null,null,null,null,null,27,null,null,null,null,null,null,null,null,null,null,null,null,null,null,null,null,null,null,27]
[null,28,null,null,null,null,null,null,null,null,null,null,null,null,null,null,null,null,null,null,28,null,null,null,null,null,null,null,null,null,null,null,null,null,null,null,null,null,null,28,null,null,null,null,null,null,null,null,null,null,null,null,null,null,null,null,null,null,28]
[null,29,null,null,null,null,null,null,null,null,null,null,null,null,null,null,null,null,null,null,29,null,null,null,null,null,null,null,null,null,null,null,null,null,null,null,null,null,null,29,null,null,null,null,null,null,null,null,null,null,null,null,null,null,null,null,null,null,29]
[null,30,null,null,null,null,null,null,null,null,null,null,null,null,null,null,null,null,null,null,30,null,null,null,null,null,null,null,null,null,null,null,null,null,null,null,null,null,null,30,null,null,null,null,null,null,null,null,null,null,null,null,null,null,null,null,null,null,30]
[null,31,null,null,null,null,null,null,null,null,null,null,null,null,null,null,null,null,null,null,31,null,null,null,null,null,null,null,null,null,null,null,null,null,null,null,null,null,null,31,null,null,null,null,null,null,null,null,null,null,null,null,null,null,null,null,null,null,31]
[null,32,null,null,null,null,null,null,null,null,null,null,null,null,null,null,null,null,null,null,32,null,null,null,null,null,null,null,null,null,null,null,null,null,null,null,null,null,null,32,null,null,null,null,null,null,null,null,null,null,null,null,null,null,null,null,null,null,32]
[null,33,null,null,null,null,null,null,null,null,null,null,null,null,null,null,null,null,null,null,33,null,null,null,null,null,null,null,null,null,null,null,null,null,null,null,null,null,null,33,null,null,null,null,null,null,null,null,null,null,null,null,null,null,null,null,null,null,33]
[null,34,null,null,null,null,null,null,null,null,null,null,null,null,null,null,null,null,null,null,34,null,null,null,null,null,null,null,null,null,null,null,null,null,null,null,null,null,null,34,null,null,null,null,null,null,null,null,null,null,null,null,null,null,null,null,null,null,34]
[null,35,null,null,null,null,null,null,null,null,null,null,null,null,null,null,null,null,null,null,35,null,null,null,null,null,null,null,null,null,null,null,null,null,null,null,null,null,null,35,null,null,null,null,null,null,null,null,null,null,null,null,null,null,null,null,null,null,35]
[null,36,null,null,null,null,null,null,null,null,null,null,null,null,null,null,null,null,null,null,36,null,null,null,null,null,null,null,null,null,null,null,null,null,null,null,null,null,null,36,null,null,null,null,null,null,null,null,null,null,null,null,null,null,null,null,null,null,36]
[null,37,null,null,null,null,null,null,null,null,null,null,null,null,null,null,null,null,null,null,37,null,null,null,null,null,null,null,null,null,null,null,null,null,null,null,null,null,null,37,null,null,null,null,null,null,null,null,null,null,null,null,null,null,null,null,null,null,37]
[null,38,null,null,null,null,null,null,null,null,null,null,null,null,null,null,null,null,null,null,38,null,null,null,null,null,null,null,null,null,null,null,null,null,null,null,null,null,null,38,null,null,null,null,null,null,null,null,null,null,null,null,null,null,null,null,null,null,38]
[null,39,null,null,null,null,null,null,null,null,null,null,null,null,null,null,null,null,null,null,39,null,null,null,null,null,null,null,null,null,null,null,null,null,null,null,null,null,null,39,null,null,null,null,null,null,null,null,null,null,null,null,null,null,null,null,null,null,39]
[null,40,null,null,null,null,null,null,null,null,null,null,null,null,null,null,null,null,null,null,40,null,null,null,null,null,null,null,null,null,null,null,null,null,null,null,null,null,null,40,null,null,null,null,null,null,null,null,null,null,null,null,null,null,null,null,null,null,40]
[null,41,null,null,null,null,null,null,null,null,null,null,null,null,null,null,null,null,null,null,41,null,null,null,null,null,null,null,null,null,null,null,null,null,null,null,null,null,null,41,null,null,null,null,null,null,null,null,null,null,null,null,null,null,null,null,null,null,41]
[null,42,null,null,null,null,null,null,null,null,null,null,null,null,null,null,null,null,null,null,42,null,null,null,null,null,null,null,null,null,null,null,null,null,null,null,null,null,null,42,null,null,null,null,null,null,null,null,null,null,null,null,null,null,null,null,null,null,42]
[null,43,null,null,null,null,null,null,null,null,null,null,null,null,null,null,null,null,null,null,43,null,null,null,null,null,null,null,null,null,null,null,null,null,null,null,null,null,null,43,null,null,null,null,null,null,null,null,null,null,null,null,null,null,null,null,null,null,43]
[null,44,null,null,null,null,null,null,null,null,null,null,null,null,null,null,null,null,null,null,44,null,null,null,null,null,null,null,null,null,null,null,null,null,null,null,null,null,null,44,null,null,null,null,null,null,null,null,null,null,null,null,null,null,null,null,null,null,44]
[null,45,null,null,null,null,null,null,null,null,null,null,null,null,null,null,null,null,null,null,45,null,null,null,null,null,null,null,null,null,null,null,null,null,null,null,null,null,null,45,null,null,null,null,null,null,null,null,null,null,null,null,null,null,null,null,null,null,45]
[null,46,null,null,null,null,null,null,null,null,null,null,null,null,null,null,null,null,null,null,46,null,null,null,null,null,null,null,null,null,null,null,null,null,null,null,null,null,null,46,null,null,null,null,null,null,null,null,null,null,null,null,null,null,null,null,null,null,46]
[null,47,null,null,null,null,null,null,null,null,null,null,null,null,null,null,null,null,null,null,47,null,null,null,null,null,null,null,null,null,null,null,null,null,null,null,null,null,null,47,null,null,null,null,null,null,null,null,null,null,null,null,null,null,null,null,null,null,47]
[null,48,null,null,null,null,null,null,null,null,null,null,null,null,null,null,null,null,null,null,48,null,null,null,null,null,null,null,null,null,null,null,null,null,null,null,null,null,null,48,null,null,null,null,null,null,null,null,null,null,null,null,null,null,null,null,null,null,48]
[null,49,null,null,null,null,null,null,null,null,null,null,null,null,null,null,null,null,null,null,49,null,null,null,null,null,null,null,null,null,null,null,null,null,null,null,null,null,null,49,null,null,null,null,null,null,null,null,null,null,null,null,null,null,null,null,null,null,49]
[null,50,null,null,null,null,null,null,null,null,null,null,null,null,null,null,null,null,null,null,50,null,null,null,null,null,null,null,null,null,null,null,null,null,null,null,null,null,null,50,null,null,null,null,null,null,null,null,null,null,null,null,null,null,null,null,null,null,50]
[null,51,null,null,null,null,null,null,null,null,null,null,null,null,null,null,null,null,null,null,51,null,null,null,null,null,null,null,null,null,null,null,null,null,null,null,null,null,null,51,null,null,null,null,null,null,null,null,null,null,null,null,null,null,null,null,null,null,51]
[null,52,null,null,null,null,null,null,null,null,null,null,null,null,null,null,null,null,null,null,52,null,null,null,null,null,null,null,null,null,null,null,null,null,null,null,null,null,null,52,null,null,null,null,null,null,null,null,null,null,null,null,null,null,null,null,null,null,52]
[null,53,null,null,null,null,null,null,null,null,null,null,null,null,null,null,null,null,null,null,53,null,null,null,null,null,null,null,null,null,null,null,null,null,null,null,null,null,null,53,null,null,null,null,null,null,null,null,null,null,null,null,null,null,null,null,null,null,53]
[null,54,null,null,null,null,null,null,null,null,null,null,null,null,null,null,null,null,null,null,54,null,null,null,null,null,null,null,null,null,null,null,null,null,null,null,null,null,null,54,null,null,null,null,null,null,null,null,null,null,null,null,null,null,null,null,null,null,54]
[null,55,null,null,null,null,null,null,null,null,null,null,null,null,null,null,null,null,null,null,55,null,null,null,null,null,null,null,null,null,null,null,null,null,null,null,null,null,null,55,null,null,null,null,null,null,null,null,null,null,null,null,null,null,null,null,null,null,55]
[null,56,null,null,null,null,null,null,null,null,null,null,null,null,null,null,null,null,null,null,56,null,null,null,null,null,null,null,null,null,null,null,null,null,null,null,null,null,null,56,null,null,null,null,null,null,null,null,null,null,null,null,null,null,null,null,null,null,56]
[null,57,null,null,null,null,null,null,null,null,null,null,null,null,null,null,null,null,null,null,57,null,null,null,null,null,null,null,null,null,null,null,null,null,null,null,null,null,null,57,null,null,null,null,null,null,null,null,null,null,null,null,null,null,null,null,null,null,57]
[null,58,null,null,null,null,null,null,null,null,null,null,null,null,null,null,null,null,null,null,58,null,null,null,null,null,null,null,null,null,null,null,null,null,null,null,null,null,null,58,null,null,null,null,null,null,null,null,null,null,null,null,null,null,null,null,null,null,58]
[null,59,null,null,null,null,null,null,null,null,null,null,null,null,null,null,null,null,null,null,59,null,null,null,null,null,null,null,null,null,null,null,null,null,null,null,null,null,null,59,null,null,null,null,null,null,null,null,null,null,null,null,null,null,null,null,null,null,59]
[null,60,null,null,null,null,null,null,null,null,null,null,null,null,null,null,null,null,null,null,60,null,null,null,null,null,null,null,null,null,null,null,null,null,null,null,null,null,null,60,null,null,null,null,null,null,null,null,null,null,null,null,null,null,null,null,null,null,60]
[null,61,null,null,null,null,null,null,null,null,null,null,null,null,null,null,null,null,null,null,61,null,null,null,null,null,null,null,null,null,null,null,null,null,null,null,null,null,null,61,null,null,null,null,null,null,null,null,null,null,null,null,null,null,null,null,null,null,61]
[null,62,null,null,null,null,null,null,null,null,null,null,null,null,null,null,null,null,null,null,62,null,null,null,null,null,null,null,null,null,null,null,null,null,null,null,null,null,null,62,null,null,null,null,null,null,null,null,null,null,null,null,null,null,null,null,null,null,62]
[null,63,null,null,null,null,null,null,null,null,null,null,null,null,null,null,null,null,null,null,63,null,null,null,null,null,null,null,null,null,null,null,null,null,null,null,null,null,null,63,null,null,null,null,null,null,null,null,null,null,null,null,null,null,null,null,null,null,63]
[null,64,null,null,null,null,null,null,null,null,null,null,null,null,null,null,null,null,null,null,64,null,null,null,null,null,null,null,null,null,null,null,null,null,null,null,null,null,null,64,null,null,null,null,null,null,null,null,null,null,null,null,null,null,null,null,null,null,64]
[null,65,null,null,null,null,null,null,null,null,null,null,null,null,null,null,null,null,null,null,65,null,null,null,null,null,null,null,null,null,null,null,null,null,null,null,null,null,null,65,null,null,null,null,null,null,null,null,null,null,null,null,null,null,null,null,null,null,65]
[null,66,null,null,null,null,null,null,null,null,null,null,null,null,null,null,null,null,null,null,66,null,null,null,null,null,null,null,null,null,null,null,null,null,null,null,null,null,null,66,null,null,null,null,null,null,null,null,null,null,null,null,null,null,null,null,null,null,66]
[null,67,null,null,null,null,null,null,null,null,null,null,null,null,null,null,null,null,null,null,67,null,null,null,null,null,null,null,null,null,null,null,null,null,null,null,null,null,null,67,null,null,null,null,null,null,null,null,null,null,null,null,null,null,null,null,null,null,67]
[null,68,null,null,null,null,null,null,null,null,null,null,null,null,null,null,null,null,null,null,68,null,null,null,null,null,null,null,null,null,null,null,null,null,null,null,null,null,null,68,null,null,null,null,null,null,null,null,null,null,null,null,null,null,null,null,null,null,68]
[null,69,null,null,null,null,null,null,null,null,null,null,null,null,null,null,null,null,null,null,69,null,null,null,null,null,null,null,null,null,null,null,null,null,null,null,null,null,null,69,null,null,null,null,null,null,null,null,null,null,null,null,null,null,null,null,null,null,69]
[null,70,null,null,null,null,null,null,null,null,null,null,null,null,null,null,null,null,null,null,70,null,null,null,null,null,null,null,null,null,null,null,null,null,null,null,null,null,null,70,null,null,null,null,null,null,null,null,null,null,null,null,null,null,null,null,null,null,70]
[null,71,null,null,null,null,null,null,null,null,null,null,null,null,null,null,null,null,null,null,71,null,null,null,null,null,null,null,null,null,null,null,null,null,null,null,null,null,null,71,null,null,null,null,null,null,null,null,null,null,null,null,null,null,null,null,null,null,71]
[null,72,null,null,null,null,null,null,null,null,null,null,null,null,null,null,null,null,null,null,72,null,null,null,null,null,null,null,null,null,null,null,null,null,null,null,null,null,null,72,null,null,null,null,null,null,null,null,null,null,null,null,null,null,null,null,null,null,72]
[null,73,null,null,null,null,null,null,null,null,null,null,null,null,null,null,null,null,null,null,73,null,null,null,null,null,null,null,null,null,null,null,null,null,null,null,null,null,null,73,null,null,null,null,null,null,null,null,null,null,null,null,null,null,null,null,null,null,73]
[null,74,null,null,null,null,null,null,null,null,null,null,null,null,null,null,null,null,null,null,74,null,null,null,null,null,null,null,null,null,null,null,null,null,null,null,null,null,null,74,null,null,null,null,null,null,null,null,null,null,null,null,null,null,null,null,null,null,74]
[null,75,null,null,null,null,null,null,null,null,null,null,null,null,null,null,null,null,null,null,75,null,null,null,null,null,null,null,null,null,null,null,null,null,null,null,null,null,null,75,null,null,null,null,null,null,null,null,null,null,null,null,null,null,null,null,null,null,75]
[null,76,null,null,null,null,null,null,null,null,null,null,null,null,null,null,null,null,null,null,76,null,null,null,null,null,null,null,null,null,null,null,null,null,null,null,null,null,null,76,null,null,null,null,null,null,null,null,null,null,null,null,null,null,null,null,null,null,76]
[null,77,null,null,null,null,null,null,null,null,null,null,null,null,null,null,null,null,null,null,77,null,null,null,null,null,null,null,null,null,null,null,null,null,null,null,null,null,null,77,null,null,null,null,null,null,null,null,null,null,null,null,null,null,null,null,null,null,77]
[null,78,null,null,null,null,null,null,null,null,null,null,null,null,null,null,null,null,null,null,78,null,null,null,null,null,null,null,null,null,null,null,null,null,null,null,null,null,null,78,null,null,null,null,null,null,null,null,null,null,null,null,null,null,null,null,null,null,78]
[null,79,null,null,null,null,null,null,null,null,null,null,null,null,null,null,null,null,null,null,79,null,null,null,null,null,null,null,null,null,null,null,null,null,null,null,null,null,null,79,null,null,null,null,null,null,null,null,null,null,null,null,null,null,null,null,null,null,79]
[null,80,null,null,null,null,null,null,null,null,null,null,null,null,null,null,null,null,null,null,80,null,null,null,null,null,null,null,null,null,null,null,null,null,null,null,null,null,null,80,null,null,null,null,null,null,null,null,null,null,null,null,null,null,null,null,null,null,80]
[null,81,null,null,null,null,null,null,null,null,null,null,null,null,null,null,null,null,null,null,81,null,null,null,null,null,null,null,null,null,null,null,null,null,null,null,null,null,null,81,null,null,null,null,null,null,null,null,null,null,null,null,null,null,null,null,null,null,81]
[null,82,null,null,null,null,null,null,null,null,null,null,null,null,null,null,null,null,null,null,82,null,null,null,null,null,null,null,null,null,null,null,null,null,null,null,null,null,null,82,null,null,null,null,null,null,null,null,null,null,null,null,null,null,null,null,null,null,82]
[null,83,null,null,null,null,null,null,null,null,null,null,null,null,null,null,null,null,null,null,83,null,null,null,null,null,null,null,null,null,null,null,null,null,null,null,null,null,null,83,null,null,null,null,null,null,null,null,null,null,null,null,null,null,null,null,null,null,83]
[null,84,null,null,null,null,null,null,null,null,null,null,null,null,null,null,null,null,null,null,84,null,null,null,null,null,null,null,null,null,null,null,null,null,null,null,null,null,null,84,null,null,null,null,null,null,null,null,null,null,null,null,null,null,null,null,null,null,84]
[null,85,null,null,null,null,null,null,null,null,null,null,null,null,null,null,null,null,null,null,85,null,null,null,null,null,null,null,null,null,null,null,null,null,null,null,null,null,null,85,null,null,null,null,null,null,null,null,null,null,null,null,null,null,null,null,null,null,85]
[null,86,null,null,null,null,null,null,null,null,null,null,null,null,null,null,null,null,null,null,86,null,null,null,null,null,null,null,null,null,null,null,null,null,null,null,null,null,null,86,null,null,null,null,null,null,null,null,null,null,null,null,null,null,null,null,null,null,86]
[null,87,null,null,null,null,null,null,null,null,null,null,null,null,null,null,null,null,null,null,87,null,null,null,null,null,null,null,null,null,null,null,null,null,null,null,null,null,null,87,null,null,null,null,null,null,null,null,null,null,null,null,null,null,null,null,null,null,87]
[null,88,null,null,null,null,null,null,null,null,null,null,null,null,null,null,null,null,null,null,88,null,null,null,null,null,null,null,null,null,null,null,null,null,null,null,null,null,null,88,null,null,null,null,null,null,null,null,null,null,null,null,null,null,null,null,null,null,88]
[null,89,null,null,null,null,null,null,null,null,null,null,null,null,null,null,null,null,null,null,89,null,null,null,null,null,null,null,null,null,null,null,null,null,null,null,null,null,null,89,null,null,null,null,null,null,null,null,null,null,null,null,null,null,null,null,null,null,89]
[null,90,null,null,null,null,null,null,null,null,null,null,null,null,null,null,null,null,null,null,90,null,null,null,null,null,null,null,null,null,null,null,null,null,null,null,null,null,null,90,null,null,null,null,null,null,null,null,null,null,null,null,null,null,null,null,null,null,90]
[null,91,null,null,null,null,null,null,null,null,null,null,null,null,null,null,null,null,null,null,91,null,null,null,null,null,null,null,null,null,null,null,null,null,null,null,null,null,null,91,null,null,null,null,null,null,null,null,null,null,null,null,null,null,null,null,null,null,91]
[null,92,null,null,null,null,null,null,null,null,null,null,null,null,null,null,null,null,null,null,92,null,null,null,null,null,null,null,null,null,null,null,null,null,null,null,null,null,null,92,null,null,null,null,null,null,null,null,null,null,null,null,null,null,null,null,null,null,92]
[null,93,null,null,null,null,null,null,null,null,null,null,null,null,null,null,null,null,null,null,93,null,null,null,null,null,null,null,null,null,null,null,null,null,null,null,null,null,null,93,null,null,null,null,null,null,null,null,null,null,null,null,null,null,null,null,null,null,93]
[null,94,null,null,null,null,null,null,null,null,null,null,null,null,null,null,null,null,null,null,94,null,null,null,null,null,null,null,null,null,null,null,null,null,null,null,null,null,null,94,null,null,null,null,null,null,null,null,null,null,null,null,null,null,null,null,null,null,94]
[null,95,null,null,null,null,null,null,null,null,null,null,null,null,null,null,null,null,null,null,95,null,null,null,null,null,null,null,null,null,null,null,null,null,null,null,null,null,null,95,null,null,null,null,null,null,null,null,null,null,null,null,null,null,null,null,null,null,95]
[null,96,null,null,null,null,null,null,null,null,null,null,null,null,null,null,null,null,null,null,96,null,null,null,null,null,null,null,null,null,null,null,null,null,null,null,null,null,null,96,null,null,null,null,null,null,null,null,null,null,null,null,null,null,null,null,null,null,96]
[null,97,null,null,null,null,null,null,null,null,null,null,null,null,null,null,null,null,null,null,97,null,null,null,null,null,null,null,null,null,null,null,null,null,null,null,null,null,null,97,null,null,null,null,null,null,null,null,null,null,null,null,null,null,null,null,null,null,97]
[null,98,null,null,null,null,null,null,null,null,null,null,null,null,null,null,null,null,null,null,98,null,null,null,null,null,null,null,null,null,null,null,null,null,null,null,null,null,null,98,null,null,null,null,null,null,null,null,null,null,null,null,null,null,null,null,null,null,98]
[null,99,null,null,null,null,null,null,null,null,null,null,null,null,null,null,null,null,null,null,99,null,null,null,null,null,null,null,null,null,null,null,null,null,null,null,null,null,null,99,null,null,null,null,null,null,null,null,null,null,null,null,null,null,null,null,null,null,99]
[null,100,null,null,null,null,null,null,null,null,null,null,null,null,null,null,null,null,null,null,100,null,null,null,null,null,null,null,null,null,null,null,null,null,null,null,null,null,null,100,null,null,null,null,null,null,null,null,null,null,null,null,null,null,null,null,null,null,100]
[null,101,null,null,null,null,null,null,null,null,null,null,null,null,null,null,null,null,null,null,101,null,null,null,null,null,null,null,null,null,null,null,null,null,null,null,null,null,null,101,null,null,null,null,null,null,null,null,null,null,null,null,null,null,null,null,null,null,101]
[null,102,null,null,null,null,null,null,null,null,null,null,null,null,null,null,null,null,null,null,102,null,null,null,null,null,null,null,null,null,null,null,null,null,null,null,null,null,null,102,null,null,null,null,null,null,null,null,null,null,null,null,null,null,null,null,null,null,102]
[null,103,null,null,null,null,null,null,null,null,null,null,null,null,null,null,null,null,null,null,103,null,null,null,null,null,null,null,null,null,null,null,null,null,null,null,null,null,null,103,null,null,null,null,null,null,null,null,null,null,null,null,null,null,null,null,null,null,103]
[null,104,null,null,null,null,null,null,null,null,null,null,null,null,null,null,null,null,null,null,104,null,null,null,null,null,null,null,null,null,null,null,null,null,null,null,null,null,null,104,null,null,null,null,null,null,null,null,null,null,null,null,null,null,null,null,null,null,104]
[null,105,null,null,null,null,null,null,null,null,null,null,null,null,null,null,null,null,null,null,105,null,null,null,null,null,null,null,null,null,null,null,null,null,null,null,null,null,null,105,null,null,null,null,null,null,null,null,null,null,null,null,null,null,null,null,null,null,105]
[null,106,null,null,null,null,null,null,null,null,null,null,null,null,null,null,null,null,null,null,106,null,null,null,null,null,null,null,null,null,null,null,null,null,null,null,null,null,null,106,null,null,null,null,null,null,null,null,null,null,null,null,null,null,null,null,null,null,106]
[null,107,null,null,null,null,null,null,null,null,null,null,null,null,null,null,null,null,null,null,107,null,null,null,null,null,null,null,null,null,null,null,null,null,null,null,null,null,null,107,null,null,null,null,null,null,null,null,null,null,null,null,null,null,null,null,null,null,107]
[null,108,null,null,null,null,null,null,null,null,null,null,null,null,null,null,null,null,null,null,108,null,null,null,null,null,null,null,null,null,null,null,null,null,null,null,null,null,null,108,null,null,null,null,null,null,null,null,null,null,null,null,null,null,null,null,null,null,108]
[null,109,null,null,null,null,null,null,null,null,null,null,null,null,null,null,null,null,null,null,109,null,null,null,null,null,null,null,null,null,null,null,null,null,null,null,null,null,null,109,null,null,null,null,null,null,null,null,null,null,null,null,null,null,null,null,null,null,109]
[null,110,null,null,null,null,null,null,null,null,null,null,null,null,null,null,null,null,null,null,110,null,null,null,null,null,null,null,null,null,null,null,null,null,null,null,null,null,null,110,null,null,null,null,null,null,null,null,null,null,null,null,null,null,null,null,null,null,110]
[null,111,null,null,null,null,null,null,null,null,null,null,null,null,null,null,null,null,null,null,111,null,null,null,null,null,null,null,null,null,null,null,null,null,null,null,null,null,null,111,null,null,null,null,null,null,null,null,null,null,null,null,null,null,null,null,null,null,111]
[null,112,null,null,null,null,null,null,null,null,null,null,null,null,null,null,null,null,null,null,112,null,null,null,null,null,null,null,null,null,null,null,null,null,null,null,null,null,null,112,null,null,null,null,null,null,null,null,null,null,null,null,null,null,null,null,null,null,112]
[null,113,null,null,null,null,null,null,null,null,null,null,null,null,null,null,null,null,null,null,113,null,null,null,null,null,null,null,null,null,null,null,null,null,null,null,null,null,null,113,null,null,null,null,null,null,null,null,null,null,null,null,null,null,null,null,null,null,113]
[null,114,null,null,null,null,null,null,null,null,null,null,null,null,null,null,null,null,null,null,114,null,null,null,null,null,null,null,null,null,null,null,null,null,null,null,null,null,null,114,null,null,null,null,null,null,null,null,null,null,null,null,null,null,null,null,null,null,114]
[null,115,null,null,null,null,null,null,null,null,null,null,null,null,null,null,null,null,null,null,115,null,null,null,null,null,null,null,null,null,null,null,null,null,null,null,null,null,null,115,null,null,null,null,null,null,null,null,null,null,null,null,null,null,null,null,null,null,115]
[null,116,null,null,null,null,null,null,null,null,null,null,null,null,null,null,null,null,null,null,116,null,null,null,null,null,null,null,null,null,null,null,null,null,null,null,null,null,null,116,null,null,null,null,null,null,null,null,null,null,null,null,null,null,null,null,null,null,116]
[null,117,null,null,null,null,null,null,null,null,null,null,null,null,null,null,null,null,null,null,117,null,null,null,null,null,null,null,null,null,null,null,null,null,null,null,null,null,null,117,null,null,null,null,null,null,null,null,null,null,null,null,null,null,null,null,null,null,117]
[null,118,null,null,null,null,null,null,null,null,null,null,null,null,null,null,null,null,null,null,118,null,null,null,null,null,null,null,null,null,null,null,null,null,null,null,null,null,null,118,null,null,null,null,null,null,null,null,null,null,null,null,null,null,null,null,null,null,118]
[null,119,null,null,null,null,null,null,null,null,null,null,null,null,null,null,null,null,null,null,119,null,null,null,null,null,null,null,null,null,null,null,null,null,null,null,null,null,null,119,null,null,null,null,null,null,null,null,null,null,null,null,null,null,null,null,null,null,119]
[null,120,null,null,null,null,null,null,null,null,null,null,null,null,null,null,null,null,null,null,120,null,null,null,null,null,null,null,null,null,null,null,null,null,null,null,null,null,null,120,null,null,null,null,null,null,null,null,null,null,null,null,null,null,null,null,null,null,120]
[null,121,null,null,null,null,null,null,null,null,null,null,null,null,null,null,null,null,null,null,121,null,null,null,null,null,null,null,null,null,null,null,null,null,null,null,null,null,null,121,null,null,null,null,null,null,null,null,null,null,null,null,null,null,null,null,null,null,121]
[null,122,null,null,null,null,null,null,null,null,null,null,null,null,null,null,null,null,null,null,122,null,null,null,null,null,null,null,null,null,null,null,null,null,null,null,null,null,null,122,null,null,null,null,null,null,null,null,null,null,null,null,null,null,null,null,null,null,122]
[null,123,null,null,null,null,null,null,null,null,null,null,null,null,null,null,null,null,null,null,123,null,null,null,null,null,null,null,null,null,null,null,null,null,null,null,null,null,null,123,null,null,null,null,null,null,null,null,null,null,null,null,null,null,null,null,null,null,123]
[null,124,null,null,null,null,null,null,null,null,null,null,null,null,null,null,null,null,null,null,124,null,null,null,null,null,null,null,null,null,null,null,null,null,null,null,null,null,null,124,null,null,null,null,null,null,null,null,null,null,null,null,null,null,null,null,null,null,124]
[null,125,null,null,null,null,null,null,null,null,null,null,null,null,null,null,null,null,null,null,125,null,null,null,null,null,null,null,null,null,null,null,null,null,null,null,null,null,null,125,null,null,null,null,null,null,null,null,null,null,null,null,null,null,null,null,null,null,125]
[null,126,null,null,null,null,null,null,null,null,null,null,null,null,null,null,null,null,null,null,126,null,null,null,null,null,null,null,null,null,null,null,null,null,null,null,null,null,null,126,null,null,null,null,null,null,null,null,null,null,null,null,null,null,null,null,null,null,126]
[null,127,null,null,null,null,null,null,null,null,null,null,null,null,null,null,null,null,null,null,127,null,null,null,null,null,null,null,null,null,null,null,null,null,null,null,null,null,null,127,null,null,null,null,null,null,null,null,null,null,null,null,null,null,null,null,null,null,127]
[null,128,null,null,null,null,null,null,null,null,null,null,null,null,null,null,null,null,null,null,128,null,null,null,null,null,null,null,null,null,null,null,null,null,null,null,null,null,null,128,null,null,null,null,null,null,null,null,null,null,null,null,null,null,null,null,null,null,128]
[null,129,null,null,null,null,null,null,null,null,null,null,null,null,null,null,null,null,null,null,129,null,null,null,null,null,null,null,null,null,null,null,null,null,null,null,null,null,null,129,null,null,null,null,null,null,null,null,null,null,null,null,null,null,null,null,null,null,129]
[null,130,null,null,null,null,null,null,null,null,null,null,null,null,null,null,null,null,null,null,130,null,null,null,null,null,null,null,null,null,null,null,null,null,null,null,null,null,null,130,null,null,null,null,null,null,null,null,null,null,null,null,null,null,null,null,null,null,130]
[null,131,null,null,null,null,null,null,null,null,null,null,null,null,null,null,null,null,null,null,131,null,null,null,null,null,null,null,null,null,null,null,null,null,null,null,null,null,null,131,null,null,null,null,null,null,null,null,null,null,null,null,null,null,null,null,null,null,131]
[null,132,null,null,null,null,null,null,null,null,null,null,null,null,null,null,null,null,null,null,132,null,null,null,null,null,null,null,null,null,null,null,null,null,null,null,null,null,null,132,null,null,null,null,null,null,null,null,null,null,null,null,null,null,null,null,null,null,132]
[null,133,null,null,null,null,null,null,null,null,null,null,null,null,null,null,null,null,null,null,133,null,null,null,null,null,null,null,null,null,null,null,null,null,null,null,null,null,null,133,null,null,null,null,null,null,null,null,null,null,null,null,null,null,null,null,null,null,133]
[null,134,null,null,null,null,null,null,null,null,null,null,null,null,null,null,null,null,null,null,134,null,null,null,null,null,null,null,null,null,null,null,null,null,null,null,null,null,null,134,null,null,null,null,null,null,null,null,null,null,null,null,null,null,null,null,null,null,134]
[null,135,null,null,null,null,null,null,null,null,null,null,null,null,null,null,null,null,null,null,135,null,null,null,null,null,null,null,null,null,null,null,null,null,null,null,null,null,null,135,null,null,null,null,null,null,null,null,null,null,null,null,null,null,null,null,null,null,135]
[null,136,null,null,null,null,null,null,null,null,null,null,null,null,null,null,null,null,null,null,136,null,null,null,null,null,null,null,null,null,null,null,null,null,null,null,null,null,null,136,null,null,null,null,null,null,null,null,null,null,null,null,null,null,null,null,null,null,136]
[null,137,null,null,null,null,null,null,null,null,null,null,null,null,null,null,null,null,null,null,137,null,null,null,null,null,null,null,null,null,null,null,null,null,null,null,null,null,null,137,null,null,null,null,null,null,null,null,null,null,null,null,null,null,null,null,null,null,137]
[null,138,null,null,null,null,null,null,null,null,null,null,null,null,null,null,null,null,null,null,138,null,null,null,null,null,null,null,null,null,null,null,null,null,null,null,null,null,null,138,null,null,null,null,null,null,null,null,null,null,null,null,null,null,null,null,null,null,138]
[null,139,null,null,null,null,null,null,null,null,null,null,null,null,null,null,null,null,null,null,139,null,null,null,null,null,null,null,null,null,null,null,null,null,null,null,null,null,null,139,null,null,null,null,null,null,null,null,null,null,null,null,null,null,null,null,null,null,139]
[null,140,null,null,null,null,null,null,null,null,null,null,null,null,null,null,null,null,null,null,140,null,null,null,null,null,null,null,null,null,null,null,null,null,null,null,null,null,null,140,null,null,null,null,null,null,null,null,null,null,null,null,null,null,null,null,null,null,140]
[null,141,null,null,null,null,null,null,null,null,null,null,null,null,null,null,null,null,null,null,141,null,null,null,null,null,null,null,null,null,null,null,null,null,null,null,null,null,null,141,null,null,null,null,null,null,null,null,null,null,null,null,null,null,null,null,null,null,141]
[null,142,null,null,null,null,null,null,null,null,null,null,null,null,null,null,null,null,null,null,142,null,null,null,null,null,null,null,null,null,null,null,null,null,null,null,null,null,null,142,null,null,null,null,null,null,null,null,null,null,null,null,null,null,null,null,null,null,142]
[null,143,null,null,null,null,null,null,null,null,null,null,null,null,null,null,null,null,null,null,143,null,null,null,null,null,null,null,null,null,null,null,null,null,null,null,null,null,null,143,null,null,null,null,null,null,null,null,null,null,null,null,null,null,null,null,null,null,143]
[null,144,null,null,null,null,null,null,null,null,null,null,null,null,null,null,null,null,null,null,144,null,null,null,null,null,null,null,null,null,null,null,null,null,null,null,null,null,null,144,null,null,null,null,null,null,null,null,null,null,null,null,null,null,null,null,null,null,144]
[null,145,null,null,null,null,null,null,null,null,null,null,null,null,null,null,null,null,null,null,145,null,null,null,null,null,null,null,null,null,null,null,null,null,null,null,null,null,null,145,null,null,null,null,null,null,null,null,null,null,null,null,null,null,null,null,null,null,145]
[null,146,null,null,null,null,null,null,null,null,null,null,null,null,null,null,null,null,null,null,146,null,null,null,null,null,null,null,null,null,null,null,null,null,null,null,null,null,null,146,null,null,null,null,null,null,null,null,null,null,null,null,null,null,null,null,null,null,146]
[null,147,null,null,null,null,null,null,null,null,null,null,null,null,null,null,null,null,null,null,147,null,null,null,null,null,null,null,null,null,null,null,null,null,null,null,null,null,null,147,null,null,null,null,null,null,null,null,null,null,null,null,null,null,null,null,null,null,147]
[null,148,null,null,null,null,null,null,null,null,null,null,null,null,null,null,null,null,null,null,148,null,null,null,null,null,null,null,null,null,null,null,null,null,null,null,null,null,null,148,null,null,null,null,null,null,null,null,null,null,null,null,null,null,null,null,null,null,148]
[null,149,null,null,null,null,null,null,null,null,null,null,null,null,null,null,null,null,null,null,149,null,null,null,null,null,null,null,null,null,null,null,null,null,null,null,null,null,null,149,null,null,null,null,null,null,null,null,null,null,null,null,null,null,null,null,null,null,149]
[null,150,null,null,null,null,null,null,null,null,null,null,null,null,null,null,null,null,null,null,150,null,null,null,null,null,null,null,null,null,null,null,null,null,null,null,null,null,null,150,null,null,null,null,null,null,null,null,null,null,null,null,null,null,null,null,null,null,150]
[null,151,null,null,null,null,null,null,null,null,null,null,null,null,null,null,null,null,null,null,151,null,null,null,null,null,null,null,null,null,null,null,null,null,null,null,null,null,null,151,null,null,null,null,null,null,null,null,null,null,null,null,null,null,null,null,null,null,151]
[null,152,null,null,null,null,null,null,null,null,null,null,null,null,null,null,null,null,null,null,152,null,null,null,null,null,null,null,null,null,null,null,null,null,null,null,null,null,null,152,null,null,null,null,null,null,null,null,null,null,null,null,null,null,null,null,null,null,152]
[null,153,null,null,null,null,null,null,null,null,null,null,null,null,null,null,null,null,null,null,153,null,null,null,null,null,null,null,null,null,null,null,null,null,null,null,null,null,null,153,null,null,null,null,null,null,null,null,null,null,null,null,null,null,null,null,null,null,153]
[null,154,null,null,null,null,null,null,null,null,null,null,null,null,null,null,null,null,null,null,154,null,null,null,null,null,null,null,null,null,null,null,null,null,null,null,null,null,null,154,null,null,null,null,null,null,null,null,null,null,null,null,null,null,null,null,null,null,154]
[null,155,null,null,null,null,null,null,null,null,null,null,null,null,null,null,null,null,null,null,155,null,null,null,null,null,null,null,null,null,null,null,null,null,null,null,null,null,null,155,null,null,null,null,null,null,null,null,null,null,null,null,null,null,null,null,null,null,155]
[null,156,null,null,null,null,null,null,null,null,null,null,null,null,null,null,null,null,null,null,156,null,null,null,null,null,null,null,null,null,null,null,null,null,null,null,null,null,null,156,null,null,null,null,null,null,null,null,null,null,null,null,null,null,null,null,null,null,156]
[null,157,null,null,null,null,null,null,null,null,null,null,null,null,null,null,null,null,null,null,157,null,null,null,null,null,null,null,null,null,null,null,null,null,null,null,null,null,null,157,null,null,null,null,null,null,null,null,null,null,null,null,null,null,null,null,null,null,157]
[null,158,null,null,null,null,null,null,null,null,null,null,null,null,null,null,null,null,null,null,158,null,null,null,null,null,null,null,null,null,null,null,null,null,null,null,null,null,null,158,null,null,null,null,null,null,null,null,null,null,null,null,null,null,null,null,null,null,158]
[null,159,null,null,null,null,null,null,null,null,null,null,null,null,null,null,null,null,null,null,159,null,null,null,null,null,null,null,null,null,null,null,null,null,null,null,null,null,null,159,null,null,null,null,null,null,null,null,null,null,null,null,null,null,null,null,null,null,159]
[null,160,null,null,null,null,null,null,null,null,null,null,null,null,null,null,null,null,null,null,160,null,null,null,null,null,null,null,null,null,null,null,null,null,null,null,null,null,null,160,null,null,null,null,null,null,null,null,null,null,null,null,null,null,null,null,null,null,160]
[null,161,null,null,null,null,null,null,null,null,null,null,null,null,null,null,null,null,null,null,161,null,null,null,null,null,null,null,null,null,null,null,null,null,null,null,null,null,null,161,null,null,null,null,null,null,null,null,null,null,null,null,null,null,null,null,null,null,161]
[null,162,null,null,null,null,null,null,null,null,null,null,null,null,null,null,null,null,null,null,162,null,null,null,null,null,null,null,null,null,null,null,null,null,null,null,null,null,null,162,null,null,null,null,null,null,null,null,null,null,null,null,null,null,null,null,null,null,162]
[null,163,null,null,null,null,null,null,null,null,null,null,null,null,null,null,null,null,null,null,163,null,null,null,null,null,null,null,null,null,null,null,null,null,null,null,null,null,null,163,null,null,null,null,null,null,null,null,null,null,null,null,null,null,null,null,null,null,163]
[null,164,null,null,null,null,null,null,null,null,null,null,null,null,null,null,null,null,null,null,164,null,null,null,null,null,null,null,null,null,null,null,null,null,null,null,null,null,null,164,null,null,null,null,null,null,null,null,null,null,null,null,null,null,null,null,null,null,164]
[null,165,null,null,null,null,null,null,null,null,null,null,null,null,null,null,null,null,null,null,165,null,null,null,null,null,null,null,null,null,null,null,null,null,null,null,null,null,null,165,null,null,null,null,null,null,null,null,null,null,null,null,null,null,null,null,null,null,165]
[null,166,null,null,null,null,null,null,null,null,null,null,null,null,null,null,null,null,null,null,166,null,null,null,null,null,null,null,null,null,null,null,null,null,null,null,null,null,null,166,null,null,null,null,null,null,null,null,null,null,null,null,null,null,null,null,null,null,166]
[null,167,null,null,null,null,null,null,null,null,null,null,null,null,null,null,null,null,null,null,167,null,null,null,null,null,null,null,null,null,null,null,null,null,null,null,null,null,null,167,null,null,null,null,null,null,null,null,null,null,null,null,null,null,null,null,null,null,167]
[null,168,null,null,null,null,null,null,null,null,null,null,null,null,null,null,null,null,null,null,168,null,null,null,null,null,null,null,null,null,null,null,null,null,null,null,null,null,null,168,null,null,null,null,null,null,null,null,null,null,null,null,null,null,null,null,null,null,168]
[null,169,null,null,null,null,null,null,null,null,null,null,null,null,null,null,null,null,null,null,169,null,null,null,null,null,null,null,null,null,null,null,null,null,null,null,null,null,null,169,null,null,null,null,null,null,null,null,null,null,null,null,null,null,null,null,null,null,169]
[null,170,null,null,null,null,null,null,null,null,null,null,null,null,null,null,null,null,null,null,170,null,null,null,null,null,null,null,null,null,null,null,null,null,null,null,null,null,null,170,null,null,null,null,null,null,null,null,null,null,null,null,null,null,null,null,null,null,170]
[null,171,null,null,null,null,null,null,null,null,null,null,null,null,null,null,null,null,null,null,171,null,null,null,null,null,null,null,null,null,null,null,null,null,null,null,null,null,null,171,null,null,null,null,null,null,null,null,null,null,null,null,null,null,null,null,null,null,171]
[null,172,null,null,null,null,null,null,null,null,null,null,null,null,null,null,null,null,null,null,172,null,null,null,null,null,null,null,null,null,null,null,null,null,null,null,null,null,null,172,null,null,null,null,null,null,null,null,null,null,null,null,null,null,null,null,null,null,172]
[null,173,null,null,null,null,null,null,null,null,null,null,null,null,null,null,null,null,null,null,173,null,null,null,null,null,null,null,null,null,null,null,null,null,null,null,null,null,null,173,null,null,null,null,null,null,null,null,null,null,null,null,null,null,null,null,null,null,173]
[null,174,null,null,null,null,null,null,null,null,null,null,null,null,null,null,null,null,null,null,174,null,null,null,null,null,null,null,null,null,null,null,null,null,null,null,null,null,null,174,null,null,null,null,null,null,null,null,null,null,null,null,null,null,null,null,null,null,174]
[null,175,null,null,null,null,null,null,null,null,null,null,null,null,null,null,null,null,null,null,175,null,null,null,null,null,null,null,null,null,null,null,null,null,null,null,null,null,null,175,null,null,null,null,null,null,null,null,null,null,null,null,null,null,null,null,null,null,175]
[null,176,null,null,null,null,null,null,null,null,null,null,null,null,null,null,null,null,null,null,176,null,null,null,null,null,null,null,null,null,null,null,null,null,null,null,null,null,null,176,null,null,null,null,null,null,null,null,null,null,null,null,null,null,null,null,null,null,176]
[null,177,null,null,null,null,null,null,null,null,null,null,null,null,null,null,null,null,null,null,177,null,null,null,null,null,null,null,null,null,null,null,null,null,null,null,null,null,null,177,null,null,null,null,null,null,null,null,null,null,null,null,null,null,null,null,null,null,177]
[null,178,null,null,null,null,null,null,null,null,null,null,null,null,null,null,null,null,null,null,178,null,null,null,null,null,null,null,null,null,null,null,null,null,null,null,null,null,null,178,null,null,null,null,null,null,null,null,null,null,null,null,null,null,null,null,null,null,178]
[null,179,null,null,null,null,null,null,null,null,null,null,null,null,null,null,null,null,null,null,179,null,null,null,null,null,null,null,null,null,null,null,null,null,null,null,null,null,null,179,null,null,null,null,null,null,null,null,null,null,null,null,null,null,null,null,null,null,179]
[null,180,null,null,null,null,null,null,null,null,null,null,null,null,null,null,null,null,null,null,180,null,null,null,null,null,null,null,null,null,null,null,null,null,null,null,null,null,null,180,null,null,null,null,null,null,null,null,null,null,null,null,null,null,null,null,null,null,180]
[null,181,null,null,null,null,null,null,null,null,null,null,null,null,null,null,null,null,null,null,181,null,null,null,null,null,null,null,null,null,null,null,null,null,null,null,null,null,null,181,null,null,null,null,null,null,null,null,null,null,null,null,null,null,null,null,null,null,181]
[null,182,null,null,null,null,null,null,null,null,null,null,null,null,null,null,null,null,null,null,182,null,null,null,null,null,null,null,null,null,null,null,null,null,null,null,null,null,null,182,null,null,null,null,null,null,null,null,null,null,null,null,null,null,null,null,null,null,182]
[null,183,null,null,null,null,null,null,null,null,null,null,null,null,null,null,null,null,null,null,183,null,null,null,null,null,null,null,null,null,null,null,null,null,null,null,null,null,null,183,null,null,null,null,null,null,null,null,null,null,null,null,null,null,null,null,null,null,183]
[null,184,null,null,null,null,null,null,null,null,null,null,null,null,null,null,null,null,null,null,184,null,null,null,null,null,null,null,null,null,null,null,null,null,null,null,null,null,null,184,null,null,null,null,null,null,null,null,null,null,null,null,null,null,null,null,null,null,184]
[null,185,null,null,null,null,null,null,null,null,null,null,null,null,null,null,null,null,null,null,185,null,null,null,null,null,null,null,null,null,null,null,null,null,null,null,null,null,null,185,null,null,null,null,null,null,null,null,null,null,null,null,null,null,null,null,null,null,185]
[null,186,null,null,null,null,null,null,null,null,null,null,null,null,null,null,null,null,null,null,186,null,null,null,null,null,null,null,null,null,null,null,null,null,null,null,null,null,null,186,null,null,null,null,null,null,null,null,null,null,null,null,null,null,null,null,null,null,186]
[null,187,null,null,null,null,null,null,null,null,null,null,null,null,null,null,null,null,null,null,187,null,null,null,null,null,null,null,null,null,null,null,null,null,null,null,null,null,null,187,null,null,null,null,null,null,null,null,null,null,null,null,null,null,null,null,null,null,187]
[null,188,null,null,null,null,null,null,null,null,null,null,null,null,null,null,null,null,null,null,188,null,null,null,null,null,null,null,null,null,null,null,null,null,null,null,null,null,null,188,null,null,null,null,null,null,null,null,null,null,null,null,null,null,null,null,null,null,188]
[null,189,null,null,null,null,null,null,null,null,null,null,null,null,null,null,null,null,null,null,189,null,null,null,null,null,null,null,null,null,null,null,null,null,null,null,null,null,null,189,null,null,null,null,null,null,null,null,null,null,null,null,null,null,null,null,null,null,189]
[null,190,null,null,null,null,null,null,null,null,null,null,null,null,null,null,null,null,null,null,190,null,null,null,null,null,null,null,null,null,null,null,null,null,null,null,null,null,null,190,null,null,null,null,null,null,null,null,null,null,null,null,null,null,null,null,null,null,190]
[null,191,null,null,null,null,null,null,null,null,null,null,null,null,null,null,null,null,null,null,191,null,null,null,null,null,null,null,null,null,null,null,null,null,null,null,null,null,null,191,null,null,null,null,null,null,null,null,null,null,null,null,null,null,null,null,null,null,191]
[null,192,null,null,null,null,null,null,null,null,null,null,null,null,null,null,null,null,null,null,192,null,null,null,null,null,null,null,null,null,null,null,null,null,null,null,null,null,null,192,null,null,null,null,null,null,null,null,null,null,null,null,null,null,null,null,null,null,192]
[null,193,null,null,null,null,null,null,null,null,null,null,null,null,null,null,null,null,null,null,193,null,null,null,null,null,null,null,null,null,null,null,null,null,null,null,null,null,null,193,null,null,null,null,null,null,null,null,null,null,null,null,null,null,null,null,null,null,193]
[null,194,null,null,null,null,null,null,null,null,null,null,null,null,null,null,null,null,null,null,194,null,null,null,null,null,null,null,null,null,null,null,null,null,null,null,null,null,null,194,null,null,null,null,null,null,null,null,null,null,null,null,null,null,null,null,null,null,194]
[null,195,null,null,null,null,null,null,null,null,null,null,null,null,null,null,null,null,null,null,195,null,null,null,null,null,null,null,null,null,null,null,null,null,null,null,null,null,null,195,null,null,null,null,null,null,null,null,null,null,null,null,null,null,null,null,null,null,195]
[null,196,null,null,null,null,null,null,null,null,null,null,null,null,null,null,null,null,null,null,196,null,null,null,null,null,null,null,null,null,null,null,null,null,null,null,null,null,null,196,null,null,null,null,null,null,null,null,null,null,null,null,null,null,null,null,null,null,196]
[null,197,null,null,null,null,null,null,null,null,null,null,null,null,null,null,null,null,null,null,197,null,null,null,null,null,null,null,null,null,null,null,null,null,null,null,null,null,null,197,null,null,null,null,null,null,null,null,null,null,null,null,null,null,null,null,null,null,197]
[null,198,null,null,null,null,null,null,null,null,null,null,null,null,null,null,null,null,null,null,198,null,null,null,null,null,null,null,null,null,null,null,null,null,null,null,null,null,null,198,null,null,null,null,null,null,null,null,null,null,null,null,null,null,null,null,null,null,198]
[null,199,null,null,null,null,null,null,null,null,null,null,null,null,null,null,null,null,null,null,199,null,null,null,null,null,null,null,null,null,null,null,null,null,null,null,null,null,null,199,null,null,null,null,null,null,null,null,null,null,null,null,null,null,null,null,null,null,199]
[null,200,null,null,null,null,null,null,null,null,null,null,null,null,null,null,null,null,null,null,200,null,null,null,null,null,null,null,null,null,null,null,null,null,null,null,null,null,null,200,null,null,null,null,null,null,null,null,null,null,null,null,null,null,null,null,null,null,200]
[null,201,null,null,null,null,null,null,null,null,null,null,null,null,null,null,null,null,null,null,201,null,null,null,null,null,null,null,null,null,null,null,null,null,null,null,null,null,null,201,null,null,null,null,null,null,null,null,null,null,null,null,null,null,null,null,null,null,201]
[null,202,null,null,null,null,null,null,null,null,null,null,null,null,null,null,null,null,null,null,202,null,null,null,null,null,null,null,null,null,null,null,null,null,null,null,null,null,null,202,null,null,null,null,null,null,null,null,null,null,null,null,null,null,null,null,null,null,202]
[null,203,null,null,null,null,null,null,null,null,null,null,null,null,null,null,null,null,null,null,203,null,null,null,null,null,null,null,null,null,null,null,null,null,null,null,null,null,null,203,null,null,null,null,null,null,null,null,null,null,null,null,null,null,null,null,null,null,203]
[null,204,null,null,null,null,null,null,null,null,null,null,null,null,null,null,null,null,null,null,204,null,null,null,null,null,null,null,null,null,null,null,null,null,null,null,null,null,null,204,null,null,null,null,null,null,null,null,null,null,null,null,null,null,null,null,null,null,204]
[null,205,null,null,null,null,null,null,null,null,null,null,null,null,null,null,null,null,null,null,205,null,null,null,null,null,null,null,null,null,null,null,null,null,null,null,null,null,null,205,null,null,null,null,null,null,null,null,null,null,null,null,null,null,null,null,null,null,205]
[null,206,null,null,null,null,null,null,null,null,null,null,null,null,null,null,null,null,null,null,206,null,null,null,null,null,null,null,null,null,null,null,null,null,null,null,null,null,null,206,null,null,null,null,null,null,null,null,null,null,null,null,null,null,null,null,null,null,206]
[null,207,null,null,null,null,null,null,null,null,null,null,null,null,null,null,null,null,null,null,207,null,null,null,null,null,null,null,null,null,null,null,null,null,null,null,null,null,null,207,null,null,null,null,null,null,null,null,null,null,null,null,null,null,null,null,null,null,207]
[null,208,null,null,null,null,null,null,null,null,null,null,null,null,null,null,null,null,null,null,208,null,null,null,null,null,null,null,null,null,null,null,null,null,null,null,null,null,null,208,null,null,null,null,null,null,null,null,null,null,null,null,null,null,null,null,null,null,208]
[null,209,null,null,null,null,null,null,null,null,null,null,null,null,null,null,null,null,null,null,209,null,null,null,null,null,null,null,null,null,null,null,null,null,null,null,null,null,null,209,null,null,null,null,null,null,null,null,null,null,null,null,null,null,null,null,null,null,209]
[null,210,null,null,null,null,null,null,null,null,null,null,null,null,null,null,null,null,null,null,210,null,null,null,null,null,null,null,null,null,null,null,null,null,null,null,null,null,null,210,null,null,null,null,null,null,null,null,null,null,null,null,null,null,null,null,null,null,210]
[null,211,null,null,null,null,null,null,null,null,null,null,null,null,null,null,null,null,null,null,211,null,null,null,null,null,null,null,null,null,null,null,null,null,null,null,null,null,null,211,null,null,null,null,null,null,null,null,null,null,null,null,null,null,null,null,null,null,211]
[null,212,null,null,null,null,null,null,null,null,null,null,null,null,null,null,null,null,null,null,212,null,null,null,null,null,null,null,null,null,null,null,null,null,null,null,null,null,null,212,null,null,null,null,null,null,null,null,null,null,null,null,null,null,null,null,null,null,212]
[null,213,null,null,null,null,null,null,null,null,null,null,null,null,null,null,null,null,null,null,213,null,null,null,null,null,null,null,null,null,null,null,null,null,null,null,null,null,null,213,null,null,null,null,null,null,null,null,null,null,null,null,null,null,null,null,null,null,213]
[null,214,null,null,null,null,null,null,null,null,null,null,null,null,null,null,null,null,null,null,214,null,null,null,null,null,null,null,null,null,null,null,null,null,null,null,null,null,null,214,null,null,null,null,null,null,null,null,null,null,null,null,null,null,null,null,null,null,214]
[null,215,null,null,null,null,null,null,null,null,null,null,null,null,null,null,null,null,null,null,215,null,null,null,null,null,null,null,null,null,null,null,null,null,null,null,null,null,null,215,null,null,null,null,null,null,null,null,null,null,null,null,null,null,null,null,null,null,215]
[null,216,null,null,null,null,null,null,null,null,null,null,null,null,null,null,null,null,null,null,216,null,null,null,null,null,null,null,null,null,null,null,null,null,null,null,null,null,null,216,null,null,null,null,null,null,null,null,null,null,null,null,null,null,null,null,null,null,216]
[null,217,null,null,null,null,null,null,null,null,null,null,null,null,null,null,null,null,null,null,217,null,null,null,null,null,null,null,null,null,null,null,null,null,null,null,null,null,null,217,null,null,null,null,null,null,null,null,null,null,null,null,null,null,null,null,null,null,217]
[null,218,null,null,null,null,null,null,null,null,null,null,null,null,null,null,null,null,null,null,218,null,null,null,null,null,null,null,null,null,null,null,null,null,null,null,null,null,null,218,null,null,null,null,null,null,null,null,null,null,null,null,null,null,null,null,null,null,218]
[null,219,null,null,null,null,null,null,null,null,null,null,null,null,null,null,null,null,null,null,219,null,null,null,null,null,null,null,null,null,null,null,null,null,null,null,null,null,null,219,null,null,null,null,null,null,null,null,null,null,null,null,null,null,null,null,null,null,219]
[null,220,null,null,null,null,null,null,null,null,null,null,null,null,null,null,null,null,null,null,220,null,null,null,null,null,null,null,null,null,null,null,null,null,null,null,null,null,null,220,null,null,null,null,null,null,null,null,null,null,null,null,null,null,null,null,null,null,220]
[null,221,null,null,null,null,null,null,null,null,null,null,null,null,null,null,null,null,null,null,221,null,null,null,null,null,null,null,null,null,null,null,null,null,null,null,null,null,null,221,null,null,null,null,null,null,null,null,null,null,null,null,null,null,null,null,null,null,221]
[null,222,null,null,null,null,null,null,null,null,null,null,null,null,null,null,null,null,null,null,222,null,null,null,null,null,null,null,null,null,null,null,null,null,null,null,null,null,null,222,null,null,null,null,null,null,null,null,null,null,null,null,null,null,null,null,null,null,222]
[null,223,null,null,null,null,null,null,null,null,null,null,null,null,null,null,null,null,null,null,223,null,null,null,null,null,null,null,null,null,null,null,null,null,null,null,null,null,null,223,null,null,null,null,null,null,null,null,null,null,null,null,null,null,null,null,null,null,223]
[null,224,null,null,null,null,null,null,null,null,null,null,null,null,null,null,null,null,null,null,224,null,null,null,null,null,null,null,null,null,null,null,null,null,null,null,null,null,null,224,null,null,null,null,null,null,null,null,null,null,null,null,null,null,null,null,null,null,224]
[null,225,null,null,null,null,null,null,null,null,null,null,null,null,null,null,null,null,null,null,225,null,null,null,null,null,null,null,null,null,null,null,null,null,null,null,null,null,null,225,null,null,null,null,null,null,null,null,null,null,null,null,null,null,null,null,null,null,225]
[null,226,null,null,null,null,null,null,null,null,null,null,null,null,null,null,null,null,null,null,226,null,null,null,null,null,null,null,null,null,null,null,null,null,null,null,null,null,null,226,null,null,null,null,null,null,null,null,null,null,null,null,null,null,null,null,null,null,226]
[null,227,null,null,null,null,null,null,null,null,null,null,null,null,null,null,null,null,null,null,227,null,null,null,null,null,null,null,null,null,null,null,null,null,null,null,null,null,null,227,null,null,null,null,null,null,null,null,null,null,null,null,null,null,null,null,null,null,227]
[null,228,null,null,null,null,null,null,null,null,null,null,null,null,null,null,null,null,null,null,228,null,null,null,null,null,null,null,null,null,null,null,null,null,null,null,null,null,null,228,null,null,null,null,null,null,null,null,null,null,null,null,null,null,null,null,null,null,228]
[null,229,null,null,null,null,null,null,null,null,null,null,null,null,null,null,null,null,null,null,229,null,null,null,null,null,null,null,null,null,null,null,null,null,null,null,null,null,null,229,null,null,null,null,null,null,null,null,null,null,null,null,null,null,null,null,null,null,229]
[null,230,null,null,null,null,null,null,null,null,null,null,null,null,null,null,null,null,null,null,230,null,null,null,null,null,null,null,null,null,null,null,null,null,null,null,null,null,null,230,null,null,null,null,null,null,null,null,null,null,null,null,null,null,null,null,null,null,230]
[null,231,null,null,null,null,null,null,null,null,null,null,null,null,null,null,null,null,null,null,231,null,null,null,null,null,null,null,null,null,null,null,null,null,null,null,null,null,null,231,null,null,null,null,null,null,null,null,null,null,null,null,null,null,null,null,null,null,231]
[null,232,null,null,null,null,null,null,null,null,null,null,null,null,null,null,null,null,null,null,232,null,null,null,null,null,null,null,null,null,null,null,null,null,null,null,null,null,null,232,null,null,null,null,null,null,null,null,null,null,null,null,null,null,null,null,null,null,232]
[null,233,null,null,null,null,null,null,null,null,null,null,null,null,null,null,null,null,null,null,233,null,null,null,null,null,null,null,null,null,null,null,null,null,null,null,null,null,null,233,null,null,null,null,null,null,null,null,null,null,null,null,null,null,null,null,null,null,233]
[null,234,null,null,null,null,null,null,null,null,null,null,null,null,null,null,null,null,null,null,234,null,null,null,null,null,null,null,null,null,null,null,null,null,null,null,null,null,null,234,null,null,null,null,null,null,null,null,null,null,null,null,null,null,null,null,null,null,234]
[null,235,null,null,null,null,null,null,null,null,null,null,null,null,null,null,null,null,null,null,235,null,null,null,null,null,null,null,null,null,null,null,null,null,null,null,null,null,null,235,null,null,null,null,null,null,null,null,null,null,null,null,null,null,null,null,null,null,235]
[null,236,null,null,null,null,null,null,null,null,null,null,null,null,null,null,null,null,null,null,236,null,null,null,null,null,null,null,null,null,null,null,null,null,null,null,null,null,null,236,null,null,null,null,null,null,null,null,null,null,null,null,null,null,null,null,null,null,236]
[null,237,null,null,null,null,null,null,null,null,null,null,null,null,null,null,null,null,null,null,237,null,null,null,null,null,null,null,null,null,null,null,null,null,null,null,null,null,null,237,null,null,null,null,null,null,null,null,null,null,null,null,null,null,null,null,null,null,237]
[null,238,null,null,null,null,null,null,null,null,null,null,null,null,null,null,null,null,null,null,238,null,null,null,null,null,null,null,null,null,null,null,null,null,null,null,null,null,null,238,null,null,null,null,null,null,null,null,null,null,null,null,null,null,null,null,null,null,238]
[null,239,null,null,null,null,null,null,null,null,null,null,null,null,null,null,null,null,null,null,239,null,null,null,null,null,null,null,null,null,null,null,null,null,null,null,null,null,null,239,null,null,null,null,null,null,null,null,null,null,null,null,null,null,null,null,null,null,239]
[null,240,null,null,null,null,null,null,null,null,null,null,null,null,null,null,null,null,null,null,240,null,null,null,null,null,null,null,null,null,null,null,null,null,null,null,null,null,null,240,null,null,null,null,null,null,null,null,null,null,null,null,null,null,null,null,null,null,240]
[null,241,null,null,null,null,null,null,null,null,null,null,null,null,null,null,null,null,null,null,241,null,null,null,null,null,null,null,null,null,null,null,null,null,null,null,null,null,null,241,null,null,null,null,null,null,null,null,null,null,null,null,null,null,null,null,null,null,241]
[null,242,null,null,null,null,null,null,null,null,null,null,null,null,null,null,null,null,null,null,242,null,null,null,null,null,null,null,null,null,null,null,null,null,null,null,null,null,null,242,null,null,null,null,null,null,null,null,null,null,null,null,null,null,null,null,null,null,242]
[null,243,null,null,null,null,null,null,null,null,null,null,null,null,null,null,null,null,null,null,243,null,null,null,null,null,null,null,null,null,null,null,null,null,null,null,null,null,null,243,null,null,null,null,null,null,null,null,null,null,null,null,null,null,null,null,null,null,243]
[null,244,null,null,null,null,null,null,null,null,null,null,null,null,null,null,null,null,null,null,244,null,null,null,null,null,null,null,null,null,null,null,null,null,null,null,null,null,null,244,null,null,null,null,null,null,null,null,null,null,null,null,null,null,null,null,null,null,244]
[null,245,null,null,null,null,null,null,null,null,null,null,null,null,null,null,null,null,null,null,245,null,null,null,null,null,null,null,null,null,null,null,null,null,null,null,null,null,null,245,null,null,null,null,null,null,null,null,null,null,null,null,null,null,null,null,null,null,245]
[null,246,null,null,null,null,null,null,null,null,null,null,null,null,null,null,null,null,null,null,246,null,null,null,null,null,null,null,null,null,null,null,null,null,null,null,null,null,null,246,null,null,null,null,null,null,null,null,null,null,null,null,null,null,null,null,null,null,246]
[null,247,null,null,null,null,null,null,null,null,null,null,null,null,null,null,null,null,null,null,247,null,null,null,null,null,null,null,null,null,null,null,null,null,null,null,null,null,null,247,null,null,null,null,null,null,null,null,null,null,null,null,null,null,null,null,null,null,247]
[null,248,null,null,null,null,null,null,null,null,null,null,null,null,null,null,null,null,null,null,248,null,null,null,null,null,null,null,null,null,null,null,null,null,null,null,null,null,null,248,null,null,null,null,null,null,null,null,null,null,null,null,null,null,null,null,null,null,248]
[null,249,null,null,null,null,null,null,null,null,null,null,null,null,null,null,null,null,null,null,249,null,null,null,null,null,null,null,null,null,null,null,null,null,null,null,null,null,null,249,null,null,null,null,null,null,null,null,null,null,null,null,null,null,null,null,null,null,249]
[null,250,null,null,null,null,null,null,null,null,null,null,null,null,null,null,null,null,null,null,250,null,null,null,null,null,null,null,null,null,null,null,null,null,null,null,null,null,null,250,null,null,null,null,null,null,null,null,null,null,null,null,null,null,null,null,null,null,250]
[null,251,null,null,null,null,null,null,null,null,null,null,null,null,null,null,null,null,null,null,251,null,null,null,null,null,null,null,null,null,null,null,null,null,null,null,null,null,null,251,null,null,null,null,null,null,null,null,null,null,null,null,null,null,null,null,null,null,251]
[null,252,null,null,null,null,null,null,null,null,null,null,null,null,null,null,null,null,null,null,252,null,null,null,null,null,null,null,null,null,null,null,null,null,null,null,null,null,null,252,null,null,null,null,null,null,null,null,null,null,null,null,null,null,null,null,null,null,252]
[null,253,null,null,null,null,null,null,null,null,null,null,null,null,null,null,null,null,null,null,253,null,null,null,null,null,null,null,null,null,null,null,null,null,null,null,null,null,null,253,null,null,null,null,null,null,null,null,null,null,null,null,null,null,null,null,null,null,253]
[null,254,null,null,null,null,null,null,null,null,null,null,null,null,null,null,null,null,null,null,254,null,null,null,null,null,null,null,null,null,null,null,null,null,null,null,null,null,null,254,null,null,null,null,null,null,null,null,null,null,null,null,null,null,null,null,null,null,254]
[null,255,null,null,null,null,null,null,null,null,null,null,null,null,null,null,null,null,null,null,255,null,null,null,null,null,null,null,null,null,null,null,null,null,null,null,null,null,null,255,null,null,null,null,null,null,null,null,null,null,null,null,null,null,null,null,null,null,255]
[null,256,null,null,null,null,null,null,null,null,null,null,null,null,null,null,null,null,null,null,256,null,null,null,null,null,null,null,null,null,null,null,null,null,null,null,null,null,null,256,null,null,null,null,null,null,null,null,null,null,null,null,null,null,null,null,null,null,256]
[null,257,null,null,null,null,null,null,null,null,null,null,null,null,null,null,null,null,null,null,257,null,null,null,null,null,null,null,null,null,null,null,null,null,null,null,null,null,null,257,null,null,null,null,null,null,null,null,null,null,null,null,null,null,null,null,null,null,257]
[null,258,null,null,null,null,null,null,null,null,null,null,null,null,null,null,null,null,null,null,258,null,null,null,null,null,null,null,null,null,null,null,null,null,null,null,null,null,null,258,null,null,null,null,null,null,null,null,null,null,null,null,null,null,null,null,null,null,258]
[null,259,null,null,null,null,null,null,null,null,null,null,null,null,null,null,null,null,null,null,259,null,null,null,null,null,null,null,null,null,null,null,null,null,null,null,null,null,null,259,null,null,null,null,null,null,null,null,null,null,null,null,null,null,null,null,null,null,259]
[null,260,null,null,null,null,null,null,null,null,null,null,null,null,null,null,null,null,null,null,260,null,null,null,null,null,null,null,null,null,null,null,null,null,null,null,null,null,null,260,null,null,null,null,null,null,null,null,null,null,null,null,null,null,null,null,null,null,260]
[null,261,null,null,null,null,null,null,null,null,null,null,null,null,null,null,null,null,null,null,261,null,null,null,null,null,null,null,null,null,null,null,null,null,null,null,null,null,null,261,null,null,null,null,null,null,null,null,null,null,null,null,null,null,null,null,null,null,261]
[null,262,null,null,null,null,null,null,null,null,null,null,null,null,null,null,null,null,null,null,262,null,null,null,null,null,null,null,null,null,null,null,null,null,null,null,null,null,null,262,null,null,null,null,null,null,null,null,null,null,null,null,null,null,null,null,null,null,262]
[null,263,null,null,null,null,null,null,null,null,null,null,null,null,null,null,null,null,null,null,263,null,null,null,null,null,null,null,null,null,null,null,null,null,null,null,null,null,null,263,null,null,null,null,null,null,null,null,null,null,null,null,null,null,null,null,null,null,263]
[null,264,null,null,null,null,null,null,null,null,null,null,null,null,null,null,null,null,null,null,264,null,null,null,null,null,null,null,null,null,null,null,null,null,null,null,null,null,null,264,null,null,null,null,null,null,null,null,null,null,null,null,null,null,null,null,null,null,264]
[null,265,null,null,null,null,null,null,null,null,null,null,null,null,null,null,null,null,null,null,265,null,null,null,null,null,null,null,null,null,null,null,null,null,null,null,null,null,null,265,null,null,null,null,null,null,null,null,null,null,null,null,null,null,null,null,null,null,265]
[null,266,null,null,null,null,null,null,null,null,null,null,null,null,null,null,null,null,null,null,266,null,null,null,null,null,null,null,null,null,null,null,null,null,null,null,null,null,null,266,null,null,null,null,null,null,null,null,null,null,null,null,null,null,null,null,null,null,266]
[null,267,null,null,null,null,null,null,null,null,null,null,null,null,null,null,null,null,null,null,267,null,null,null,null,null,null,null,null,null,null,null,null,null,null,null,null,null,null,267,null,null,null,null,null,null,null,null,null,null,null,null,null,null,null,null,null,null,267]
[null,268,null,null,null,null,null,null,null,null,null,null,null,null,null,null,null,null,null,null,268,null,null,null,null,null,null,null,null,null,null,null,null,null,null,null,null,null,null,268,null,null,null,null,null,null,null,null,null,null,null,null,null,null,null,null,null,null,268]
[null,269,null,null,null,null,null,null,null,null,null,null,null,null,null,null,null,null,null,null,269,null,null,null,null,null,null,null,null,null,null,null,null,null,null,null,null,null,null,269,null,null,null,null,null,null,null,null,null,null,null,null,null,null,null,null,null,null,269]
[null,270,null,null,null,null,null,null,null,null,null,null,null,null,null,null,null,null,null,null,270,null,null,null,null,null,null,null,null,null,null,null,null,null,null,null,null,null,null,270,null,null,null,null,null,null,null,null,null,null,null,null,null,null,null,null,null,null,270]
[null,271,null,null,null,null,null,null,null,null,null,null,null,null,null,null,null,null,null,null,271,null,null,null,null,null,null,null,null,null,null,null,null,null,null,null,null,null,null,271,null,null,null,null,null,null,null,null,null,null,null,null,null,null,null,null,null,null,271]
[null,272,null,null,null,null,null,null,null,null,null,null,null,null,null,null,null,null,null,null,272,null,null,null,null,null,null,null,null,null,null,null,null,null,null,null,null,null,null,272,null,null,null,null,null,null,null,null,null,null,null,null,null,null,null,null,null,null,272]
[null,273,null,null,null,null,null,null,null,null,null,null,null,null,null,null,null,null,null,null,273,null,null,null,null,null,null,null,null,null,null,null,null,null,null,null,null,null,null,273,null,null,null,null,null,null,null,null,null,null,null,null,null,null,null,null,null,null,273]
[null,274,null,null,null,null,null,null,null,null,null,null,null,null,null,null,null,null,null,null,274,null,null,null,null,null,null,null,null,null,null,null,null,null,null,null,null,null,null,274,null,null,null,null,null,null,null,null,null,null,null,null,null,null,null,null,null,null,274]
[null,275,null,null,null,null,null,null,null,null,null,null,null,null,null,null,null,null,null,null,275,null,null,null,null,null,null,null,null,null,null,null,null,null,null,null,null,null,null,275,null,null,null,null,null,null,null,null,null,null,null,null,null,null,null,null,null,null,275]
[null,276,null,null,null,null,null,null,null,null,null,null,null,null,null,null,null,null,null,null,276,null,null,null,null,null,null,null,null,null,null,null,null,null,null,null,null,null,null,276,null,null,null,null,null,null,null,null,null,null,null,null,null,null,null,null,null,null,276]
[null,277,null,null,null,null,null,null,null,null,null,null,null,null,null,null,null,null,null,null,277,null,null,null,null,null,null,null,null,null,null,null,null,null,null,null,null,null,null,277,null,null,null,null,null,null,null,null,null,null,null,null,null,null,null,null,null,null,277]
[null,278,null,null,null,null,null,null,null,null,null,null,null,null,null,null,null,null,null,null,278,null,null,null,null,null,null,null,null,null,null,null,null,null,null,null,null,null,null,278,null,null,null,null,null,null,null,null,null,null,null,null,null,null,null,null,null,null,278]
[null,279,null,null,null,null,null,null,null,null,null,null,null,null,null,null,null,null,null,null,279,null,null,null,null,null,null,null,null,null,null,null,null,null,null,null,null,null,null,279,null,null,null,null,null,null,null,null,null,null,null,null,null,null,null,null,null,null,279]
[null,280,null,null,null,null,null,null,null,null,null,null,null,null,null,null,null,null,null,null,280,null,null,null,null,null,null,null,null,null,null,null,null,null,null,null,null,null,null,280,null,null,null,null,null,null,null,null,null,null,null,null,null,null,null,null,null,null,280]
[null,281,null,null,null,null,null,null,null,null,null,null,null,null,null,null,null,null,null,null,281,null,null,null,null,null,null,null,null,null,null,null,null,null,null,null,null,null,null,281,null,null,null,null,null,null,null,null,null,null,null,null,null,null,null,null,null,null,281]
[null,282,null,null,null,null,null,null,null,null,null,null,null,null,null,null,null,null,null,null,282,null,null,null,null,null,null,null,null,null,null,null,null,null,null,null,null,null,null,282,null,null,null,null,null,null,null,null,null,null,null,null,null,null,null,null,null,null,282]
[null,283,null,null,null,null,null,null,null,null,null,null,null,null,null,null,null,null,null,null,283,null,null,null,null,null,null,null,null,null,null,null,null,null,null,null,null,null,null,283,null,null,null,null,null,null,null,null,null,null,null,null,null,null,null,null,null,null,283]
[null,284,null,null,null,null,null,null,null,null,null,null,null,null,null,null,null,null,null,null,284,null,null,null,null,null,null,null,null,null,null,null,null,null,null,null,null,null,null,284,null,null,null,null,null,null,null,null,null,null,null,null,null,null,null,null,null,null,284]
[null,285,null,null,null,null,null,null,null,null,null,null,null,null,null,null,null,null,null,null,285,null,null,null,null,null,null,null,null,null,null,null,null,null,null,null,null,null,null,285,null,null,null,null,null,null,null,null,null,null,null,null,null,null,null,null,null,null,285]
[null,286,null,null,null,null,null,null,null,null,null,null,null,null,null,null,null,null,null,null,286,null,null,null,null,null,null,null,null,null,null,null,null,null,null,null,null,null,null,286,null,null,null,null,null,null,null,null,null,null,null,null,null,null,null,null,null,null,286]
[null,287,null,null,null,null,null,null,null,null,null,null,null,null,null,null,null,null,null,null,287,null,null,null,null,null,null,null,null,null,null,null,null,null,null,null,null,null,null,287,null,null,null,null,null,null,null,null,null,null,null,null,null,null,null,null,null,null,287]
[null,288,null,null,null,null,null,null,null,null,null,null,null,null,null,null,null,null,null,null,288,null,null,null,null,null,null,null,null,null,null,null,null,null,null,null,null,null,null,288,null,null,null,null,null,null,null,null,null,null,null,null,null,null,null,null,null,null,288]
[null,289,null,null,null,null,null,null,null,null,null,null,null,null,null,null,null,null,null,null,289,null,null,null,null,null,null,null,null,null,null,null,null,null,null,null,null,null,null,289,null,null,null,null,null,null,null,null,null,null,null,null,null,null,null,null,null,null,289]
[null,290,null,null,null,null,null,null,null,null,null,null,null,null,null,null,null,null,null,null,290,null,null,null,null,null,null,null,null,null,null,null,null,null,null,null,null,null,null,290,null,null,null,null,null,null,null,null,null,null,null,null,null,null,null,null,null,null,290]
[null,291,null,null,null,null,null,null,null,null,null,null,null,null,null,null,null,null,null,null,291,null,null,null,null,null,null,null,null,null,null,null,null,null,null,null,null,null,null,291,null,null,null,null,null,null,null,null,null,null,null,null,null,null,null,null,null,null,291]
[null,292,null,null,null,null,null,null,null,null,null,null,null,null,null,null,null,null,null,null,292,null,null,null,null,null,null,null,null,null,null,null,null,null,null,null,null,null,null,292,null,null,null,null,null,null,null,null,null,null,null,null,null,null,null,null,null,null,292]
[null,293,null,null,null,null,null,null,null,null,null,null,null,null,null,null,null,null,null,null,293,null,null,null,null,null,null,null,null,null,null,null,null,null,null,null,null,null,null,293,null,null,null,null,null,null,null,null,null,null,null,null,null,null,null,null,null,null,293]
[null,294,null,null,null,null,null,null,null,null,null,null,null,null,null,null,null,null,null,null,294,null,null,null,null,null,null,null,null,null,null,null,null,null,null,null,null,null,null,294,null,null,null,null,null,null,null,null,null,null,null,null,null,null,null,null,null,null,294]
[null,295,null,null,null,null,null,null,null,null,null,null,null,null,null,null,null,null,null,null,295,null,null,null,null,null,null,null,null,null,null,null,null,null,null,null,null,null,null,295,null,null,null,null,null,null,null,null,null,null,null,null,null,null,null,null,null,null,295]
[null,296,null,null,null,null,null,null,null,null,null,null,null,null,null,null,null,null,null,null,296,null,null,null,null,null,null,null,null,null,null,null,null,null,null,null,null,null,null,296,null,null,null,null,null,null,null,null,null,null,null,null,null,null,null,null,null,null,296]
[null,297,null,null,null,null,null,null,null,null,null,null,null,null,null,null,null,null,null,null,297,null,null,null,null,null,null,null,null,null,null,null,null,null,null,null,null,null,null,297,null,null,null,null,null,null,null,null,null,null,null,null,null,null,null,null,null,null,297]
[null,298,null,null,null,null,null,null,null,null,null,null,null,null,null,null,null,null,null,null,298,null,null,null,null,null,null,null,null,null,null,null,null,null,null,null,null,null,null,298,null,null,null,null,null,null,null,null,null,null,null,null,null,null,null,null,null,null,298]
[null,299,null,null,null,null,null,null,null,null,null,null,null,null,null,null,null,null,null,null,299,null,null,null,null,null,null,null,null,null,null,null,null,null,null,null,null,null,null,299,null,null,null,null,null,null,null,null,null,null,null,null,null,null,null,null,null,null,299]
[null,300,null,null,null,null,null,null,null,null,null,null,null,null,null,null,null,null,null,null,300,null,null,null,null,null,null,null,null,null,null,null,null,null,null,null,null,null,null,300,null,null,null,null,null,null,null,null,null,null,null,null,null,null,null,null,null,null,300]

{"sheet":"Datasheets Fiber","index":10,"n_rows":19,"n_cols":131,"rows_kept":19,"cut":false,"hidden":false,"merged":[[10,126,11,134],[12,119,13,134],[10,102,11,107],[10,109,11,117],[12,102,13,117],[10,119,11,124],[4,119,5,134],[6,119,7,134],[8,119,9,122],[8,123,9,124],[8,126,9,129],[8,130,9,134],[4,102,5,117],[6,102,7,117],[8,102,9,105],[8,106,9,107],[8,109,9,112],[8,113,9,117],[10,85,11,90],[10,92,11,100],[12,85,13,100],[4,68,5,83],[6,68,7,83],[8,68,9,71],[8,72,9,73],[4,85,5,100],[6,85,7,100],[8,85,9,88],[8,89,9,90],[8,92,9,95],[8,96,9,100],[8,75,9,78],[8,79,9,83],[10,68,11,73],[10,75,11,83],[12,68,13,83],[4,51,5,66],[6,51,7,66],[8,51,9,54],[8,55,9,56],[8,58,9,61],[8,62,9,66],[10,51,11,56],[10,58,11,66],[12,51,13,66],[10,34,11,39],[10,41,11,49],[12,34,13,49],[4,17,5,32],[6,17,7,32],[8,17,9,20],[8,21,9,22],[8,24,9,27],[8,28,9,32],[4,34,5,49],[6,34,7,49],[8,34,9,37],[8,38,9,39],[8,41,9,44],[8,45,9,49],[10,17,11,22],[0,0,0,16],[10,7,11,15],[4,0,5,15],[6,0,7,15],[2,3,2,8],[2,13,2,16],[10,24,11,32],[12,0,13,15],[10,0,11,5],[8,0,9,3],[8,7,9,10],[8,4,9,5],[8,11,9,15],[12,17,13,32]]}
[{"$f":"CONCATENATE(Read_Me!A1,\" FS ASES \",Read_Me!B1,\" - Datasheets Fiber\")","v":"2026 FS ASES V1.0 - Datasheets Fiber"}]
[null,null,null,null,null,null,null,null,null,null,null,null,null,null,null,null,null,null,"BACK to COVER SHEET"]
["University Name",null,null,{"$f":"IF('Cover Sheet'!D15:J15>0,'Cover Sheet'!D15:J15,\"\")","v":""},null,null,null,null,null,"Car No.(s) & Event(s)",null,null,null,{"$f":"IF('Cover Sheet'!O15>0,'Cover Sheet'!O15,\"\")","v":""}]
[]
["Twill 22x",null,null,null,null,null,null,null,null,null,null,null,null,null,null,null,null,"Your Material 2",null,null,null,null,null,null,null,null,null,null,null,null,null,null,null,null,"Your Material 3",null,null,null,null,null,null,null,null,null,null,null,null,null,null,null,null,"Your Material 4",null,null,null,null,null,null,null,null,null,null,null,null,null,null,null,null,"Your Material 5",null,null,null,null,null,null,null,null,null,null,null,null,null,null,null,null,"Your Material 6",null,null,null,null,null,null,null,null,null,null,null,null,null,null,null,null,"Your Material 7",null,null,null,null,null,null,null,null,null,null,null,null,null,null,null,null,"Your Material 8"]
[]
["Carbon Fiber",null,null,null,null,null,null,null,null,null,null,null,null,null,null,null,null,"Carbon Fiber",null,null,null,null,null,null,null,null,null,null,null,null,null,null,null,null,"Carbon Fiber",null,null,null,null,null,null,null,null,null,null,null,null,null,null,null,null,"Carbon Fiber",null,null,null,null,null,null,null,null,null,null,null,null,null,null,null,null,"Carbon Fiber",null,null,null,null,null,null,null,null,null,null,null,null,null,null,null,null,"Carbon Fiber",null,null,null,null,null,null,null,null,null,null,null,null,null,null,null,null,"Carbon Fiber",null,null,null,null,null,null,null,null,null,null,null,null,null,null,null,null,"Carbon Fiber"]
[]
["mechanical properties shown?",null,null,null,"NO",null,null,"Fire rating shown?",null,null,null,"NO",null,null,null,null,null,"mechanical properties shown?",null,null,null,"NO",null,null,"Fire rating shown?",null,null,null,"NO",null,null,null,null,null,"mechanical properties shown?",null,null,null,"NO",null,null,"Fire rating shown?",null,null,null,"NO",null,null,null,null,null,"mechanical properties shown?",null,null,null,"NO",null,null,"Fire rating shown?",null,null,null,"NO",null,null,null,null,null,"mechanical properties shown?",null,null,null,"NO",null,null,"Fire rating shown?",null,null,null,"NO",null,null,null,null,null,"mechanical properties shown?",null,null,null,"NO",null,null,"Fire rating shown?",null,null,null,"NO",null,null,null,null,null,"mechanical properties shown?",null,null,null,"NO",null,null,"Fire rating shown?",null,null,null,"NO",null,null,null,null,null,"mechanical properties shown?",null,null,null,"NO",null,null,"Fire rating shown?",null,null,null,"NO"]
[]
[{"$f":"IF(E9=\"N/A\",\"Please explain why not applicable\",\"\" )","v":""},null,null,null,null,null,null,{"$f":"IF(L9=\"Performed own test\",\"Please add pictures of test piece below and bring video to technical inspection\",\"\" )","v":""},null,null,null,null,null,null,null,null,null,{"$f":"IF(V9=\"N/A\",\"Please explain why not applicable\",\"\" )","v":""},null,null,null,null,null,null,{"$f":"IF(AC9=\"Performed own test\",\"Please add pictures of test piece below and bring video to technical inspection\",\"\" )","v":""},null,null,null,null,null,null,null,null,null,{"$f":"IF(AM9=\"N/A\",\"Please explain why not applicable\",\"\" )","v":""},null,null,null,null,null,null,{"$f":"IF(AT9=\"Performed own test\",\"Please add pictures of test piece below and bring video to technical inspection\",\"\" )","v":""},null,null,null,null,null,null,null,null,null,{"$f":"IF(BD9=\"N/A\",\"Please explain why not applicable\",\"\" )","v":""},null,null,null,null,null,null,{"$f":"IF(BK9=\"Performed own test\",\"Please add pictures of test piece below and bring video to technical inspection\",\"\" )","v":""},null,null,null,null,null,null,null,null,null,{"$f":"IF(BU9=\"N/A\",\"Please explain why not applicable\",\"\" )","v":""},null,null,null,null,null,null,{"$f":"IF(CB9=\"Performed own test\",\"Please add pictures of test piece below and bring video to technical inspection\",\"\" )","v":""},null,null,null,null,null,null,null,null,null,{"$f":"IF(CL9=\"N/A\",\"Please explain why not applicable\",\"\" )","v":""},null,null,null,null,null,null,{"$f":"IF(CS9=\"Performed own test\",\"Please add pictures of test piece below and bring video to technical inspection\",\"\" )","v":""},null,null,null,null,null,null,null,null,null,{"$f":"IF(DC9=\"N/A\",\"Please explain why not applicable\",\"\" )","v":""},null,null,null,null,null,null,{"$f":"IF(DJ9=\"Performed own test\",\"Please add pictures of test piece below and bring video to technical inspection\",\"\" )","v":""},null,null,null,null,null,null,null,null,null,{"$f":"IF(DT9=\"N/A\",\"Please explain why not applicable\",\"\" )","v":""},null,null,null,null,null,null,{"$f":"IF(EA9=\"Performed own test\",\"Please add pictures of test piece below and bring video to technical inspection\",\"\" )","v":""}]
[]
["Data Sheet",null,null,null,null,null,null,null,null,null,null,null,null,null,null,null,null,"Data Sheet",null,null,null,null,null,null,null,null,null,null,null,null,null,null,null,null,"Data Sheet",null,null,null,null,null,null,null,null,null,null,null,null,null,null,null,null,"Data Sheet",null,null,null,null,null,null,null,null,null,null,null,null,null,null,null,null,"Data Sheet",null,null,null,null,null,null,null,null,null,null,null,null,null,null,null,null,"Data Sheet",null,null,null,null,null,null,null,null,null,null,null,null,null,null,null,null,"Data Sheet",null,null,null,null,null,null,null,null,null,null,null,null,null,null,null,null,"Data Sheet"]
[]
[]
[]
["Insert image of relevant datasheet pages (name of material must be visible on the pages).",null,null,null,null,null,null,null,null,null,null,null,null,null,null,null,null,"Insert image of relevant datasheet pages (name of material must be visible on the pages).",null,null,null,null,null,null,null,null,null,null,null,null,null,null,null,null,"Insert image of relevant datasheet pages (name of material must be visible on the pages).",null,null,null,null,null,null,null,null,null,null,null,null,null,null,null,null,"Insert image of relevant datasheet pages (name of material must be visible on the pages).",null,null,null,null,null,null,null,null,null,null,null,null,null,null,null,null,"Insert image of relevant datasheet pages (name of material must be visible on the pages).",null,null,null,null,null,null,null,null,null,null,null,null,null,null,null,null,"Insert image of relevant datasheet pages (name of material must be visible on the pages).",null,null,null,null,null,null,null,null,null,null,null,null,null,null,null,null,"Insert image of relevant datasheet pages (name of material must be visible on the pages).",null,null,null,null,null,null,null,null,null,null,null,null,null,null,null,null,"Insert image of relevant datasheet pages (name of material must be visible on the pages)."]
["Highlight the releveant areas for fire rating, mechanical properties.",null,null,null,null,null,null,null,null,null,null,null,null,null,null,null,null,"Highlight the releveant areas for fire rating, mechanical properties.",null,null,null,null,null,null,null,null,null,null,null,null,null,null,null,null,"Highlight the releveant areas for fire rating, mechanical properties.",null,null,null,null,null,null,null,null,null,null,null,null,null,null,null,null,"Highlight the releveant areas for fire rating, mechanical properties.",null,null,null,null,null,null,null,null,null,null,null,null,null,null,null,null,"Highlight the releveant areas for fire rating, mechanical properties.",null,null,null,null,null,null,null,null,null,null,null,null,null,null,null,null,"Highlight the releveant areas for fire rating, mechanical properties.",null,null,null,null,null,null,null,null,null,null,null,null,null,null,null,null,"Highlight the releveant areas for fire rating, mechanical properties.",null,null,null,null,null,null,null,null,null,null,null,null,null,null,null,null,"Highlight the releveant areas for fire rating, mechanical properties."]
["In case of shared datasheets of more materials please highlight the used material.",null,null,null,null,null,null,null,null,null,null,null,null,null,null,null,null,"In case of shared datasheets of more materials please highlight the used material.",null,null,null,null,null,null,null,null,null,null,null,null,null,null,null,null,"In case of shared datasheets of more materials please highlight the used material.",null,null,null,null,null,null,null,null,null,null,null,null,null,null,null,null,"In case of shared datasheets of more materials please highlight the used material.",null,null,null,null,null,null,null,null,null,null,null,null,null,null,null,null,"In case of shared datasheets of more materials please highlight the used material.",null,null,null,null,null,null,null,null,null,null,null,null,null,null,null,null,"In case of shared datasheets of more materials please highlight the used material.",null,null,null,null,null,null,null,null,null,null,null,null,null,null,null,null,"In case of shared datasheets of more materials please highlight the used material.",null,null,null,null,null,null,null,null,null,null,null,null,null,null,null,null,"In case of shared datasheets of more materials please highlight the used material."]

{"sheet":"Datasheets Other Matl","index":11,"n_rows":21,"n_cols":131,"rows_kept":21,"cut":false,"hidden":false,"merged":[[10,126,11,129],[10,130,11,134],[10,106,11,107],[10,109,11,112],[10,113,11,117],[10,119,11,122],[10,123,11,124],[10,85,11,88],[10,89,11,90],[10,92,11,95],[10,96,11,100],[10,102,11,105],[10,62,11,66],[10,68,11,71],[10,72,11,73],[10,75,11,78],[10,79,11,83],[10,41,11,44],[10,45,11,49],[10,51,11,54],[10,55,11,56],[10,58,11,61],[10,21,11,22],[10,24,11,27],[10,28,11,32],[10,34,11,37],[10,38,11,39],[10,0,11,3],[10,4,11,5],[10,7,11,10],[10,11,11,15],[10,17,11,20],[4,34,5,49],[4,0,5,15],[4,17,5,32],[0,0,0,16],[2,3,2,8],[2,13,2,16],[4,51,5,66],[4,68,5,83],[4,85,5,100],[6,34,7,49],[6,51,7,66],[6,68,7,83],[8,28,9,32],[8,34,9,37],[8,38,9,39],[8,41,9,44],[8,45,9,49],[8,102,9,105],[8,0,9,3],[8,4,9,5],[8,7,9,10],[8,11,9,15],[8,17,9,20],[8,21,9,22],[8,24,9,27],[6,0,7,15],[6,17,7,32],[8,75,9,78],[8,79,9,83],[8,85,9,88],[8,89,9,90],[4,102,5,117],[4,119,5,134],[8,51,9,54],[6,85,7,100],[6,102,7,117],[6,119,7,134],[8,92,9,95],[8,96,9,100],[8,130,9,134],[12,0,13,5],[12,7,13,15],[12,17,13,22],[12,24,13,32],[12,34,13,39],[12,41,13,49],[12,51,13,56],[12,58,13,66],[12,68,13,73],[8,106,9,107],[8,109,9,112],[8,113,9,117],[8,119,9,122],[8,123,9,124],[8,126,9,129],[12,126,13,134],[8,55,9,56],[8,58,9,61],[8,62,9,66],[8,68,9,71],[8,72,9,73],[14,0,15,15],[14,17,15,32],[14,34,15,49],[14,51,15,66],[14,68,15,83],[14,85,15,100],[14,102,15,117],[14,119,15,134],[12,75,13,83],[12,85,13,90],[12,92,13,100],[12,102,13,107],[12,109,13,117],[12,119,13,124]]}
[{"$f":"CONCATENATE(Read_Me!A1,\" FS ASES \",Read_Me!B1,\" - Datasheets Other Matl'\")","v":"2026 FS ASES V1.0 - Datasheets Other Matl'"}]
[null,null,null,null,null,null,null,null,null,null,null,null,null,null,null,null,null,null,"BACK to COVER SHEET"]
["University Name",null,null,{"$f":"IF('Cover Sheet'!D15:J15>0,'Cover Sheet'!D15:J15,\"\")","v":""},null,null,null,null,null,"Car No.(s) & Event(s)",null,null,null,{"$f":"IF('Cover Sheet'!O15>0,'Cover Sheet'!O15,\"\")","v":""}]
[]
["Your Material 1",null,null,null,null,null,null,null,null,null,null,null,null,null,null,null,null,"Your Material 2",null,null,null,null,null,null,null,null,null,null,null,null,null,null,null,null,"Your Material 3",null,null,null,null,null,null,null,null,null,null,null,null,null,null,null,null,"Your Material 4",null,null,null,null,null,null,null,null,null,null,null,null,null,null,null,null,"Your Material 5",null,null,null,null,null,null,null,null,null,null,null,null,null,null,null,null,"Your Material 6",null,null,null,null,null,null,null,null,null,null,null,null,null,null,null,null,"Your Material 7",null,null,null,null,null,null,null,null,null,null,null,null,null,null,null,null,"Your Material 8"]
[]
["Steel",null,null,null,null,null,null,null,null,null,null,null,null,null,null,null,null,"Aluminium",null,null,null,null,null,null,null,null,null,null,null,null,null,null,null,null,"Aluminium",null,null,null,null,null,null,null,null,null,null,null,null,null,null,null,null,"Aluminium",null,null,null,null,null,null,null,null,null,null,null,null,null,null,null,null,"Aluminium",null,null,null,null,null,null,null,null,null,null,null,null,null,null,null,null,"Aluminium",null,null,null,null,null,null,null,null,null,null,null,null,null,null,null,null,"Aluminium",null,null,null,null,null,null,null,null,null,null,null,null,null,null,null,null,"Aluminium"]
[]
["Mechanical properties shown?",null,null,null,"NO",null,null,"Fire rating shown?",null,null,null,"NO",null,null,null,null,null,"Mechanical properties shown?",null,null,null,"NO",null,null,"Fire rating shown?",null,null,null,"NO",null,null,null,null,null,"Mechanical properties shown?",null,null,null,"NO",null,null,"Fire rating shown?",null,null,null,"NO",null,null,null,null,null,"Mechanical properties shown?",null,null,null,"NO",null,null,"Fire rating shown?",null,null,null,"NO",null,null,null,null,null,"Mechanical properties shown?",null,null,null,"NO",null,null,"Fire rating shown?",null,null,null,"NO",null,null,null,null,null,"Mechanical properties shown?",null,null,null,"NO",null,null,"Fire rating shown?",null,null,null,"NO",null,null,null,null,null,"Mechanical properties shown?",null,null,null,"NO",null,null,"Fire rating shown?",null,null,null,"NO",null,null,null,null,null,"Mechanical properties shown?",null,null,null,"NO",null,null,"Fire rating shown?",null,null,null,"NO"]
[]
["Mechanical properties at 60° shown?",null,null,null,"NO",null,null,"Shear strength at 60°  [MPa]",null,null,null,null,null,null,null,null,null,"Mechanical properties at 60° shown?",null,null,null,"NO",null,null,"Shear strength at 60°  [MPa]",null,null,null,null,null,null,null,null,null,"Mechanical properties at 60° shown?",null,null,null,"NO",null,null,"Shear strength at 60°  [MPa]",null,null,null,null,null,null,null,null,null,"Mechanical properties at 60° shown?",null,null,null,"NO",null,null,"Shear strength at 60°  [MPa]",null,null,null,null,null,null,null,null,null,"Mechanical properties at 60° shown?",null,null,null,"NO",null,null,"Shear strength at 60°  [MPa]",null,null,null,null,null,null,null,null,null,"Mechanical properties at 60° shown?",null,null,null,"NO",null,null,"Shear strength at 60°  [MPa]",null,null,null,null,null,null,null,null,null,"Mechanical properties at 60° shown?",null,null,null,"NO",null,null,"Shear strength at 60°  [MPa]",null,null,null,null,null,null,null,null,null,"Mechanical properties at 60° shown?",null,null,null,"NO",null,null,"Shear strength at 60°  [MPa]"]
[]
[{"$f":"IF(OR(E9=\"N/A\",E11=\"N/A\"),\"Please explain why not applicable\",\"\" )","v":""},null,null,null,null,null,null,{"$f":"IF(L9=\"Performed own test\",\"Please add pictures of test piece below and bring video to technical inspection\",\"\" )","v":""},null,null,null,null,null,null,null,null,null,{"$f":"IF(OR(V9=\"N/A\",V11=\"N/A\"),\"Please explain why not applicable\",\"\" )","v":""},null,null,null,null,null,null,{"$f":"IF(AC9=\"Performed own test\",\"Please add pictures of test piece below and bring video to technical inspection\",\"\" )","v":""},null,null,null,null,null,null,null,null,null,{"$f":"IF(OR(AM9=\"N/A\",AM11=\"N/A\"),\"Please explain why not applicable\",\"\" )","v":""},null,null,null,null,null,null,{"$f":"IF(AT9=\"Performed own test\",\"Please add pictures of test piece below and bring video to technical inspection\",\"\" )","v":""},null,null,null,null,null,null,null,null,null,{"$f":"IF(OR(BD9=\"N/A\",BD11=\"N/A\"),\"Please explain why not applicable\",\"\" )","v":""},null,null,null,null,null,null,{"$f":"IF(BK9=\"Performed own test\",\"Please add pictures of test piece below and bring video to technical inspection\",\"\" )","v":""},null,null,null,null,null,null,null,null,null,{"$f":"IF(OR(BU9=\"N/A\",BU11=\"N/A\"),\"Please explain why not applicable\",\"\" )","v":""},null,null,null,null,null,null,{"$f":"IF(CB9=\"Performed own test\",\"Please add pictures of test piece below and bring video to technical inspection\",\"\" )","v":""},null,null,null,null,null,null,null,null,null,{"$f":"IF(OR(CL9=\"N/A\",CL11=\"N/A\"),\"Please explain why not applicable\",\"\" )","v":""},null,null,null,null,null,null,{"$f":"IF(CS9=\"Performed own test\",\"Please add pictures of test piece below and bring video to technical inspection\",\"\" )","v":""},null,null,null,null,null,null,null,null,null,{"$f":"IF(OR(DC9=\"N/A\",DC11=\"N/A\"),\"Please explain why not applicable\",\"\" )","v":""},null,null,null,null,null,null,{"$f":"IF(DJ9=\"Performed own test\",\"Please add pictures of test piece below and bring video to technical inspection\",\"\" )","v":""},null,null,null,null,null,null,null,null,null,{"$f":"IF(OR(DT9=\"N/A\",DT11=\"N/A\"),\"Please explain why not applicable\",\"\" )","v":""},null,null,null,null,null,null,{"$f":"IF(EA9=\"Performed own test\",\"Please add pictures of test piece below and bring video to technical inspection\",\"\" )","v":""}]
[]
["Data Sheet",null,null,null,null,null,null,null,null,null,null,null,null,null,null,null,null,"Data Sheet",null,null,null,null,null,null,null,null,null,null,null,null,null,null,null,null,"Data Sheet",null,null,null,null,null,null,null,null,null,null,null,null,null,null,null,null,"Data Sheet",null,null,null,null,null,null,null,null,null,null,null,null,null,null,null,null,"Data Sheet",null,null,null,null,null,null,null,null,null,null,null,null,null,null,null,null,"Data Sheet",null,null,null,null,null,null,null,null,null,null,null,null,null,null,null,null,"Data Sheet",null,null,null,null,null,null,null,null,null,null,null,null,null,null,null,null,"Data Sheet"]
[]
[]
[]
["Insert image of relevant datasheet pages (name of material must be visible on the pages).",null,null,null,null,null,null,null,null,null,null,null,null,null,null,null,null,"Insert image of relevant datasheet pages (name of material must be visible on the pages).",null,null,null,null,null,null,null,null,null,null,null,null,null,null,null,null,"Insert image of relevant datasheet pages (name of material must be visible on the pages).",null,null,null,null,null,null,null,null,null,null,null,null,null,null,null,null,"Insert image of relevant datasheet pages (name of material must be visible on the pages).",null,null,null,null,null,null,null,null,null,null,null,null,null,null,null,null,"Insert image of relevant datasheet pages (name of material must be visible on the pages).",null,null,null,null,null,null,null,null,null,null,null,null,null,null,null,null,"Insert image of relevant datasheet pages (name of material must be visible on the pages).",null,null,null,null,null,null,null,null,null,null,null,null,null,null,null,null,"Insert image of relevant datasheet pages (name of material must be visible on the pages).",null,null,null,null,null,null,null,null,null,null,null,null,null,null,null,null,"Insert image of relevant datasheet pages (name of material must be visible on the pages)."]
["Highlight the releveant areas for fire rating, mechanical properties (@ 60 °C if applicable).",null,null,null,null,null,null,null,null,null,null,null,null,null,null,null,null,"Highlight the releveant areas for fire rating, mechanical properties (@ 60 °C if applicable).",null,null,null,null,null,null,null,null,null,null,null,null,null,null,null,null,"Highlight the releveant areas for fire rating, mechanical properties (@ 60 °C if applicable).",null,null,null,null,null,null,null,null,null,null,null,null,null,null,null,null,"Highlight the releveant areas for fire rating, mechanical properties (@ 60 °C if applicable).",null,null,null,null,null,null,null,null,null,null,null,null,null,null,null,null,"Highlight the releveant areas for fire rating, mechanical properties (@ 60 °C if applicable).",null,null,null,null,null,null,null,null,null,null,null,null,null,null,null,null,"Highlight the releveant areas for fire rating, mechanical properties (@ 60 °C if applicable).",null,null,null,null,null,null,null,null,null,null,null,null,null,null,null,null,"Highlight the releveant areas for fire rating, mechanical properties (@ 60 °C if applicable).",null,null,null,null,null,null,null,null,null,null,null,null,null,null,null,null,"Highlight the releveant areas for fire rating, mechanical properties (@ 60 °C if applicable)."]
["In case of shared datasheets of more materials please highlight the used material.",null,null,null,null,null,null,null,null,null,null,null,null,null,null,null,null,"In case of shared datasheets of more materials please highlight the used material.",null,null,null,null,null,null,null,null,null,null,null,null,null,null,null,null,"In case of shared datasheets of more materials please highlight the used material.",null,null,null,null,null,null,null,null,null,null,null,null,null,null,null,null,"In case of shared datasheets of more materials please highlight the used material.",null,null,null,null,null,null,null,null,null,null,null,null,null,null,null,null,"In case of shared datasheets of more materials please highlight the used material.",null,null,null,null,null,null,null,null,null,null,null,null,null,null,null,null,"In case of shared datasheets of more materials please highlight the used material.",null,null,null,null,null,null,null,null,null,null,null,null,null,null,null,null,"In case of shared datasheets of more materials please highlight the used material.",null,null,null,null,null,null,null,null,null,null,null,null,null,null,null,null,"In case of shared datasheets of more materials please highlight the used material."]

{"sheet":"Datasheets Glue","index":12,"n_rows":19,"n_cols":131,"rows_kept":19,"cut":false,"hidden":false,"merged":[[4,34,5,49],[4,0,5,15],[4,17,5,32],[0,0,0,16],[2,3,2,8],[2,13,2,16],[4,51,5,66],[4,68,5,83],[4,85,5,100],[4,102,5,117],[4,119,5,134],[8,51,9,54],[8,0,9,3],[8,4,9,5],[8,7,9,10],[8,11,9,15],[8,17,9,20],[8,21,9,22],[8,24,9,27],[8,28,9,32],[8,34,9,37],[8,38,9,39],[8,41,9,44],[8,45,9,49],[8,102,9,105],[8,55,9,56],[8,58,9,61],[8,62,9,66],[8,68,9,71],[8,72,9,73],[8,75,9,78],[8,79,9,83],[8,85,9,88],[8,89,9,90],[8,92,9,95],[8,96,9,100],[8,130,9,134],[10,0,11,5],[10,7,11,15],[10,17,11,22],[10,24,11,32],[10,34,11,39],[10,41,11,49],[10,51,11,56],[10,58,11,66],[10,68,11,73],[8,106,9,107],[8,109,9,112],[8,113,9,117],[8,119,9,122],[8,123,9,124],[8,126,9,129],[10,126,11,134],[12,0,13,15],[12,17,13,32],[12,34,13,49],[12,51,13,66],[12,68,13,83],[12,85,13,100],[12,102,13,117],[12,119,13,134],[10,75,11,83],[10,85,11,90],[10,92,11,100],[10,102,11,107],[10,109,11,117],[10,119,11,124],[6,41,7,44],[6,0,7,3],[6,4,7,5],[6,7,7,10],[6,11,7,15],[6,17,7,20],[6,21,7,22],[6,24,7,27],[6,28,7,32],[6,34,7,37],[6,38,7,39],[6,92,7,95],[6,45,7,49],[6,51,7,54],[6,55,7,56],[6,58,7,61],[6,62,7,66],[6,68,7,71],[6,72,7,73],[6,75,7,78],[6,79,7,83],[6,85,7,88],[6,89,7,90],[6,123,7,124],[6,126,7,129],[6,130,7,134],[6,96,7,100],[6,102,7,105],[6,106,7,107],[6,109,7,112],[6,113,7,117],[6,119,7,122]]}
[{"$f":"CONCATENATE(Read_Me!A1,\" FS ASES \",Read_Me!B1,\" - Datasheets Glue\")","v":"2026 FS ASES V1.0 - Datasheets Glue"}]
[null,null,null,null,null,null,null,null,null,null,null,null,null,null,null,null,null,null,"BACK to COVER SHEET"]
["University Name",null,null,{"$f":"IF('Cover Sheet'!D15:J15>0,'Cover Sheet'!D15:J15,\"\")","v":""},null,null,null,null,null,"Car No.(s) & Event(s)",null,null,null,{"$f":"IF('Cover Sheet'!O15>0,'Cover Sheet'!O15,\"\")","v":""}]
[]
["Your Material 1",null,null,null,null,null,null,null,null,null,null,null,null,null,null,null,null,"Your Material 2",null,null,null,null,null,null,null,null,null,null,null,null,null,null,null,null,"Your Material 3",null,null,null,null,null,null,null,null,null,null,null,null,null,null,null,null,"Your Material 4",null,null,null,null,null,null,null,null,null,null,null,null,null,null,null,null,"Your Material 5",null,null,null,null,null,null,null,null,null,null,null,null,null,null,null,null,"Your Material 6",null,null,null,null,null,null,null,null,null,null,null,null,null,null,null,null,"Your Material 7",null,null,null,null,null,null,null,null,null,null,null,null,null,null,null,null,"Your Material 8"]
[]
["Mechanical properties shown?",null,null,null,"NO",null,null,"Fire rating shown?",null,null,null,"NO",null,null,null,null,null,"Mechanical properties shown?",null,null,null,"NO",null,null,"Fire rating shown?",null,null,null,"NO",null,null,null,null,null,"Mechanical properties shown?",null,null,null,"NO",null,null,"Fire rating shown?",null,null,null,"NO",null,null,null,null,null,"Mechanical properties shown?",null,null,null,"NO",null,null,"Fire rating shown?",null,null,null,"NO",null,null,null,null,null,"Mechanical properties shown?",null,null,null,"NO",null,null,"Fire rating shown?",null,null,null,"NO",null,null,null,null,null,"Mechanical properties shown?",null,null,null,"NO",null,null,"Fire rating shown?",null,null,null,"NO",null,null,null,null,null,"Mechanical properties shown?",null,null,null,"NO",null,null,"Fire rating shown?",null,null,null,"NO",null,null,null,null,null,"Mechanical properties shown?",null,null,null,"NO",null,null,"Fire rating shown?",null,null,null,"NO"]
[]
["Mechanical properties at 60° shown?",null,null,null,"NO",null,null,"Shear strength at 60°  [MPa]",null,null,null,null,null,null,null,null,null,"Mechanical properties at 60° shown?",null,null,null,"NO",null,null,"Shear strength at 60°  [MPa]",null,null,null,null,null,null,null,null,null,"Mechanical properties at 60° shown?",null,null,null,"NO",null,null,"Shear strength at 60°  [MPa]",null,null,null,null,null,null,null,null,null,"Mechanical properties at 60° shown?",null,null,null,"NO",null,null,"Shear strength at 60°  [MPa]",null,null,null,null,null,null,null,null,null,"Mechanical properties at 60° shown?",null,null,null,"NO",null,null,"Shear strength at 60°  [MPa]",null,null,null,null,null,null,null,null,null,"Mechanical properties at 60° shown?",null,null,null,"NO",null,null,"Shear strength at 60°  [MPa]",null,null,null,null,null,null,null,null,null,"Mechanical properties at 60° shown?",null,null,null,"NO",null,null,"Shear strength at 60°  [MPa]",null,null,null,null,null,null,null,null,null,"Mechanical properties at 60° shown?",null,null,null,"NO",null,null,"Shear strength at 60°  [MPa]"]
[]
[{"$f":"IF(OR(E7=\"N/A\",E9=\"N/A\"),\"Please explain why not applicable\",\"\" )","v":""},null,null,null,null,null,null,{"$f":"IF(L7=\"Performed own test\",\"Please add pictures of test piece below and bring video to technical inspection\",\"\" )","v":""},null,null,null,null,null,null,null,null,null,{"$f":"IF(OR(V7=\"N/A\",V9=\"N/A\"),\"Please explain why not applicable\",\"\" )","v":""},null,null,null,null,null,null,{"$f":"IF(AC7=\"Performed own test\",\"Please add pictures of test piece below and bring video to technical inspection\",\"\" )","v":""},null,null,null,null,null,null,null,null,null,{"$f":"IF(OR(AM7=\"N/A\",AM9=\"N/A\"),\"Please explain why not applicable\",\"\" )","v":""},null,null,null,null,null,null,{"$f":"IF(AT7=\"Performed own test\",\"Please add pictures of test piece below and bring video to technical inspection\",\"\" )","v":""},null,null,null,null,null,null,null,null,null,{"$f":"IF(OR(BD7=\"N/A\",BD9=\"N/A\"),\"Please explain why not applicable\",\"\" )","v":""},null,null,null,null,null,null,{"$f":"IF(BK7=\"Performed own test\",\"Please add pictures of test piece below and bring video to technical inspection\",\"\" )","v":""},null,null,null,null,null,null,null,null,null,{"$f":"IF(OR(BU7=\"N/A\",BU9=\"N/A\"),\"Please explain why not applicable\",\"\" )","v":""},null,null,null,null,null,null,{"$f":"IF(CB7=\"Performed own test\",\"Please add pictures of test piece below and bring video to technical inspection\",\"\" )","v":""},null,null,null,null,null,null,null,null,null,{"$f":"IF(OR(CL7=\"N/A\",CL9=\"N/A\"),\"Please explain why not applicable\",\"\" )","v":""},null,null,null,null,null,null,{"$f":"IF(CS7=\"Performed own test\",\"Please add pictures of test piece below and bring video to technical inspection\",\"\" )","v":""},null,null,null,null,null,null,null,null,null,{"$f":"IF(OR(DC7=\"N/A\",DC9=\"N/A\"),\"Please explain why not applicable\",\"\" )","v":""},null,null,null,null,null,null,{"$f":"IF(DJ7=\"Performed own test\",\"Please add pictures of test piece below and bring video to technical inspection\",\"\" )","v":""},null,null,null,null,null,null,null,null,null,{"$f":"IF(OR(DT7=\"N/A\",DT9=\"N/A\"),\"Please explain why not applicable\",\"\" )","v":""},null,null,null,null,null,null,{"$f":"IF(EA7=\"Performed own test\",\"Please add pictures of test piece below and bring video to technical inspection\",\"\" )","v":""}]
[]
["Data Sheet",null,null,null,null,null,null,null,null,null,null,null,null,null,null,null,null,"Data Sheet",null,null,null,null,null,null,null,null,null,null,null,null,null,null,null,null,"Data Sheet",null,null,null,null,null,null,null,null,null,null,null,null,null,null,null,null,"Data Sheet",null,null,null,null,null,null,null,null,null,null,null,null,null,null,null,null,"Data Sheet",null,null,null,null,null,null,null,null,null,null,null,null,null,null,null,null,"Data Sheet",null,null,null,null,null,null,null,null,null,null,null,null,null,null,null,null,"Data Sheet",null,null,null,null,null,null,null,null,null,null,null,null,null,null,null,null,"Data Sheet"]
[]
[]
[]
["Insert image of relevant datasheet pages (name of material must be visible on the pages).",null,null,null,null,null,null,null,null,null,null,null,null,null,null,null,null,"Insert image of relevant datasheet pages (name of material must be visible on the pages).",null,null,null,null,null,null,null,null,null,null,null,null,null,null,null,null,"Insert image of relevant datasheet pages (name of material must be visible on the pages).",null,null,null,null,null,null,null,null,null,null,null,null,null,null,null,null,"Insert image of relevant datasheet pages (name of material must be visible on the pages).",null,null,null,null,null,null,null,null,null,null,null,null,null,null,null,null,"Insert image of relevant datasheet pages (name of material must be visible on the pages).",null,null,null,null,null,null,null,null,null,null,null,null,null,null,null,null,"Insert image of relevant datasheet pages (name of material must be visible on the pages).",null,null,null,null,null,null,null,null,null,null,null,null,null,null,null,null,"Insert image of relevant datasheet pages (name of material must be visible on the pages).",null,null,null,null,null,null,null,null,null,null,null,null,null,null,null,null,"Insert image of relevant datasheet pages (name of material must be visible on the pages)."]
["Highlight the releveant areas for fire rating, mechanical properties (@ 60 °C if applicable).",null,null,null,null,null,null,null,null,null,null,null,null,null,null,null,null,"Highlight the releveant areas for fire rating, mechanical properties (@ 60 °C if applicable).",null,null,null,null,null,null,null,null,null,null,null,null,null,null,null,null,"Highlight the releveant areas for fire rating, mechanical properties (@ 60 °C if applicable).",null,null,null,null,null,null,null,null,null,null,null,null,null,null,null,null,"Highlight the releveant areas for fire rating, mechanical properties (@ 60 °C if applicable).",null,null,null,null,null,null,null,null,null,null,null,null,null,null,null,null,"Highlight the releveant areas for fire rating, mechanical properties (@ 60 °C if applicable).",null,null,null,null,null,null,null,null,null,null,null,null,null,null,null,null,"Highlight the releveant areas for fire rating, mechanical properties (@ 60 °C if applicable).",null,null,null,null,null,null,null,null,null,null,null,null,null,null,null,null,"Highlight the releveant areas for fire rating, mechanical properties (@ 60 °C if applicable).",null,null,null,null,null,null,null,null,null,null,null,null,null,null,null,null,"Highlight the releveant areas for fire rating, mechanical properties (@ 60 °C if applicable)."]
["In case of shared datasheets of more materials please highlight the used material.",null,null,null,null,null,null,null,null,null,null,null,null,null,null,null,null,"In case of shared datasheets of more materials please highlight the used material.",null,null,null,null,null,null,null,null,null,null,null,null,null,null,null,null,"In case of shared datasheets of more materials please highlight the used material.",null,null,null,null,null,null,null,null,null,null,null,null,null,null,null,null,"In case of shared datasheets of more materials please highlight the used material.",null,null,null,null,null,null,null,null,null,null,null,null,null,null,null,null,"In case of shared datasheets of more materials please highlight the used material.",null,null,null,null,null,null,null,null,null,null,null,null,null,null,null,null,"In case of shared datasheets of more materials please highlight the used material.",null,null,null,null,null,null,null,null,null,null,null,null,null,null,null,null,"In case of shared datasheets of more materials please highlight the used material.",null,null,null,null,null,null,null,null,null,null,null,null,null,null,null,null,"In case of shared datasheets of more materials please highlight the used material."]

{"sheet":"Materials Overview","index":13,"n_rows":41,"n_cols":13,"rows_kept":41,"cut":false,"hidden":false,"merged":[[27,12,27,14],[17,0,18,14],[19,0,19,2],[19,3,19,5],[19,6,19,8],[19,9,19,11],[22,6,22,8],[22,9,22,11],[23,0,23,2],[23,3,23,5],[23,6,23,8],[23,9,23,11],[20,0,20,2],[20,3,20,5],[20,6,20,8],[20,9,20,11],[21,0,21,2],[2,11,2,14],[12,0,12,2],[20,12,20,14],[21,12,21,14],[22,12,22,14],[23,12,23,14],[24,12,24,14],[25,12,25,14],[26,12,26,14],[13,3,13,5],[12,9,12,11],[13,9,13,11],[2,3,2,7],[8,3,8,5],[9,3,9,5],[10,3,10,5],[11,3,11,5],[12,3,12,5],[4,0,5,11],[7,0,7,2],[8,0,8,2],[9,0,9,2],[10,0,10,2],[11,0,11,2],[8,9,8,11],[9,9,9,11],[10,9,10,11],[11,9,11,11],[7,6,7,8],[8,6,8,8],[9,6,9,8],[10,6,10,8],[11,6,11,8],[6,3,6,5],[6,6,6,8],[6,9,6,11],[6,0,6,2],[7,3,7,5],[7,9,7,11],[26,0,26,2],[26,3,26,5],[26,6,26,8],[26,9,26,11],[24,0,24,2],[24,3,24,5],[24,6,24,8],[24,9,24,11],[25,0,25,2],[25,3,25,5],[25,6,25,8],[13,0,13,2],[14,0,14,2],[12,6,12,8],[13,6,13,8],[14,6,14,8],[14,3,14,5],[14,9,14,11],[35,6,35,8],[35,9,35,11],[36,0,36,2],[21,3,21,5],[21,6,21,8],[21,9,21,11],[27,0,27,2],[27,3,27,5],[27,6,27,8],[27,9,27,11],[38,6,38,8],[38,9,38,11],[39,0,39,2],[25,9,25,11],[22,0,22,2],[22,3,22,5],[37,0,37,2],[37,3,37,5],[37,6,37,8],[37,9,37,11],[32,0,32,2],[32,3,32,5],[32,6,32,8],[32,9,32,11],[33,0,33,2],[33,3,33,5],[33,6,33,8],[33,9,33,11],[34,0,34,2],[34,3,34,5],[34,6,34,8],[34,9,34,11],[35,0,35,2],[35,3,35,5],[39,3,39,5],[39,6,39,8],[39,9,39,11],[36,3,36,5],[36,6,36,8],[36,9,36,11],[30,0,31,14],[0,0,0,14],[40,0,40,2],[40,3,40,5],[40,6,40,8],[40,9,40,11],[19,12,19,14],[33,12,33,14],[32,12,32,14],[34,12,34,14],[35,12,35,14],[36,12,36,14],[37,12,37,14],[38,12,38,14],[39,12,39,14],[40,12,40,14],[38,0,38,2],[38,3,38,5]]}
[{"$f":"CONCATENATE(Read_Me!A1,\" FS ASES \",Read_Me!B1,\" - MATERIALS OVERVIEW\")","v":"2026 FS ASES V1.0 - MATERIALS OVERVIEW"}]
[]
["University Name",null,null,{"$f":"IF('Cover Sheet'!D15:J15>0,'Cover Sheet'!D15:J15,\"\")","v":""},null,null,null,null,"Car No.(s) & Event(s)",null,null,{"$f":"IF('Cover Sheet'!O15>0,'Cover Sheet'!O15,\"\")","v":""}]
[]
["Fiber Composite Materials"]
[]
["Material name",null,null,"Material type",null,null,"Mechanical properties shown?",null,null,"Fire rating shown?"]
[{"$f":"IF('Datasheets Fiber'!A5=\"Your Material 1\",\"\",'Datasheets Fiber'!A5)","v":"Twill 22x"},null,null,{"$f":"IF(A8=\"\",\"\",'Datasheets Fiber'!A7)","v":"Carbon Fiber"},null,null,{"$f":"IF(A8=\"\",\"\",'Datasheets Fiber'!E9)","v":"NO"},null,null,{"$f":"IF(A8=\"\",\"\",'Datasheets Fiber'!L9)","v":"NO"}]
[{"$f":"IF('Datasheets Fiber'!R5=\"Your Material 2\",\"\",'Datasheets Fiber'!R5)","v":""},null,null,{"$f":"IF(A9=\"\",\"\",'Datasheets Fiber'!R7)","v":""},null,null,{"$f":"IF(A9=\"\",\"\",'Datasheets Fiber'!V9)","v":""},null,null,{"$f":"IF(A9=\"\",\"\",'Datasheets Fiber'!AC9)","v":""}]
[{"$f":"IF('Datasheets Fiber'!AI5=\"Your Material 3\",\"\",'Datasheets Fiber'!AI5)","v":""},null,null,{"$f":"IF(A10=\"\",\"\",'Datasheets Fiber'!AI7)","v":""},null,null,{"$f":"IF(A10=\"\",\"\",'Datasheets Fiber'!AM9)","v":""},null,null,{"$f":"IF(A10=\"\",\"\",'Datasheets Fiber'!AT9)","v":""}]
[{"$f":"IF('Datasheets Fiber'!AZ5=\"Your Material 4\",\"\",'Datasheets Fiber'!AZ5)","v":""},null,null,{"$f":"IF(A11=\"\",\"\",'Datasheets Fiber'!AZ7)","v":""},null,null,{"$f":"IF(A11=\"\",\"\",'Datasheets Fiber'!BD9)","v":""},null,null,{"$f":"IF(A11=\"\",\"\",'Datasheets Fiber'!BK9)","v":""}]
[{"$f":"IF('Datasheets Fiber'!BQ5=\"Your Material 5\",\"\",'Datasheets Fiber'!BQ5)","v":""},null,null,{"$f":"IF(A12=\"\",\"\",'Datasheets Fiber'!BQ7)","v":""},null,null,{"$f":"IF(A12=\"\",\"\",'Datasheets Fiber'!BU9)","v":""},null,null,{"$f":"IF(A12=\"\",\"\",'Datasheets Fiber'!CB9)","v":""}]
[{"$f":"IF('Datasheets Fiber'!CH5=\"Your Material 6\",\"\",'Datasheets Fiber'!CH5)","v":""},null,null,{"$f":"IF(A13=\"\",\"\",'Datasheets Fiber'!CH7)","v":""},null,null,{"$f":"IF(A13=\"\",\"\",'Datasheets Fiber'!CL9)","v":""},null,null,{"$f":"IF(A13=\"\",\"\",'Datasheets Fiber'!CS9)","v":""}]
[{"$f":"IF('Datasheets Fiber'!CY5=\"Your Material 7\",\"\",'Datasheets Fiber'!CY5)","v":""},null,null,{"$f":"IF(A14=\"\",\"\",'Datasheets Fiber'!CY7)","v":""},null,null,{"$f":"IF(A14=\"\",\"\",'Datasheets Fiber'!DC9)","v":""},null,null,{"$f":"IF(A14=\"\",\"\",'Datasheets Fiber'!DJ9)","v":""}]
[{"$f":"IF('Datasheets Fiber'!DP5=\"Your Material 8\",\"\",'Datasheets Fiber'!DP5)","v":""},null,null,{"$f":"IF(A15=\"\",\"\",'Datasheets Fiber'!DP7)","v":""},null,null,{"$f":"IF(A15=\"\",\"\",'Datasheets Fiber'!DT9)","v":""},null,null,{"$f":"IF(A15=\"\",\"\",'Datasheets Fiber'!EA9)","v":""}]
[]
[]
["Plastic, Metal & Others"]
[]
["Material name",null,null,"Material type",null,null,"Mechanical properties shown?",null,null,"Fire rating shown?",null,null,"Shear strength at 60° [MPa]"]
[{"$f":"IF('Datasheets Other Matl'!A5=\"Your Material 1\",\"\",'Datasheets Other Matl'!A5)","v":""},null,null,{"$f":"IF(A21=\"\",\"\",'Datasheets Other Matl'!A7)","v":""},null,null,{"$f":"IF(A21=\"\",\"\",'Datasheets Other Matl'!E9)","v":""},null,null,{"$f":"IF(A21=\"\",\"\",'Datasheets Other Matl'!L9)","v":""},null,null,{"$f":"IF(A21=\"\",\"\",'Datasheets Other Matl'!L11)","v":""}]
[{"$f":"IF('Datasheets Other Matl'!R5=\"Your Material 2\",\"\",'Datasheets Other Matl'!R5)","v":""},null,null,{"$f":"IF(A22=\"\",\"\",'Datasheets Other Matl'!R7)","v":""},null,null,{"$f":"IF(A22=\"\",\"\",'Datasheets Other Matl'!V9)","v":""},null,null,{"$f":"IF(A22=\"\",\"\",'Datasheets Other Matl'!AC9)","v":""},null,null,{"$f":"IF(A22=\"\",\"\",'Datasheets Other Matl'!AC11)","v":""}]
[{"$f":"IF('Datasheets Other Matl'!AI5=\"Your Material 3\",\"\",'Datasheets Other Matl'!AI5)","v":""},null,null,{"$f":"IF(A23=\"\",\"\",'Datasheets Other Matl'!AI7)","v":""},null,null,{"$f":"IF(A23=\"\",\"\",'Datasheets Other Matl'!AM9)","v":""},null,null,{"$f":"IF(A23=\"\",\"\",'Datasheets Other Matl'!AT9)","v":""},null,null,{"$f":"IF(A23=\"\",\"\",'Datasheets Other Matl'!AT11)","v":""}]
[{"$f":"IF('Datasheets Other Matl'!AZ5=\"Your Material 4\",\"\",'Datasheets Other Matl'!AZ5)","v":""},null,null,{"$f":"IF(A24=\"\",\"\",'Datasheets Other Matl'!AZ7)","v":""},null,null,{"$f":"IF(A24=\"\",\"\",'Datasheets Other Matl'!BD9)","v":""},null,null,{"$f":"IF(A24=\"\",\"\",'Datasheets Other Matl'!BK9)","v":""},null,null,{"$f":"IF(A24=\"\",\"\",'Datasheets Other Matl'!BK11)","v":""}]
[{"$f":"IF('Datasheets Other Matl'!BQ5=\"Your Material 5\",\"\",'Datasheets Other Matl'!BQ5)","v":""},null,null,{"$f":"IF(A25=\"\",\"\",'Datasheets Other Matl'!BQ7)","v":""},null,null,{"$f":"IF(A25=\"\",\"\",'Datasheets Other Matl'!BU9)","v":""},null,null,{"$f":"IF(A25=\"\",\"\",'Datasheets Other Matl'!CB9)","v":""},null,null,{"$f":"IF(A25=\"\",\"\",'Datasheets Other Matl'!CB11)","v":""}]
[{"$f":"IF('Datasheets Other Matl'!CH5=\"Your Material 6\",\"\",'Datasheets Other Matl'!CH5)","v":""},null,null,{"$f":"IF(A26=\"\",\"\",'Datasheets Other Matl'!CH7)","v":""},null,null,{"$f":"IF(A26=\"\",\"\",'Datasheets Other Matl'!CL9)","v":""},null,null,{"$f":"IF(A26=\"\",\"\",'Datasheets Other Matl'!CS9)","v":""},null,null,{"$f":"IF(A26=\"\",\"\",'Datasheets Other Matl'!CS11)","v":""}]
[{"$f":"IF('Datasheets Other Matl'!CY5=\"Your Material 7\",\"\",'Datasheets Other Matl'!CY5)","v":""},null,null,{"$f":"IF(A27=\"\",\"\",'Datasheets Other Matl'!CY7)","v":""},null,null,{"$f":"IF(A27=\"\",\"\",'Datasheets Other Matl'!DC9)","v":""},null,null,{"$f":"IF(A27=\"\",\"\",'Datasheets Other Matl'!DJ9)","v":""},null,null,{"$f":"IF(A27=\"\",\"\",'Datasheets Other Matl'!DJ11)","v":""}]
[{"$f":"IF('Datasheets Other Matl'!DP5=\"Your Material 8\",\"\",'Datasheets Other Matl'!DP5)","v":""},null,null,{"$f":"IF(A28=\"\",\"\",'Datasheets Other Matl'!DP7)","v":""},null,null,{"$f":"IF(A28=\"\",\"\",'Datasheets Other Matl'!DT9)","v":""},null,null,{"$f":"IF(A28=\"\",\"\",'Datasheets Other Matl'!EA9)","v":""},null,null,{"$f":"IF(A28=\"\",\"\",'Datasheets Other Matl'!EA11)","v":""}]
[]
[null,null,null,null,null,null,null,null,null,null,null,"Link to guidance notes"]
["Glue"]
[]
["Material name",null,null,"Mechanical properties shown ",null,null,"Fulfills T1.2.1",null,null,"Mechanical properties at 60° shown?",null,null,"Shear strength at 60° [MPa]"]
[{"$f":"IF('Datasheets Glue'!A5=\"Your Material 1\",\"\",'Datasheets Glue'!A5)","v":""},null,null,{"$f":"IF(A34=\"\",\"\",'Datasheets Glue'!E7)","v":""},null,null,{"$f":"IF(A34=\"\",\"\",'Datasheets Glue'!L7)","v":""},null,null,{"$f":"IF(A34=\"\",\"\",'Datasheets Glue'!E9)","v":""},null,null,{"$f":"IF(A34=\"\",\"\",'Datasheets Glue'!L9)","v":""}]
[{"$f":"IF('Datasheets Glue'!R5=\"Your Material 2\",\"\",'Datasheets Glue'!R5)","v":""},null,null,{"$f":"IF(A35=\"\",\"\",'Datasheets Glue'!V7)","v":""},null,null,{"$f":"IF(A35=\"\",\"\",'Datasheets Glue'!AC7)","v":""},null,null,{"$f":"IF(A35=\"\",\"\",'Datasheets Glue'!V9)","v":""},null,null,{"$f":"IF(A35=\"\",\"\",'Datasheets Glue'!AC9)","v":""}]
[{"$f":"IF('Datasheets Glue'!AI5=\"Your Material 3\",\"\",'Datasheets Glue'!AI5)","v":""},null,null,{"$f":"IF(A36=\"\",\"\",'Datasheets Glue'!AM7)","v":""},null,null,{"$f":"IF(A36=\"\",\"\",'Datasheets Glue'!AT7)","v":""},null,null,{"$f":"IF(A36=\"\",\"\",'Datasheets Glue'!AM9)","v":""},null,null,{"$f":"IF(A36=\"\",\"\",'Datasheets Glue'!AT9)","v":""}]
[{"$f":"IF('Datasheets Glue'!AZ5=\"Your Material 4\",\"\",'Datasheets Glue'!AZ5)","v":""},null,null,{"$f":"IF(A37=\"\",\"\",'Datasheets Glue'!BD7)","v":""},null,null,{"$f":"IF(A37=\"\",\"\",'Datasheets Glue'!BK7)","v":""},null,null,{"$f":"IF(A37=\"\",\"\",'Datasheets Glue'!BD9)","v":""},null,null,{"$f":"IF(A37=\"\",\"\",'Datasheets Glue'!BK9)","v":""}]
[{"$f":"IF('Datasheets Glue'!BQ5=\"Your Material 5\",\"\",'Datasheets Glue'!BQ5)","v":""},null,null,{"$f":"IF(A38=\"\",\"\",'Datasheets Glue'!BU7)","v":""},null,null,{"$f":"IF(A38=\"\",\"\",'Datasheets Glue'!CB7)","v":""},null,null,{"$f":"IF(A38=\"\",\"\",'Datasheets Glue'!BU9)","v":""},null,null,{"$f":"IF(A38=\"\",\"\",'Datasheets Glue'!CB9)","v":""}]
[{"$f":"IF('Datasheets Glue'!CH5=\"Your Material 6\",\"\",'Datasheets Glue'!CH5)","v":""},null,null,{"$f":"IF(A39=\"\",\"\",'Datasheets Glue'!CL7)","v":""},null,null,{"$f":"IF(A39=\"\",\"\",'Datasheets Glue'!CS7)","v":""},null,null,{"$f":"IF(A39=\"\",\"\",'Datasheets Glue'!CL9)","v":""},null,null,{"$f":"IF(A39=\"\",\"\",'Datasheets Glue'!CS9)","v":""}]
[{"$f":"IF('Datasheets Glue'!CY5=\"Your Material 7\",\"\",'Datasheets Glue'!CY5)","v":""},null,null,{"$f":"IF(A40=\"\",\"\",'Datasheets Glue'!DC7)","v":""},null,null,{"$f":"IF(A40=\"\",\"\",'Datasheets Glue'!DJ7)","v":""},null,null,{"$f":"IF(A40=\"\",\"\",'Datasheets Glue'!DC9)","v":""},null,null,{"$f":"IF(A40=\"\",\"\",'Datasheets Glue'!DJ9)","v":""}]
[{"$f":"IF('Datasheets Glue'!DP5=\"Your Material 8\",\"\",'Datasheets Glue'!DP5)","v":""},null,null,{"$f":"IF(A41=\"\",\"\",'Datasheets Glue'!DT7)","v":""},null,null,{"$f":"IF(A41=\"\",\"\",'Datasheets Glue'!EA7)","v":""},null,null,{"$f":"IF(A41=\"\",\"\",'Datasheets Glue'!DT9)","v":""},null,null,{"$f":"IF(A41=\"\",\"\",'Datasheets Glue'!EA9)","v":""}]

{"sheet":"EV5.5.10-12 Cell Fixation","index":14,"n_rows":45,"n_cols":14,"rows_kept":45,"cut":false,"hidden":false,"merged":[[27,0,27,11],[27,12,27,16],[28,0,28,16],[0,0,0,16],[2,3,2,8],[2,13,2,16],[11,12,11,16],[12,12,12,16],[24,12,24,16],[25,12,25,16],[23,12,23,16],[26,12,26,16],[13,12,13,16],[14,12,14,16],[15,12,15,16],[16,12,16,16],[22,12,22,16],[19,12,19,16],[17,12,17,16],[18,12,18,16],[20,12,20,16],[21,12,21,16]]}
[{"$f":"CONCATENATE(Read_Me!A1,\" FS ASES \",Read_Me!B1,\" - Cell fixation\")","v":"2026 FS ASES V1.0 - Cell fixation"}]
[]
["University Name",null,null,{"$f":"IF('Cover Sheet'!D15:J15>0,'Cover Sheet'!D15:J15,\"\")","v":""},null,null,null,null,null,"Car No.(s) & Event(s)",null,null,null,{"$f":"IF('Cover Sheet'!O15>0,'Cover Sheet'!O15,\"\")","v":""}]
[]
[]
[null,"Insert pictures of your cell fastening methode showing the force path."]
[]
[null,"Guidance notes: Cell fixation general"]
[null,"Guidance notes: Pouch cell fixation"]
[null,"Guidance notes: Friction based cell fixation",null,null,null,null,null,null,null,null,null,null,"BACK to COVER SHEET"]
[]
["Cell type",null,null,null,null,null,null,null,null,null,null,null,"Pouch"]
["Fixation method",null,null,null,null,null,null,null,null,null,null,null,"Friction based"]
["If other, specify:"]
["Cell mass / g"]
["Cell height (h) / mm"]
["Cell width (w) / mm"]
["Cell surface nominal / mm²",null,null,null,null,null,null,null,null,null,null,null,{"$f":"M16*M17","v":0}]
["Cell surface according EV 5.5.10 / mm²",null,null,null,null,null,null,null,null,null,null,null,{"$f":"M18*0.8","v":0}]
["Max. number of cells between support (n)"]
["Shear Stress on most critical cell / MPa",null,null,null,null,null,null,null,null,null,null,null,{"$f":"M15/1000*40*9.81*M20/M19","v":{"$error":"#DIV/0!"}}]
["Compression force for friction based fixation (N)"]
["Compression stress / MPa",null,null,null,null,null,null,null,null,null,null,null,{"$f":"M22/M19","v":{"$error":"#DIV/0!"}}]
["Cell fixation according to EV5.5.10?",null,null,null,null,null,null,null,null,null,null,null,{"$f":"IF(M12<>\"Pouch\",\"N/A\",IF(AND(M21<=0.05,M23<=1),\"PASS\",IF(M20<=6,\"EXCEPTION\",\"FAIL\")))","v":{"$error":"#DIV/0!"}}]
["Friction coefficent by testing"]
["Friction force / N",null,null,null,null,null,null,null,null,null,null,null,{"$f":"M22*M25","v":0}]
["Friction based fixation according to EV5.5.8?",null,null,null,null,null,null,null,null,null,null,null,{"$f":"IF(M13<>\"Friction based\",\"N/A\",IF(M26>M15*M20/1000*40*9.81,\"PASS\",\"FAIL\"))","v":"FAIL"}]
["Compressible materials (e. g. PCBs) in cell tab fixation stack-up?",null,null,null,null,null,null,null,null,null,null,null,"No"]
[{"$f":"IF(M28=\"Yes\",\"-> Explain how EV4.5.12 is fulfilled.\",IF(AND(M12=\"Pouch\",M28=\"N/A\"),\"-> Above selection cannot be 'N/A' if cell type is 'Pouch'.\",\"\"))","v":""}]
[]
[null,"Insert pictures of fixation concept. Please show at least the following points:"]
[null,"1. Pouch cells must be fixed using one or both of the large surface(s) only."]
[]
[null,"2. Each used surface must be fixed on at least 80 %."]
[]
[null,"3. Tabs of pouch cells must not carry mechanical loads and must not "]
[null,"press into the pouch."]
[]
[null,"Insert values above for the calculation of maximal forces of fixation concept. "]
[null,"Insert necessary calculations (e.g. of the bonding or friction connection)."]
[]
[null,"In case of friction based concept, please add test procedure and results. "]
[null,"Add at least following items for the test (also see Guidance Notes):"]
[null,"- Pictures of test setup."]
[null,"- Test procedure description and link to execution video."]

{"sheet":"EV5.5.9 Segment","index":15,"n_rows":12,"n_cols":35,"rows_kept":12,"cut":false,"hidden":false,"merged":[[11,34,11,50],[1,31,1,32],[1,18,2,30],[0,0,0,16],[2,13,2,16],[2,3,2,8],[3,18,3,30],[5,31,5,32],[6,18,7,30],[11,0,11,16],[11,17,11,33]]}
[{"$f":"CONCATENATE(Read_Me!A1,\" FS ASES \",Read_Me!B1,\" - EV5.5.9 Segment\")","v":"2026 FS ASES V1.0 - EV5.5.9 Segment"}]
[null,null,null,null,null,null,null,null,null,null,null,null,null,null,null,null,null,null,"Any non-metallic materials used that are not continuous fiber reinforced laminates?"]
["University Name",null,null,{"$f":"IF('Cover Sheet'!D15:J15>0,'Cover Sheet'!D15:J15,\"\")","v":""},null,null,null,null,null,"Car No.(s) & Event(s)",null,null,null,{"$f":"IF('Cover Sheet'!O15>0,'Cover Sheet'!O15,\"\")","v":""}]
[null,null,null,null,null,null,null,null,null,null,null,null,null,null,null,null,null,null,{"$f":"IF(AF2=\"Yes\",\"--> Show mechanical properties at 60 °C in the materials section!\",\"\")","v":""}]
[]
[null,"Please use this tab to prove that your cell mounting (within segment and attachment to ",null,null,null,null,null,null,null,null,null,null,null,null,null,null,null,null,"Any bonded joints?"]
[null,"TSAC) is compliant with EV 5.5.9.",null,null,null,null,null,null,null,null,null,null,null,null,null,null,null,null,{"$f":"IF(AF6=\"Yes\",\"--> Show mechanical properties at 60 °C in the material overview and apply T3.2.8!\",\"\")","v":""}]
[]
[null,"Vehicle coordinate system according to ISO 8855-2011.",null,null,null,null,null,null,null,null,null,null,"Link to guidance notes"]
[null,null,null,null,null,null,null,null,null,null,null,null,"BACK to COVER SHEET"]
[]
["Direction X",null,null,null,null,null,null,null,null,null,null,null,null,null,null,null,null,"Direction Y",null,null,null,null,null,null,null,null,null,null,null,null,null,null,null,null,"Direction Z"]

{"sheet":"EV5.5.9 TSAC","index":16,"n_rows":12,"n_cols":35,"rows_kept":12,"cut":false,"hidden":false,"merged":[[11,0,11,16],[11,17,11,33],[11,34,11,50],[1,18,2,30],[5,31,5,32],[6,18,7,30],[0,0,0,16],[1,31,1,32],[2,3,2,8],[2,13,2,16],[3,18,3,30]]}
[{"$f":"CONCATENATE(Read_Me!A1,\" FS ASES \",Read_Me!B1,\" - EV5.5.9 TSAC\")","v":"2026 FS ASES V1.0 - EV5.5.9 TSAC"}]
[null,null,null,null,null,null,null,null,null,null,null,null,null,null,null,null,null,null,"Any non-metallic materials used that are not continuous fiber reinforced laminates?"]
["University Name",null,null,{"$f":"IF('Cover Sheet'!D15:J15>0,'Cover Sheet'!D15:J15,\"\")","v":""},null,null,null,null,null,"Car No.(s) & Event(s)",null,null,null,{"$f":"IF('Cover Sheet'!O15>0,'Cover Sheet'!O15,\"\")","v":""}]
[null,null,null,null,null,null,null,null,null,null,null,null,null,null,null,null,null,null,{"$f":"IF(AF2=\"Yes\",\"--> Show mechanical properties at 60 °C in the materials section!\",\"\")","v":""}]
[]
[null,"Please use this tab to prove that your TSAC is compliant with EV 5.5.9.",null,null,null,null,null,null,null,null,null,null,null,null,null,null,null,null,"Any bonded joints?"]
[null,null,null,null,null,null,null,null,null,null,null,null,null,null,null,null,null,null,{"$f":"IF(AF6=\"Yes\",\"--> Show mechanical properties at 60 °C in the materials section and apply T3.2.8!\",\"\")","v":""}]
[null,"Vehicle coordinate system according to ISO 8855-2011."]
[null,null,null,null,null,null,null,null,null,null,null,null,"Link to guidance notes"]
[null,null,null,null,null,null,null,null,null,null,null,null,"BACK to COVER SHEET"]
[]
["Direction X",null,null,null,null,null,null,null,null,null,null,null,null,null,null,null,null,"Direction Y",null,null,null,null,null,null,null,null,null,null,null,null,null,null,null,null,"Direction Z"]

{"sheet":"EV5.5.9 TSAC attachments","index":17,"n_rows":12,"n_cols":35,"rows_kept":12,"cut":false,"hidden":false,"merged":[[5,31,5,32],[6,18,7,30],[11,0,11,16],[11,17,11,33],[11,34,11,50],[3,18,3,30],[0,0,0,16],[1,18,2,30],[1,31,1,32],[2,3,2,8],[2,13,2,16]]}
[{"$f":"CONCATENATE(Read_Me!A1,\" FS ASES \",Read_Me!B1,\" - EV5.5.9 TSAC attachments\")","v":"2026 FS ASES V1.0 - EV5.5.9 TSAC attachments"}]
[null,null,null,null,null,null,null,null,null,null,null,null,null,null,null,null,null,null,"Any non-metallic materials used that are not continuous fiber reinforced laminates?"]
["University Name",null,null,{"$f":"IF('Cover Sheet'!D15:J15>0,'Cover Sheet'!D15:J15,\"\")","v":""},null,null,null,null,null,"Car No.(s) & Event(s)",null,null,null,{"$f":"IF('Cover Sheet'!O15>0,'Cover Sheet'!O15,\"\")","v":""}]
[null,null,null,null,null,null,null,null,null,null,null,null,null,null,null,null,null,null,{"$f":"IF(AF2=\"Yes\",\"--> Show mechanical properties at 60 °C in the materials section!\",\"\")","v":""}]
[]
[null,"Please use this tab to prove that your TSAC attachments are compliant with EV 5.5.9.",null,null,null,null,null,null,null,null,null,null,null,null,null,null,null,null,"Any bonded joints?"]
[null,"The chassis-side part of the attachment is not within the scope of this sheet. However, ",null,null,null,null,null,null,null,null,null,null,null,null,null,null,null,null,{"$f":"IF(AF6=\"Yes\",\"--> Show mechanical properties at 60 °C in the materials section and apply T3.2.8!\",\"\")","v":""}]
[null,"it shall be shown for context."]
[null,null,null,null,null,null,null,null,null,null,null,null,"Link to guidance notes"]
[null,"Vehicle coordinate system according to ISO 8855-2011.",null,null,null,null,null,null,null,null,null,null,"BACK to COVER SHEET"]
[]
["Direction X",null,null,null,null,null,null,null,null,null,null,null,null,null,null,null,null,"Direction Y",null,null,null,null,null,null,null,null,null,null,null,null,null,null,null,null,"Direction Z"]

{"sheet":"EV5.5.13 Fasteners","index":18,"n_rows":86,"n_cols":44,"rows_kept":86,"cut":false,"hidden":false,"merged":[[60,17,60,23],[60,24,60,33],[60,34,60,40],[34,0,34,6],[34,7,34,8],[34,9,35,16],[35,0,35,6],[60,0,60,6],[60,7,60,16],[36,0,36,6],[36,7,36,16],[36,17,36,23],[36,24,36,33],[36,34,36,40],[82,34,82,40],[82,41,82,42],[83,34,83,40],[83,41,83,42],[12,24,12,33],[12,34,12,40],[12,41,12,50],[36,41,36,50],[34,43,35,50],[35,34,35,40],[35,41,35,42],[82,17,82,23],[82,24,82,25],[82,26,83,33],[83,17,83,23],[83,24,83,25],[82,0,82,6],[82,7,82,8],[82,9,83,16],[83,0,83,6],[83,7,83,8],[58,0,58,6],[58,7,58,8],[58,9,59,16],[59,0,59,6],[59,7,59,8],[58,17,58,23],[58,24,58,25],[58,26,59,33],[59,17,59,23],[59,24,59,25],[35,24,35,25],[58,34,58,40],[58,41,58,42],[58,43,59,50],[10,41,10,42],[10,43,11,50],[11,34,11,40],[11,41,11,42],[34,34,34,40],[34,41,34,42],[59,34,59,40],[59,41,59,42],[0,0,0,16],[2,3,2,8],[2,13,2,16],[10,9,11,16],[10,0,10,6],[11,0,11,6],[10,7,10,8],[11,7,11,8],[12,7,12,16],[12,0,12,6],[12,17,12,23],[10,34,10,40],[82,43,83,50],[60,41,60,50],[10,17,10,23],[10,24,10,25],[10,26,11,33],[11,17,11,23],[11,24,11,25],[35,7,35,8],[34,17,34,23],[34,24,34,25],[34,26,35,33],[35,17,35,23],[84,24,84,33],[84,34,84,40],[84,41,84,50],[84,0,84,6],[84,7,84,16],[84,17,84,23]]}
[{"$f":"CONCATENATE(Read_Me!A1,\" FS ASES \",Read_Me!B1,\" - Fasteners\")","v":"2026 FS ASES V1.0 - Fasteners"}]
[]
["University Name",null,null,{"$f":"IF('Cover Sheet'!D15:J15>0,'Cover Sheet'!D15:J15,\"\")","v":""},null,null,null,null,null,"Car No.(s) & Event(s)",null,null,null,{"$f":"IF('Cover Sheet'!O15>0,'Cover Sheet'!O15,\"\")","v":""}]
[]
[]
[null,"Please use this tab to prove that your fasteners are compliant with EV5.5.13."]
[null,"Show all fasteners, regardless if they have to follow (parts of) T10 or not."]
[null,"Summarize the fasteners in appropriate groups (e.g. same size/application)."]
[]
[null,null,null,null,null,null,null,null,null,null,null,null,"BACK to COVER SHEET"]
["Used for structural parts?",null,null,null,null,null,null,null,null,{"$f":"IF(H11<>\"No\",\"--> Must follow T10 completely in any case.\",IF(H12<>\"No\",\"--> Must follow T10 with exception of T10.1.2.\",\"--> Do not have to follow T10.\"))","v":"--> Must follow T10 completely in any case."},null,null,null,null,null,null,null,"Used for structural parts?",null,null,null,null,null,null,null,null,{"$f":"IF(Y11<>\"No\",\"--> Must follow T10 completely in any case.\",IF(Y12<>\"No\",\"--> Must follow T10 with exception of T10.1.2.\",\"--> Do not have to follow T10.\"))","v":"--> Must follow T10 completely in any case."},null,null,null,null,null,null,null,"Used for structural parts?",null,null,null,null,null,null,null,null,{"$f":"IF(AP11<>\"No\",\"--> Must follow T10 completely in any case.\",IF(AP12<>\"No\",\"--> Must follow T10 with exception of T10.1.2.\",\"--> Do not have to follow T10.\"))","v":"--> Must follow T10 completely in any case."}]
["Electrically conductive & inside TSAC?",null,null,null,null,null,null,null,null,null,null,null,null,null,null,null,null,"Electrically conductive & inside TSAC?",null,null,null,null,null,null,null,null,null,null,null,null,null,null,null,null,"Electrically conductive & inside TSAC?"]
["Positive Locking mechanism",null,null,null,null,null,null,null,null,null,null,null,null,null,null,null,null,"Positive Locking mechanism",null,null,null,null,null,null,null,null,null,null,null,null,null,null,null,null,"Positive Locking mechanism"]
["Show (CAD) pictures of the fasteners and complementary explanations if necessary.",null,null,null,null,null,null,null,null,null,null,null,null,null,null,null,null,"Show (CAD) pictures of the fasteners and complementary explanations if necessary.",null,null,null,null,null,null,null,null,null,null,null,null,null,null,null,null,"Show (CAD) pictures of the fasteners and complementary explanations if necessary."]
[]
[]
[]
[]
[]
[]
[]
[]
[]
[]
[]
[]
[]
[]
[]
[]
[]
[]
[]
[]
["Used for structural parts?",null,null,null,null,null,null,null,null,{"$f":"IF(H35<>\"No\",\"--> Must follow T10 completely in any case.\",IF(H36<>\"No\",\"--> Must follow T10 with exception of T10.1.2.\",\"--> Do not have to follow T10.\"))","v":"--> Must follow T10 completely in any case."},null,null,null,null,null,null,null,"Used for structural parts?",null,null,null,null,null,null,null,null,{"$f":"IF(Y35<>\"No\",\"--> Must follow T10 completely in any case.\",IF(Y36<>\"No\",\"--> Must follow T10 with exception of T10.1.2.\",\"--> Do not have to follow T10.\"))","v":"--> Must follow T10 completely in any case."},null,null,null,null,null,null,null,"Used for structural parts?",null,null,null,null,null,null,null,null,{"$f":"IF(AP35<>\"No\",\"--> Must follow T10 completely in any case.\",IF(AP36<>\"No\",\"--> Must follow T10 with exception of T10.1.2.\",\"--> Do not have to follow T10.\"))","v":"--> Must follow T10 completely in any case."}]
["Electrically conductive & inside TSAC?",null,null,null,null,null,null,null,null,null,null,null,null,null,null,null,null,"Electrically conductive & inside TSAC?",null,null,null,null,null,null,null,null,null,null,null,null,null,null,null,null,"Electrically conductive & inside TSAC?"]
["Positive Locking mechanism",null,null,null,null,null,null,null,null,null,null,null,null,null,null,null,null,"Positive Locking mechanism",null,null,null,null,null,null,null,null,null,null,null,null,null,null,null,null,"Positive Locking mechanism"]
["Show (CAD) pictures of the fasteners and complementary explanations if necessary.",null,null,null,null,null,null,null,null,null,null,null,null,null,null,null,null,"Show (CAD) pictures of the fasteners and complementary explanations if necessary.",null,null,null,null,null,null,null,null,null,null,null,null,null,null,null,null,"Show (CAD) pictures of the fasteners and complementary explanations if necessary."]
[]
[]
[]
[]
[]
[]
[]
[]
[]
[]
[]
[]
[]
[]
[]
[]
[]
[]
[]
[]
["Used for structural parts?",null,null,null,null,null,null,null,null,{"$f":"IF(H59<>\"No\",\"--> Must follow T10 completely in any case.\",IF(H60<>\"No\",\"--> Must follow T10 with exception of T10.1.2.\",\"--> Do not have to follow T10.\"))","v":"--> Must follow T10 completely in any case."},null,null,null,null,null,null,null,"Used for structural parts?",null,null,null,null,null,null,null,null,{"$f":"IF(Y59<>\"No\",\"--> Must follow T10 completely in any case.\",IF(Y60<>\"No\",\"--> Must follow T10 with exception of T10.1.2.\",\"--> Do not have to follow T10.\"))","v":"--> Must follow T10 completely in any case."},null,null,null,null,null,null,null,"Used for structural parts?",null,null,null,null,null,null,null,null,{"$f":"IF(AP59<>\"No\",\"--> Must follow T10 completely in any case.\",IF(AP60<>\"No\",\"--> Must follow T10 with exception of T10.1.2.\",\"--> Do not have to follow T10.\"))","v":"--> Must follow T10 completely in any case."}]
["Electrically conductive & inside TSAC?",null,null,null,null,null,null,null,null,null,null,null,null,null,null,null,null,"Electrically conductive & inside TSAC?",null,null,null,null,null,null,null,null,null,null,null,null,null,null,null,null,"Electrically conductive & inside TSAC?"]
["Positive Locking mechanism",null,null,null,null,null,null,null,null,null,null,null,null,null,null,null,null,"Positive Locking mechanism",null,null,null,null,null,null,null,null,null,null,null,null,null,null,null,null,"Positive Locking mechanism"]
["Show (CAD) pictures of the fasteners and complementary explanations if necessary.",null,null,null,null,null,null,null,null,null,null,null,null,null,null,null,null,"Show (CAD) pictures of the fasteners and complementary explanations if necessary.",null,null,null,null,null,null,null,null,null,null,null,null,null,null,null,null,"Show (CAD) pictures of the fasteners and complementary explanations if necessary."]
[]
[]
[]
[]
[]
[]
[]
[]
[]
[]
[]
[]
[]
[]
[]
[]
[]
[]
[]
[]
["Used for structural parts?",null,null,null,null,null,null,null,null,{"$f":"IF(H83<>\"No\",\"--> Must follow T10 completely in any case.\",IF(H84<>\"No\",\"--> Must follow T10 with exception of T10.1.2.\",\"--> Do not have to follow T10.\"))","v":"--> Must follow T10 completely in any case."},null,null,null,null,null,null,null,"Used for structural parts?",null,null,null,null,null,null,null,null,{"$f":"IF(Y83<>\"No\",\"--> Must follow T10 completely in any case.\",IF(Y84<>\"No\",\"--> Must follow T10 with exception of T10.1.2.\",\"--> Do not have to follow T10.\"))","v":"--> Must follow T10 completely in any case."},null,null,null,null,null,null,null,"Used for structural parts?",null,null,null,null,null,null,null,null,{"$f":"IF(AP83<>\"No\",\"--> Must follow T10 completely in any case.\",IF(AP84<>\"No\",\"--> Must follow T10 with exception of T10.1.2.\",\"--> Do not have to follow T10.\"))","v":"--> Must follow T10 completely in any case."}]
["Electrically conductive & inside TSAC?",null,null,null,null,null,null,null,null,null,null,null,null,null,null,null,null,"Electrically conductive & inside TSAC?",null,null,null,null,null,null,null,null,null,null,null,null,null,null,null,null,"Electrically conductive & inside TSAC?"]
["Positive Locking mechanism",null,null,null,null,null,null,null,null,null,null,null,null,null,null,null,null,"Positive Locking mechanism",null,null,null,null,null,null,null,null,null,null,null,null,null,null,null,null,"Positive Locking mechanism"]
["Show (CAD) pictures of the fasteners and complementary explanations if necessary.",null,null,null,null,null,null,null,null,null,null,null,null,null,null,null,null,"Show (CAD) pictures of the fasteners and complementary explanations if necessary.",null,null,null,null,null,null,null,null,null,null,null,null,null,null,null,null,"Show (CAD) pictures of the fasteners and complementary explanations if necessary."]

{"sheet":"EV5.5.14-17 Openings&Separation","index":19,"n_rows":33,"n_cols":18,"rows_kept":33,"cut":false,"hidden":false,"merged":[[14,10,14,12],[15,10,15,12],[16,10,16,12],[17,10,17,12],[18,10,18,12],[19,10,19,12],[4,8,4,9],[5,8,5,9],[6,8,6,9],[17,8,17,9],[18,8,18,9],[19,8,19,9],[12,8,12,9],[13,8,13,9],[14,8,14,9],[15,8,15,9],[16,8,16,9],[7,8,7,9],[8,8,8,9],[9,8,9,9],[10,8,10,9],[11,8,11,9],[16,4,16,5],[16,6,16,7],[13,6,13,7],[14,1,14,3],[14,4,14,5],[14,6,14,7],[19,1,19,3],[19,4,19,5],[19,6,19,7],[17,1,17,3],[17,4,17,5],[17,6,17,7],[18,1,18,3],[18,4,18,5],[18,6,18,7],[15,1,15,3],[0,0,0,18],[29,17,29,18],[21,17,22,18],[25,17,25,18],[27,17,27,18],[28,17,28,18],[26,17,26,18],[4,1,4,3],[4,4,4,5],[5,4,5,5],[6,4,6,5],[7,4,7,5],[7,1,7,3],[2,6,3,7],[8,4,8,5],[4,6,4,7],[5,6,5,7],[6,6,6,7],[7,6,7,7],[8,6,8,7],[15,4,15,5],[15,6,15,7],[16,1,16,3],[10,1,10,3],[10,4,10,5],[10,6,10,7],[9,1,9,3],[9,4,9,5],[9,6,9,7],[2,1,3,3],[2,4,3,5],[4,10,4,12],[2,10,3,12],[6,10,6,12],[5,10,5,12],[8,10,8,12],[7,10,7,12],[10,10,10,12],[9,10,9,12],[5,1,5,3],[6,1,6,3],[8,1,8,3],[2,8,3,9],[11,1,11,3],[11,4,11,5],[11,6,11,7],[11,10,11,12],[12,1,12,3],[12,4,12,5],[12,6,12,7],[13,1,13,3],[13,4,13,5],[12,10,12,12],[13,10,13,12],[32,0,32,16],[30,17,31,18],[21,0,22,16],[30,0,31,16],[25,0,25,16],[26,0,26,16],[27,0,27,16],[28,0,28,16],[29,0,29,16],[32,17,32,18],[23,17,24,18],[23,0,24,16]]}
[{"$f":"CONCATENATE(Read_Me!A1,\" FS ASES \",Read_Me!B1,\" - EV5.5.14-18 Openings&Separation\")","v":"2026 FS ASES V1.0 - EV5.5.14-18 Openings&Separation"}]
[]
[null,null,null,null,"Mass\nkg",null,"Voltage\nV",null,"Energy\nMJ",null,"Separation shown?"]
[]
[null,"Segment 1",null,null,null,null,null,null,null,null,"No"]
[null,"Segment 2",null,null,null,null,null,null,null,null,"No"]
[null,"Segment 3",null,null,null,null,null,null,null,null,"No"]
[null,"Segment 4",null,null,null,null,null,null,null,null,"No"]
[null,"Segment 5",null,null,null,null,null,null,null,null,"No"]
[null,"Segment 6",null,null,null,null,null,null,null,null,"No"]
[null,"Segment 7",null,null,null,null,null,null,null,null,"No"]
[null,"Segment 8",null,null,null,null,null,null,null,null,"No"]
[null,"Segment 9",null,null,null,null,null,null,null,null,"No"]
[null,"Segment 10",null,null,null,null,null,null,null,null,"No"]
[null,"Segment 11",null,null,null,null,null,null,null,null,"No"]
[null,"Segment 12",null,null,null,null,null,null,null,null,"No"]
[null,"Segment 13",null,null,null,null,null,null,null,null,"No"]
[null,"Segment 14",null,null,null,null,null,null,null,null,"No"]
[null,"Segment 15",null,null,null,null,null,null,null,null,"No"]
[null,"Segment 16",null,null,null,null,null,null,null,null,"No"]
[null,null,null,null,null,null,null,null,null,null,null,null,null,null,"BACK to COVER SHEET"]
["Images must include dimensions/labels indicating the following:",null,null,null,null,null,null,null,null,null,null,null,null,null,null,null,null,"Compliance shown?"]
[]
["Holes, both internal and external, in the TSAC, are only allowed for the wiring harness, ventilation, cooling, or fasteners.",null,null,null,null,null,null,null,null,null,null,null,null,null,null,null,null,"No"]
[]
["External holes must be sealed according to EV4.5.",null,null,null,null,null,null,null,null,null,null,null,null,null,null,null,null,"No"]
["Total cutout area must be below 25 % of the area of the respective single wall.",null,null,null,null,null,null,null,null,null,null,null,null,null,null,null,null,"No"]
["External openings in the TSAC or mounted ducts must not point toward the driver.",null,null,null,null,null,null,null,null,null,null,null,null,null,null,null,null,"No"]
["External openings in the TSAC or mounted ducts must not point toward the handcart operator.",null,null,null,null,null,null,null,null,null,null,null,null,null,null,null,null,"No"]
["Any ducts outside of the TSAC and their mountings are fire retardant.",null,null,null,null,null,null,null,null,null,null,null,null,null,null,null,null,"No"]
["Is ventilation of explosive gases or a pressure relief valve required? If yes, then provide relevant description of the system.",null,null,null,null,null,null,null,null,null,null,null,null,null,null,null,null,"No"]
[]
["AIRs and main fuse must be separated (T1.2.1) from the TS accumulator.",null,null,null,null,null,null,null,null,null,null,null,null,null,null,null,null,"No"]

{"sheet":"Additional Info","index":20,"n_rows":7,"n_cols":15,"rows_kept":7,"cut":false,"hidden":false,"merged":[[0,0,0,18],[2,3,2,9],[2,14,2,18],[4,0,5,18]]}
[{"$f":"CONCATENATE(Read_Me!A1,\" FS ASES \",Read_Me!B1,\" - Additional Info\")","v":"2026 FS ASES V1.0 - Additional Info"}]
[]
["University Name",null,null,{"$f":"IF('Cover Sheet'!D15:J15>0,'Cover Sheet'!D15:J15,\"\")","v":""},null,null,null,null,null,null,"Car No.(s) & Event(s)",null,null,null,{"$f":"IF('Cover Sheet'!O15>0,'Cover Sheet'!O15,\"\")","v":""}]
[]
["Please use this sheet to include additional information required for your proof of equivalency that isn't covered by the standard forms e.g. material receipts. This tab may be copied if one page isn't sufficient."]
[]
[null,null,null,null,null,null,null,null,null,null,null,null,null,null,"BACK to COVER SHEET"]

{"sheet":"T3.5.9 Guidance Notes","index":21,"n_rows":40,"n_cols":17,"rows_kept":40,"cut":false,"hidden":false,"merged":[[0,0,0,18]]}
["PERIMETER SHEAR TEST GUIDANCE NOTES"]
[]
[null,"When entering peak loads please ensure they are in accordance with the image below:"]
[]
[null,"Note: Make sure to include BOTH peaks. Also, in case of assymetrical laminates."]
[]
[null,"Note: If the first peak is higher than the second then it can be used for the punch through"]
[null,"strength requirement."]
[]
[]
[]
[]
[]
[]
[]
[]
[]
[]
[]
[]
[]
[]
[]
[]
[]
[]
[]
[]
[]
[]
[]
[]
[]
[]
[]
[]
[]
[]
[]
[null,null,null,null,null,null,null,null,null,null,null,null,null,null,null,null,"BACK"]

{"sheet":"EV5.5.3 Guidance Notes","index":22,"n_rows":19,"n_cols":18,"rows_kept":19,"cut":false,"hidden":false,"merged":[[0,0,0,18],[38,1,38,17]]}
[" ACCUMULATOR MATERIALS GUIDANCE NOTES"]
[]
[null,"Materials except metallic and continuous fiber-reinforced laminates"]
[null,"Mechanical properties must be valid for ≥ 60 °C !"]
[]
[null,"In general 3 possibilities to show compliance:"]
[]
[null,"1. Values from Datasheet"]
[null,"- Must explicitly show mechanical properties at or above 60 °C."]
[null,"- Glass transition/vicat temperature alone is not sufficient."]
[null,"2. Values from own tests"]
[null,"- Test procedure shows mechanical properties ≥ 60 °C."]
[null,"- Must be well documented (report, pictures)."]
[null,"3. Scientific justification"]
[null,"- Least favourable."]
[null,"- Generous knock-down factor applied to ambient temperature values."]
[null,"- Backed up by known behavior of the explicit material, must be explained scientifically."]
[]
[null,null,null,null,null,null,null,null,null,null,null,null,null,null,null,null,null,"BACK"]

{"sheet":"EV5.5.9 Guidance Notes","index":23,"n_rows":21,"n_cols":15,"rows_kept":21,"cut":false,"hidden":false,"merged":[[0,0,0,18],[38,1,38,17],[13,1,13,17]]}
["TSAC, STACK AND CELL FIXATION GUIDANCE NOTES"]
[]
[null,"All mentioned parts and assembly mentioned in EV5.5.8, as well as the interface between"]
[null,"must withstand the mentioned accelerations."]
[null,"This must be shown for every part/interface and every direction (x, y, z) in the respective"]
[null,"ASES tab."]
[null,"For a quick review and pass, use the structure in the respective tab. This will help the "]
[null,"reviewer to quickly understand your design and calculations."]
[]
[]
[null,"Please note:"]
[null,"Analytical calculations always required, FEM can be supportive"]
[]
[null,"Showing some flashy and colourfull FEM images without legends, full model description or "]
[null,"unreadable numbers, no information on meshing etc. result in a \"FAIL\" directly."]
[null,"Analytical calculations must at least be used to verify the FEM calculations."]
[]
[]
[null,null,null,null,null,null,null,null,null,null,null,null,null,null,"BACK: Cell fixation"]
[null,null,null,null,null,null,null,null,null,null,null,null,null,null,"BACK: Segment"]
[null,null,null,null,null,null,null,null,null,null,null,null,null,null,"BACK: TSAC"]

{"sheet":"EV5.5.10-11 Guidance Notes","index":24,"n_rows":39,"n_cols":18,"rows_kept":39,"cut":false,"hidden":false,"merged":[[0,0,0,18]]}
["CELL FIXATION GUIDANCE NOTES"]
[]
[null,"Pouch cells must be fixed using one or both of the large "]
[null,"surface(s) only."]
[null,"Large surface means only the surface shown in the picture on the right."]
[null,"This may be done by friction or adhesive."]
[null,"The other surfaces of the cell must not carry any major load. However,"]
[null,"touching other surfaces for packaging reasons is acceptable."]
[]
[null,"Each used surface must be fixed on at least 80 %."]
[null,"80 % is the absolute minimum surface to be used. If possible, use more"]
[null,"to distribute the force more evenly and improve safety."]
[]
[null,"Tabs of pouch cells must not carry mechanical loads and must not "]
[null,"press into the pouch."]
[null,"Absolutely no mechanical load is permitted on the cell tabs. Busbars, "]
[null,"PCB and/or other parts that are connected with the cell tabs must have "]
[null,"a separate mounting from the cell tabs."]
[]
[null,"To be able to fulfill EV5.5.11, the number of cells mechanically attached in series"]
[null,"is limited."]
[null,"The number of cells in series can be determined based on the following explanation:"]
[]
[null,"If cells are supported on both sides, i.e. between"]
[null,"supports, the number of cells mechanically in "]
[null,"series is the number of cells between the supports"]
[null,"divided by 2."]
[null,"(Left image)"]
[]
[null,"If cells are supported from one side only, the"]
[null,"overall number of cells attached to that support"]
[null,"shall be considered the cells mechanically in series."]
[null,"(Right image)"]
[]
[]
[]
[]
[]
[null,null,null,null,null,null,null,null,null,null,null,null,null,null,null,null,null,"BACK"]

{"sheet":"EV5.5.12 Guidance Notes","index":25,"n_rows":42,"n_cols":18,"rows_kept":42,"cut":false,"hidden":false,"merged":[[0,0,0,18]]}
["FRICTION-BASED CELL FIXATION GUIDANCE NOTES"]
[]
[null,"For friction based cell fixation, i.e. using a preload force to clamp the cells, testing is"]
[null,"required to determine the coefficient of friction between the cells and the material"]
[null,"they are attached to."]
[]
[null,"A suggestion for a test setup is shown below."]
[]
[]
[]
[]
[]
[]
[]
[]
[]
[]
[]
[]
[]
[]
[]
[]
[null,"Cell or mockup"]
[null,"For the test, you can use a an actual cell (respecting all necessary safety measures) "]
[null,"or a representative cell mockup."]
[null,"If a mockup is used, it must have respresentative size (area of friction), surface condition,"]
[null,"and stiffness as the actual cell. Pouch cell foil may be available at the manufacturer."]
[]
[null,"Testing Pressure"]
[null,"The coefficient of friction may be non-linear towards the application pressure. This"]
[null,"must be respected in the testing and calculation."]
[null,"However, the actual pressure in the stack may be inappropriate/too high for the test."]
[null,"Conduct tests with different testing pressure values and then extrapolate in the "]
[null,"calculation to your real application pressure."]
[]
[null,"Testing procedure and documentation"]
[null,"For each testing pressure, also conduct multiple tests to exclude random influences."]
[null,"Document every test result in the EV5.5.10-12 Cell Fixation tab in a table."]
[null,"Show pictures of and describe your test setup. Briefly summarize your test and"]
[null,"argue, which coefficient of friction was chosen."]
[null,null,null,null,null,null,null,null,null,null,null,null,null,null,null,null,null,"BACK"]

{"sheet":"EV5.5 TSAC Attachment Guidance","index":26,"n_rows":34,"n_cols":19,"rows_kept":34,"cut":false,"hidden":false,"merged":[[0,0,0,18],[29,1,29,17]]}
["ACCUMULATOR CONTAINER ATTACHMENT GUIDANCE NOTES"]
[]
[]
[]
[]
[]
[]
[]
[]
[]
[]
[]
[]
[]
[]
[]
[]
[]
[]
[]
[]
[]
[]
[]
[]
[]
[null,"Please note:"]
[null,"Analytical calculations always preferred"]
[]
["!","Showing some flashy and colourful FEM images without legends, full model description or lettertypes are unreadable, nothing given about the meshing etc. result in a \"FAIL\" directly.",null,null,null,null,null,null,null,null,null,null,null,null,null,null,null,null,"!"]
[]
[]
[]
[null,null,null,null,null,null,null,null,null,null,null,null,null,null,null,null,null,"BACK"]